Workbook

Sheet Inicio
B12: Razón Social:
B14: Fecha de Referencia:

Sheet Definicion otros factores (hidden)
C3: Definición | D3: Niveles Subfactores
A4: CATEGORÍA | B4: Subfactores | D4: No relevante | E4: 1 | F4: 2 | G4: 3 | H4: 4 | I4: 5
A5: A) NATURALEZA DE LAS FUNCIONES O TAREAS | B5: OTROS | D5: 0. La utilización de este factor no es relevante para este puesto de trabajo
A6: C) CONDICIONES PROFESIONALES Y DE FORMACIÓN | B6: OTROS | D6: 0. La utilización de este factor no es relevante para este puesto de trabajo
A7: D) CONDICIONES LABORALES Y FACTORES ESTRICTAMENTE RELACIONADOS CON EL DESEMPEÑO | B7: OTROS | D7: 0. La utilización de este factor no es relevante para este puesto de trabajo

Sheet Listado de Puestos
B10: Contador | C10: Título del Puesto | D10: Convenio de Aplicación | E10: Área | F10: Departamento / Zona | G10: Centro de trabajo | H10: Responsable | I10: Observaciones (Opcional)
B11: 1
B12: 2
B13: 3
B14: 4
B15: 5
B16: 6
B17: 7
B18: 8
B19: 9
B20: 10
B21: 11
B22: 12
B23: 13
B24: 14
B25: 15
B26: 16
B27: 17
B28: 18
B29: 19
B30: 20
B31: 21
B32: 22
B33: 23
B34: 24
B35: 25
B36: 26
B37: 27
B38: 28
B39: 29
B40: 30
B41: 31
B42: 32
B43: 33
B44: 34
B45: 35
B46: 36
B47: 37
B48: 38
B49: 39
B50: 40
B51: 41
B52: 42
B53: 43
B54: 44
B55: 45
B56: 46
B57: 47
B58: 48
B59: 49
B60: 50
B61: 51
B62: 52
B63: 53
B64: 54
B65: 55
B66: 56
B67: 57
B68: 58
B69: 59
B70: 60
B71: 61
B72: 62
B73: 63
B74: 64
B75: 65
B76: 66
B77: 67
B78: 68
B79: 69
B80: 70
B81: 71
B82: 72
B83: 73
B84: 74
B85: 75
B86: 76
B87: 77
B88: 78
B89: 79
B90: 80
B91: 81
B92: 82
B93: 83
B94: 84
B95: 85
B96: 86
B97: 87
B98: 88
B99: 89
B100: 90
B101: 91
B102: 92
B103: 93
B104: 94
B105: 95
B106: 96
B107: 97
B108: 98
B109: 99
B110: 100
B111: 101
B112: 102
B113: 103
B114: 104
B115: 105
B116: 106
B117: 107
B118: 108
B119: 109
B120: 110
B121: 111
B122: 112
B123: 113
B124: 114
B125: 115
B126: 116
B127: 117
B128: 118
B129: 119
B130: 120
B131: 121
B132: 122
B133: 123
B134: 124
B135: 125
B136: 126
B137: 127
B138: 128
B139: 129
B140: 130
B141: 131
B142: 132
B143: 133
B144: 134
B145: 135
B146: 136
B147: 137
B148: 138
B149: 139
B150: 140
B151: 141
B152: 142
B153: 143
B154: 144
B155: 145
B156: 146
B157: 147
B158: 148
B159: 149
B160: 150
B161: 151
B162: 152
B163: 153
B164: 154
B165: 155
B166: 156
B167: 157
B168: 158
B169: 159
B170: 160
B171: 161
B172: 162
B173: 163
B174: 164
B175: 165
B176: 166
B177: 167
B178: 168
B179: 169
B180: 170
B181: 171
B182: 172
B183: 173
B184: 174
B185: 175
B186: 176
B187: 177
B188: 178
B189: 179
B190: 180
B191: 181
B192: 182
B193: 183
B194: 184
B195: 185
B196: 186
B197: 187
B198: 188
B199: 189
B200: 190
B201: 191
B202: 192
B203: 193
B204: 194
B205: 195
B206: 196
B207: 197
B208: 198
B209: 199
... 301 more rows

Sheet Lista Puestos Valorados
B10: Número de posición | C10: Título del Puesto | D10: Convenio de Aplicación | E10: Área | F10: Departamento / Zona | G10: Centro de trabajo | H10: Responsable | I10: Observaciones (Opcional) | J10: A.1) POLIVALENCIA O DEFINICIÓN EXTENSA DE OBLIGACIONES | K10: Frecuencia | L10: Intensidad | M10: A.2.1) Posición continuada y posturas forzadas | N10: Frecuencia | O10: Intensidad | P10: A.2.2) Movimientos repetitivos | Q10: Frecuencia | R10: Intensidad | S10: A.2.3) Esfuerzo visual | T10: Frecuencia | U10: Intensidad | V10: A.2.4) Esfuerzo auditivo | W10: Frecuencia | X10: Intensidad | Y10: A.2.5) Otros tipos de esfuerzo físico | Z10: Frecuencia | AA10: Intensidad | AB10: A.3) ESFUERZO MENTAL | AC10: Frecuencia | AD10: Intensidad | AE10: A.4) ESFUERZO EMOCIONAL | AF10: A.5.1) Responsabilidad de organización y coordinación | AG10: A.5.2) Responsabilidad de supervisión de resultados y calidad | AH10: A.6.1) Responsabilidad sobre el bienestar de las personas | AI10: A.6.2) Responsabilidad económica | AJ10: A.6.3) Responsabilidad sobre información confidencial | AK10: A.7) AUTONOMÍA | AL10: A.8) OTROS | AM10: B.1) ENSEÑANZA REGLADA | AN10: C.1.1) Procedimientos, materiales, equipos y máquinas | AO10: C.1.2) Competencias digitales | AP10: C.1.3) Gestión de la diversidad | AQ10: C.1.4) Conocimiento o dominio de idioma extranjero | AR10: C.1.5) Formación no reglada | AS10: C.1.6) Experiencia | AT10: C.1.7) Actualización de conocimientos | AU10: C.2.1) Destreza | AV10: C.2.2) Minuciosidad | AW10: C.2.3) Aptitudes sensoriales | AX10: C.2.4) Capacidad para plantear ideas y soluciones | AY10: C.3.1) Capacidad comunicativa | AZ10: C.3.2) Capacidad emocional | BA10: C.3.3) Capacidad de resolución de conflictos | BB10: C.4) OTROS | BC10: Probabilidad | BD10: Severidad | BE10: D.1.1) Condiciones físicas | BF10: Probabilidad | BG10: Severidad | BH10: D.1.2) Condiciones psicosociales | BI10: D.2.1) Horarios, descansos y vacaciones | BJ10: D.2.2) Desplazamientos y viajes | BK10: D.3) OTROS
B11: 1
B12: 2
B13: 3
B14: 4
B15: 5
B16: 6
B17: 7
B18: 8
B19: 9
B20: 10
B21: 11
B22: 12
B23: 13
B24: 14
B25: 15
B26: 16
B27: 17
B28: 18
B29: 19
B30: 20
B31: 21
B32: 22
B33: 23
B34: 24
B35: 25
B36: 26
B37: 27
B38: 28
B39: 29
B40: 30
B41: 31
B42: 32
B43: 33
B44: 34
B45: 35
B46: 36
B47: 37
B48: 38
B49: 39
B50: 40
B51: 41
B52: 42
B53: 43
B54: 44
B55: 45
B56: 46
B57: 47
B58: 48
B59: 49
B60: 50
B61: 51
B62: 52
B63: 53
B64: 54
B65: 55
B66: 56
B67: 57
B68: 58
B69: 59
B70: 60
B71: 61
B72: 62
B73: 63
B74: 64
B75: 65
B76: 66
B77: 67
B78: 68
B79: 69
B80: 70
B81: 71
B82: 72
B83: 73
B84: 74
B85: 75
B86: 76
B87: 77
B88: 78
B89: 79
B90: 80
B91: 81
B92: 82
B93: 83
B94: 84
B95: 85
B96: 86
B97: 87
B98: 88
B99: 89
B100: 90
B101: 91
B102: 92
B103: 93
B104: 94
B105: 95
B106: 96
B107: 97
B108: 98
B109: 99
B110: 100
B111: 101
B112: 102
B113: 103
B114: 104
B115: 105
B116: 106
B117: 107
B118: 108
B119: 109
B120: 110
B121: 111
B122: 112
B123: 113
B124: 114
B125: 115
B126: 116
B127: 117
B128: 118
B129: 119
B130: 120
B131: 121
B132: 122
B133: 123
B134: 124
B135: 125
B136: 126
B137: 127
B138: 128
B139: 129
B140: 130
B141: 131
B142: 132
B143: 133
B144: 134
B145: 135
B146: 136
B147: 137
B148: 138
B149: 139
B150: 140
B151: 141
B152: 142
B153: 143
B154: 144
B155: 145
B156: 146
B157: 147
B158: 148
B159: 149
B160: 150
B161: 151
B162: 152
B163: 153
B164: 154
B165: 155
B166: 156
B167: 157
B168: 158
B169: 159
B170: 160
B171: 161
B172: 162
B173: 163
B174: 164
B175: 165
B176: 166
B177: 167
B178: 168
B179: 169
B180: 170
B181: 171
B182: 172
B183: 173
B184: 174
B185: 175
B186: 176
B187: 177
B188: 178
B189: 179
B190: 180
B191: 181
B192: 182
B193: 183
B194: 184
B195: 185
B196: 186
B197: 187
B198: 188
B199: 189
B200: 190
B201: 191
B202: 192
B203: 193
B204: 194
B205: 195
B206: 196
B207: 197
B208: 198
B209: 199
... 315 more rows

Sheet Hoja de Valoracion (hidden)
B3: Número de puesto | C3: 3
B4: Título del Puesto | C4: Subdirector/a
B5: Convenio de Aplicación
B6: Área | C6: Área 3
B7: Departamento / Zona | C7: Departamento 3
B8: Centro de trabajo | C8: Oficina 3
B9: Responsable
B10: Observaciones (Opcional)
A14: Categoría | B14: FACTORES | C14: Subfactores | D14: Ejemplos | E14: Definición | F14: Niveles Subfactores | N14: Valoración | O14: Valoración | P14: Valoración
Q15: =+SUM(Q16:Q1048576) -> 681
A16: A) NATURALEZA DE LAS FUNCIONES O TAREAS | B16: =+Sistema_Puntos!M6 -> A.1) POLIVALENCIA O DEFINICIÓN EXTENSA DE OBLIGACIONES | E16: Este factor, que busca visibilizar la totalidad de tareas atribuidas al puesto de trabajo, valora la versatilidad y los requerimientos en cuanto a capacidad de alternar entre funciones distintas o de distinta naturaleza, teniendo en cuenta tanto la heterogeneidad de estas tareas como la frecuencia con que se realizan. El número de funciones atribuidas a un puesto de trabajo, o el carácter heterogéneo de estas, no guarda relación con la ubicación del puesto en el organigrama de la empresa | F16: No relevante | G16: 1 | H16: 2 | I16: 3 | J16: 4 | K16: 5 | P16: 5 | Q16: =+IF(P16="",0,HLOOKUP(P16,Sistema_Puntos!$Q$5:$Y$43,'Auxiliar General'!G8,FALSE)) -> 120.000
F17: 0. La utilización de este factor no es relevante para este puesto de trabajo | G17: 1. El puesto de trabajo tiene atribuidas diversas tareas que se enmarcan en una única función | H17: 2. Ocasionalmente se atribuyen al puesto de trabajo tareas que se enmarcan en una función distinta de la que se asume de manera ordinaria | I17: 3. Frecuentemente se atribuyen al puesto de trabajo tareas que se enmarcan en una función distinta de la que se asume de manera ordinaria | J17: 4. El puesto de trabajo requiere de forma ordinaria el desarrollo de dos funciones diferenciadas | K17: 5. El puesto de trabajo requiere de forma ordinaria el desarrollo de tres o más funciones diferenciadas
B18: A.2) ESFUERZO FÍSICO | C18: =+Sistema_Puntos!M7 -> A.2.1) Posición continuada y posturas forzadas | E18: Refleja la frecuencia de posturas continuadas, como estar de pie, y de posiciones incómodas o forzadas | F18: No relevante | G18: 1 | H18: 2 | I18: 3 | J18: 4 | K18: 5 | N18: Frecuencia | O18: Intensidad | P18: =_xlfn.IFNA(INDEX(Sistema_Puntos!$M$46:$R$51,MATCH('Hoja de Valoracion'!N19,Sistema_Puntos!$M$46:$M$51,0),MATCH(O19,Sistema_Puntos!$M$46:$R$46,0)),"") -> 2 | Q18: =+IF(P18="",0,HLOOKUP(P18,Sistema_Puntos!$Q$5:$Y$43,'Auxiliar General'!G10,FALSE)) -> 2.304
F19: 0. La utilización de este factor no es relevante para este puesto de trabajo | G19: 1. Muy bajo nivel de esfuerzo | H19: 2. Bajo nivel de esfuerzo | I19: 3. Nivel moderado de esfuerzo | J19: 4. Alto nivel de esfuerzo | K19: 5. Muy alto nivel de esfuerzo | N19: NORMALMENTE (más del 30 y hasta el 60% de la jornada semanal) | O19: DÉBIL
C20: =+Sistema_Puntos!M8 -> A.2.2) Movimientos repetitivos | E20: Refleja la frecuencia de realización de movimientos repetitivos o continuos durante la ejecución del trabajo | F20: No relevante | G20: 1 | H20: 2 | I20: 3 | J20: 4 | K20: 5 | N20: Frecuencia | O20: Intensidad | P20: =_xlfn.IFNA(INDEX(Sistema_Puntos!$M$46:$R$51,MATCH('Hoja de Valoracion'!N21,Sistema_Puntos!$M$46:$M$51,0),MATCH(O21,Sistema_Puntos!$M$46:$R$46,0)),"") -> No relevante | Q20: =+IF(P20="",0,HLOOKUP(P20,Sistema_Puntos!$Q$5:$Y$43,'Auxiliar General'!G12,FALSE)) -> 0.000
F21: 0. La utilización de este factor no es relevante para este puesto de trabajo | G21: 1. Muy bajo nivel de esfuerzo | H21: 2. Bajo nivel de esfuerzo | I21: 3. Nivel moderado de esfuerzo | J21: 4. Alto nivel de esfuerzo | K21: 5. Muy alto nivel de esfuerzo. | N21: No relevante | O21: No relevante
C22: =+Sistema_Puntos!M9 -> A.2.3) Esfuerzo visual | E22: Evalúa los requerimientos del puesto de trabajo relativos a la realización de un esfuerzo visual continuado | F22: No relevante | G22: 1 | H22: 2 | I22: 3 | J22: 4 | K22: 5 | N22: Frecuencia | O22: Intensidad | P22: =_xlfn.IFNA(INDEX(Sistema_Puntos!$M$46:$R$51,MATCH('Hoja de Valoracion'!N23,Sistema_Puntos!$M$46:$M$51,0),MATCH(O23,Sistema_Puntos!$M$46:$R$46,0)),"") -> 2 | Q22: =+IF(P22="",0,HLOOKUP(P22,Sistema_Puntos!$Q$5:$Y$43,'Auxiliar General'!G14,FALSE)) -> 2.304
F23: 0. La utilización de este factor no es relevante para este puesto de trabajo | G23: 1. Muy bajo nivel de esfuerzo | H23: 2. Bajo nivel de esfuerzo | I23: 3. Nivel moderado de esfuerzo | J23: 4. Alto nivel de esfuerzo | K23: 5. Muy alto nivel de esfuerzo | N23: NORMALMENTE (más del 30 y hasta el 60% de la jornada semanal) | O23: DÉBIL
C24: =+Sistema_Puntos!M10 -> A.2.4) Esfuerzo auditivo | E24: Mide la duración y la intensidad del esfuerzo auditivo requerido por el puesto de trabajo | F24: No relevante | G24: 1 | H24: 2 | I24: 3 | J24: 4 | K24: 5 | N24: Frecuencia | O24: Intensidad | P24: =_xlfn.IFNA(INDEX(Sistema_Puntos!$M$46:$R$51,MATCH('Hoja de Valoracion'!N25,Sistema_Puntos!$M$46:$M$51,0),MATCH(O25,Sistema_Puntos!$M$46:$R$46,0)),"") -> No relevante | Q24: =+IF(P24="",0,HLOOKUP(P24,Sistema_Puntos!$Q$5:$Y$43,'Auxiliar General'!G16,FALSE)) -> 0.000
F25: 0. La utilización de este factor no es relevante para este puesto de trabajo | G25: 1. Muy bajo nivel de esfuerzo | H25: 2. Bajo nivel de esfuerzo | I25: 3. Nivel moderado de esfuerzo | J25: 4. Alto nivel de esfuerzo | K25: 5. Muy alto nivel de esfuerzo | N25: No relevante | O25: No relevante
C26: =+Sistema_Puntos!M11 -> A.2.5) Otros tipos de esfuerzo físico | E26: Valora el esfuerzo físico ocasionado al realizar actividades como: limpiar, fregar, movilizar personas, manipular cargas, levantar pesos, empujar algo, aplicar fuerza a alguna cosa, cavar, picar, girar una manivela, desplazarse a pie, realizar actividades manuales que exigen fuerza o resistencia, utilizar equipos de protección que causan incomodidad, etc. Considera la intensidad y la frecuencia con que se realiza el esfuerzo físico | F26: No relevante | G26: 1 | H26: 2 | I26: 3 | J26: 4 | K26: 5 | N26: Frecuencia | O26: Intensidad | P26: =_xlfn.IFNA(INDEX(Sistema_Puntos!$M$46:$R$51,MATCH('Hoja de Valoracion'!N27,Sistema_Puntos!$M$46:$M$51,0),MATCH(O27,Sistema_Puntos!$M$46:$R$46,0)),"") -> 1 | Q26: =+IF(P26="",0,HLOOKUP(P26,Sistema_Puntos!$Q$5:$Y$43,'Auxiliar General'!G18,FALSE)) -> 1.152
F27: 0. La utilización de este factor no es relevante para este puesto de trabajo | G27: 1. Muy bajo nivel de esfuerzo | H27: 2. Bajo nivel de esfuerzo | I27: 3. Nivel moderado de esfuerzo | J27: 4. Alto nivel de esfuerzo | K27: 5. Muy alto nivel de esfuerzo | N27: DE VEZ EN CUANDO (hasta el 30% de la jornada semanal) | O27: DÉBIL
B28: =+Sistema_Puntos!M12 -> A.3) ESFUERZO MENTAL | E28: Evalúa la duración y la frecuencia de las tareas que requieren una concentración mental intensa | F28: No relevante | G28: 1 | H28: 2 | I28: 3 | J28: 4 | K28: 5 | N28: Frecuencia | O28: Intensidad | P28: =_xlfn.IFNA(INDEX(Sistema_Puntos!$M$46:$R$51,MATCH('Hoja de Valoracion'!N29,Sistema_Puntos!$M$46:$M$51,0),MATCH(O29,Sistema_Puntos!$M$46:$R$46,0)),"") -> 4 | Q28: =+IF(P28="",0,HLOOKUP(P28,Sistema_Puntos!$Q$5:$Y$43,'Auxiliar General'!G20,FALSE)) -> 26.880
F29: 0. La utilización de este factor no es relevante para este puesto de trabajo | G29: 1. Muy bajo nivel de esfuerzo. | H29: 2. Bajo nivel de esfuerzo | I29: 3. Nivel moderado de esfuerzo | J29: 4. Alto nivel de esfuerzo | K29: 5. Muy alto nivel de esfuerzo | N29: SIEMPRE O CASI SIEMPRE (más del 60% de la jornada semanal) | O29: MODERADO
B30: =+Sistema_Puntos!M13 -> A.4) ESFUERZO EMOCIONAL | E30: Refleja las exigencias del puesto ante las situaciones de estrés o presión derivadas de las relaciones interpersonales que implica el trabajo, incluyendo la necesidad tanto de ser flexible como de regular las propias emociones durante las interacciones que se realizan con otras personas | F30: No relevante | G30: 1 | H30: 2 | I30: 3 | J30: 4 | K30: 5 | N30: Frecuencia | O30: Intensidad | P30: =_xlfn.IFNA(INDEX(Sistema_Puntos!$M$46:$R$51,MATCH('Hoja de Valoracion'!N31,Sistema_Puntos!$M$46:$M$51,0),MATCH(O31,Sistema_Puntos!$M$46:$R$46,0)),"") -> 3 | Q30: =+IF(P30="",0,HLOOKUP(P30,Sistema_Puntos!$Q$5:$Y$43,'Auxiliar General'!G22,FALSE)) -> 20.160
F31: 0. La utilización de este factor no es relevante para este puesto de trabajo | G31: 1. Muy bajo nivel de esfuerzo | H31: 2. Bajo nivel de esfuerzo | I31: 3. Nivel moderado de esfuerzo. | J31: 4. Alto nivel de esfuerzo | K31: 5. Muy alto nivel de esfuerzo | N31: NORMALMENTE (más del 30 y hasta el 60% de la jornada semanal) | O31: MODERADO
B32: A.5) RESPONSABILIDAD DE ORGANIZACIÓN, COORDINACIÓN Y SUPERVISIÓN | C32: =+Sistema_Puntos!M14 -> A.5.1) Responsabilidad de organización y coordinación | E32: Evalúa la responsabilidad atribuida al puesto de trabajo de forma directa o delegada relativa a la planificación, organización, dirección y coordinación de las tareas de otras personas, así como sobre la formación de otras personas | F32: No relevante | G32: 1 | H32: 2 | I32: 3 | J32: 4 | K32: 5 | P32: 4 | Q32: =+IF(P32="",0,HLOOKUP(P32,Sistema_Puntos!$Q$5:$Y$43,'Auxiliar General'!G24,FALSE)) -> 19.680
F33: 0. La utilización de este factor no es relevante para este puesto de trabajo | G33: 1. Es responsable de la organización de las tareas que son asignadas al propio puesto de trabajo | H33: 2. Es responsable de organizar o coordinar el trabajo diario de otras personas, bajo la dirección de otra persona. | I33: 3. Dirige el trabajo diario del equipo a su cargo, o es responsable de la formación, tutorización o asesoramiento de sus miembros | J33: 4. Programa, organiza o coordina las tareas de uno o varios equipos de acuerdo con la planificación a largo plazo de la empresa | K33: 5. Es responsable de la planificación y organización a largo plazo de la actividad de la empresa o de alguna o algunas de sus principales áreas funcionales
C34: =+Sistema_Puntos!M15 -> A.5.2) Responsabilidad de supervisión de resultados y calidad | E34: Mide la responsabilidad sobre los resultados y la calidad del trabajo propio y de otras personas. | F34: No relevante | G34: 1 | H34: 2 | I34: 3 | J34: 4 | K34: 5 | P34: 2 | Q34: =+IF(P34="",0,HLOOKUP(P34,Sistema_Puntos!$Q$5:$Y$43,'Auxiliar General'!G26,FALSE)) -> 9.840
F35: 0. La utilización de este factor no es relevante para este puesto de trabajo | G35: 1. Es responsable de los resultados y calidad de su propio trabajo, de manera que se le atribuyen los defectos que se puedan producir | H35: 2. Es responsable de los resultados y la calidad del trabajo de un área de actividad de la organización, de manera que se le atribuya la responsabilidad sobre los defectos que se produzca en dicha área | I35: 3. Es responsable de los resultados y la calidad del trabajo de toda la organización, de manera que se le atribuye la responsabilidad última sobre los defectos que se puedan producir en toda la organización
B36: A.6) RESPONSABILIDADES FUNCIONALES | C36: =+Sistema_Puntos!M16 -> A.6.1) Responsabilidad sobre el bienestar de las personas | E36: Evalúa la responsabilidad del cuidado, el desarrollo intelectual y emocional, la salud, la seguridad y el bienestar físico, mental y social de las personas. | F36: No relevante | G36: 1 | H36: 2 | I36: 3 | J36: 4 | K36: 5 | P36: 2 | Q36: =+IF(P36="",0,HLOOKUP(P36,Sistema_Puntos!$Q$5:$Y$43,'Auxiliar General'!G28,FALSE)) -> 15.307
F37: 0. La utilización de este factor no es relevante para este puesto de trabajo | G37: 1. Las funciones del puesto relacionadas con el bienestar de las personas pueden tener consecuencias limitadas sobre este bienestar | H37: 2. Las funciones del puesto relacionadas con el bienestar de las personas pueden tener consecuencias moderadas sobre este bienestar | I37: 3. Las funciones del puesto relacionadas con el bienestar de las personas pueden tener consecuencias notables sobre este bienestar
C38: =+Sistema_Puntos!M17 -> A.6.2) Responsabilidad económica | E38: Evalúa el alcance de la responsabilidad sobre el dinero, presupuestos y administración económica, así como sobre máquinas, aparatos, edificios, entorno o recursos materiales. | F38: No relevante | G38: 1 | H38: 2 | I38: 3 | J38: 4 | K38: 5 | L38: 6 | M38: 7 | P38: 3 | Q38: =+IF(P38="",0,HLOOKUP(P38,Sistema_Puntos!$Q$5:$Y$43,'Auxiliar General'!G30,FALSE)) -> 14.350
F39: 0. La utilización de este factor no es relevante para este puesto de trabajo | G39: 1. Las funciones del puesto que implican responsabilidad económica tienen una repercusión limitada sobre el presupuesto, el entorno o los recursos de la organización | H39: 2. Las funciones del puesto que implican responsabilidad económica tienen una repercusión moderada sobre el presupuesto, el entorno o los recursos de la organización | I39: 3. Las funciones del puesto que implican responsabilidad económica tienen una repercusión notable sobre el presupuesto, el entorno o los recursos de la organización
C40: =+Sistema_Puntos!M18 -> A.6.3) Responsabilidad sobre información confidencial | E40: Evalúa la responsabilidad derivada de las tareas del puesto que requieren trabajar con información y datos confidenciales. Ha de evaluarse tanto el tipo de información con que se trabaja, como las consecuencias para la empresa de su difusión o errores en su manejo en términos de perjuicio económico o de conflicto interno o externo | F40: No relevante | G40: 1 | H40: 2 | I40: 3 | J40: 4 | K40: 5 | P40: 2 | Q40: =+IF(P40="",0,HLOOKUP(P40,Sistema_Puntos!$Q$5:$Y$43,'Auxiliar General'!G32,FALSE)) -> 13.393
F41: 0. La utilización de este factor no es relevante para este puesto de trabajo | G41: 1. El puesto de trabajo requiere un manejo ocasional, frecuente o continuado de información o datos de carácter confidencial, protegido o sensible, que puede tener un impacto limitado sobre la empresa | H41: 2. El puesto de trabajo requiere un manejo ocasional de información o datos de carácter confidencial, protegido o sensible que puede tener un impacto notable sobre la empresa; o bien, requiere un manejo frecuente o continuado de esta información que puede tener un impacto moderado sobre la misma | I41: 3. El puesto de trabajo requiere un manejo frecuente o continuado de información o datos de carácter confidencial, protegido o sensible que, puede tener un impacto notable sobre la empresa
B42: =+Sistema_Puntos!M19 -> A.7) AUTONOMÍA | E42: En relación con la ejecución del trabajo y con la planificación y distribución en el tiempo de las tareas atribuidas, mide la existencia, o no, de procedimientos preestablecidos para el desarrollo de estas tareas o la concurrencia de un cierto grado de libertad, flexibilidad o iniciativa respecto al seguimiento de las instrucciones y directrices recibidas. La autonomía en el desarrollo de un puesto de trabajo no guarda relación con su ubicación en el organigrama de la empresa | F42: No relevante | G42: 1 | H42: 2 | I42: 3 | J42: 4 | K42: 5 | L42: 6 | M42: 7 | P42: 2 | Q42: =+IF(P42="",0,HLOOKUP(P42,Sistema_Puntos!$Q$5:$Y$43,'Auxiliar General'!G34,FALSE)) -> 38.267
F43: 0. La utilización de este factor no es relevante para este puesto de trabajo | G43: 1. Existen instrucciones, directrices y protocolos estandarizados que determinan el desarrollo, planificación y distribución de las tareas propias del puesto de trabajo, aunque la persona ocupante del puesto puede decidir ocasionalmente sobre algunos de estos aspectos para una organización más eficiente de su propio trabajo | H43: 2. Aunque existen instrucciones, directrices y protocolos que fijan, de manera general, el desarrollo, planificación y distribución de las tareas propias del puesto de trabajo, la persona que lo ocupa puede adaptar esas instrucciones, directrices y protocolos para una organización más eficiente de su propio trabajo | I43: 3. No existen instrucciones, directrices y protocolos que determinen el desarrollo, planificación y distribución de las tareas propias del puesto de trabajo, que pueden ser complejas, variadas o no estandarizadas. Existe libertad y discreción en la toma de decisiones respecto de estos aspectos del trabajo
B44: =+Sistema_Puntos!M20 -> A.8) OTROS | E44: =+IF('Definicion otros factores'!$C$5=0,"",'Definicion otros factores'!$C$5) ->  | F44: No relevante | G44: 1 | H44: 2 | I44: 3 | J44: 4 | K44: 5 | P44: No relevante | Q44: =+IF(P44="",0,HLOOKUP(P44,Sistema_Puntos!$Q$5:$Y$43,'Auxiliar General'!G36,FALSE)) -> 0.000
F45: 0. La utilización de este factor no es relevante para este puesto de trabajo | G45: =+IF('Definicion otros factores'!$E$5=0,"",'Definicion otros factores'!$E$5) ->  | H45: =+IF('Definicion otros factores'!$F$5=0,"",'Definicion otros factores'!$F$5) ->  | I45: =+IF('Definicion otros factores'!$G$5=0,"",'Definicion otros factores'!$G$5) ->  | J45: =+IF('Definicion otros factores'!$H$5=0,"",'Definicion otros factores'!$H$5) ->  | K45: =+IF('Definicion otros factores'!$I$5=0,"",'Definicion otros factores'!$I$5) -> 
A46: B) CONDICIONES EDUCATIVAS | B46: =+Sistema_Puntos!M21 -> B.1) ENSEÑANZA REGLADA | E46: Mide el nivel mínimo de formación convencional que el puesto de trabajo exige para su ocupación. | F46: No relevante | G46: 1 | H46: 2 | I46: 3 | J46: 4 | K46: 5 | L46: 6 | M46: 7 | P46: 6 | Q46: =+IF(P46="",0,HLOOKUP(P46,Sistema_Puntos!$Q$5:$Y$43,'Auxiliar General'!G38,FALSE)) -> 171.429
F47: 0. La utilización de este factor no es relevante para este puesto de trabajo | G47: 1. El puesto requiere educación primaria | H47: 2. El puesto requiere educación secundaria obligatoria o grado básico de formación profesional | I47: 3. El puesto requiere grado medio de formación profesional | J47: 4. El puesto requiere bachillerato o grado superior de formación profesional | K47: 5. El puesto requiere grado universitario o equivalente | L47: 6. El puesto requiere máster universitario | M47: 7. El puesto requiere doctorado
A48: C) CONDICIONES PROFESIONALES Y DE FORMACIÓN | B48: C.1) CONOCIMIENTOS Y COMPRENSIÓN | C48: =+Sistema_Puntos!M22 -> C.1.1) Procedimientos, materiales, equipos y máquinas | E48: Evalúa la necesidad de entender, manejar y de realizar trabajo con las herramientas, el equipo y la maquinaria, así como de repararlos, realizar tareas de mantenimiento e instalarlos | F48: No relevante | G48: 1 | H48: 2 | I48: 3 | P48: No relevante | Q48: =+IF(P48="",0,HLOOKUP(P48,Sistema_Puntos!$Q$5:$Y$43,'Auxiliar General'!G40,FALSE)) -> 0.000
F49: 0. La utilización de este factor no es relevante para este puesto de trabajo | G49: 1. El puesto de trabajo requiere ciertos conocimientos básicos de manejo, instalación, reparación o mantenimiento de herramientas y materiales de trabajo, equipos, máquinas y procedimientos | H49: 2. El puesto de trabajo requiere conocimientos amplios o variados de manejo, instalación, reparación o mantenimiento de herramientas y materiales de trabajo, equipos, máquinas y procedimientos | I49: 3. El puesto de trabajo requiere conocimientos avanzados de manejo, instalación, reparación o mantenimiento de herramientas y materiales de trabajo, equipos, máquinas y procedimientos específicos o propios del sector de actividad de la empresa
C50: =+Sistema_Puntos!M23 -> C.1.2) Competencias digitales | E50: Mide los requerimientos del puesto de trabajo relativos al uso de las tecnologías de la información y la comunicación, así como los conocimientos informáticos necesarios para desarrollar las tareas propias del mismo y alcanzar los objetivos marcados | F50: No relevante | G50: 1 | H50: 2 | I50: 3 | P50: 2 | Q50: =+IF(P50="",0,HLOOKUP(P50,Sistema_Puntos!$Q$5:$Y$43,'Auxiliar General'!G42,FALSE)) -> 11.250
F51: 0. La utilización de este factor no es relevante para este puesto de trabajo | G51: 1. El puesto requiere conocimientos básicos en manejo de software o aplicaciones de uso general u ofimática | H51: 2. El puesto requiere conocimientos avanzados en manejo de software o aplicaciones de uso general u ofimática o conocimientos básicos en manejo de software o aplicaciones específicos del sector de actividad de la empresa | I51: 3. El puesto requiere conocimientos avanzados en manejo de software o aplicaciones específicos del sector de actividad de la empresa
C52: =+Sistema_Puntos!M24 -> C.1.3) Gestión de la diversidad | E52: Mide el conocimiento requerido por el puesto de trabajo para interactuar adecuadamente con personas de diferente edad, cultura, etnia o raza, expresión o identidad de género, orientación sexual o personas con discapacidad | F52: No relevante | G52: 1 | H52: 2 | I52: 3 | J52: 4 | K52: 5 | L52: 6 | M52: 7 | P52: 2 | Q52: =+IF(P52="",0,HLOOKUP(P52,Sistema_Puntos!$Q$5:$Y$43,'Auxiliar General'!G44,FALSE)) -> 7.500
F53: 0. La utilización de este factor no es relevante para este puesto de trabajo | G53: 1. El puesto conlleva la interacción ocasional con personas de diferente edad, cultura, etnia o raza, expresión o identidad de género, orientación sexual o personas con discapacidad. | H53: 2. El puesto conlleva la interacción frecuente con personas de diferente edad, cultura, etnia o raza, expresión o identidad de género, orientación sexual o personas con discapacidad, y su desempeño se beneficia del conocimiento y comprensión de las manifestaciones y cualidades de la diversidad humana | I53: 3. El puesto conlleva la interacción constante con personas de diferente edad, cultura, etnia o raza, expresión o identidad de género, orientación sexual o personas con discapacidad, y requiere un conocimiento y comprensión profundos de las manifestaciones y cualidades de la diversidad humana
C54: =+Sistema_Puntos!M25 -> C.1.4) Conocimiento o dominio de idioma extranjero | E54: Mide el nivel de conocimientos y el número de idiomas extranjeros que son necesarios para desarrollar las funciones del puesto de trabajo | F54: No relevante | G54: 1 | H54: 2 | I54: 3 | J54: 4 | K54: 5 | P54: 4 | Q54: =+IF(P54="",0,HLOOKUP(P54,Sistema_Puntos!$Q$5:$Y$43,'Auxiliar General'!G46,FALSE)) -> 15.750
F55: 0. La utilización de este factor no es relevante para este puesto de trabajo | G55: 1. El puesto requiere el conocimiento básico de un idioma extranjero | H55: 2. El puesto requiere el conocimiento básico de dos o más idiomas extranjero | I55: 3. El puesto requiere el conocimiento medio de un idioma extranjero | J55: 4. El puesto requiere el conocimiento medio de dos o más idiomas extranjeros o avanzado de un idioma extranjero | K55: 5. El puesto requiere el conocimiento avanzado de dos o más idiomas extranjeros
C56: =+Sistema_Puntos!M26 -> C.1.5) Formación no reglada | E56: Evalúa los conocimientos que son necesarios para desempeñar el puesto de trabajo y que pueden ser adquiridos y acreditados mediante enseñanzas que no conducen a la obtención de un título con valor oficial de los recogidos en el factor B.1) Enseñanza reglada | F56: No relevante | G56: 1 | H56: 2 | I56: 3 | J56: 4 | K56: 5 | P56: 1 | Q56: =+IF(P56="",0,HLOOKUP(P56,Sistema_Puntos!$Q$5:$Y$43,'Auxiliar General'!G48,FALSE)) -> 6.563
F57: 0. La utilización de este factor no es relevante para este puesto de trabajo | G57: 1. El desempeño del puesto de trabajo requiere hasta 30h de formación no reglada | H57: 2. El desempeño del puesto de trabajo requiere entre 30h y 60h de formación no reglada | I57: 3. El desempeño del puesto de trabajo requiere más de 60h de formación no reglada
C58: =+Sistema_Puntos!M27 -> C.1.6) Experiencia | E58: Expresa el tiempo de experiencia o práctica profesional previa requerido para desempeñar el puesto de trabajo | F58: No relevante | G58: 1 | H58: 2 | I58: 3 | J58: 4 | K58: 5 | P58: 4 | Q58: =+IF(P58="",0,HLOOKUP(P58,Sistema_Puntos!$Q$5:$Y$43,'Auxiliar General'!G50,FALSE)) -> 9.000
F59: 0. La utilización de este factor no es relevante para este puesto de trabajo | G59: 1. El desempeño del puesto requiere una experiencia o práctica profesional previa de hasta tres meses | H59: 2. El desempeño del puesto requiere una experiencia o práctica profesional previa de entre tres meses y un año | I59: 3. El desempeño del puesto requiere una experiencia o práctica profesional previa de entre uno y tres años | J59: 4. El desempeño del puesto requiere una experiencia o práctica profesional previa de entre tres y cinco años | K59: 5. El desempeño del puesto requiere una experiencia o práctica profesional previa de más de cinco años
C60: =+Sistema_Puntos!M28 -> C.1.7) Actualización de conocimientos | E60: Mide los requerimientos del puesto de trabajo relativos a la necesidad de mantener al día los conocimientos necesarios para desempeñar sus funciones | F60: No relevante | G60: 1 | H60: 2 | I60: 3 | P60: 2 | Q60: =+IF(P60="",0,HLOOKUP(P60,Sistema_Puntos!$Q$5:$Y$43,'Auxiliar General'!G52,FALSE)) -> 11.250
F61: 0. La utilización de este factor no es relevante para este puesto de trabajo | G61: 1. El entorno de trabajo de este puesto es estable, aunque requiere ocasionalmente el aprendizaje de nuevas soluciones, métodos o procedimientos | H61: 2. El entorno de trabajo de este puesto experimenta cambios de manera usual. Requiere con frecuencia el aprendizaje de nuevas soluciones, métodos o procedimientos | I61: 3. El entorno de trabajo de este puesto está sometido a cambios constantes. Requiere de forma continua el aprendizaje de nuevas soluciones, métodos o procedimientos, así como información actualizada de los conocimientos o el estado de la técnica en el concreto sector de actividad de la organización
B62: C.2) APTITUDES | C62: =+Sistema_Puntos!M29 -> C.2.1) Destreza | E62: Evalúa el recurso a la precisión y la velocidad y el nivel de coordinación, tanto en manos y dedos como en otras partes del cuerpo para el desempeño del trabajo. | F62: No relevante | G62: 1 | H62: 2 | I62: 3 | P62: No relevante | Q62: =+IF(P62="",0,HLOOKUP(P62,Sistema_Puntos!$Q$5:$Y$43,'Auxiliar General'!G54,FALSE)) -> 0.000
F63: 0. La utilización de este factor no es relevante para este puesto de trabajo | G63: 1. El puesto de trabajo requiere la coordinación del movimiento de manos, dedos u otras partes del cuerpo | H63: 2. El puesto de trabajo requiere coordinación y precisión en el movimiento de manos, dedos u otras partes del cuerpo | I63: 3. El puesto de trabajo requiere velocidad, coordinación y precisión en el movimiento de manos, dedos u otras partes del cuerpo
C64: =+Sistema_Puntos!M30 -> C.2.2) Minuciosidad | E64: Evalúa la atención al detalle en el desempeño del trabajo, así como la capacidad para discernir entre aquellos detalles relevantes para la prestación de los servicios de aquellos que no lo son | F64: No relevante | G64: 1 | H64: 2 | I64: 3 | P64: 3 | Q64: =+IF(P64="",0,HLOOKUP(P64,Sistema_Puntos!$Q$5:$Y$43,'Auxiliar General'!G56,FALSE)) -> 15.625
F65: 0. La utilización de este factor no es relevante para este puesto de trabajo | G65: 1. El puesto de trabajo requiere una atención minuciosa limitada, entendida como la manipulación de objetos pequeños o la observación de detalles globales | H65: 2. El puesto requiere una atención minuciosa moderada, entendida como la manipulación de objetos muy pequeños o la observación de detalles pequeños | I65: 3. El puesto requiere una atención minuciosa notable, entendida como la manipulación de objetos diminutos o la observación de detalles extremadamente pequeños
C66: =+Sistema_Puntos!M31 -> C.2.3) Aptitudes sensoriales | E66: Evalúa el uso de las aptitudes sensoriales (vista, oído, olfato, gusto, tacto) para el desempeño del trabajo, midiendo la intensidad en cada caso. | F66: No relevante | G66: 1 | H66: 2 | I66: 3 | P66: No relevante | Q66: =+IF(P66="",0,HLOOKUP(P66,Sistema_Puntos!$Q$5:$Y$43,'Auxiliar General'!G58,FALSE)) -> 0.000
F67: 0. La utilización de este factor no es relevante para este puesto de trabajo | G67: 1. El puesto requiere un uso limitado de aptitudes sensoriales | H67: 2. El puesto requiere un uso moderado de aptitudes sensoriales | I67: 3. El puesto requiere un uso notable de aptitudes sensoriales
C68: =+Sistema_Puntos!M32 -> C.2.4) Capacidad para plantear ideas y soluciones | E68: Mide la complejidad y heterogeneidad de las situaciones o los problemas que surgen en el puesto de trabajo, así como la habilidad requerida para plantear o hallar sus soluciones | F68: No relevante | G68: 1 | H68: 2 | I68: 3 | P68: 3 | Q68: =+IF(P68="",0,HLOOKUP(P68,Sistema_Puntos!$Q$5:$Y$43,'Auxiliar General'!G60,FALSE)) -> 15.625
F69: 0. La utilización de este factor no es relevante para este puesto de trabajo | G69: 1. El puesto requiere la capacidad de adaptación de soluciones existentes a las situaciones que se producen en el mismo | H69: 2. El puesto requiere el planteamiento de soluciones específicas a las situaciones que se producen en el mismo a partir de los conocimientos generales propios del sector de actividad | I69: 3. El puesto requiere el planteamiento de soluciones específicas a las situaciones que se producen en el mismo que no se derivan de los conocimientos generales propios del sector de actividad
B70: C.3) HABILIDADES SOCIALES | C70: =+Sistema_Puntos!M33 -> C.3.1) Capacidad comunicativa | E70: Evalúa las habilidades requeridas por el puesto de trabajo para transmitir información, instrucciones o conocimiento, tanto por la naturaleza y complejidad de la información como por las características de los interlocutores, que pudieran dificultar la actividad comunicativa o que pudieran requerir persuasión, consejo, inspiración, motivación o influencia | F70: No relevante | G70: 1 | H70: 2 | I70: 3 | P70: 2 | Q70: =+IF(P70="",0,HLOOKUP(P70,Sistema_Puntos!$Q$5:$Y$43,'Auxiliar General'!G62,FALSE)) -> 14.583
F71: 0. La utilización de este factor no es relevante para este puesto de trabajo | G71: 1. Las tareas del puesto implican, incidentalmente, la realización de actividades comunicativas de carácter meramente informativo, dedicado a proporcionar o intercambiar información | H71: 2. Las tareas del puesto implican la realización de actividades comunicativas, ya sea con personas que forman parte de la organización o con personas ajenas a la misma | I71: 3. Las tareas del puesto implican la realización de actividades comunicativas de gran dificultad, ya sea por su contexto (por ejemplo, en discusiones o negociaciones técnicas o persuasivas), las personas a las que se dirige (niños o niñas, determinadas personas dependientes, etc.) o la complejidad de la información que se debe transmitir
C72: =+Sistema_Puntos!M34 -> C.3.2) Capacidad emocional | E72: Este factor, en relación con las tareas del puesto de trabajo cuya ejecución depende de la respuesta de otras personas, mide la empatía o capacidad de percibir y comprender sus pensamientos, sentimientos y su estado emocional, y responder adecuadamente ante estos, adaptando la manera de interactuar con esas personas | F72: No relevante | G72: 1 | H72: 2 | I72: 3 | P72: 3 | Q72: =+IF(P72="",0,HLOOKUP(P72,Sistema_Puntos!$Q$5:$Y$43,'Auxiliar General'!G64,FALSE)) -> 18.750
F73: 0. La utilización de este factor no es relevante para este puesto de trabajo | G73: 1. La ejecución de las tareas del puesto requiere ocasionalmente percibir, comprender y responder adecuadamente a los pensamientos, sentimientos y estado emocional de otras personas | H73: 2. La ejecución de las tareas del puesto requiere frecuentemente percibir, comprender y responder adecuadamente a los pensamientos, sentimientos y estado emocional de otras personas | I73: 3. La ejecución de las tareas del puesto requiere constantemente percibir, comprender y responder adecuadamente a los pensamientos, sentimientos y estado emocional de otras personas
C74: =+Sistema_Puntos!M35 -> C.3.3) Capacidad de resolución de conflictos | E74: Evalúa los requerimientos del puesto de trabajo referidos a la intervención constructiva, ya sea en forma oral o escrita, en la resolución de conflictos o situaciones de tensión con personas tanto pertenecientes a la propia organización (superiores, personas subordinadas, compañeras y compañeros, etc.) como ajenas a la misma (clientela, proveedores, etc.) | F74: No relevante | G74: 1 | H74: 2 | I74: 3 | P74: 3 | Q74: =+IF(P74="",0,HLOOKUP(P74,Sistema_Puntos!$Q$5:$Y$43,'Auxiliar General'!G66,FALSE)) -> 21.875
F75: 0. La utilización de este factor no es relevante para este puesto de trabajo | G75: 1. El puesto de trabajo requiere ocasionalmente la intervención constructiva en la resolución de conflictos o situaciones de tensión con otras personas | H75: 2. El puesto de trabajo requiere frecuentemente la intervención constructiva en la resolución de conflictos o situaciones de tensión con otras personas | I75: 3. El puesto de trabajo requiere constantemente la intervención constructiva en la resolución de conflictos o situaciones de tensión con otras personas
B76: =+Sistema_Puntos!M36 -> C.4) OTROS | F76: No relevante | G76: 1 | H76: 2 | I76: 3 | J76: 4 | K76: 5 | P76: No relevante | Q76: =+IF(P76="",0,HLOOKUP(P76,Sistema_Puntos!$Q$5:$Y$43,'Auxiliar General'!G68,FALSE)) -> 0.000
F77: 0. La utilización de este factor no es relevante para este puesto de trabajo | G77: =+IF('Definicion otros factores'!$E$6=0,"",'Definicion otros factores'!$E$6) ->  | H77: =+IF('Definicion otros factores'!$F$6=0,"",'Definicion otros factores'!$F$6) ->  | I77: =+IF('Definicion otros factores'!$G$6=0,"",'Definicion otros factores'!$G$6) ->  | J77: =+IF('Definicion otros factores'!$H$6=0,"",'Definicion otros factores'!$H$6) ->  | K77: =+IF('Definicion otros factores'!$I$6=0,"",'Definicion otros factores'!$I$6) -> 
A78: D) CONDICIONES LABORALES Y FACTORES ESTRICTAMENTE RELACIONADOS CON EL DESEMPEÑO | B78: D.1) ENTORNO | C78: =+Sistema_Puntos!M37 -> D.1.1) Condiciones físicas | E78: Se incluyen los elementos generadores de riesgos materiales, ya sean físicos (procedentes de vibraciones, ruido, radiación, temperatura, humedad, etc.) o derivados de la presencia de agentes químicos (todo compuesto químico, en estado natural o producido, utilizado o vertido en una actividad laboral) o agentes biológicos (microorganismos susceptibles de causar cualquier tipo de infección, alergia o toxicidad) | F78: No relevante | G78: 1 | H78: 2 | I78: 3 | J78: 4 | K78: 5 | N78: Probabilidad | O78: Severidad | P78: =_xlfn.IFNA(INDEX(Sistema_Puntos!$M$60:$R$65,MATCH('Hoja de Valoracion'!N79,Sistema_Puntos!$M$60:$M$65,0),MATCH('Hoja de Valoracion'!O79,Sistema_Puntos!$M$60:$R$60,0)),"") -> 1 | Q78: =+IF(P78="",0,HLOOKUP(P78,Sistema_Puntos!$Q$5:$Y$43,'Auxiliar General'!G70,FALSE)) -> 9.000
F79: 0. La utilización de este factor no es relevante para este puesto de trabajo | G79: 1. Muy baja exposición a elementos generadores de riesgos físicos para la salud. | H79: 2. Baja exposición a elementos generadores de riesgos físicos para la salud. | I79: 3. Exposición moderada a elementos generadores de riesgos físicos para la salud. | J79: 4. Alta exposición a elementos generadores de riesgos físicos para la salud. | K79: 5. Muy alta exposición a elementos generadores de riesgos físicos para la salud | N79: POCO PROBABLE | O79: POCO GRAVE
C80: =+Sistema_Puntos!M38 -> D.1.2) Condiciones psicosociales | E80: Valora la existencia de riesgos psicosociales, como el aislamiento físico o geográfico, los trabajos monótonos o repetitivos; las tareas que derivan con cierta probabilidad en problemas o conflictos, acoso (también sexual o por razón de sexo), estrés o ansiedad; los trabajos que conllevan trato con público, clientela, proveedores, compañeras o compañeros, etc. Se incluyen asimismo los riesgos psicosociales que emergen ante las nuevas formas de trabajo, como el tecnoestrés o la fatiga informática | F80: No relevante | G80: 1 | H80: 2 | I80: 3 | J80: 4 | K80: 5 | N80: Probabilidad | O80: Severidad | P80: =_xlfn.IFNA(INDEX(Sistema_Puntos!$M$60:$R$65,MATCH('Hoja de Valoracion'!N81,Sistema_Puntos!$M$60:$M$65,0),MATCH('Hoja de Valoracion'!O81,Sistema_Puntos!$M$60:$R$60,0)),"") -> 3 | Q80: =+IF(P80="",0,HLOOKUP(P80,Sistema_Puntos!$Q$5:$Y$43,'Auxiliar General'!G72,FALSE)) -> 27.000
F81: 0. La utilización de este factor no es relevante para este puesto de trabajo | G81: 1. Muy baja exposición a elementos generadores de riesgos físicos para la salud. | H81: 2. Baja exposición a elementos generadores de riesgos físicos para la salud. | I81: 3. Exposición moderada a elementos generadores de riesgos físicos para la salud. | J81: 4. Alta exposición a elementos generadores de riesgos físicos para la salud. | K81: 5. Muy alta exposición a elementos generadores de riesgos físicos para la salud | N81: PROBABLE | O81: GRAVE
B82: D.2) CONDICIONES ORGANIZATIVAS | C82: =+Sistema_Puntos!M39 -> D.2.1) Horarios, descansos y vacaciones | E82: Este factor valora la necesidad de adaptación a la realización de horarios de trabajo irregulares o inusuales (trabajo nocturno, trabajo a turnos) así como la afectación a las posibilidades de disposición del tiempo de descanso (trabajo en festivos o fines de semana, posibilidad de fijación de periodos vacacionales, disponibilidad horaria, conectividad digital permanente etc.) | F82: No relevante | G82: 1 | H82: 2 | I82: 3 | J82: 4 | K82: 5 | P82: 4 | Q82: =+IF(P82="",0,HLOOKUP(P82,Sistema_Puntos!$Q$5:$Y$43,'Auxiliar General'!G74,FALSE)) -> 21.000
F83: 0. La utilización de este factor no es relevante para este puesto de trabajo | G83: 1. El puesto de trabajo se desarrolla en jornada partida o las necesidades organizativas o productivas de la empresa determinan los periodos de disfrute vacacional | H83: 2. La jornada ordinaria asociada al puesto de trabajo requiere su desempeño en fines de semana o festivos, sin perjuicio de que puedan concurrir, además, los requerimientos del nivel 1 | I83: 3. La jornada de trabajo se realiza en horario nocturno o en turnos rotativos, sin perjuicio de que puedan concurrir, además, todos o algunos de los requerimientos de cualquiera de los niveles anteriores | J83: 4. El puesto de trabajo requiere cierta disponibilidad horaria, sin perjuicio de que puedan concurrir, además, todos o algunos de los requerimientos de cualquiera de los niveles anteriores | K83: 5. El puesto de trabajo requiere conectividad digital permanente o disponibilidad horaria continua, incluso en fines de semana, festivos o periodos vacacionales, sin perjuicio de que puedan concurrir, además, todos o algunos de los requerimientos de cualquiera de los niveles anteriores
C84: =+Sistema_Puntos!M40 -> D.2.2) Desplazamientos y viajes | E84: Este factor valora la necesidad de realizar viajes, o desplazamientos fuera del centro de trabajo o entre centros de trabajo, así como su naturaleza y duración. | F84: No relevante | G84: 1 | H84: 2 | I84: 3 | J84: 4 | K84: 5 | P84: 4 | Q84: =+IF(P84="",0,HLOOKUP(P84,Sistema_Puntos!$Q$5:$Y$43,'Auxiliar General'!G76,FALSE)) -> 21.000
F85: 0. La utilización de este factor no es relevante para este puesto de trabajo | G85: 1. El puesto requiere de forma ocasional la realización de desplazamientos fuera del centro de trabajo durante la jornada | H85: 2. El puesto requiere habitualmente la realización de desplazamientos fuera del centro de trabajo durante la jornada | I85: 3. La jornada ordinaria se desarrolla en distintos centros de trabajo, requiriendo el desplazamiento entre estos, o bien requiere viajes sin pernoctación que suponen un alargamiento de la jornada diaria | J85: 4. El puesto de trabajo requiere la realización de hasta un viaje mensual con pernoctación fuera del domicilio habitual de la persona trabajadora | K85: 5. El puesto de trabajo requiere la realización de más de un viaje mensual con pernoctación fuera del domicilio habitual de la persona trabajadora
B86: =+Sistema_Puntos!M41 -> D.3) OTROS | F86: No relevante | G86: 1 | H86: 2 | I86: 3 | J86: 4 | K86: 5 | P86: No relevante | Q86: =+IF(P86="",0,HLOOKUP(P86,Sistema_Puntos!$Q$5:$Y$43,'Auxiliar General'!G78,FALSE)) -> 0.000
F87: 0. La utilización de este factor no es relevante para este puesto de trabajo | G87: =+IF('Definicion otros factores'!$E$7=0,"",'Definicion otros factores'!$E$7) ->  | H87: =+IF('Definicion otros factores'!$F$7=0,"",'Definicion otros factores'!$F$7) ->  | I87: =+IF('Definicion otros factores'!$G$7=0,"",'Definicion otros factores'!$G$7) ->  | J87: =+IF('Definicion otros factores'!$H$7=0,"",'Definicion otros factores'!$H$7) ->  | K87: =+IF('Definicion otros factores'!$I$7=0,"",'Definicion otros factores'!$I$7) -> 

Sheet Resultados General (hidden)
B10: Número de posición | C10: Título del Puesto | D10: Convenio de Aplicación | E10: Área | F10: Departamento / Zona | G10: Centro de trabajo | H10: Responsable | I10: Observaciones (Opcional) | J10: Agrupación | K10: Puesto + Puntos | L10: VALORACIÓN DEL PUESTO | M10: Género | N10: Nivel.F1 | O10: A.1) POLIVALENCIA O DEFINICIÓN EXTENSA DE OBLIGACIONES | P10: Nivel.F2 | Q10: A.2.1) Posición continuada y posturas forzadas | R10: Nivel.F3 | S10: A.2.2) Movimientos repetitivos | T10: Nivel.F4 | U10: A.2.3) Esfuerzo visual | V10: Nivel.F5 | W10: A.2.4) Esfuerzo auditivo | X10: Nivel.F6 | Y10: A.2.5) Otros tipos de esfuerzo físico | Z10: Nivel.F7 | AA10: A.3) ESFUERZO MENTAL | AB10: Nivel.F8 | AC10: A.4) ESFUERZO EMOCIONAL | AD10: Nivel.F9 | AE10: A.5.1) Responsabilidad de organización y coordinación | AF10: Nivel.F10 | AG10: A.5.2) Responsabilidad de supervisión de resultados y calidad | AH10: Nivel.F11 | AI10: A.6.1) Responsabilidad sobre el bienestar de las personas | AJ10: Nivel.F12 | AK10: A.6.2) Responsabilidad económica | AL10: Nivel.F13 | AM10: A.6.3) Responsabilidad sobre información confidencial | AN10: Nivel.F14 | AO10: A.7) AUTONOMÍA | AP10: Nivel.F15 | AQ10: A.8) OTROS | AR10: Nivel.F16 | AS10: B.1) ENSEÑANZA REGLADA | AT10: Nivel.F17 | AU10: C.1.1) Procedimientos, materiales, equipos y máquinas | AV10: Nivel.F18 | AW10: C.1.2) Competencias digitales | AX10: Nivel.F19 | AY10: C.1.3) Gestión de la diversidad | AZ10: Nivel.F20 | BA10: C.1.4) Conocimiento o dominio de idioma extranjero | BB10: Nivel.F21 | BC10: C.1.5) Formación no reglada | BD10: Nivel.F22 | BE10: C.1.6) Experiencia | BF10: Nivel.F23 | BG10: C.1.7) Actualización de conocimientos | BH10: Nivel.F24 | BI10: C.2.1) Destreza | BJ10: Nivel.F25 | BK10: C.2.2) Minuciosidad | BL10: Nivel.F26 | BM10: C.2.3) Aptitudes sensoriales | BN10: Nivel.F27 | BO10: C.2.4) Capacidad para plantear ideas y soluciones | BP10: Nivel.F28 | BQ10: C.3.1) Capacidad comunicativa | BR10: Nivel.F29 | BS10: C.3.2) Capacidad emocional | BT10: Nivel.F30 | BU10: C.3.3) Capacidad de resolución de conflictos | BV10: Nivel.F31 | BW10: C.4) OTROS | BX10: Nivel.F32 | BY10: D.1.1) Condiciones físicas | BZ10: Nivel.F33 | CA10: D.1.2) Condiciones psicosociales | CB10: Nivel.F34 | CC10: D.2.1) Horarios, descansos y vacaciones | CD10: Nivel.F35 | CE10: D.2.2) Desplazamientos y viajes | CF10: Nivel.F36 | CG10: D.3) OTROS
B11: =+'Listado de Puestos'!B11 -> 1 | C11: =+IF('Lista Puestos Valorados'!C11="","",'Lista Puestos Valorados'!C11) ->  | D11: =+IF('Lista Puestos Valorados'!D11="","",'Lista Puestos Valorados'!D11) ->  | E11: =+IF('Lista Puestos Valorados'!E11="","",'Lista Puestos Valorados'!E11) ->  | F11: =+IF('Lista Puestos Valorados'!F11="","",'Lista Puestos Valorados'!F11) ->  | G11: =+IF('Lista Puestos Valorados'!G11="","",'Lista Puestos Valorados'!G11) ->  | H11: =+IF('Lista Puestos Valorados'!H11="","",'Lista Puestos Valorados'!H11) ->  | I11: =+IF('Lista Puestos Valorados'!I11="","",'Lista Puestos Valorados'!I11) ->  | J11: =+IF(L11="","",_xlfn.IFS(L11<='Cortes de Agrupacion'!$F$15,'Cortes de Agrupacion'!$E$15,'Resultados General'!L11<='Cortes de Agrupacion'!$F$14,'Cortes de Agrupacion'!$E$14,'Resultados General'!L11<='Cortes de Agrupacion'!$F$13,'Cortes de Agrupacion'!$E$13,L11<='Cortes de Agrupacion'!$F$12,'Cortes de Agrupacion'!$E$12,'Resultados General'!L11<='Cortes de Agrupacion'!$F$11,'Cortes de Agrupacion'!$E$11,'Resultados General'!L11<='Cortes de Agrupacion'!$F$10,'Cortes de Agrupacion'!$E$10,'Resultados General'!L11<='Cortes de Agrupacion'!$F$9,'Cortes de Agrupacion'!$E$9,'Resultados General'!L11<='Cortes de Agrupacion'!$F$8,'Cortes de Agrupacion'!$E$8,'Resultados General'!L11<='Cortes de Agrupacion'!$F$7,'Cortes de Agrupacion'!$E$7,'Resultados General'!L11<='Cortes de Agrupacion'!$F$6,'Cortes de Agrupacion'!$E$6)) ->  | K11: =IFERROR(+C11&"("&ROUND(L11,0)&")","") ->  | L11: =+IF((SUM(O11,Q11,S11,U11,W11,Y11,AA11,AC11,AE11,AG11,AI11,AK11,AM11,AO11,AQ11,AS11,AU11,AW11,AY11,BA11,BC11,BE11,BG11,BI11,BK11,BM11,BO11,BQ11,BS11,BU11,BW11,BY11,CA11,CC11,CE11,CG11))=0,"",(SUM(O11,Q11,S11,U11,W11,Y11,AA11,AC11,AE11,AG11,AI11,AK11,AM11,AO11,AQ11,AS11,AU11,AW11,AY11,BA11,BC11,BE11,BG11,BI11,BK11,BM11,BO11,BQ11,BS11,BU11,BW11,BY11,CA11,CC11,CE11,CG11))) ->  | M11: =+_xlfn.IFNA(VLOOKUP(C11,'Distribución de puestos'!$B$8:$I$507,8,0),"") ->  | N11: =+IF(VLOOKUP($B11,'Lista Puestos Valorados'!$B$11:$BK$510,MATCH('Auxiliar General'!H$4,'Lista Puestos Valorados'!$B$10:$BK$10,0),0)="","No relevante",VLOOKUP($B11,'Lista Puestos Valorados'!$B$11:$BK$510,MATCH('Auxiliar General'!H$4,'Lista Puestos Valorados'!$B$10:$BK$10,0),0)) -> No relevante | O11: =+HLOOKUP(N11,Sistema_Puntos!$Q$5:$Y$43,'Auxiliar General'!J$5,FALSE) -> 0 | P11: =+IF(VLOOKUP($B11,'Lista Puestos Valorados'!$B$11:$BK$510,MATCH('Auxiliar General'!J$4,'Lista Puestos Valorados'!$B$10:$BK$10,0),0)="","No relevante",VLOOKUP($B11,'Lista Puestos Valorados'!$B$11:$BK$510,MATCH('Auxiliar General'!J$4,'Lista Puestos Valorados'!$B$10:$BK$10,0),0)) -> No relevante | Q11: =+HLOOKUP(P11,Sistema_Puntos!$Q$5:$Y$43,'Auxiliar General'!L$5,FALSE) -> 0 | R11: =+IF(VLOOKUP($B11,'Lista Puestos Valorados'!$B$11:$BK$510,MATCH('Auxiliar General'!L$4,'Lista Puestos Valorados'!$B$10:$BK$10,0),0)="","No relevante",VLOOKUP($B11,'Lista Puestos Valorados'!$B$11:$BK$510,MATCH('Auxiliar General'!L$4,'Lista Puestos Valorados'!$B$10:$BK$10,0),0)) -> No relevante | S11: =+HLOOKUP(R11,Sistema_Puntos!$Q$5:$Y$43,'Auxiliar General'!N$5,FALSE) -> 0 | T11: =+IF(VLOOKUP($B11,'Lista Puestos Valorados'!$B$11:$BK$510,MATCH('Auxiliar General'!N$4,'Lista Puestos Valorados'!$B$10:$BK$10,0),0)="","No relevante",VLOOKUP($B11,'Lista Puestos Valorados'!$B$11:$BK$510,MATCH('Auxiliar General'!N$4,'Lista Puestos Valorados'!$B$10:$BK$10,0),0)) -> No relevante | U11: =+HLOOKUP(T11,Sistema_Puntos!$Q$5:$Y$43,'Auxiliar General'!P$5,FALSE) -> 0 | V11: =+IF(VLOOKUP($B11,'Lista Puestos Valorados'!$B$11:$BK$510,MATCH('Auxiliar General'!P$4,'Lista Puestos Valorados'!$B$10:$BK$10,0),0)="","No relevante",VLOOKUP($B11,'Lista Puestos Valorados'!$B$11:$BK$510,MATCH('Auxiliar General'!P$4,'Lista Puestos Valorados'!$B$10:$BK$10,0),0)) -> No relevante | W11: =+HLOOKUP(V11,Sistema_Puntos!$Q$5:$Y$43,'Auxiliar General'!R$5,FALSE) -> 0 | X11: =+IF(VLOOKUP($B11,'Lista Puestos Valorados'!$B$11:$BK$510,MATCH('Auxiliar General'!R$4,'Lista Puestos Valorados'!$B$10:$BK$10,0),0)="","No relevante",VLOOKUP($B11,'Lista Puestos Valorados'!$B$11:$BK$510,MATCH('Auxiliar General'!R$4,'Lista Puestos Valorados'!$B$10:$BK$10,0),0)) -> No relevante | Y11: =+HLOOKUP(X11,Sistema_Puntos!$Q$5:$Y$43,'Auxiliar General'!T$5,FALSE) -> 0 | Z11: =+IF(VLOOKUP($B11,'Lista Puestos Valorados'!$B$11:$BK$510,MATCH('Auxiliar General'!T$4,'Lista Puestos Valorados'!$B$10:$BK$10,0),0)="","No relevante",VLOOKUP($B11,'Lista Puestos Valorados'!$B$11:$BK$510,MATCH('Auxiliar General'!T$4,'Lista Puestos Valorados'!$B$10:$BK$10,0),0)) -> No relevante | AA11: =+HLOOKUP(Z11,Sistema_Puntos!$Q$5:$Y$43,'Auxiliar General'!V$5,FALSE) -> 0 | AB11: =+IF(VLOOKUP($B11,'Lista Puestos Valorados'!$B$11:$BK$510,MATCH('Auxiliar General'!V$4,'Lista Puestos Valorados'!$B$10:$BK$10,0),0)="","No relevante",VLOOKUP($B11,'Lista Puestos Valorados'!$B$11:$BK$510,MATCH('Auxiliar General'!V$4,'Lista Puestos Valorados'!$B$10:$BK$10,0),0)) -> No relevante | AC11: =+HLOOKUP(AB11,Sistema_Puntos!$Q$5:$Y$43,'Auxiliar General'!X$5,FALSE) -> 0 | AD11: =+IF(VLOOKUP($B11,'Lista Puestos Valorados'!$B$11:$BK$510,MATCH('Auxiliar General'!X$4,'Lista Puestos Valorados'!$B$10:$BK$10,0),0)="","No relevante",VLOOKUP($B11,'Lista Puestos Valorados'!$B$11:$BK$510,MATCH('Auxiliar General'!X$4,'Lista Puestos Valorados'!$B$10:$BK$10,0),0)) -> No relevante | AE11: =+HLOOKUP(AD11,Sistema_Puntos!$Q$5:$Y$43,'Auxiliar General'!Z$5,FALSE) -> 0 | AF11: =+IF(VLOOKUP($B11,'Lista Puestos Valorados'!$B$11:$BK$510,MATCH('Auxiliar General'!Z$4,'Lista Puestos Valorados'!$B$10:$BK$10,0),0)="","No relevante",VLOOKUP($B11,'Lista Puestos Valorados'!$B$11:$BK$510,MATCH('Auxiliar General'!Z$4,'Lista Puestos Valorados'!$B$10:$BK$10,0),0)) -> No relevante | AG11: =+HLOOKUP(AF11,Sistema_Puntos!$Q$5:$Y$43,'Auxiliar General'!AB$5,FALSE) -> 0 | AH11: =+IF(VLOOKUP($B11,'Lista Puestos Valorados'!$B$11:$BK$510,MATCH('Auxiliar General'!AB$4,'Lista Puestos Valorados'!$B$10:$BK$10,0),0)="","No relevante",VLOOKUP($B11,'Lista Puestos Valorados'!$B$11:$BK$510,MATCH('Auxiliar General'!AB$4,'Lista Puestos Valorados'!$B$10:$BK$10,0),0)) -> No relevante | AI11: =+HLOOKUP(AH11,Sistema_Puntos!$Q$5:$Y$43,'Auxiliar General'!AD$5,FALSE) -> 0 | AJ11: =+IF(VLOOKUP($B11,'Lista Puestos Valorados'!$B$11:$BK$510,MATCH('Auxiliar General'!AD$4,'Lista Puestos Valorados'!$B$10:$BK$10,0),0)="","No relevante",VLOOKUP($B11,'Lista Puestos Valorados'!$B$11:$BK$510,MATCH('Auxiliar General'!AD$4,'Lista Puestos Valorados'!$B$10:$BK$10,0),0)) -> No relevante | AK11: =+HLOOKUP(AJ11,Sistema_Puntos!$Q$5:$Y$43,'Auxiliar General'!AF$5,FALSE) -> 0 | AL11: =+IF(VLOOKUP($B11,'Lista Puestos Valorados'!$B$11:$BK$510,MATCH('Auxiliar General'!AF$4,'Lista Puestos Valorados'!$B$10:$BK$10,0),0)="","No relevante",VLOOKUP($B11,'Lista Puestos Valorados'!$B$11:$BK$510,MATCH('Auxiliar General'!AF$4,'Lista Puestos Valorados'!$B$10:$BK$10,0),0)) -> No relevante | AM11: =+HLOOKUP(AL11,Sistema_Puntos!$Q$5:$Y$43,'Auxiliar General'!AH$5,FALSE) -> 0 | AN11: =+IF(VLOOKUP($B11,'Lista Puestos Valorados'!$B$11:$BK$510,MATCH('Auxiliar General'!AH$4,'Lista Puestos Valorados'!$B$10:$BK$10,0),0)="","No relevante",VLOOKUP($B11,'Lista Puestos Valorados'!$B$11:$BK$510,MATCH('Auxiliar General'!AH$4,'Lista Puestos Valorados'!$B$10:$BK$10,0),0)) -> No relevante | AO11: =+HLOOKUP(AN11,Sistema_Puntos!$Q$5:$Y$43,'Auxiliar General'!AJ$5,FALSE) -> 0 | AP11: =+IF(VLOOKUP($B11,'Lista Puestos Valorados'!$B$11:$BK$510,MATCH('Auxiliar General'!AJ$4,'Lista Puestos Valorados'!$B$10:$BK$10,0),0)="","No relevante",VLOOKUP($B11,'Lista Puestos Valorados'!$B$11:$BK$510,MATCH('Auxiliar General'!AJ$4,'Lista Puestos Valorados'!$B$10:$BK$10,0),0)) -> No relevante | AQ11: =+HLOOKUP(AP11,Sistema_Puntos!$Q$5:$Y$43,'Auxiliar General'!AL$5,FALSE) -> 0 | AR11: =+IF(VLOOKUP($B11,'Lista Puestos Valorados'!$B$11:$BK$510,MATCH('Auxiliar General'!AL$4,'Lista Puestos Valorados'!$B$10:$BK$10,0),0)="","No relevante",VLOOKUP($B11,'Lista Puestos Valorados'!$B$11:$BK$510,MATCH('Auxiliar General'!AL$4,'Lista Puestos Valorados'!$B$10:$BK$10,0),0)) -> No relevante | AS11: =+HLOOKUP(AR11,Sistema_Puntos!$Q$5:$Y$43,'Auxiliar General'!AN$5,FALSE) -> 0 | AT11: =+IF(VLOOKUP($B11,'Lista Puestos Valorados'!$B$11:$BK$510,MATCH('Auxiliar General'!AN$4,'Lista Puestos Valorados'!$B$10:$BK$10,0),0)="","No relevante",VLOOKUP($B11,'Lista Puestos Valorados'!$B$11:$BK$510,MATCH('Auxiliar General'!AN$4,'Lista Puestos Valorados'!$B$10:$BK$10,0),0)) -> No relevante | AU11: =+HLOOKUP(AT11,Sistema_Puntos!$Q$5:$Y$43,'Auxiliar General'!AP$5,FALSE) -> 0 | AV11: =+IF(VLOOKUP($B11,'Lista Puestos Valorados'!$B$11:$BK$510,MATCH('Auxiliar General'!AP$4,'Lista Puestos Valorados'!$B$10:$BK$10,0),0)="","No relevante",VLOOKUP($B11,'Lista Puestos Valorados'!$B$11:$BK$510,MATCH('Auxiliar General'!AP$4,'Lista Puestos Valorados'!$B$10:$BK$10,0),0)) -> No relevante | AW11: =+HLOOKUP(AV11,Sistema_Puntos!$Q$5:$Y$43,'Auxiliar General'!AR$5,FALSE) -> 0 | AX11: =+IF(VLOOKUP($B11,'Lista Puestos Valorados'!$B$11:$BK$510,MATCH('Auxiliar General'!AR$4,'Lista Puestos Valorados'!$B$10:$BK$10,0),0)="","No relevante",VLOOKUP($B11,'Lista Puestos Valorados'!$B$11:$BK$510,MATCH('Auxiliar General'!AR$4,'Lista Puestos Valorados'!$B$10:$BK$10,0),0)) -> No relevante | AY11: =+HLOOKUP(AX11,Sistema_Puntos!$Q$5:$Y$43,'Auxiliar General'!AT$5,FALSE) -> 0 | AZ11: =+IF(VLOOKUP($B11,'Lista Puestos Valorados'!$B$11:$BK$510,MATCH('Auxiliar General'!AT$4,'Lista Puestos Valorados'!$B$10:$BK$10,0),0)="","No relevante",VLOOKUP($B11,'Lista Puestos Valorados'!$B$11:$BK$510,MATCH('Auxiliar General'!AT$4,'Lista Puestos Valorados'!$B$10:$BK$10,0),0)) -> No relevante | BA11: =+HLOOKUP(AZ11,Sistema_Puntos!$Q$5:$Y$43,'Auxiliar General'!AV$5,FALSE) -> 0 | BB11: =+IF(VLOOKUP($B11,'Lista Puestos Valorados'!$B$11:$BK$510,MATCH('Auxiliar General'!AV$4,'Lista Puestos Valorados'!$B$10:$BK$10,0),0)="","No relevante",VLOOKUP($B11,'Lista Puestos Valorados'!$B$11:$BK$510,MATCH('Auxiliar General'!AV$4,'Lista Puestos Valorados'!$B$10:$BK$10,0),0)) -> No relevante | BC11: =+HLOOKUP(BB11,Sistema_Puntos!$Q$5:$Y$43,'Auxiliar General'!AX$5,FALSE) -> 0 | BD11: =+IF(VLOOKUP($B11,'Lista Puestos Valorados'!$B$11:$BK$510,MATCH('Auxiliar General'!AX$4,'Lista Puestos Valorados'!$B$10:$BK$10,0),0)="","No relevante",VLOOKUP($B11,'Lista Puestos Valorados'!$B$11:$BK$510,MATCH('Auxiliar General'!AX$4,'Lista Puestos Valorados'!$B$10:$BK$10,0),0)) -> No relevante | BE11: =+HLOOKUP(BD11,Sistema_Puntos!$Q$5:$Y$43,'Auxiliar General'!AZ$5,FALSE) -> 0 | BF11: =+IF(VLOOKUP($B11,'Lista Puestos Valorados'!$B$11:$BK$510,MATCH('Auxiliar General'!AZ$4,'Lista Puestos Valorados'!$B$10:$BK$10,0),0)="","No relevante",VLOOKUP($B11,'Lista Puestos Valorados'!$B$11:$BK$510,MATCH('Auxiliar General'!AZ$4,'Lista Puestos Valorados'!$B$10:$BK$10,0),0)) -> No relevante | BG11: =+HLOOKUP(BF11,Sistema_Puntos!$Q$5:$Y$43,'Auxiliar General'!BB$5,FALSE) -> 0 | BH11: =+IF(VLOOKUP($B11,'Lista Puestos Valorados'!$B$11:$BK$510,MATCH('Auxiliar General'!BB$4,'Lista Puestos Valorados'!$B$10:$BK$10,0),0)="","No relevante",VLOOKUP($B11,'Lista Puestos Valorados'!$B$11:$BK$510,MATCH('Auxiliar General'!BB$4,'Lista Puestos Valorados'!$B$10:$BK$10,0),0)) -> No relevante | BI11: =+HLOOKUP(BH11,Sistema_Puntos!$Q$5:$Y$43,'Auxiliar General'!BD$5,FALSE) -> 0 | BJ11: =+IF(VLOOKUP($B11,'Lista Puestos Valorados'!$B$11:$BK$510,MATCH('Auxiliar General'!BD$4,'Lista Puestos Valorados'!$B$10:$BK$10,0),0)="","No relevante",VLOOKUP($B11,'Lista Puestos Valorados'!$B$11:$BK$510,MATCH('Auxiliar General'!BD$4,'Lista Puestos Valorados'!$B$10:$BK$10,0),0)) -> No relevante | BK11: =+HLOOKUP(BJ11,Sistema_Puntos!$Q$5:$Y$43,'Auxiliar General'!BF$5,FALSE) -> 0 | BL11: =+IF(VLOOKUP($B11,'Lista Puestos Valorados'!$B$11:$BK$510,MATCH('Auxiliar General'!BF$4,'Lista Puestos Valorados'!$B$10:$BK$10,0),0)="","No relevante",VLOOKUP($B11,'Lista Puestos Valorados'!$B$11:$BK$510,MATCH('Auxiliar General'!BF$4,'Lista Puestos Valorados'!$B$10:$BK$10,0),0)) -> No relevante | BM11: =+HLOOKUP(BL11,Sistema_Puntos!$Q$5:$Y$43,'Auxiliar General'!BH$5,FALSE) -> 0 | BN11: =+IF(VLOOKUP($B11,'Lista Puestos Valorados'!$B$11:$BK$510,MATCH('Auxiliar General'!BH$4,'Lista Puestos Valorados'!$B$10:$BK$10,0),0)="","No relevante",VLOOKUP($B11,'Lista Puestos Valorados'!$B$11:$BK$510,MATCH('Auxiliar General'!BH$4,'Lista Puestos Valorados'!$B$10:$BK$10,0),0)) -> No relevante | BO11: =+HLOOKUP(BN11,Sistema_Puntos!$Q$5:$Y$43,'Auxiliar General'!BJ$5,FALSE) -> 0 | BP11: =+IF(VLOOKUP($B11,'Lista Puestos Valorados'!$B$11:$BK$510,MATCH('Auxiliar General'!BJ$4,'Lista Puestos Valorados'!$B$10:$BK$10,0),0)="","No relevante",VLOOKUP($B11,'Lista Puestos Valorados'!$B$11:$BK$510,MATCH('Auxiliar General'!BJ$4,'Lista Puestos Valorados'!$B$10:$BK$10,0),0)) -> No relevante | BQ11: =+HLOOKUP(BP11,Sistema_Puntos!$Q$5:$Y$43,'Auxiliar General'!BL$5,FALSE) -> 0 | BR11: =+IF(VLOOKUP($B11,'Lista Puestos Valorados'!$B$11:$BK$510,MATCH('Auxiliar General'!BL$4,'Lista Puestos Valorados'!$B$10:$BK$10,0),0)="","No relevante",VLOOKUP($B11,'Lista Puestos Valorados'!$B$11:$BK$510,MATCH('Auxiliar General'!BL$4,'Lista Puestos Valorados'!$B$10:$BK$10,0),0)) -> No relevante | BS11: =+HLOOKUP(BR11,Sistema_Puntos!$Q$5:$Y$43,'Auxiliar General'!BN$5,FALSE) -> 0 | BT11: =+IF(VLOOKUP($B11,'Lista Puestos Valorados'!$B$11:$BK$510,MATCH('Auxiliar General'!BN$4,'Lista Puestos Valorados'!$B$10:$BK$10,0),0)="","No relevante",VLOOKUP($B11,'Lista Puestos Valorados'!$B$11:$BK$510,MATCH('Auxiliar General'!BN$4,'Lista Puestos Valorados'!$B$10:$BK$10,0),0)) -> No relevante | BU11: =+HLOOKUP(BT11,Sistema_Puntos!$Q$5:$Y$43,'Auxiliar General'!BP$5,FALSE) -> 0 | BV11: =+IF(VLOOKUP($B11,'Lista Puestos Valorados'!$B$11:$BK$510,MATCH('Auxiliar General'!BP$4,'Lista Puestos Valorados'!$B$10:$BK$10,0),0)="","No relevante",VLOOKUP($B11,'Lista Puestos Valorados'!$B$11:$BK$510,MATCH('Auxiliar General'!BP$4,'Lista Puestos Valorados'!$B$10:$BK$10,0),0)) -> No relevante | BW11: =+HLOOKUP(BV11,Sistema_Puntos!$Q$5:$Y$43,'Auxiliar General'!BR$5,FALSE) -> 0 | BX11: =+IF(VLOOKUP($B11,'Lista Puestos Valorados'!$B$11:$BK$510,MATCH('Auxiliar General'!BR$4,'Lista Puestos Valorados'!$B$10:$BK$10,0),0)="","No relevante",VLOOKUP($B11,'Lista Puestos Valorados'!$B$11:$BK$510,MATCH('Auxiliar General'!BR$4,'Lista Puestos Valorados'!$B$10:$BK$10,0),0)) -> No relevante | BY11: =+HLOOKUP(BX11,Sistema_Puntos!$Q$5:$Y$43,'Auxiliar General'!BT$5,FALSE) -> 0 | BZ11: =+IF(VLOOKUP($B11,'Lista Puestos Valorados'!$B$11:$BK$510,MATCH('Auxiliar General'!BT$4,'Lista Puestos Valorados'!$B$10:$BK$10,0),0)="","No relevante",VLOOKUP($B11,'Lista Puestos Valorados'!$B$11:$BK$510,MATCH('Auxiliar General'!BT$4,'Lista Puestos Valorados'!$B$10:$BK$10,0),0)) -> No relevante | CA11: =+HLOOKUP(BZ11,Sistema_Puntos!$Q$5:$Y$43,'Auxiliar General'!BV$5,FALSE) -> 0 | CB11: =+IF(VLOOKUP($B11,'Lista Puestos Valorados'!$B$11:$BK$510,MATCH('Auxiliar General'!BV$4,'Lista Puestos Valorados'!$B$10:$BK$10,0),0)="","No relevante",VLOOKUP($B11,'Lista Puestos Valorados'!$B$11:$BK$510,MATCH('Auxiliar General'!BV$4,'Lista Puestos Valorados'!$B$10:$BK$10,0),0)) -> No relevante | CC11: =+HLOOKUP(CB11,Sistema_Puntos!$Q$5:$Y$43,'Auxiliar General'!BX$5,FALSE) -> 0 | CD11: =+IF(VLOOKUP($B11,'Lista Puestos Valorados'!$B$11:$BK$510,MATCH('Auxiliar General'!BX$4,'Lista Puestos Valorados'!$B$10:$BK$10,0),0)="","No relevante",VLOOKUP($B11,'Lista Puestos Valorados'!$B$11:$BK$510,MATCH('Auxiliar General'!BX$4,'Lista Puestos Valorados'!$B$10:$BK$10,0),0)) -> No relevante | CE11: =+HLOOKUP(CD11,Sistema_Puntos!$Q$5:$Y$43,'Auxiliar General'!BZ$5,FALSE) -> 0 | CF11: =+IF(VLOOKUP($B11,'Lista Puestos Valorados'!$B$11:$BK$510,MATCH('Auxiliar General'!BZ$4,'Lista Puestos Valorados'!$B$10:$BK$10,0),0)="","No relevante",VLOOKUP($B11,'Lista Puestos Valorados'!$B$11:$BK$510,MATCH('Auxiliar General'!BZ$4,'Lista Puestos Valorados'!$B$10:$BK$10,0),0)) -> No relevante | CG11: =+HLOOKUP(CF11,Sistema_Puntos!$Q$5:$Y$43,'Auxiliar General'!CB$5,FALSE) -> 0
B12: =+'Listado de Puestos'!B12 -> 2 | C12: =+IF('Lista Puestos Valorados'!C12="","",'Lista Puestos Valorados'!C12) ->  | D12: =+IF('Lista Puestos Valorados'!D12="","",'Lista Puestos Valorados'!D12) ->  | E12: =+IF('Lista Puestos Valorados'!E12="","",'Lista Puestos Valorados'!E12) ->  | F12: =+IF('Lista Puestos Valorados'!F12="","",'Lista Puestos Valorados'!F12) ->  | G12: =+IF('Lista Puestos Valorados'!G12="","",'Lista Puestos Valorados'!G12) ->  | H12: =+IF('Lista Puestos Valorados'!H12="","",'Lista Puestos Valorados'!H12) ->  | I12: =+IF('Lista Puestos Valorados'!I12="","",'Lista Puestos Valorados'!I12) ->  | J12: =+IF(L12="","",_xlfn.IFS(L12<='Cortes de Agrupacion'!$F$15,'Cortes de Agrupacion'!$E$15,'Resultados General'!L12<='Cortes de Agrupacion'!$F$14,'Cortes de Agrupacion'!$E$14,'Resultados General'!L12<='Cortes de Agrupacion'!$F$13,'Cortes de Agrupacion'!$E$13,L12<='Cortes de Agrupacion'!$F$12,'Cortes de Agrupacion'!$E$12,'Resultados General'!L12<='Cortes de Agrupacion'!$F$11,'Cortes de Agrupacion'!$E$11,'Resultados General'!L12<='Cortes de Agrupacion'!$F$10,'Cortes de Agrupacion'!$E$10,'Resultados General'!L12<='Cortes de Agrupacion'!$F$9,'Cortes de Agrupacion'!$E$9,'Resultados General'!L12<='Cortes de Agrupacion'!$F$8,'Cortes de Agrupacion'!$E$8,'Resultados General'!L12<='Cortes de Agrupacion'!$F$7,'Cortes de Agrupacion'!$E$7,'Resultados General'!L12<='Cortes de Agrupacion'!$F$6,'Cortes de Agrupacion'!$E$6)) ->  | L12: =+IF((SUM(O12,Q12,S12,U12,W12,Y12,AA12,AC12,AE12,AG12,AI12,AK12,AM12,AO12,AQ12,AS12,AU12,AW12,AY12,BA12,BC12,BE12,BG12,BI12,BK12,BM12,BO12,BQ12,BS12,BU12,BW12,BY12,CA12,CC12,CE12,CG12))=0,"",(SUM(O12,Q12,S12,U12,W12,Y12,AA12,AC12,AE12,AG12,AI12,AK12,AM12,AO12,AQ12,AS12,AU12,AW12,AY12,BA12,BC12,BE12,BG12,BI12,BK12,BM12,BO12,BQ12,BS12,BU12,BW12,BY12,CA12,CC12,CE12,CG12))) ->  | M12: =+_xlfn.IFNA(VLOOKUP(C12,'Distribución de puestos'!$B$8:$I$507,8,0),"") ->  | N12: =+IF(VLOOKUP($B12,'Lista Puestos Valorados'!$B$11:$BK$510,MATCH('Auxiliar General'!H$4,'Lista Puestos Valorados'!$B$10:$BK$10,0),0)="","No relevante",VLOOKUP($B12,'Lista Puestos Valorados'!$B$11:$BK$510,MATCH('Auxiliar General'!H$4,'Lista Puestos Valorados'!$B$10:$BK$10,0),0)) -> No relevante | O12: =+HLOOKUP(N12,Sistema_Puntos!$Q$5:$Y$43,'Auxiliar General'!J$5,FALSE) -> 0 | P12: =+IF(VLOOKUP($B12,'Lista Puestos Valorados'!$B$11:$BK$510,MATCH('Auxiliar General'!J$4,'Lista Puestos Valorados'!$B$10:$BK$10,0),0)="","No relevante",VLOOKUP($B12,'Lista Puestos Valorados'!$B$11:$BK$510,MATCH('Auxiliar General'!J$4,'Lista Puestos Valorados'!$B$10:$BK$10,0),0)) -> No relevante | Q12: =+HLOOKUP(P12,Sistema_Puntos!$Q$5:$Y$43,'Auxiliar General'!L$5,FALSE) -> 0 | R12: =+IF(VLOOKUP($B12,'Lista Puestos Valorados'!$B$11:$BK$510,MATCH('Auxiliar General'!L$4,'Lista Puestos Valorados'!$B$10:$BK$10,0),0)="","No relevante",VLOOKUP($B12,'Lista Puestos Valorados'!$B$11:$BK$510,MATCH('Auxiliar General'!L$4,'Lista Puestos Valorados'!$B$10:$BK$10,0),0)) -> No relevante | S12: =+HLOOKUP(R12,Sistema_Puntos!$Q$5:$Y$43,'Auxiliar General'!N$5,FALSE) -> 0 | T12: =+IF(VLOOKUP($B12,'Lista Puestos Valorados'!$B$11:$BK$510,MATCH('Auxiliar General'!N$4,'Lista Puestos Valorados'!$B$10:$BK$10,0),0)="","No relevante",VLOOKUP($B12,'Lista Puestos Valorados'!$B$11:$BK$510,MATCH('Auxiliar General'!N$4,'Lista Puestos Valorados'!$B$10:$BK$10,0),0)) -> No relevante | U12: =+HLOOKUP(T12,Sistema_Puntos!$Q$5:$Y$43,'Auxiliar General'!P$5,FALSE) -> 0 | V12: =+IF(VLOOKUP($B12,'Lista Puestos Valorados'!$B$11:$BK$510,MATCH('Auxiliar General'!P$4,'Lista Puestos Valorados'!$B$10:$BK$10,0),0)="","No relevante",VLOOKUP($B12,'Lista Puestos Valorados'!$B$11:$BK$510,MATCH('Auxiliar General'!P$4,'Lista Puestos Valorados'!$B$10:$BK$10,0),0)) -> No relevante | W12: =+HLOOKUP(V12,Sistema_Puntos!$Q$5:$Y$43,'Auxiliar General'!R$5,FALSE) -> 0 | X12: =+IF(VLOOKUP($B12,'Lista Puestos Valorados'!$B$11:$BK$510,MATCH('Auxiliar General'!R$4,'Lista Puestos Valorados'!$B$10:$BK$10,0),0)="","No relevante",VLOOKUP($B12,'Lista Puestos Valorados'!$B$11:$BK$510,MATCH('Auxiliar General'!R$4,'Lista Puestos Valorados'!$B$10:$BK$10,0),0)) -> No relevante | Y12: =+HLOOKUP(X12,Sistema_Puntos!$Q$5:$Y$43,'Auxiliar General'!T$5,FALSE) -> 0 | Z12: =+IF(VLOOKUP($B12,'Lista Puestos Valorados'!$B$11:$BK$510,MATCH('Auxiliar General'!T$4,'Lista Puestos Valorados'!$B$10:$BK$10,0),0)="","No relevante",VLOOKUP($B12,'Lista Puestos Valorados'!$B$11:$BK$510,MATCH('Auxiliar General'!T$4,'Lista Puestos Valorados'!$B$10:$BK$10,0),0)) -> No relevante | AA12: =+HLOOKUP(Z12,Sistema_Puntos!$Q$5:$Y$43,'Auxiliar General'!V$5,FALSE) -> 0 | AB12: =+IF(VLOOKUP($B12,'Lista Puestos Valorados'!$B$11:$BK$510,MATCH('Auxiliar General'!V$4,'Lista Puestos Valorados'!$B$10:$BK$10,0),0)="","No relevante",VLOOKUP($B12,'Lista Puestos Valorados'!$B$11:$BK$510,MATCH('Auxiliar General'!V$4,'Lista Puestos Valorados'!$B$10:$BK$10,0),0)) -> No relevante | AC12: =+HLOOKUP(AB12,Sistema_Puntos!$Q$5:$Y$43,'Auxiliar General'!X$5,FALSE) -> 0 | AD12: =+IF(VLOOKUP($B12,'Lista Puestos Valorados'!$B$11:$BK$510,MATCH('Auxiliar General'!X$4,'Lista Puestos Valorados'!$B$10:$BK$10,0),0)="","No relevante",VLOOKUP($B12,'Lista Puestos Valorados'!$B$11:$BK$510,MATCH('Auxiliar General'!X$4,'Lista Puestos Valorados'!$B$10:$BK$10,0),0)) -> No relevante | AE12: =+HLOOKUP(AD12,Sistema_Puntos!$Q$5:$Y$43,'Auxiliar General'!Z$5,FALSE) -> 0 | AF12: =+IF(VLOOKUP($B12,'Lista Puestos Valorados'!$B$11:$BK$510,MATCH('Auxiliar General'!Z$4,'Lista Puestos Valorados'!$B$10:$BK$10,0),0)="","No relevante",VLOOKUP($B12,'Lista Puestos Valorados'!$B$11:$BK$510,MATCH('Auxiliar General'!Z$4,'Lista Puestos Valorados'!$B$10:$BK$10,0),0)) -> No relevante | AG12: =+HLOOKUP(AF12,Sistema_Puntos!$Q$5:$Y$43,'Auxiliar General'!AB$5,FALSE) -> 0 | AH12: =+IF(VLOOKUP($B12,'Lista Puestos Valorados'!$B$11:$BK$510,MATCH('Auxiliar General'!AB$4,'Lista Puestos Valorados'!$B$10:$BK$10,0),0)="","No relevante",VLOOKUP($B12,'Lista Puestos Valorados'!$B$11:$BK$510,MATCH('Auxiliar General'!AB$4,'Lista Puestos Valorados'!$B$10:$BK$10,0),0)) -> No relevante | AI12: =+HLOOKUP(AH12,Sistema_Puntos!$Q$5:$Y$43,'Auxiliar General'!AD$5,FALSE) -> 0 | AJ12: =+IF(VLOOKUP($B12,'Lista Puestos Valorados'!$B$11:$BK$510,MATCH('Auxiliar General'!AD$4,'Lista Puestos Valorados'!$B$10:$BK$10,0),0)="","No relevante",VLOOKUP($B12,'Lista Puestos Valorados'!$B$11:$BK$510,MATCH('Auxiliar General'!AD$4,'Lista Puestos Valorados'!$B$10:$BK$10,0),0)) -> No relevante | AK12: =+HLOOKUP(AJ12,Sistema_Puntos!$Q$5:$Y$43,'Auxiliar General'!AF$5,FALSE) -> 0 | AL12: =+IF(VLOOKUP($B12,'Lista Puestos Valorados'!$B$11:$BK$510,MATCH('Auxiliar General'!AF$4,'Lista Puestos Valorados'!$B$10:$BK$10,0),0)="","No relevante",VLOOKUP($B12,'Lista Puestos Valorados'!$B$11:$BK$510,MATCH('Auxiliar General'!AF$4,'Lista Puestos Valorados'!$B$10:$BK$10,0),0)) -> No relevante | AM12: =+HLOOKUP(AL12,Sistema_Puntos!$Q$5:$Y$43,'Auxiliar General'!AH$5,FALSE) -> 0 | AN12: =+IF(VLOOKUP($B12,'Lista Puestos Valorados'!$B$11:$BK$510,MATCH('Auxiliar General'!AH$4,'Lista Puestos Valorados'!$B$10:$BK$10,0),0)="","No relevante",VLOOKUP($B12,'Lista Puestos Valorados'!$B$11:$BK$510,MATCH('Auxiliar General'!AH$4,'Lista Puestos Valorados'!$B$10:$BK$10,0),0)) -> No relevante | AO12: =+HLOOKUP(AN12,Sistema_Puntos!$Q$5:$Y$43,'Auxiliar General'!AJ$5,FALSE) -> 0 | AP12: =+IF(VLOOKUP($B12,'Lista Puestos Valorados'!$B$11:$BK$510,MATCH('Auxiliar General'!AJ$4,'Lista Puestos Valorados'!$B$10:$BK$10,0),0)="","No relevante",VLOOKUP($B12,'Lista Puestos Valorados'!$B$11:$BK$510,MATCH('Auxiliar General'!AJ$4,'Lista Puestos Valorados'!$B$10:$BK$10,0),0)) -> No relevante | AQ12: =+HLOOKUP(AP12,Sistema_Puntos!$Q$5:$Y$43,'Auxiliar General'!AL$5,FALSE) -> 0 | AR12: =+IF(VLOOKUP($B12,'Lista Puestos Valorados'!$B$11:$BK$510,MATCH('Auxiliar General'!AL$4,'Lista Puestos Valorados'!$B$10:$BK$10,0),0)="","No relevante",VLOOKUP($B12,'Lista Puestos Valorados'!$B$11:$BK$510,MATCH('Auxiliar General'!AL$4,'Lista Puestos Valorados'!$B$10:$BK$10,0),0)) -> No relevante | AS12: =+HLOOKUP(AR12,Sistema_Puntos!$Q$5:$Y$43,'Auxiliar General'!AN$5,FALSE) -> 0 | AT12: =+IF(VLOOKUP($B12,'Lista Puestos Valorados'!$B$11:$BK$510,MATCH('Auxiliar General'!AN$4,'Lista Puestos Valorados'!$B$10:$BK$10,0),0)="","No relevante",VLOOKUP($B12,'Lista Puestos Valorados'!$B$11:$BK$510,MATCH('Auxiliar General'!AN$4,'Lista Puestos Valorados'!$B$10:$BK$10,0),0)) -> No relevante | AU12: =+HLOOKUP(AT12,Sistema_Puntos!$Q$5:$Y$43,'Auxiliar General'!AP$5,FALSE) -> 0 | AV12: =+IF(VLOOKUP($B12,'Lista Puestos Valorados'!$B$11:$BK$510,MATCH('Auxiliar General'!AP$4,'Lista Puestos Valorados'!$B$10:$BK$10,0),0)="","No relevante",VLOOKUP($B12,'Lista Puestos Valorados'!$B$11:$BK$510,MATCH('Auxiliar General'!AP$4,'Lista Puestos Valorados'!$B$10:$BK$10,0),0)) -> No relevante | AW12: =+HLOOKUP(AV12,Sistema_Puntos!$Q$5:$Y$43,'Auxiliar General'!AR$5,FALSE) -> 0 | AX12: =+IF(VLOOKUP($B12,'Lista Puestos Valorados'!$B$11:$BK$510,MATCH('Auxiliar General'!AR$4,'Lista Puestos Valorados'!$B$10:$BK$10,0),0)="","No relevante",VLOOKUP($B12,'Lista Puestos Valorados'!$B$11:$BK$510,MATCH('Auxiliar General'!AR$4,'Lista Puestos Valorados'!$B$10:$BK$10,0),0)) -> No relevante | AY12: =+HLOOKUP(AX12,Sistema_Puntos!$Q$5:$Y$43,'Auxiliar General'!AT$5,FALSE) -> 0 | AZ12: =+IF(VLOOKUP($B12,'Lista Puestos Valorados'!$B$11:$BK$510,MATCH('Auxiliar General'!AT$4,'Lista Puestos Valorados'!$B$10:$BK$10,0),0)="","No relevante",VLOOKUP($B12,'Lista Puestos Valorados'!$B$11:$BK$510,MATCH('Auxiliar General'!AT$4,'Lista Puestos Valorados'!$B$10:$BK$10,0),0)) -> No relevante | BA12: =+HLOOKUP(AZ12,Sistema_Puntos!$Q$5:$Y$43,'Auxiliar General'!AV$5,FALSE) -> 0 | BB12: =+IF(VLOOKUP($B12,'Lista Puestos Valorados'!$B$11:$BK$510,MATCH('Auxiliar General'!AV$4,'Lista Puestos Valorados'!$B$10:$BK$10,0),0)="","No relevante",VLOOKUP($B12,'Lista Puestos Valorados'!$B$11:$BK$510,MATCH('Auxiliar General'!AV$4,'Lista Puestos Valorados'!$B$10:$BK$10,0),0)) -> No relevante | BC12: =+HLOOKUP(BB12,Sistema_Puntos!$Q$5:$Y$43,'Auxiliar General'!AX$5,FALSE) -> 0 | BD12: =+IF(VLOOKUP($B12,'Lista Puestos Valorados'!$B$11:$BK$510,MATCH('Auxiliar General'!AX$4,'Lista Puestos Valorados'!$B$10:$BK$10,0),0)="","No relevante",VLOOKUP($B12,'Lista Puestos Valorados'!$B$11:$BK$510,MATCH('Auxiliar General'!AX$4,'Lista Puestos Valorados'!$B$10:$BK$10,0),0)) -> No relevante | BE12: =+HLOOKUP(BD12,Sistema_Puntos!$Q$5:$Y$43,'Auxiliar General'!AZ$5,FALSE) -> 0 | BF12: =+IF(VLOOKUP($B12,'Lista Puestos Valorados'!$B$11:$BK$510,MATCH('Auxiliar General'!AZ$4,'Lista Puestos Valorados'!$B$10:$BK$10,0),0)="","No relevante",VLOOKUP($B12,'Lista Puestos Valorados'!$B$11:$BK$510,MATCH('Auxiliar General'!AZ$4,'Lista Puestos Valorados'!$B$10:$BK$10,0),0)) -> No relevante | BG12: =+HLOOKUP(BF12,Sistema_Puntos!$Q$5:$Y$43,'Auxiliar General'!BB$5,FALSE) -> 0 | BH12: =+IF(VLOOKUP($B12,'Lista Puestos Valorados'!$B$11:$BK$510,MATCH('Auxiliar General'!BB$4,'Lista Puestos Valorados'!$B$10:$BK$10,0),0)="","No relevante",VLOOKUP($B12,'Lista Puestos Valorados'!$B$11:$BK$510,MATCH('Auxiliar General'!BB$4,'Lista Puestos Valorados'!$B$10:$BK$10,0),0)) -> No relevante | BI12: =+HLOOKUP(BH12,Sistema_Puntos!$Q$5:$Y$43,'Auxiliar General'!BD$5,FALSE) -> 0 | BJ12: =+IF(VLOOKUP($B12,'Lista Puestos Valorados'!$B$11:$BK$510,MATCH('Auxiliar General'!BD$4,'Lista Puestos Valorados'!$B$10:$BK$10,0),0)="","No relevante",VLOOKUP($B12,'Lista Puestos Valorados'!$B$11:$BK$510,MATCH('Auxiliar General'!BD$4,'Lista Puestos Valorados'!$B$10:$BK$10,0),0)) -> No relevante | BK12: =+HLOOKUP(BJ12,Sistema_Puntos!$Q$5:$Y$43,'Auxiliar General'!BF$5,FALSE) -> 0 | BL12: =+IF(VLOOKUP($B12,'Lista Puestos Valorados'!$B$11:$BK$510,MATCH('Auxiliar General'!BF$4,'Lista Puestos Valorados'!$B$10:$BK$10,0),0)="","No relevante",VLOOKUP($B12,'Lista Puestos Valorados'!$B$11:$BK$510,MATCH('Auxiliar General'!BF$4,'Lista Puestos Valorados'!$B$10:$BK$10,0),0)) -> No relevante | BM12: =+HLOOKUP(BL12,Sistema_Puntos!$Q$5:$Y$43,'Auxiliar General'!BH$5,FALSE) -> 0 | BN12: =+IF(VLOOKUP($B12,'Lista Puestos Valorados'!$B$11:$BK$510,MATCH('Auxiliar General'!BH$4,'Lista Puestos Valorados'!$B$10:$BK$10,0),0)="","No relevante",VLOOKUP($B12,'Lista Puestos Valorados'!$B$11:$BK$510,MATCH('Auxiliar General'!BH$4,'Lista Puestos Valorados'!$B$10:$BK$10,0),0)) -> No relevante | BO12: =+HLOOKUP(BN12,Sistema_Puntos!$Q$5:$Y$43,'Auxiliar General'!BJ$5,FALSE) -> 0 | BP12: =+IF(VLOOKUP($B12,'Lista Puestos Valorados'!$B$11:$BK$510,MATCH('Auxiliar General'!BJ$4,'Lista Puestos Valorados'!$B$10:$BK$10,0),0)="","No relevante",VLOOKUP($B12,'Lista Puestos Valorados'!$B$11:$BK$510,MATCH('Auxiliar General'!BJ$4,'Lista Puestos Valorados'!$B$10:$BK$10,0),0)) -> No relevante | BQ12: =+HLOOKUP(BP12,Sistema_Puntos!$Q$5:$Y$43,'Auxiliar General'!BL$5,FALSE) -> 0 | BR12: =+IF(VLOOKUP($B12,'Lista Puestos Valorados'!$B$11:$BK$510,MATCH('Auxiliar General'!BL$4,'Lista Puestos Valorados'!$B$10:$BK$10,0),0)="","No relevante",VLOOKUP($B12,'Lista Puestos Valorados'!$B$11:$BK$510,MATCH('Auxiliar General'!BL$4,'Lista Puestos Valorados'!$B$10:$BK$10,0),0)) -> No relevante | BS12: =+HLOOKUP(BR12,Sistema_Puntos!$Q$5:$Y$43,'Auxiliar General'!BN$5,FALSE) -> 0 | BT12: =+IF(VLOOKUP($B12,'Lista Puestos Valorados'!$B$11:$BK$510,MATCH('Auxiliar General'!BN$4,'Lista Puestos Valorados'!$B$10:$BK$10,0),0)="","No relevante",VLOOKUP($B12,'Lista Puestos Valorados'!$B$11:$BK$510,MATCH('Auxiliar General'!BN$4,'Lista Puestos Valorados'!$B$10:$BK$10,0),0)) -> No relevante | BU12: =+HLOOKUP(BT12,Sistema_Puntos!$Q$5:$Y$43,'Auxiliar General'!BP$5,FALSE) -> 0 | BV12: =+IF(VLOOKUP($B12,'Lista Puestos Valorados'!$B$11:$BK$510,MATCH('Auxiliar General'!BP$4,'Lista Puestos Valorados'!$B$10:$BK$10,0),0)="","No relevante",VLOOKUP($B12,'Lista Puestos Valorados'!$B$11:$BK$510,MATCH('Auxiliar General'!BP$4,'Lista Puestos Valorados'!$B$10:$BK$10,0),0)) -> No relevante | BW12: =+HLOOKUP(BV12,Sistema_Puntos!$Q$5:$Y$43,'Auxiliar General'!BR$5,FALSE) -> 0 | BX12: =+IF(VLOOKUP($B12,'Lista Puestos Valorados'!$B$11:$BK$510,MATCH('Auxiliar General'!BR$4,'Lista Puestos Valorados'!$B$10:$BK$10,0),0)="","No relevante",VLOOKUP($B12,'Lista Puestos Valorados'!$B$11:$BK$510,MATCH('Auxiliar General'!BR$4,'Lista Puestos Valorados'!$B$10:$BK$10,0),0)) -> No relevante | BY12: =+HLOOKUP(BX12,Sistema_Puntos!$Q$5:$Y$43,'Auxiliar General'!BT$5,FALSE) -> 0 | BZ12: =+IF(VLOOKUP($B12,'Lista Puestos Valorados'!$B$11:$BK$510,MATCH('Auxiliar General'!BT$4,'Lista Puestos Valorados'!$B$10:$BK$10,0),0)="","No relevante",VLOOKUP($B12,'Lista Puestos Valorados'!$B$11:$BK$510,MATCH('Auxiliar General'!BT$4,'Lista Puestos Valorados'!$B$10:$BK$10,0),0)) -> No relevante | CA12: =+HLOOKUP(BZ12,Sistema_Puntos!$Q$5:$Y$43,'Auxiliar General'!BV$5,FALSE) -> 0 | CB12: =+IF(VLOOKUP($B12,'Lista Puestos Valorados'!$B$11:$BK$510,MATCH('Auxiliar General'!BV$4,'Lista Puestos Valorados'!$B$10:$BK$10,0),0)="","No relevante",VLOOKUP($B12,'Lista Puestos Valorados'!$B$11:$BK$510,MATCH('Auxiliar General'!BV$4,'Lista Puestos Valorados'!$B$10:$BK$10,0),0)) -> No relevante | CC12: =+HLOOKUP(CB12,Sistema_Puntos!$Q$5:$Y$43,'Auxiliar General'!BX$5,FALSE) -> 0 | CD12: =+IF(VLOOKUP($B12,'Lista Puestos Valorados'!$B$11:$BK$510,MATCH('Auxiliar General'!BX$4,'Lista Puestos Valorados'!$B$10:$BK$10,0),0)="","No relevante",VLOOKUP($B12,'Lista Puestos Valorados'!$B$11:$BK$510,MATCH('Auxiliar General'!BX$4,'Lista Puestos Valorados'!$B$10:$BK$10,0),0)) -> No relevante | CE12: =+HLOOKUP(CD12,Sistema_Puntos!$Q$5:$Y$43,'Auxiliar General'!BZ$5,FALSE) -> 0 | CF12: =+IF(VLOOKUP($B12,'Lista Puestos Valorados'!$B$11:$BK$510,MATCH('Auxiliar General'!BZ$4,'Lista Puestos Valorados'!$B$10:$BK$10,0),0)="","No relevante",VLOOKUP($B12,'Lista Puestos Valorados'!$B$11:$BK$510,MATCH('Auxiliar General'!BZ$4,'Lista Puestos Valorados'!$B$10:$BK$10,0),0)) -> No relevante | CG12: =+HLOOKUP(CF12,Sistema_Puntos!$Q$5:$Y$43,'Auxiliar General'!CB$5,FALSE) -> 0
B13: =+'Listado de Puestos'!B13 -> 3 | C13: =+IF('Lista Puestos Valorados'!C13="","",'Lista Puestos Valorados'!C13) ->  | D13: =+IF('Lista Puestos Valorados'!D13="","",'Lista Puestos Valorados'!D13) ->  | E13: =+IF('Lista Puestos Valorados'!E13="","",'Lista Puestos Valorados'!E13) ->  | F13: =+IF('Lista Puestos Valorados'!F13="","",'Lista Puestos Valorados'!F13) ->  | G13: =+IF('Lista Puestos Valorados'!G13="","",'Lista Puestos Valorados'!G13) ->  | H13: =+IF('Lista Puestos Valorados'!H13="","",'Lista Puestos Valorados'!H13) ->  | I13: =+IF('Lista Puestos Valorados'!I13="","",'Lista Puestos Valorados'!I13) ->  | J13: =+IF(L13="","",_xlfn.IFS(L13<='Cortes de Agrupacion'!$F$15,'Cortes de Agrupacion'!$E$15,'Resultados General'!L13<='Cortes de Agrupacion'!$F$14,'Cortes de Agrupacion'!$E$14,'Resultados General'!L13<='Cortes de Agrupacion'!$F$13,'Cortes de Agrupacion'!$E$13,L13<='Cortes de Agrupacion'!$F$12,'Cortes de Agrupacion'!$E$12,'Resultados General'!L13<='Cortes de Agrupacion'!$F$11,'Cortes de Agrupacion'!$E$11,'Resultados General'!L13<='Cortes de Agrupacion'!$F$10,'Cortes de Agrupacion'!$E$10,'Resultados General'!L13<='Cortes de Agrupacion'!$F$9,'Cortes de Agrupacion'!$E$9,'Resultados General'!L13<='Cortes de Agrupacion'!$F$8,'Cortes de Agrupacion'!$E$8,'Resultados General'!L13<='Cortes de Agrupacion'!$F$7,'Cortes de Agrupacion'!$E$7,'Resultados General'!L13<='Cortes de Agrupacion'!$F$6,'Cortes de Agrupacion'!$E$6)) ->  | M13: =+_xlfn.IFNA(VLOOKUP(C13,'Distribución de puestos'!$B$8:$I$507,8,0),"") ->  | N13: =+IF(VLOOKUP($B13,'Lista Puestos Valorados'!$B$11:$BK$510,MATCH('Auxiliar General'!H$4,'Lista Puestos Valorados'!$B$10:$BK$10,0),0)="","No relevante",VLOOKUP($B13,'Lista Puestos Valorados'!$B$11:$BK$510,MATCH('Auxiliar General'!H$4,'Lista Puestos Valorados'!$B$10:$BK$10,0),0)) -> No relevante | O13: =+HLOOKUP(N13,Sistema_Puntos!$Q$5:$Y$43,'Auxiliar General'!J$5,FALSE) -> 0 | P13: =+IF(VLOOKUP($B13,'Lista Puestos Valorados'!$B$11:$BK$510,MATCH('Auxiliar General'!J$4,'Lista Puestos Valorados'!$B$10:$BK$10,0),0)="","No relevante",VLOOKUP($B13,'Lista Puestos Valorados'!$B$11:$BK$510,MATCH('Auxiliar General'!J$4,'Lista Puestos Valorados'!$B$10:$BK$10,0),0)) -> No relevante | Q13: =+HLOOKUP(P13,Sistema_Puntos!$Q$5:$Y$43,'Auxiliar General'!L$5,FALSE) -> 0 | R13: =+IF(VLOOKUP($B13,'Lista Puestos Valorados'!$B$11:$BK$510,MATCH('Auxiliar General'!L$4,'Lista Puestos Valorados'!$B$10:$BK$10,0),0)="","No relevante",VLOOKUP($B13,'Lista Puestos Valorados'!$B$11:$BK$510,MATCH('Auxiliar General'!L$4,'Lista Puestos Valorados'!$B$10:$BK$10,0),0)) -> No relevante | S13: =+HLOOKUP(R13,Sistema_Puntos!$Q$5:$Y$43,'Auxiliar General'!N$5,FALSE) -> 0 | T13: =+IF(VLOOKUP($B13,'Lista Puestos Valorados'!$B$11:$BK$510,MATCH('Auxiliar General'!N$4,'Lista Puestos Valorados'!$B$10:$BK$10,0),0)="","No relevante",VLOOKUP($B13,'Lista Puestos Valorados'!$B$11:$BK$510,MATCH('Auxiliar General'!N$4,'Lista Puestos Valorados'!$B$10:$BK$10,0),0)) -> No relevante | U13: =+HLOOKUP(T13,Sistema_Puntos!$Q$5:$Y$43,'Auxiliar General'!P$5,FALSE) -> 0 | V13: =+IF(VLOOKUP($B13,'Lista Puestos Valorados'!$B$11:$BK$510,MATCH('Auxiliar General'!P$4,'Lista Puestos Valorados'!$B$10:$BK$10,0),0)="","No relevante",VLOOKUP($B13,'Lista Puestos Valorados'!$B$11:$BK$510,MATCH('Auxiliar General'!P$4,'Lista Puestos Valorados'!$B$10:$BK$10,0),0)) -> No relevante | W13: =+HLOOKUP(V13,Sistema_Puntos!$Q$5:$Y$43,'Auxiliar General'!R$5,FALSE) -> 0 | X13: =+IF(VLOOKUP($B13,'Lista Puestos Valorados'!$B$11:$BK$510,MATCH('Auxiliar General'!R$4,'Lista Puestos Valorados'!$B$10:$BK$10,0),0)="","No relevante",VLOOKUP($B13,'Lista Puestos Valorados'!$B$11:$BK$510,MATCH('Auxiliar General'!R$4,'Lista Puestos Valorados'!$B$10:$BK$10,0),0)) -> No relevante | Y13: =+HLOOKUP(X13,Sistema_Puntos!$Q$5:$Y$43,'Auxiliar General'!T$5,FALSE) -> 0 | Z13: =+IF(VLOOKUP($B13,'Lista Puestos Valorados'!$B$11:$BK$510,MATCH('Auxiliar General'!T$4,'Lista Puestos Valorados'!$B$10:$BK$10,0),0)="","No relevante",VLOOKUP($B13,'Lista Puestos Valorados'!$B$11:$BK$510,MATCH('Auxiliar General'!T$4,'Lista Puestos Valorados'!$B$10:$BK$10,0),0)) -> No relevante | AA13: =+HLOOKUP(Z13,Sistema_Puntos!$Q$5:$Y$43,'Auxiliar General'!V$5,FALSE) -> 0 | AB13: =+IF(VLOOKUP($B13,'Lista Puestos Valorados'!$B$11:$BK$510,MATCH('Auxiliar General'!V$4,'Lista Puestos Valorados'!$B$10:$BK$10,0),0)="","No relevante",VLOOKUP($B13,'Lista Puestos Valorados'!$B$11:$BK$510,MATCH('Auxiliar General'!V$4,'Lista Puestos Valorados'!$B$10:$BK$10,0),0)) -> No relevante | AC13: =+HLOOKUP(AB13,Sistema_Puntos!$Q$5:$Y$43,'Auxiliar General'!X$5,FALSE) -> 0 | AD13: =+IF(VLOOKUP($B13,'Lista Puestos Valorados'!$B$11:$BK$510,MATCH('Auxiliar General'!X$4,'Lista Puestos Valorados'!$B$10:$BK$10,0),0)="","No relevante",VLOOKUP($B13,'Lista Puestos Valorados'!$B$11:$BK$510,MATCH('Auxiliar General'!X$4,'Lista Puestos Valorados'!$B$10:$BK$10,0),0)) -> No relevante | AE13: =+HLOOKUP(AD13,Sistema_Puntos!$Q$5:$Y$43,'Auxiliar General'!Z$5,FALSE) -> 0 | AF13: =+IF(VLOOKUP($B13,'Lista Puestos Valorados'!$B$11:$BK$510,MATCH('Auxiliar General'!Z$4,'Lista Puestos Valorados'!$B$10:$BK$10,0),0)="","No relevante",VLOOKUP($B13,'Lista Puestos Valorados'!$B$11:$BK$510,MATCH('Auxiliar General'!Z$4,'Lista Puestos Valorados'!$B$10:$BK$10,0),0)) -> No relevante | AG13: =+HLOOKUP(AF13,Sistema_Puntos!$Q$5:$Y$43,'Auxiliar General'!AB$5,FALSE) -> 0 | AH13: =+IF(VLOOKUP($B13,'Lista Puestos Valorados'!$B$11:$BK$510,MATCH('Auxiliar General'!AB$4,'Lista Puestos Valorados'!$B$10:$BK$10,0),0)="","No relevante",VLOOKUP($B13,'Lista Puestos Valorados'!$B$11:$BK$510,MATCH('Auxiliar General'!AB$4,'Lista Puestos Valorados'!$B$10:$BK$10,0),0)) -> No relevante | AI13: =+HLOOKUP(AH13,Sistema_Puntos!$Q$5:$Y$43,'Auxiliar General'!AD$5,FALSE) -> 0 | AJ13: =+IF(VLOOKUP($B13,'Lista Puestos Valorados'!$B$11:$BK$510,MATCH('Auxiliar General'!AD$4,'Lista Puestos Valorados'!$B$10:$BK$10,0),0)="","No relevante",VLOOKUP($B13,'Lista Puestos Valorados'!$B$11:$BK$510,MATCH('Auxiliar General'!AD$4,'Lista Puestos Valorados'!$B$10:$BK$10,0),0)) -> No relevante | AK13: =+HLOOKUP(AJ13,Sistema_Puntos!$Q$5:$Y$43,'Auxiliar General'!AF$5,FALSE) -> 0 | AL13: =+IF(VLOOKUP($B13,'Lista Puestos Valorados'!$B$11:$BK$510,MATCH('Auxiliar General'!AF$4,'Lista Puestos Valorados'!$B$10:$BK$10,0),0)="","No relevante",VLOOKUP($B13,'Lista Puestos Valorados'!$B$11:$BK$510,MATCH('Auxiliar General'!AF$4,'Lista Puestos Valorados'!$B$10:$BK$10,0),0)) -> No relevante | AM13: =+HLOOKUP(AL13,Sistema_Puntos!$Q$5:$Y$43,'Auxiliar General'!AH$5,FALSE) -> 0 | AN13: =+IF(VLOOKUP($B13,'Lista Puestos Valorados'!$B$11:$BK$510,MATCH('Auxiliar General'!AH$4,'Lista Puestos Valorados'!$B$10:$BK$10,0),0)="","No relevante",VLOOKUP($B13,'Lista Puestos Valorados'!$B$11:$BK$510,MATCH('Auxiliar General'!AH$4,'Lista Puestos Valorados'!$B$10:$BK$10,0),0)) -> No relevante | AO13: =+HLOOKUP(AN13,Sistema_Puntos!$Q$5:$Y$43,'Auxiliar General'!AJ$5,FALSE) -> 0 | AP13: =+IF(VLOOKUP($B13,'Lista Puestos Valorados'!$B$11:$BK$510,MATCH('Auxiliar General'!AJ$4,'Lista Puestos Valorados'!$B$10:$BK$10,0),0)="","No relevante",VLOOKUP($B13,'Lista Puestos Valorados'!$B$11:$BK$510,MATCH('Auxiliar General'!AJ$4,'Lista Puestos Valorados'!$B$10:$BK$10,0),0)) -> No relevante | AQ13: =+HLOOKUP(AP13,Sistema_Puntos!$Q$5:$Y$43,'Auxiliar General'!AL$5,FALSE) -> 0 | AR13: =+IF(VLOOKUP($B13,'Lista Puestos Valorados'!$B$11:$BK$510,MATCH('Auxiliar General'!AL$4,'Lista Puestos Valorados'!$B$10:$BK$10,0),0)="","No relevante",VLOOKUP($B13,'Lista Puestos Valorados'!$B$11:$BK$510,MATCH('Auxiliar General'!AL$4,'Lista Puestos Valorados'!$B$10:$BK$10,0),0)) -> No relevante | AS13: =+HLOOKUP(AR13,Sistema_Puntos!$Q$5:$Y$43,'Auxiliar General'!AN$5,FALSE) -> 0 | AT13: =+IF(VLOOKUP($B13,'Lista Puestos Valorados'!$B$11:$BK$510,MATCH('Auxiliar General'!AN$4,'Lista Puestos Valorados'!$B$10:$BK$10,0),0)="","No relevante",VLOOKUP($B13,'Lista Puestos Valorados'!$B$11:$BK$510,MATCH('Auxiliar General'!AN$4,'Lista Puestos Valorados'!$B$10:$BK$10,0),0)) -> No relevante | AU13: =+HLOOKUP(AT13,Sistema_Puntos!$Q$5:$Y$43,'Auxiliar General'!AP$5,FALSE) -> 0 | AV13: =+IF(VLOOKUP($B13,'Lista Puestos Valorados'!$B$11:$BK$510,MATCH('Auxiliar General'!AP$4,'Lista Puestos Valorados'!$B$10:$BK$10,0),0)="","No relevante",VLOOKUP($B13,'Lista Puestos Valorados'!$B$11:$BK$510,MATCH('Auxiliar General'!AP$4,'Lista Puestos Valorados'!$B$10:$BK$10,0),0)) -> No relevante | AW13: =+HLOOKUP(AV13,Sistema_Puntos!$Q$5:$Y$43,'Auxiliar General'!AR$5,FALSE) -> 0 | AX13: =+IF(VLOOKUP($B13,'Lista Puestos Valorados'!$B$11:$BK$510,MATCH('Auxiliar General'!AR$4,'Lista Puestos Valorados'!$B$10:$BK$10,0),0)="","No relevante",VLOOKUP($B13,'Lista Puestos Valorados'!$B$11:$BK$510,MATCH('Auxiliar General'!AR$4,'Lista Puestos Valorados'!$B$10:$BK$10,0),0)) -> No relevante | AY13: =+HLOOKUP(AX13,Sistema_Puntos!$Q$5:$Y$43,'Auxiliar General'!AT$5,FALSE) -> 0 | AZ13: =+IF(VLOOKUP($B13,'Lista Puestos Valorados'!$B$11:$BK$510,MATCH('Auxiliar General'!AT$4,'Lista Puestos Valorados'!$B$10:$BK$10,0),0)="","No relevante",VLOOKUP($B13,'Lista Puestos Valorados'!$B$11:$BK$510,MATCH('Auxiliar General'!AT$4,'Lista Puestos Valorados'!$B$10:$BK$10,0),0)) -> No relevante | BA13: =+HLOOKUP(AZ13,Sistema_Puntos!$Q$5:$Y$43,'Auxiliar General'!AV$5,FALSE) -> 0 | BB13: =+IF(VLOOKUP($B13,'Lista Puestos Valorados'!$B$11:$BK$510,MATCH('Auxiliar General'!AV$4,'Lista Puestos Valorados'!$B$10:$BK$10,0),0)="","No relevante",VLOOKUP($B13,'Lista Puestos Valorados'!$B$11:$BK$510,MATCH('Auxiliar General'!AV$4,'Lista Puestos Valorados'!$B$10:$BK$10,0),0)) -> No relevante | BC13: =+HLOOKUP(BB13,Sistema_Puntos!$Q$5:$Y$43,'Auxiliar General'!AX$5,FALSE) -> 0 | BD13: =+IF(VLOOKUP($B13,'Lista Puestos Valorados'!$B$11:$BK$510,MATCH('Auxiliar General'!AX$4,'Lista Puestos Valorados'!$B$10:$BK$10,0),0)="","No relevante",VLOOKUP($B13,'Lista Puestos Valorados'!$B$11:$BK$510,MATCH('Auxiliar General'!AX$4,'Lista Puestos Valorados'!$B$10:$BK$10,0),0)) -> No relevante | BE13: =+HLOOKUP(BD13,Sistema_Puntos!$Q$5:$Y$43,'Auxiliar General'!AZ$5,FALSE) -> 0 | BF13: =+IF(VLOOKUP($B13,'Lista Puestos Valorados'!$B$11:$BK$510,MATCH('Auxiliar General'!AZ$4,'Lista Puestos Valorados'!$B$10:$BK$10,0),0)="","No relevante",VLOOKUP($B13,'Lista Puestos Valorados'!$B$11:$BK$510,MATCH('Auxiliar General'!AZ$4,'Lista Puestos Valorados'!$B$10:$BK$10,0),0)) -> No relevante | BG13: =+HLOOKUP(BF13,Sistema_Puntos!$Q$5:$Y$43,'Auxiliar General'!BB$5,FALSE) -> 0 | BH13: =+IF(VLOOKUP($B13,'Lista Puestos Valorados'!$B$11:$BK$510,MATCH('Auxiliar General'!BB$4,'Lista Puestos Valorados'!$B$10:$BK$10,0),0)="","No relevante",VLOOKUP($B13,'Lista Puestos Valorados'!$B$11:$BK$510,MATCH('Auxiliar General'!BB$4,'Lista Puestos Valorados'!$B$10:$BK$10,0),0)) -> No relevante | BI13: =+HLOOKUP(BH13,Sistema_Puntos!$Q$5:$Y$43,'Auxiliar General'!BD$5,FALSE) -> 0 | BJ13: =+IF(VLOOKUP($B13,'Lista Puestos Valorados'!$B$11:$BK$510,MATCH('Auxiliar General'!BD$4,'Lista Puestos Valorados'!$B$10:$BK$10,0),0)="","No relevante",VLOOKUP($B13,'Lista Puestos Valorados'!$B$11:$BK$510,MATCH('Auxiliar General'!BD$4,'Lista Puestos Valorados'!$B$10:$BK$10,0),0)) -> No relevante | BK13: =+HLOOKUP(BJ13,Sistema_Puntos!$Q$5:$Y$43,'Auxiliar General'!BF$5,FALSE) -> 0 | BL13: =+IF(VLOOKUP($B13,'Lista Puestos Valorados'!$B$11:$BK$510,MATCH('Auxiliar General'!BF$4,'Lista Puestos Valorados'!$B$10:$BK$10,0),0)="","No relevante",VLOOKUP($B13,'Lista Puestos Valorados'!$B$11:$BK$510,MATCH('Auxiliar General'!BF$4,'Lista Puestos Valorados'!$B$10:$BK$10,0),0)) -> No relevante | BM13: =+HLOOKUP(BL13,Sistema_Puntos!$Q$5:$Y$43,'Auxiliar General'!BH$5,FALSE) -> 0 | BN13: =+IF(VLOOKUP($B13,'Lista Puestos Valorados'!$B$11:$BK$510,MATCH('Auxiliar General'!BH$4,'Lista Puestos Valorados'!$B$10:$BK$10,0),0)="","No relevante",VLOOKUP($B13,'Lista Puestos Valorados'!$B$11:$BK$510,MATCH('Auxiliar General'!BH$4,'Lista Puestos Valorados'!$B$10:$BK$10,0),0)) -> No relevante | BO13: =+HLOOKUP(BN13,Sistema_Puntos!$Q$5:$Y$43,'Auxiliar General'!BJ$5,FALSE) -> 0 | BP13: =+IF(VLOOKUP($B13,'Lista Puestos Valorados'!$B$11:$BK$510,MATCH('Auxiliar General'!BJ$4,'Lista Puestos Valorados'!$B$10:$BK$10,0),0)="","No relevante",VLOOKUP($B13,'Lista Puestos Valorados'!$B$11:$BK$510,MATCH('Auxiliar General'!BJ$4,'Lista Puestos Valorados'!$B$10:$BK$10,0),0)) -> No relevante | BQ13: =+HLOOKUP(BP13,Sistema_Puntos!$Q$5:$Y$43,'Auxiliar General'!BL$5,FALSE) -> 0 | BR13: =+IF(VLOOKUP($B13,'Lista Puestos Valorados'!$B$11:$BK$510,MATCH('Auxiliar General'!BL$4,'Lista Puestos Valorados'!$B$10:$BK$10,0),0)="","No relevante",VLOOKUP($B13,'Lista Puestos Valorados'!$B$11:$BK$510,MATCH('Auxiliar General'!BL$4,'Lista Puestos Valorados'!$B$10:$BK$10,0),0)) -> No relevante | BS13: =+HLOOKUP(BR13,Sistema_Puntos!$Q$5:$Y$43,'Auxiliar General'!BN$5,FALSE) -> 0 | BT13: =+IF(VLOOKUP($B13,'Lista Puestos Valorados'!$B$11:$BK$510,MATCH('Auxiliar General'!BN$4,'Lista Puestos Valorados'!$B$10:$BK$10,0),0)="","No relevante",VLOOKUP($B13,'Lista Puestos Valorados'!$B$11:$BK$510,MATCH('Auxiliar General'!BN$4,'Lista Puestos Valorados'!$B$10:$BK$10,0),0)) -> No relevante | BU13: =+HLOOKUP(BT13,Sistema_Puntos!$Q$5:$Y$43,'Auxiliar General'!BP$5,FALSE) -> 0 | BV13: =+IF(VLOOKUP($B13,'Lista Puestos Valorados'!$B$11:$BK$510,MATCH('Auxiliar General'!BP$4,'Lista Puestos Valorados'!$B$10:$BK$10,0),0)="","No relevante",VLOOKUP($B13,'Lista Puestos Valorados'!$B$11:$BK$510,MATCH('Auxiliar General'!BP$4,'Lista Puestos Valorados'!$B$10:$BK$10,0),0)) -> No relevante | BW13: =+HLOOKUP(BV13,Sistema_Puntos!$Q$5:$Y$43,'Auxiliar General'!BR$5,FALSE) -> 0 | BX13: =+IF(VLOOKUP($B13,'Lista Puestos Valorados'!$B$11:$BK$510,MATCH('Auxiliar General'!BR$4,'Lista Puestos Valorados'!$B$10:$BK$10,0),0)="","No relevante",VLOOKUP($B13,'Lista Puestos Valorados'!$B$11:$BK$510,MATCH('Auxiliar General'!BR$4,'Lista Puestos Valorados'!$B$10:$BK$10,0),0)) -> No relevante | BY13: =+HLOOKUP(BX13,Sistema_Puntos!$Q$5:$Y$43,'Auxiliar General'!BT$5,FALSE) -> 0 | BZ13: =+IF(VLOOKUP($B13,'Lista Puestos Valorados'!$B$11:$BK$510,MATCH('Auxiliar General'!BT$4,'Lista Puestos Valorados'!$B$10:$BK$10,0),0)="","No relevante",VLOOKUP($B13,'Lista Puestos Valorados'!$B$11:$BK$510,MATCH('Auxiliar General'!BT$4,'Lista Puestos Valorados'!$B$10:$BK$10,0),0)) -> No relevante | CA13: =+HLOOKUP(BZ13,Sistema_Puntos!$Q$5:$Y$43,'Auxiliar General'!BV$5,FALSE) -> 0 | CB13: =+IF(VLOOKUP($B13,'Lista Puestos Valorados'!$B$11:$BK$510,MATCH('Auxiliar General'!BV$4,'Lista Puestos Valorados'!$B$10:$BK$10,0),0)="","No relevante",VLOOKUP($B13,'Lista Puestos Valorados'!$B$11:$BK$510,MATCH('Auxiliar General'!BV$4,'Lista Puestos Valorados'!$B$10:$BK$10,0),0)) -> No relevante | CC13: =+HLOOKUP(CB13,Sistema_Puntos!$Q$5:$Y$43,'Auxiliar General'!BX$5,FALSE) -> 0 | CD13: =+IF(VLOOKUP($B13,'Lista Puestos Valorados'!$B$11:$BK$510,MATCH('Auxiliar General'!BX$4,'Lista Puestos Valorados'!$B$10:$BK$10,0),0)="","No relevante",VLOOKUP($B13,'Lista Puestos Valorados'!$B$11:$BK$510,MATCH('Auxiliar General'!BX$4,'Lista Puestos Valorados'!$B$10:$BK$10,0),0)) -> No relevante | CE13: =+HLOOKUP(CD13,Sistema_Puntos!$Q$5:$Y$43,'Auxiliar General'!BZ$5,FALSE) -> 0 | CF13: =+IF(VLOOKUP($B13,'Lista Puestos Valorados'!$B$11:$BK$510,MATCH('Auxiliar General'!BZ$4,'Lista Puestos Valorados'!$B$10:$BK$10,0),0)="","No relevante",VLOOKUP($B13,'Lista Puestos Valorados'!$B$11:$BK$510,MATCH('Auxiliar General'!BZ$4,'Lista Puestos Valorados'!$B$10:$BK$10,0),0)) -> No relevante | CG13: =+HLOOKUP(CF13,Sistema_Puntos!$Q$5:$Y$43,'Auxiliar General'!CB$5,FALSE) -> 0
B14: =+'Listado de Puestos'!B14 -> 4 | C14: =+IF('Lista Puestos Valorados'!C14="","",'Lista Puestos Valorados'!C14) ->  | D14: =+IF('Lista Puestos Valorados'!D14="","",'Lista Puestos Valorados'!D14) ->  | E14: =+IF('Lista Puestos Valorados'!E14="","",'Lista Puestos Valorados'!E14) ->  | F14: =+IF('Lista Puestos Valorados'!F14="","",'Lista Puestos Valorados'!F14) ->  | G14: =+IF('Lista Puestos Valorados'!G14="","",'Lista Puestos Valorados'!G14) ->  | H14: =+IF('Lista Puestos Valorados'!H14="","",'Lista Puestos Valorados'!H14) ->  | I14: =+IF('Lista Puestos Valorados'!I14="","",'Lista Puestos Valorados'!I14) ->  | J14: =+IF(L14="","",_xlfn.IFS(L14<='Cortes de Agrupacion'!$F$15,'Cortes de Agrupacion'!$E$15,'Resultados General'!L14<='Cortes de Agrupacion'!$F$14,'Cortes de Agrupacion'!$E$14,'Resultados General'!L14<='Cortes de Agrupacion'!$F$13,'Cortes de Agrupacion'!$E$13,L14<='Cortes de Agrupacion'!$F$12,'Cortes de Agrupacion'!$E$12,'Resultados General'!L14<='Cortes de Agrupacion'!$F$11,'Cortes de Agrupacion'!$E$11,'Resultados General'!L14<='Cortes de Agrupacion'!$F$10,'Cortes de Agrupacion'!$E$10,'Resultados General'!L14<='Cortes de Agrupacion'!$F$9,'Cortes de Agrupacion'!$E$9,'Resultados General'!L14<='Cortes de Agrupacion'!$F$8,'Cortes de Agrupacion'!$E$8,'Resultados General'!L14<='Cortes de Agrupacion'!$F$7,'Cortes de Agrupacion'!$E$7,'Resultados General'!L14<='Cortes de Agrupacion'!$F$6,'Cortes de Agrupacion'!$E$6)) ->  | M14: =+_xlfn.IFNA(VLOOKUP(C14,'Distribución de puestos'!$B$8:$I$507,8,0),"") ->  | N14: =+IF(VLOOKUP($B14,'Lista Puestos Valorados'!$B$11:$BK$510,MATCH('Auxiliar General'!H$4,'Lista Puestos Valorados'!$B$10:$BK$10,0),0)="","No relevante",VLOOKUP($B14,'Lista Puestos Valorados'!$B$11:$BK$510,MATCH('Auxiliar General'!H$4,'Lista Puestos Valorados'!$B$10:$BK$10,0),0)) -> No relevante | O14: =+HLOOKUP(N14,Sistema_Puntos!$Q$5:$Y$43,'Auxiliar General'!J$5,FALSE) -> 0 | P14: =+IF(VLOOKUP($B14,'Lista Puestos Valorados'!$B$11:$BK$510,MATCH('Auxiliar General'!J$4,'Lista Puestos Valorados'!$B$10:$BK$10,0),0)="","No relevante",VLOOKUP($B14,'Lista Puestos Valorados'!$B$11:$BK$510,MATCH('Auxiliar General'!J$4,'Lista Puestos Valorados'!$B$10:$BK$10,0),0)) -> No relevante | Q14: =+HLOOKUP(P14,Sistema_Puntos!$Q$5:$Y$43,'Auxiliar General'!L$5,FALSE) -> 0 | R14: =+IF(VLOOKUP($B14,'Lista Puestos Valorados'!$B$11:$BK$510,MATCH('Auxiliar General'!L$4,'Lista Puestos Valorados'!$B$10:$BK$10,0),0)="","No relevante",VLOOKUP($B14,'Lista Puestos Valorados'!$B$11:$BK$510,MATCH('Auxiliar General'!L$4,'Lista Puestos Valorados'!$B$10:$BK$10,0),0)) -> No relevante | S14: =+HLOOKUP(R14,Sistema_Puntos!$Q$5:$Y$43,'Auxiliar General'!N$5,FALSE) -> 0 | T14: =+IF(VLOOKUP($B14,'Lista Puestos Valorados'!$B$11:$BK$510,MATCH('Auxiliar General'!N$4,'Lista Puestos Valorados'!$B$10:$BK$10,0),0)="","No relevante",VLOOKUP($B14,'Lista Puestos Valorados'!$B$11:$BK$510,MATCH('Auxiliar General'!N$4,'Lista Puestos Valorados'!$B$10:$BK$10,0),0)) -> No relevante | U14: =+HLOOKUP(T14,Sistema_Puntos!$Q$5:$Y$43,'Auxiliar General'!P$5,FALSE) -> 0 | V14: =+IF(VLOOKUP($B14,'Lista Puestos Valorados'!$B$11:$BK$510,MATCH('Auxiliar General'!P$4,'Lista Puestos Valorados'!$B$10:$BK$10,0),0)="","No relevante",VLOOKUP($B14,'Lista Puestos Valorados'!$B$11:$BK$510,MATCH('Auxiliar General'!P$4,'Lista Puestos Valorados'!$B$10:$BK$10,0),0)) -> No relevante | W14: =+HLOOKUP(V14,Sistema_Puntos!$Q$5:$Y$43,'Auxiliar General'!R$5,FALSE) -> 0 | X14: =+IF(VLOOKUP($B14,'Lista Puestos Valorados'!$B$11:$BK$510,MATCH('Auxiliar General'!R$4,'Lista Puestos Valorados'!$B$10:$BK$10,0),0)="","No relevante",VLOOKUP($B14,'Lista Puestos Valorados'!$B$11:$BK$510,MATCH('Auxiliar General'!R$4,'Lista Puestos Valorados'!$B$10:$BK$10,0),0)) -> No relevante | Y14: =+HLOOKUP(X14,Sistema_Puntos!$Q$5:$Y$43,'Auxiliar General'!T$5,FALSE) -> 0 | Z14: =+IF(VLOOKUP($B14,'Lista Puestos Valorados'!$B$11:$BK$510,MATCH('Auxiliar General'!T$4,'Lista Puestos Valorados'!$B$10:$BK$10,0),0)="","No relevante",VLOOKUP($B14,'Lista Puestos Valorados'!$B$11:$BK$510,MATCH('Auxiliar General'!T$4,'Lista Puestos Valorados'!$B$10:$BK$10,0),0)) -> No relevante | AA14: =+HLOOKUP(Z14,Sistema_Puntos!$Q$5:$Y$43,'Auxiliar General'!V$5,FALSE) -> 0 | AB14: =+IF(VLOOKUP($B14,'Lista Puestos Valorados'!$B$11:$BK$510,MATCH('Auxiliar General'!V$4,'Lista Puestos Valorados'!$B$10:$BK$10,0),0)="","No relevante",VLOOKUP($B14,'Lista Puestos Valorados'!$B$11:$BK$510,MATCH('Auxiliar General'!V$4,'Lista Puestos Valorados'!$B$10:$BK$10,0),0)) -> No relevante | AC14: =+HLOOKUP(AB14,Sistema_Puntos!$Q$5:$Y$43,'Auxiliar General'!X$5,FALSE) -> 0 | AD14: =+IF(VLOOKUP($B14,'Lista Puestos Valorados'!$B$11:$BK$510,MATCH('Auxiliar General'!X$4,'Lista Puestos Valorados'!$B$10:$BK$10,0),0)="","No relevante",VLOOKUP($B14,'Lista Puestos Valorados'!$B$11:$BK$510,MATCH('Auxiliar General'!X$4,'Lista Puestos Valorados'!$B$10:$BK$10,0),0)) -> No relevante | AE14: =+HLOOKUP(AD14,Sistema_Puntos!$Q$5:$Y$43,'Auxiliar General'!Z$5,FALSE) -> 0 | AF14: =+IF(VLOOKUP($B14,'Lista Puestos Valorados'!$B$11:$BK$510,MATCH('Auxiliar General'!Z$4,'Lista Puestos Valorados'!$B$10:$BK$10,0),0)="","No relevante",VLOOKUP($B14,'Lista Puestos Valorados'!$B$11:$BK$510,MATCH('Auxiliar General'!Z$4,'Lista Puestos Valorados'!$B$10:$BK$10,0),0)) -> No relevante | AG14: =+HLOOKUP(AF14,Sistema_Puntos!$Q$5:$Y$43,'Auxiliar General'!AB$5,FALSE) -> 0 | AH14: =+IF(VLOOKUP($B14,'Lista Puestos Valorados'!$B$11:$BK$510,MATCH('Auxiliar General'!AB$4,'Lista Puestos Valorados'!$B$10:$BK$10,0),0)="","No relevante",VLOOKUP($B14,'Lista Puestos Valorados'!$B$11:$BK$510,MATCH('Auxiliar General'!AB$4,'Lista Puestos Valorados'!$B$10:$BK$10,0),0)) -> No relevante | AI14: =+HLOOKUP(AH14,Sistema_Puntos!$Q$5:$Y$43,'Auxiliar General'!AD$5,FALSE) -> 0 | AJ14: =+IF(VLOOKUP($B14,'Lista Puestos Valorados'!$B$11:$BK$510,MATCH('Auxiliar General'!AD$4,'Lista Puestos Valorados'!$B$10:$BK$10,0),0)="","No relevante",VLOOKUP($B14,'Lista Puestos Valorados'!$B$11:$BK$510,MATCH('Auxiliar General'!AD$4,'Lista Puestos Valorados'!$B$10:$BK$10,0),0)) -> No relevante | AK14: =+HLOOKUP(AJ14,Sistema_Puntos!$Q$5:$Y$43,'Auxiliar General'!AF$5,FALSE) -> 0 | AL14: =+IF(VLOOKUP($B14,'Lista Puestos Valorados'!$B$11:$BK$510,MATCH('Auxiliar General'!AF$4,'Lista Puestos Valorados'!$B$10:$BK$10,0),0)="","No relevante",VLOOKUP($B14,'Lista Puestos Valorados'!$B$11:$BK$510,MATCH('Auxiliar General'!AF$4,'Lista Puestos Valorados'!$B$10:$BK$10,0),0)) -> No relevante | AM14: =+HLOOKUP(AL14,Sistema_Puntos!$Q$5:$Y$43,'Auxiliar General'!AH$5,FALSE) -> 0 | AN14: =+IF(VLOOKUP($B14,'Lista Puestos Valorados'!$B$11:$BK$510,MATCH('Auxiliar General'!AH$4,'Lista Puestos Valorados'!$B$10:$BK$10,0),0)="","No relevante",VLOOKUP($B14,'Lista Puestos Valorados'!$B$11:$BK$510,MATCH('Auxiliar General'!AH$4,'Lista Puestos Valorados'!$B$10:$BK$10,0),0)) -> No relevante | AO14: =+HLOOKUP(AN14,Sistema_Puntos!$Q$5:$Y$43,'Auxiliar General'!AJ$5,FALSE) -> 0 | AP14: =+IF(VLOOKUP($B14,'Lista Puestos Valorados'!$B$11:$BK$510,MATCH('Auxiliar General'!AJ$4,'Lista Puestos Valorados'!$B$10:$BK$10,0),0)="","No relevante",VLOOKUP($B14,'Lista Puestos Valorados'!$B$11:$BK$510,MATCH('Auxiliar General'!AJ$4,'Lista Puestos Valorados'!$B$10:$BK$10,0),0)) -> No relevante | AQ14: =+HLOOKUP(AP14,Sistema_Puntos!$Q$5:$Y$43,'Auxiliar General'!AL$5,FALSE) -> 0 | AR14: =+IF(VLOOKUP($B14,'Lista Puestos Valorados'!$B$11:$BK$510,MATCH('Auxiliar General'!AL$4,'Lista Puestos Valorados'!$B$10:$BK$10,0),0)="","No relevante",VLOOKUP($B14,'Lista Puestos Valorados'!$B$11:$BK$510,MATCH('Auxiliar General'!AL$4,'Lista Puestos Valorados'!$B$10:$BK$10,0),0)) -> No relevante | AS14: =+HLOOKUP(AR14,Sistema_Puntos!$Q$5:$Y$43,'Auxiliar General'!AN$5,FALSE) -> 0 | AT14: =+IF(VLOOKUP($B14,'Lista Puestos Valorados'!$B$11:$BK$510,MATCH('Auxiliar General'!AN$4,'Lista Puestos Valorados'!$B$10:$BK$10,0),0)="","No relevante",VLOOKUP($B14,'Lista Puestos Valorados'!$B$11:$BK$510,MATCH('Auxiliar General'!AN$4,'Lista Puestos Valorados'!$B$10:$BK$10,0),0)) -> No relevante | AU14: =+HLOOKUP(AT14,Sistema_Puntos!$Q$5:$Y$43,'Auxiliar General'!AP$5,FALSE) -> 0 | AV14: =+IF(VLOOKUP($B14,'Lista Puestos Valorados'!$B$11:$BK$510,MATCH('Auxiliar General'!AP$4,'Lista Puestos Valorados'!$B$10:$BK$10,0),0)="","No relevante",VLOOKUP($B14,'Lista Puestos Valorados'!$B$11:$BK$510,MATCH('Auxiliar General'!AP$4,'Lista Puestos Valorados'!$B$10:$BK$10,0),0)) -> No relevante | AW14: =+HLOOKUP(AV14,Sistema_Puntos!$Q$5:$Y$43,'Auxiliar General'!AR$5,FALSE) -> 0 | AX14: =+IF(VLOOKUP($B14,'Lista Puestos Valorados'!$B$11:$BK$510,MATCH('Auxiliar General'!AR$4,'Lista Puestos Valorados'!$B$10:$BK$10,0),0)="","No relevante",VLOOKUP($B14,'Lista Puestos Valorados'!$B$11:$BK$510,MATCH('Auxiliar General'!AR$4,'Lista Puestos Valorados'!$B$10:$BK$10,0),0)) -> No relevante | AY14: =+HLOOKUP(AX14,Sistema_Puntos!$Q$5:$Y$43,'Auxiliar General'!AT$5,FALSE) -> 0 | AZ14: =+IF(VLOOKUP($B14,'Lista Puestos Valorados'!$B$11:$BK$510,MATCH('Auxiliar General'!AT$4,'Lista Puestos Valorados'!$B$10:$BK$10,0),0)="","No relevante",VLOOKUP($B14,'Lista Puestos Valorados'!$B$11:$BK$510,MATCH('Auxiliar General'!AT$4,'Lista Puestos Valorados'!$B$10:$BK$10,0),0)) -> No relevante | BA14: =+HLOOKUP(AZ14,Sistema_Puntos!$Q$5:$Y$43,'Auxiliar General'!AV$5,FALSE) -> 0 | BB14: =+IF(VLOOKUP($B14,'Lista Puestos Valorados'!$B$11:$BK$510,MATCH('Auxiliar General'!AV$4,'Lista Puestos Valorados'!$B$10:$BK$10,0),0)="","No relevante",VLOOKUP($B14,'Lista Puestos Valorados'!$B$11:$BK$510,MATCH('Auxiliar General'!AV$4,'Lista Puestos Valorados'!$B$10:$BK$10,0),0)) -> No relevante | BC14: =+HLOOKUP(BB14,Sistema_Puntos!$Q$5:$Y$43,'Auxiliar General'!AX$5,FALSE) -> 0 | BD14: =+IF(VLOOKUP($B14,'Lista Puestos Valorados'!$B$11:$BK$510,MATCH('Auxiliar General'!AX$4,'Lista Puestos Valorados'!$B$10:$BK$10,0),0)="","No relevante",VLOOKUP($B14,'Lista Puestos Valorados'!$B$11:$BK$510,MATCH('Auxiliar General'!AX$4,'Lista Puestos Valorados'!$B$10:$BK$10,0),0)) -> No relevante | BE14: =+HLOOKUP(BD14,Sistema_Puntos!$Q$5:$Y$43,'Auxiliar General'!AZ$5,FALSE) -> 0 | BF14: =+IF(VLOOKUP($B14,'Lista Puestos Valorados'!$B$11:$BK$510,MATCH('Auxiliar General'!AZ$4,'Lista Puestos Valorados'!$B$10:$BK$10,0),0)="","No relevante",VLOOKUP($B14,'Lista Puestos Valorados'!$B$11:$BK$510,MATCH('Auxiliar General'!AZ$4,'Lista Puestos Valorados'!$B$10:$BK$10,0),0)) -> No relevante | BG14: =+HLOOKUP(BF14,Sistema_Puntos!$Q$5:$Y$43,'Auxiliar General'!BB$5,FALSE) -> 0 | BH14: =+IF(VLOOKUP($B14,'Lista Puestos Valorados'!$B$11:$BK$510,MATCH('Auxiliar General'!BB$4,'Lista Puestos Valorados'!$B$10:$BK$10,0),0)="","No relevante",VLOOKUP($B14,'Lista Puestos Valorados'!$B$11:$BK$510,MATCH('Auxiliar General'!BB$4,'Lista Puestos Valorados'!$B$10:$BK$10,0),0)) -> No relevante | BI14: =+HLOOKUP(BH14,Sistema_Puntos!$Q$5:$Y$43,'Auxiliar General'!BD$5,FALSE) -> 0 | BJ14: =+IF(VLOOKUP($B14,'Lista Puestos Valorados'!$B$11:$BK$510,MATCH('Auxiliar General'!BD$4,'Lista Puestos Valorados'!$B$10:$BK$10,0),0)="","No relevante",VLOOKUP($B14,'Lista Puestos Valorados'!$B$11:$BK$510,MATCH('Auxiliar General'!BD$4,'Lista Puestos Valorados'!$B$10:$BK$10,0),0)) -> No relevante | BK14: =+HLOOKUP(BJ14,Sistema_Puntos!$Q$5:$Y$43,'Auxiliar General'!BF$5,FALSE) -> 0 | BL14: =+IF(VLOOKUP($B14,'Lista Puestos Valorados'!$B$11:$BK$510,MATCH('Auxiliar General'!BF$4,'Lista Puestos Valorados'!$B$10:$BK$10,0),0)="","No relevante",VLOOKUP($B14,'Lista Puestos Valorados'!$B$11:$BK$510,MATCH('Auxiliar General'!BF$4,'Lista Puestos Valorados'!$B$10:$BK$10,0),0)) -> No relevante | BM14: =+HLOOKUP(BL14,Sistema_Puntos!$Q$5:$Y$43,'Auxiliar General'!BH$5,FALSE) -> 0 | BN14: =+IF(VLOOKUP($B14,'Lista Puestos Valorados'!$B$11:$BK$510,MATCH('Auxiliar General'!BH$4,'Lista Puestos Valorados'!$B$10:$BK$10,0),0)="","No relevante",VLOOKUP($B14,'Lista Puestos Valorados'!$B$11:$BK$510,MATCH('Auxiliar General'!BH$4,'Lista Puestos Valorados'!$B$10:$BK$10,0),0)) -> No relevante | BO14: =+HLOOKUP(BN14,Sistema_Puntos!$Q$5:$Y$43,'Auxiliar General'!BJ$5,FALSE) -> 0 | BP14: =+IF(VLOOKUP($B14,'Lista Puestos Valorados'!$B$11:$BK$510,MATCH('Auxiliar General'!BJ$4,'Lista Puestos Valorados'!$B$10:$BK$10,0),0)="","No relevante",VLOOKUP($B14,'Lista Puestos Valorados'!$B$11:$BK$510,MATCH('Auxiliar General'!BJ$4,'Lista Puestos Valorados'!$B$10:$BK$10,0),0)) -> No relevante | BQ14: =+HLOOKUP(BP14,Sistema_Puntos!$Q$5:$Y$43,'Auxiliar General'!BL$5,FALSE) -> 0 | BR14: =+IF(VLOOKUP($B14,'Lista Puestos Valorados'!$B$11:$BK$510,MATCH('Auxiliar General'!BL$4,'Lista Puestos Valorados'!$B$10:$BK$10,0),0)="","No relevante",VLOOKUP($B14,'Lista Puestos Valorados'!$B$11:$BK$510,MATCH('Auxiliar General'!BL$4,'Lista Puestos Valorados'!$B$10:$BK$10,0),0)) -> No relevante | BS14: =+HLOOKUP(BR14,Sistema_Puntos!$Q$5:$Y$43,'Auxiliar General'!BN$5,FALSE) -> 0 | BT14: =+IF(VLOOKUP($B14,'Lista Puestos Valorados'!$B$11:$BK$510,MATCH('Auxiliar General'!BN$4,'Lista Puestos Valorados'!$B$10:$BK$10,0),0)="","No relevante",VLOOKUP($B14,'Lista Puestos Valorados'!$B$11:$BK$510,MATCH('Auxiliar General'!BN$4,'Lista Puestos Valorados'!$B$10:$BK$10,0),0)) -> No relevante | BU14: =+HLOOKUP(BT14,Sistema_Puntos!$Q$5:$Y$43,'Auxiliar General'!BP$5,FALSE) -> 0 | BV14: =+IF(VLOOKUP($B14,'Lista Puestos Valorados'!$B$11:$BK$510,MATCH('Auxiliar General'!BP$4,'Lista Puestos Valorados'!$B$10:$BK$10,0),0)="","No relevante",VLOOKUP($B14,'Lista Puestos Valorados'!$B$11:$BK$510,MATCH('Auxiliar General'!BP$4,'Lista Puestos Valorados'!$B$10:$BK$10,0),0)) -> No relevante | BW14: =+HLOOKUP(BV14,Sistema_Puntos!$Q$5:$Y$43,'Auxiliar General'!BR$5,FALSE) -> 0 | BX14: =+IF(VLOOKUP($B14,'Lista Puestos Valorados'!$B$11:$BK$510,MATCH('Auxiliar General'!BR$4,'Lista Puestos Valorados'!$B$10:$BK$10,0),0)="","No relevante",VLOOKUP($B14,'Lista Puestos Valorados'!$B$11:$BK$510,MATCH('Auxiliar General'!BR$4,'Lista Puestos Valorados'!$B$10:$BK$10,0),0)) -> No relevante | BY14: =+HLOOKUP(BX14,Sistema_Puntos!$Q$5:$Y$43,'Auxiliar General'!BT$5,FALSE) -> 0 | BZ14: =+IF(VLOOKUP($B14,'Lista Puestos Valorados'!$B$11:$BK$510,MATCH('Auxiliar General'!BT$4,'Lista Puestos Valorados'!$B$10:$BK$10,0),0)="","No relevante",VLOOKUP($B14,'Lista Puestos Valorados'!$B$11:$BK$510,MATCH('Auxiliar General'!BT$4,'Lista Puestos Valorados'!$B$10:$BK$10,0),0)) -> No relevante | CA14: =+HLOOKUP(BZ14,Sistema_Puntos!$Q$5:$Y$43,'Auxiliar General'!BV$5,FALSE) -> 0 | CB14: =+IF(VLOOKUP($B14,'Lista Puestos Valorados'!$B$11:$BK$510,MATCH('Auxiliar General'!BV$4,'Lista Puestos Valorados'!$B$10:$BK$10,0),0)="","No relevante",VLOOKUP($B14,'Lista Puestos Valorados'!$B$11:$BK$510,MATCH('Auxiliar General'!BV$4,'Lista Puestos Valorados'!$B$10:$BK$10,0),0)) -> No relevante | CC14: =+HLOOKUP(CB14,Sistema_Puntos!$Q$5:$Y$43,'Auxiliar General'!BX$5,FALSE) -> 0 | CD14: =+IF(VLOOKUP($B14,'Lista Puestos Valorados'!$B$11:$BK$510,MATCH('Auxiliar General'!BX$4,'Lista Puestos Valorados'!$B$10:$BK$10,0),0)="","No relevante",VLOOKUP($B14,'Lista Puestos Valorados'!$B$11:$BK$510,MATCH('Auxiliar General'!BX$4,'Lista Puestos Valorados'!$B$10:$BK$10,0),0)) -> No relevante | CE14: =+HLOOKUP(CD14,Sistema_Puntos!$Q$5:$Y$43,'Auxiliar General'!BZ$5,FALSE) -> 0 | CF14: =+IF(VLOOKUP($B14,'Lista Puestos Valorados'!$B$11:$BK$510,MATCH('Auxiliar General'!BZ$4,'Lista Puestos Valorados'!$B$10:$BK$10,0),0)="","No relevante",VLOOKUP($B14,'Lista Puestos Valorados'!$B$11:$BK$510,MATCH('Auxiliar General'!BZ$4,'Lista Puestos Valorados'!$B$10:$BK$10,0),0)) -> No relevante | CG14: =+HLOOKUP(CF14,Sistema_Puntos!$Q$5:$Y$43,'Auxiliar General'!CB$5,FALSE) -> 0
B15: =+'Listado de Puestos'!B15 -> 5 | C15: =+IF('Lista Puestos Valorados'!C15="","",'Lista Puestos Valorados'!C15) ->  | D15: =+IF('Lista Puestos Valorados'!D15="","",'Lista Puestos Valorados'!D15) ->  | E15: =+IF('Lista Puestos Valorados'!E15="","",'Lista Puestos Valorados'!E15) ->  | F15: =+IF('Lista Puestos Valorados'!F15="","",'Lista Puestos Valorados'!F15) ->  | G15: =+IF('Lista Puestos Valorados'!G15="","",'Lista Puestos Valorados'!G15) ->  | H15: =+IF('Lista Puestos Valorados'!H15="","",'Lista Puestos Valorados'!H15) ->  | I15: =+IF('Lista Puestos Valorados'!I15="","",'Lista Puestos Valorados'!I15) ->  | J15: =+IF(L15="","",_xlfn.IFS(L15<='Cortes de Agrupacion'!$F$15,'Cortes de Agrupacion'!$E$15,'Resultados General'!L15<='Cortes de Agrupacion'!$F$14,'Cortes de Agrupacion'!$E$14,'Resultados General'!L15<='Cortes de Agrupacion'!$F$13,'Cortes de Agrupacion'!$E$13,L15<='Cortes de Agrupacion'!$F$12,'Cortes de Agrupacion'!$E$12,'Resultados General'!L15<='Cortes de Agrupacion'!$F$11,'Cortes de Agrupacion'!$E$11,'Resultados General'!L15<='Cortes de Agrupacion'!$F$10,'Cortes de Agrupacion'!$E$10,'Resultados General'!L15<='Cortes de Agrupacion'!$F$9,'Cortes de Agrupacion'!$E$9,'Resultados General'!L15<='Cortes de Agrupacion'!$F$8,'Cortes de Agrupacion'!$E$8,'Resultados General'!L15<='Cortes de Agrupacion'!$F$7,'Cortes de Agrupacion'!$E$7,'Resultados General'!L15<='Cortes de Agrupacion'!$F$6,'Cortes de Agrupacion'!$E$6)) ->  | M15: =+_xlfn.IFNA(VLOOKUP(C15,'Distribución de puestos'!$B$8:$I$507,8,0),"") ->  | N15: =+IF(VLOOKUP($B15,'Lista Puestos Valorados'!$B$11:$BK$510,MATCH('Auxiliar General'!H$4,'Lista Puestos Valorados'!$B$10:$BK$10,0),0)="","No relevante",VLOOKUP($B15,'Lista Puestos Valorados'!$B$11:$BK$510,MATCH('Auxiliar General'!H$4,'Lista Puestos Valorados'!$B$10:$BK$10,0),0)) -> No relevante | O15: =+HLOOKUP(N15,Sistema_Puntos!$Q$5:$Y$43,'Auxiliar General'!J$5,FALSE) -> 0 | P15: =+IF(VLOOKUP($B15,'Lista Puestos Valorados'!$B$11:$BK$510,MATCH('Auxiliar General'!J$4,'Lista Puestos Valorados'!$B$10:$BK$10,0),0)="","No relevante",VLOOKUP($B15,'Lista Puestos Valorados'!$B$11:$BK$510,MATCH('Auxiliar General'!J$4,'Lista Puestos Valorados'!$B$10:$BK$10,0),0)) -> No relevante | Q15: =+HLOOKUP(P15,Sistema_Puntos!$Q$5:$Y$43,'Auxiliar General'!L$5,FALSE) -> 0 | R15: =+IF(VLOOKUP($B15,'Lista Puestos Valorados'!$B$11:$BK$510,MATCH('Auxiliar General'!L$4,'Lista Puestos Valorados'!$B$10:$BK$10,0),0)="","No relevante",VLOOKUP($B15,'Lista Puestos Valorados'!$B$11:$BK$510,MATCH('Auxiliar General'!L$4,'Lista Puestos Valorados'!$B$10:$BK$10,0),0)) -> No relevante | S15: =+HLOOKUP(R15,Sistema_Puntos!$Q$5:$Y$43,'Auxiliar General'!N$5,FALSE) -> 0 | T15: =+IF(VLOOKUP($B15,'Lista Puestos Valorados'!$B$11:$BK$510,MATCH('Auxiliar General'!N$4,'Lista Puestos Valorados'!$B$10:$BK$10,0),0)="","No relevante",VLOOKUP($B15,'Lista Puestos Valorados'!$B$11:$BK$510,MATCH('Auxiliar General'!N$4,'Lista Puestos Valorados'!$B$10:$BK$10,0),0)) -> No relevante | U15: =+HLOOKUP(T15,Sistema_Puntos!$Q$5:$Y$43,'Auxiliar General'!P$5,FALSE) -> 0 | V15: =+IF(VLOOKUP($B15,'Lista Puestos Valorados'!$B$11:$BK$510,MATCH('Auxiliar General'!P$4,'Lista Puestos Valorados'!$B$10:$BK$10,0),0)="","No relevante",VLOOKUP($B15,'Lista Puestos Valorados'!$B$11:$BK$510,MATCH('Auxiliar General'!P$4,'Lista Puestos Valorados'!$B$10:$BK$10,0),0)) -> No relevante | W15: =+HLOOKUP(V15,Sistema_Puntos!$Q$5:$Y$43,'Auxiliar General'!R$5,FALSE) -> 0 | X15: =+IF(VLOOKUP($B15,'Lista Puestos Valorados'!$B$11:$BK$510,MATCH('Auxiliar General'!R$4,'Lista Puestos Valorados'!$B$10:$BK$10,0),0)="","No relevante",VLOOKUP($B15,'Lista Puestos Valorados'!$B$11:$BK$510,MATCH('Auxiliar General'!R$4,'Lista Puestos Valorados'!$B$10:$BK$10,0),0)) -> No relevante | Y15: =+HLOOKUP(X15,Sistema_Puntos!$Q$5:$Y$43,'Auxiliar General'!T$5,FALSE) -> 0 | Z15: =+IF(VLOOKUP($B15,'Lista Puestos Valorados'!$B$11:$BK$510,MATCH('Auxiliar General'!T$4,'Lista Puestos Valorados'!$B$10:$BK$10,0),0)="","No relevante",VLOOKUP($B15,'Lista Puestos Valorados'!$B$11:$BK$510,MATCH('Auxiliar General'!T$4,'Lista Puestos Valorados'!$B$10:$BK$10,0),0)) -> No relevante | AA15: =+HLOOKUP(Z15,Sistema_Puntos!$Q$5:$Y$43,'Auxiliar General'!V$5,FALSE) -> 0 | AB15: =+IF(VLOOKUP($B15,'Lista Puestos Valorados'!$B$11:$BK$510,MATCH('Auxiliar General'!V$4,'Lista Puestos Valorados'!$B$10:$BK$10,0),0)="","No relevante",VLOOKUP($B15,'Lista Puestos Valorados'!$B$11:$BK$510,MATCH('Auxiliar General'!V$4,'Lista Puestos Valorados'!$B$10:$BK$10,0),0)) -> No relevante | AC15: =+HLOOKUP(AB15,Sistema_Puntos!$Q$5:$Y$43,'Auxiliar General'!X$5,FALSE) -> 0 | AD15: =+IF(VLOOKUP($B15,'Lista Puestos Valorados'!$B$11:$BK$510,MATCH('Auxiliar General'!X$4,'Lista Puestos Valorados'!$B$10:$BK$10,0),0)="","No relevante",VLOOKUP($B15,'Lista Puestos Valorados'!$B$11:$BK$510,MATCH('Auxiliar General'!X$4,'Lista Puestos Valorados'!$B$10:$BK$10,0),0)) -> No relevante | AE15: =+HLOOKUP(AD15,Sistema_Puntos!$Q$5:$Y$43,'Auxiliar General'!Z$5,FALSE) -> 0 | AF15: =+IF(VLOOKUP($B15,'Lista Puestos Valorados'!$B$11:$BK$510,MATCH('Auxiliar General'!Z$4,'Lista Puestos Valorados'!$B$10:$BK$10,0),0)="","No relevante",VLOOKUP($B15,'Lista Puestos Valorados'!$B$11:$BK$510,MATCH('Auxiliar General'!Z$4,'Lista Puestos Valorados'!$B$10:$BK$10,0),0)) -> No relevante | AG15: =+HLOOKUP(AF15,Sistema_Puntos!$Q$5:$Y$43,'Auxiliar General'!AB$5,FALSE) -> 0 | AH15: =+IF(VLOOKUP($B15,'Lista Puestos Valorados'!$B$11:$BK$510,MATCH('Auxiliar General'!AB$4,'Lista Puestos Valorados'!$B$10:$BK$10,0),0)="","No relevante",VLOOKUP($B15,'Lista Puestos Valorados'!$B$11:$BK$510,MATCH('Auxiliar General'!AB$4,'Lista Puestos Valorados'!$B$10:$BK$10,0),0)) -> No relevante | AI15: =+HLOOKUP(AH15,Sistema_Puntos!$Q$5:$Y$43,'Auxiliar General'!AD$5,FALSE) -> 0 | AJ15: =+IF(VLOOKUP($B15,'Lista Puestos Valorados'!$B$11:$BK$510,MATCH('Auxiliar General'!AD$4,'Lista Puestos Valorados'!$B$10:$BK$10,0),0)="","No relevante",VLOOKUP($B15,'Lista Puestos Valorados'!$B$11:$BK$510,MATCH('Auxiliar General'!AD$4,'Lista Puestos Valorados'!$B$10:$BK$10,0),0)) -> No relevante | AK15: =+HLOOKUP(AJ15,Sistema_Puntos!$Q$5:$Y$43,'Auxiliar General'!AF$5,FALSE) -> 0 | AL15: =+IF(VLOOKUP($B15,'Lista Puestos Valorados'!$B$11:$BK$510,MATCH('Auxiliar General'!AF$4,'Lista Puestos Valorados'!$B$10:$BK$10,0),0)="","No relevante",VLOOKUP($B15,'Lista Puestos Valorados'!$B$11:$BK$510,MATCH('Auxiliar General'!AF$4,'Lista Puestos Valorados'!$B$10:$BK$10,0),0)) -> No relevante | AM15: =+HLOOKUP(AL15,Sistema_Puntos!$Q$5:$Y$43,'Auxiliar General'!AH$5,FALSE) -> 0 | AN15: =+IF(VLOOKUP($B15,'Lista Puestos Valorados'!$B$11:$BK$510,MATCH('Auxiliar General'!AH$4,'Lista Puestos Valorados'!$B$10:$BK$10,0),0)="","No relevante",VLOOKUP($B15,'Lista Puestos Valorados'!$B$11:$BK$510,MATCH('Auxiliar General'!AH$4,'Lista Puestos Valorados'!$B$10:$BK$10,0),0)) -> No relevante | AO15: =+HLOOKUP(AN15,Sistema_Puntos!$Q$5:$Y$43,'Auxiliar General'!AJ$5,FALSE) -> 0 | AP15: =+IF(VLOOKUP($B15,'Lista Puestos Valorados'!$B$11:$BK$510,MATCH('Auxiliar General'!AJ$4,'Lista Puestos Valorados'!$B$10:$BK$10,0),0)="","No relevante",VLOOKUP($B15,'Lista Puestos Valorados'!$B$11:$BK$510,MATCH('Auxiliar General'!AJ$4,'Lista Puestos Valorados'!$B$10:$BK$10,0),0)) -> No relevante | AQ15: =+HLOOKUP(AP15,Sistema_Puntos!$Q$5:$Y$43,'Auxiliar General'!AL$5,FALSE) -> 0 | AR15: =+IF(VLOOKUP($B15,'Lista Puestos Valorados'!$B$11:$BK$510,MATCH('Auxiliar General'!AL$4,'Lista Puestos Valorados'!$B$10:$BK$10,0),0)="","No relevante",VLOOKUP($B15,'Lista Puestos Valorados'!$B$11:$BK$510,MATCH('Auxiliar General'!AL$4,'Lista Puestos Valorados'!$B$10:$BK$10,0),0)) -> No relevante | AS15: =+HLOOKUP(AR15,Sistema_Puntos!$Q$5:$Y$43,'Auxiliar General'!AN$5,FALSE) -> 0 | AT15: =+IF(VLOOKUP($B15,'Lista Puestos Valorados'!$B$11:$BK$510,MATCH('Auxiliar General'!AN$4,'Lista Puestos Valorados'!$B$10:$BK$10,0),0)="","No relevante",VLOOKUP($B15,'Lista Puestos Valorados'!$B$11:$BK$510,MATCH('Auxiliar General'!AN$4,'Lista Puestos Valorados'!$B$10:$BK$10,0),0)) -> No relevante | AU15: =+HLOOKUP(AT15,Sistema_Puntos!$Q$5:$Y$43,'Auxiliar General'!AP$5,FALSE) -> 0 | AV15: =+IF(VLOOKUP($B15,'Lista Puestos Valorados'!$B$11:$BK$510,MATCH('Auxiliar General'!AP$4,'Lista Puestos Valorados'!$B$10:$BK$10,0),0)="","No relevante",VLOOKUP($B15,'Lista Puestos Valorados'!$B$11:$BK$510,MATCH('Auxiliar General'!AP$4,'Lista Puestos Valorados'!$B$10:$BK$10,0),0)) -> No relevante | AW15: =+HLOOKUP(AV15,Sistema_Puntos!$Q$5:$Y$43,'Auxiliar General'!AR$5,FALSE) -> 0 | AX15: =+IF(VLOOKUP($B15,'Lista Puestos Valorados'!$B$11:$BK$510,MATCH('Auxiliar General'!AR$4,'Lista Puestos Valorados'!$B$10:$BK$10,0),0)="","No relevante",VLOOKUP($B15,'Lista Puestos Valorados'!$B$11:$BK$510,MATCH('Auxiliar General'!AR$4,'Lista Puestos Valorados'!$B$10:$BK$10,0),0)) -> No relevante | AY15: =+HLOOKUP(AX15,Sistema_Puntos!$Q$5:$Y$43,'Auxiliar General'!AT$5,FALSE) -> 0 | AZ15: =+IF(VLOOKUP($B15,'Lista Puestos Valorados'!$B$11:$BK$510,MATCH('Auxiliar General'!AT$4,'Lista Puestos Valorados'!$B$10:$BK$10,0),0)="","No relevante",VLOOKUP($B15,'Lista Puestos Valorados'!$B$11:$BK$510,MATCH('Auxiliar General'!AT$4,'Lista Puestos Valorados'!$B$10:$BK$10,0),0)) -> No relevante | BA15: =+HLOOKUP(AZ15,Sistema_Puntos!$Q$5:$Y$43,'Auxiliar General'!AV$5,FALSE) -> 0 | BB15: =+IF(VLOOKUP($B15,'Lista Puestos Valorados'!$B$11:$BK$510,MATCH('Auxiliar General'!AV$4,'Lista Puestos Valorados'!$B$10:$BK$10,0),0)="","No relevante",VLOOKUP($B15,'Lista Puestos Valorados'!$B$11:$BK$510,MATCH('Auxiliar General'!AV$4,'Lista Puestos Valorados'!$B$10:$BK$10,0),0)) -> No relevante | BC15: =+HLOOKUP(BB15,Sistema_Puntos!$Q$5:$Y$43,'Auxiliar General'!AX$5,FALSE) -> 0 | BD15: =+IF(VLOOKUP($B15,'Lista Puestos Valorados'!$B$11:$BK$510,MATCH('Auxiliar General'!AX$4,'Lista Puestos Valorados'!$B$10:$BK$10,0),0)="","No relevante",VLOOKUP($B15,'Lista Puestos Valorados'!$B$11:$BK$510,MATCH('Auxiliar General'!AX$4,'Lista Puestos Valorados'!$B$10:$BK$10,0),0)) -> No relevante | BE15: =+HLOOKUP(BD15,Sistema_Puntos!$Q$5:$Y$43,'Auxiliar General'!AZ$5,FALSE) -> 0 | BF15: =+IF(VLOOKUP($B15,'Lista Puestos Valorados'!$B$11:$BK$510,MATCH('Auxiliar General'!AZ$4,'Lista Puestos Valorados'!$B$10:$BK$10,0),0)="","No relevante",VLOOKUP($B15,'Lista Puestos Valorados'!$B$11:$BK$510,MATCH('Auxiliar General'!AZ$4,'Lista Puestos Valorados'!$B$10:$BK$10,0),0)) -> No relevante | BG15: =+HLOOKUP(BF15,Sistema_Puntos!$Q$5:$Y$43,'Auxiliar General'!BB$5,FALSE) -> 0 | BH15: =+IF(VLOOKUP($B15,'Lista Puestos Valorados'!$B$11:$BK$510,MATCH('Auxiliar General'!BB$4,'Lista Puestos Valorados'!$B$10:$BK$10,0),0)="","No relevante",VLOOKUP($B15,'Lista Puestos Valorados'!$B$11:$BK$510,MATCH('Auxiliar General'!BB$4,'Lista Puestos Valorados'!$B$10:$BK$10,0),0)) -> No relevante | BI15: =+HLOOKUP(BH15,Sistema_Puntos!$Q$5:$Y$43,'Auxiliar General'!BD$5,FALSE) -> 0 | BJ15: =+IF(VLOOKUP($B15,'Lista Puestos Valorados'!$B$11:$BK$510,MATCH('Auxiliar General'!BD$4,'Lista Puestos Valorados'!$B$10:$BK$10,0),0)="","No relevante",VLOOKUP($B15,'Lista Puestos Valorados'!$B$11:$BK$510,MATCH('Auxiliar General'!BD$4,'Lista Puestos Valorados'!$B$10:$BK$10,0),0)) -> No relevante | BK15: =+HLOOKUP(BJ15,Sistema_Puntos!$Q$5:$Y$43,'Auxiliar General'!BF$5,FALSE) -> 0 | BL15: =+IF(VLOOKUP($B15,'Lista Puestos Valorados'!$B$11:$BK$510,MATCH('Auxiliar General'!BF$4,'Lista Puestos Valorados'!$B$10:$BK$10,0),0)="","No relevante",VLOOKUP($B15,'Lista Puestos Valorados'!$B$11:$BK$510,MATCH('Auxiliar General'!BF$4,'Lista Puestos Valorados'!$B$10:$BK$10,0),0)) -> No relevante | BM15: =+HLOOKUP(BL15,Sistema_Puntos!$Q$5:$Y$43,'Auxiliar General'!BH$5,FALSE) -> 0 | BN15: =+IF(VLOOKUP($B15,'Lista Puestos Valorados'!$B$11:$BK$510,MATCH('Auxiliar General'!BH$4,'Lista Puestos Valorados'!$B$10:$BK$10,0),0)="","No relevante",VLOOKUP($B15,'Lista Puestos Valorados'!$B$11:$BK$510,MATCH('Auxiliar General'!BH$4,'Lista Puestos Valorados'!$B$10:$BK$10,0),0)) -> No relevante | BO15: =+HLOOKUP(BN15,Sistema_Puntos!$Q$5:$Y$43,'Auxiliar General'!BJ$5,FALSE) -> 0 | BP15: =+IF(VLOOKUP($B15,'Lista Puestos Valorados'!$B$11:$BK$510,MATCH('Auxiliar General'!BJ$4,'Lista Puestos Valorados'!$B$10:$BK$10,0),0)="","No relevante",VLOOKUP($B15,'Lista Puestos Valorados'!$B$11:$BK$510,MATCH('Auxiliar General'!BJ$4,'Lista Puestos Valorados'!$B$10:$BK$10,0),0)) -> No relevante | BQ15: =+HLOOKUP(BP15,Sistema_Puntos!$Q$5:$Y$43,'Auxiliar General'!BL$5,FALSE) -> 0 | BR15: =+IF(VLOOKUP($B15,'Lista Puestos Valorados'!$B$11:$BK$510,MATCH('Auxiliar General'!BL$4,'Lista Puestos Valorados'!$B$10:$BK$10,0),0)="","No relevante",VLOOKUP($B15,'Lista Puestos Valorados'!$B$11:$BK$510,MATCH('Auxiliar General'!BL$4,'Lista Puestos Valorados'!$B$10:$BK$10,0),0)) -> No relevante | BS15: =+HLOOKUP(BR15,Sistema_Puntos!$Q$5:$Y$43,'Auxiliar General'!BN$5,FALSE) -> 0 | BT15: =+IF(VLOOKUP($B15,'Lista Puestos Valorados'!$B$11:$BK$510,MATCH('Auxiliar General'!BN$4,'Lista Puestos Valorados'!$B$10:$BK$10,0),0)="","No relevante",VLOOKUP($B15,'Lista Puestos Valorados'!$B$11:$BK$510,MATCH('Auxiliar General'!BN$4,'Lista Puestos Valorados'!$B$10:$BK$10,0),0)) -> No relevante | BU15: =+HLOOKUP(BT15,Sistema_Puntos!$Q$5:$Y$43,'Auxiliar General'!BP$5,FALSE) -> 0 | BV15: =+IF(VLOOKUP($B15,'Lista Puestos Valorados'!$B$11:$BK$510,MATCH('Auxiliar General'!BP$4,'Lista Puestos Valorados'!$B$10:$BK$10,0),0)="","No relevante",VLOOKUP($B15,'Lista Puestos Valorados'!$B$11:$BK$510,MATCH('Auxiliar General'!BP$4,'Lista Puestos Valorados'!$B$10:$BK$10,0),0)) -> No relevante | BW15: =+HLOOKUP(BV15,Sistema_Puntos!$Q$5:$Y$43,'Auxiliar General'!BR$5,FALSE) -> 0 | BX15: =+IF(VLOOKUP($B15,'Lista Puestos Valorados'!$B$11:$BK$510,MATCH('Auxiliar General'!BR$4,'Lista Puestos Valorados'!$B$10:$BK$10,0),0)="","No relevante",VLOOKUP($B15,'Lista Puestos Valorados'!$B$11:$BK$510,MATCH('Auxiliar General'!BR$4,'Lista Puestos Valorados'!$B$10:$BK$10,0),0)) -> No relevante | BY15: =+HLOOKUP(BX15,Sistema_Puntos!$Q$5:$Y$43,'Auxiliar General'!BT$5,FALSE) -> 0 | BZ15: =+IF(VLOOKUP($B15,'Lista Puestos Valorados'!$B$11:$BK$510,MATCH('Auxiliar General'!BT$4,'Lista Puestos Valorados'!$B$10:$BK$10,0),0)="","No relevante",VLOOKUP($B15,'Lista Puestos Valorados'!$B$11:$BK$510,MATCH('Auxiliar General'!BT$4,'Lista Puestos Valorados'!$B$10:$BK$10,0),0)) -> No relevante | CA15: =+HLOOKUP(BZ15,Sistema_Puntos!$Q$5:$Y$43,'Auxiliar General'!BV$5,FALSE) -> 0 | CB15: =+IF(VLOOKUP($B15,'Lista Puestos Valorados'!$B$11:$BK$510,MATCH('Auxiliar General'!BV$4,'Lista Puestos Valorados'!$B$10:$BK$10,0),0)="","No relevante",VLOOKUP($B15,'Lista Puestos Valorados'!$B$11:$BK$510,MATCH('Auxiliar General'!BV$4,'Lista Puestos Valorados'!$B$10:$BK$10,0),0)) -> No relevante | CC15: =+HLOOKUP(CB15,Sistema_Puntos!$Q$5:$Y$43,'Auxiliar General'!BX$5,FALSE) -> 0 | CD15: =+IF(VLOOKUP($B15,'Lista Puestos Valorados'!$B$11:$BK$510,MATCH('Auxiliar General'!BX$4,'Lista Puestos Valorados'!$B$10:$BK$10,0),0)="","No relevante",VLOOKUP($B15,'Lista Puestos Valorados'!$B$11:$BK$510,MATCH('Auxiliar General'!BX$4,'Lista Puestos Valorados'!$B$10:$BK$10,0),0)) -> No relevante | CE15: =+HLOOKUP(CD15,Sistema_Puntos!$Q$5:$Y$43,'Auxiliar General'!BZ$5,FALSE) -> 0 | CF15: =+IF(VLOOKUP($B15,'Lista Puestos Valorados'!$B$11:$BK$510,MATCH('Auxiliar General'!BZ$4,'Lista Puestos Valorados'!$B$10:$BK$10,0),0)="","No relevante",VLOOKUP($B15,'Lista Puestos Valorados'!$B$11:$BK$510,MATCH('Auxiliar General'!BZ$4,'Lista Puestos Valorados'!$B$10:$BK$10,0),0)) -> No relevante | CG15: =+HLOOKUP(CF15,Sistema_Puntos!$Q$5:$Y$43,'Auxiliar General'!CB$5,FALSE) -> 0
B16: =+'Listado de Puestos'!B16 -> 6 | C16: =+IF('Lista Puestos Valorados'!C16="","",'Lista Puestos Valorados'!C16) ->  | D16: =+IF('Lista Puestos Valorados'!D16="","",'Lista Puestos Valorados'!D16) ->  | E16: =+IF('Lista Puestos Valorados'!E16="","",'Lista Puestos Valorados'!E16) ->  | F16: =+IF('Lista Puestos Valorados'!F16="","",'Lista Puestos Valorados'!F16) ->  | G16: =+IF('Lista Puestos Valorados'!G16="","",'Lista Puestos Valorados'!G16) ->  | H16: =+IF('Lista Puestos Valorados'!H16="","",'Lista Puestos Valorados'!H16) ->  | I16: =+IF('Lista Puestos Valorados'!I16="","",'Lista Puestos Valorados'!I16) ->  | J16: =+IF(L16="","",_xlfn.IFS(L16<='Cortes de Agrupacion'!$F$15,'Cortes de Agrupacion'!$E$15,'Resultados General'!L16<='Cortes de Agrupacion'!$F$14,'Cortes de Agrupacion'!$E$14,'Resultados General'!L16<='Cortes de Agrupacion'!$F$13,'Cortes de Agrupacion'!$E$13,L16<='Cortes de Agrupacion'!$F$12,'Cortes de Agrupacion'!$E$12,'Resultados General'!L16<='Cortes de Agrupacion'!$F$11,'Cortes de Agrupacion'!$E$11,'Resultados General'!L16<='Cortes de Agrupacion'!$F$10,'Cortes de Agrupacion'!$E$10,'Resultados General'!L16<='Cortes de Agrupacion'!$F$9,'Cortes de Agrupacion'!$E$9,'Resultados General'!L16<='Cortes de Agrupacion'!$F$8,'Cortes de Agrupacion'!$E$8,'Resultados General'!L16<='Cortes de Agrupacion'!$F$7,'Cortes de Agrupacion'!$E$7,'Resultados General'!L16<='Cortes de Agrupacion'!$F$6,'Cortes de Agrupacion'!$E$6)) ->  | M16: =+_xlfn.IFNA(VLOOKUP(C16,'Distribución de puestos'!$B$8:$I$507,8,0),"") ->  | N16: =+IF(VLOOKUP($B16,'Lista Puestos Valorados'!$B$11:$BK$510,MATCH('Auxiliar General'!H$4,'Lista Puestos Valorados'!$B$10:$BK$10,0),0)="","No relevante",VLOOKUP($B16,'Lista Puestos Valorados'!$B$11:$BK$510,MATCH('Auxiliar General'!H$4,'Lista Puestos Valorados'!$B$10:$BK$10,0),0)) -> No relevante | O16: =+HLOOKUP(N16,Sistema_Puntos!$Q$5:$Y$43,'Auxiliar General'!J$5,FALSE) -> 0 | P16: =+IF(VLOOKUP($B16,'Lista Puestos Valorados'!$B$11:$BK$510,MATCH('Auxiliar General'!J$4,'Lista Puestos Valorados'!$B$10:$BK$10,0),0)="","No relevante",VLOOKUP($B16,'Lista Puestos Valorados'!$B$11:$BK$510,MATCH('Auxiliar General'!J$4,'Lista Puestos Valorados'!$B$10:$BK$10,0),0)) -> No relevante | Q16: =+HLOOKUP(P16,Sistema_Puntos!$Q$5:$Y$43,'Auxiliar General'!L$5,FALSE) -> 0 | R16: =+IF(VLOOKUP($B16,'Lista Puestos Valorados'!$B$11:$BK$510,MATCH('Auxiliar General'!L$4,'Lista Puestos Valorados'!$B$10:$BK$10,0),0)="","No relevante",VLOOKUP($B16,'Lista Puestos Valorados'!$B$11:$BK$510,MATCH('Auxiliar General'!L$4,'Lista Puestos Valorados'!$B$10:$BK$10,0),0)) -> No relevante | S16: =+HLOOKUP(R16,Sistema_Puntos!$Q$5:$Y$43,'Auxiliar General'!N$5,FALSE) -> 0 | T16: =+IF(VLOOKUP($B16,'Lista Puestos Valorados'!$B$11:$BK$510,MATCH('Auxiliar General'!N$4,'Lista Puestos Valorados'!$B$10:$BK$10,0),0)="","No relevante",VLOOKUP($B16,'Lista Puestos Valorados'!$B$11:$BK$510,MATCH('Auxiliar General'!N$4,'Lista Puestos Valorados'!$B$10:$BK$10,0),0)) -> No relevante | U16: =+HLOOKUP(T16,Sistema_Puntos!$Q$5:$Y$43,'Auxiliar General'!P$5,FALSE) -> 0 | V16: =+IF(VLOOKUP($B16,'Lista Puestos Valorados'!$B$11:$BK$510,MATCH('Auxiliar General'!P$4,'Lista Puestos Valorados'!$B$10:$BK$10,0),0)="","No relevante",VLOOKUP($B16,'Lista Puestos Valorados'!$B$11:$BK$510,MATCH('Auxiliar General'!P$4,'Lista Puestos Valorados'!$B$10:$BK$10,0),0)) -> No relevante | W16: =+HLOOKUP(V16,Sistema_Puntos!$Q$5:$Y$43,'Auxiliar General'!R$5,FALSE) -> 0 | X16: =+IF(VLOOKUP($B16,'Lista Puestos Valorados'!$B$11:$BK$510,MATCH('Auxiliar General'!R$4,'Lista Puestos Valorados'!$B$10:$BK$10,0),0)="","No relevante",VLOOKUP($B16,'Lista Puestos Valorados'!$B$11:$BK$510,MATCH('Auxiliar General'!R$4,'Lista Puestos Valorados'!$B$10:$BK$10,0),0)) -> No relevante | Y16: =+HLOOKUP(X16,Sistema_Puntos!$Q$5:$Y$43,'Auxiliar General'!T$5,FALSE) -> 0 | Z16: =+IF(VLOOKUP($B16,'Lista Puestos Valorados'!$B$11:$BK$510,MATCH('Auxiliar General'!T$4,'Lista Puestos Valorados'!$B$10:$BK$10,0),0)="","No relevante",VLOOKUP($B16,'Lista Puestos Valorados'!$B$11:$BK$510,MATCH('Auxiliar General'!T$4,'Lista Puestos Valorados'!$B$10:$BK$10,0),0)) -> No relevante | AA16: =+HLOOKUP(Z16,Sistema_Puntos!$Q$5:$Y$43,'Auxiliar General'!V$5,FALSE) -> 0 | AB16: =+IF(VLOOKUP($B16,'Lista Puestos Valorados'!$B$11:$BK$510,MATCH('Auxiliar General'!V$4,'Lista Puestos Valorados'!$B$10:$BK$10,0),0)="","No relevante",VLOOKUP($B16,'Lista Puestos Valorados'!$B$11:$BK$510,MATCH('Auxiliar General'!V$4,'Lista Puestos Valorados'!$B$10:$BK$10,0),0)) -> No relevante | AC16: =+HLOOKUP(AB16,Sistema_Puntos!$Q$5:$Y$43,'Auxiliar General'!X$5,FALSE) -> 0 | AD16: =+IF(VLOOKUP($B16,'Lista Puestos Valorados'!$B$11:$BK$510,MATCH('Auxiliar General'!X$4,'Lista Puestos Valorados'!$B$10:$BK$10,0),0)="","No relevante",VLOOKUP($B16,'Lista Puestos Valorados'!$B$11:$BK$510,MATCH('Auxiliar General'!X$4,'Lista Puestos Valorados'!$B$10:$BK$10,0),0)) -> No relevante | AE16: =+HLOOKUP(AD16,Sistema_Puntos!$Q$5:$Y$43,'Auxiliar General'!Z$5,FALSE) -> 0 | AF16: =+IF(VLOOKUP($B16,'Lista Puestos Valorados'!$B$11:$BK$510,MATCH('Auxiliar General'!Z$4,'Lista Puestos Valorados'!$B$10:$BK$10,0),0)="","No relevante",VLOOKUP($B16,'Lista Puestos Valorados'!$B$11:$BK$510,MATCH('Auxiliar General'!Z$4,'Lista Puestos Valorados'!$B$10:$BK$10,0),0)) -> No relevante | AG16: =+HLOOKUP(AF16,Sistema_Puntos!$Q$5:$Y$43,'Auxiliar General'!AB$5,FALSE) -> 0 | AH16: =+IF(VLOOKUP($B16,'Lista Puestos Valorados'!$B$11:$BK$510,MATCH('Auxiliar General'!AB$4,'Lista Puestos Valorados'!$B$10:$BK$10,0),0)="","No relevante",VLOOKUP($B16,'Lista Puestos Valorados'!$B$11:$BK$510,MATCH('Auxiliar General'!AB$4,'Lista Puestos Valorados'!$B$10:$BK$10,0),0)) -> No relevante | AI16: =+HLOOKUP(AH16,Sistema_Puntos!$Q$5:$Y$43,'Auxiliar General'!AD$5,FALSE) -> 0 | AJ16: =+IF(VLOOKUP($B16,'Lista Puestos Valorados'!$B$11:$BK$510,MATCH('Auxiliar General'!AD$4,'Lista Puestos Valorados'!$B$10:$BK$10,0),0)="","No relevante",VLOOKUP($B16,'Lista Puestos Valorados'!$B$11:$BK$510,MATCH('Auxiliar General'!AD$4,'Lista Puestos Valorados'!$B$10:$BK$10,0),0)) -> No relevante | AK16: =+HLOOKUP(AJ16,Sistema_Puntos!$Q$5:$Y$43,'Auxiliar General'!AF$5,FALSE) -> 0 | AL16: =+IF(VLOOKUP($B16,'Lista Puestos Valorados'!$B$11:$BK$510,MATCH('Auxiliar General'!AF$4,'Lista Puestos Valorados'!$B$10:$BK$10,0),0)="","No relevante",VLOOKUP($B16,'Lista Puestos Valorados'!$B$11:$BK$510,MATCH('Auxiliar General'!AF$4,'Lista Puestos Valorados'!$B$10:$BK$10,0),0)) -> No relevante | AM16: =+HLOOKUP(AL16,Sistema_Puntos!$Q$5:$Y$43,'Auxiliar General'!AH$5,FALSE) -> 0 | AN16: =+IF(VLOOKUP($B16,'Lista Puestos Valorados'!$B$11:$BK$510,MATCH('Auxiliar General'!AH$4,'Lista Puestos Valorados'!$B$10:$BK$10,0),0)="","No relevante",VLOOKUP($B16,'Lista Puestos Valorados'!$B$11:$BK$510,MATCH('Auxiliar General'!AH$4,'Lista Puestos Valorados'!$B$10:$BK$10,0),0)) -> No relevante | AO16: =+HLOOKUP(AN16,Sistema_Puntos!$Q$5:$Y$43,'Auxiliar General'!AJ$5,FALSE) -> 0 | AP16: =+IF(VLOOKUP($B16,'Lista Puestos Valorados'!$B$11:$BK$510,MATCH('Auxiliar General'!AJ$4,'Lista Puestos Valorados'!$B$10:$BK$10,0),0)="","No relevante",VLOOKUP($B16,'Lista Puestos Valorados'!$B$11:$BK$510,MATCH('Auxiliar General'!AJ$4,'Lista Puestos Valorados'!$B$10:$BK$10,0),0)) -> No relevante | AQ16: =+HLOOKUP(AP16,Sistema_Puntos!$Q$5:$Y$43,'Auxiliar General'!AL$5,FALSE) -> 0 | AR16: =+IF(VLOOKUP($B16,'Lista Puestos Valorados'!$B$11:$BK$510,MATCH('Auxiliar General'!AL$4,'Lista Puestos Valorados'!$B$10:$BK$10,0),0)="","No relevante",VLOOKUP($B16,'Lista Puestos Valorados'!$B$11:$BK$510,MATCH('Auxiliar General'!AL$4,'Lista Puestos Valorados'!$B$10:$BK$10,0),0)) -> No relevante | AS16: =+HLOOKUP(AR16,Sistema_Puntos!$Q$5:$Y$43,'Auxiliar General'!AN$5,FALSE) -> 0 | AT16: =+IF(VLOOKUP($B16,'Lista Puestos Valorados'!$B$11:$BK$510,MATCH('Auxiliar General'!AN$4,'Lista Puestos Valorados'!$B$10:$BK$10,0),0)="","No relevante",VLOOKUP($B16,'Lista Puestos Valorados'!$B$11:$BK$510,MATCH('Auxiliar General'!AN$4,'Lista Puestos Valorados'!$B$10:$BK$10,0),0)) -> No relevante | AU16: =+HLOOKUP(AT16,Sistema_Puntos!$Q$5:$Y$43,'Auxiliar General'!AP$5,FALSE) -> 0 | AV16: =+IF(VLOOKUP($B16,'Lista Puestos Valorados'!$B$11:$BK$510,MATCH('Auxiliar General'!AP$4,'Lista Puestos Valorados'!$B$10:$BK$10,0),0)="","No relevante",VLOOKUP($B16,'Lista Puestos Valorados'!$B$11:$BK$510,MATCH('Auxiliar General'!AP$4,'Lista Puestos Valorados'!$B$10:$BK$10,0),0)) -> No relevante | AW16: =+HLOOKUP(AV16,Sistema_Puntos!$Q$5:$Y$43,'Auxiliar General'!AR$5,FALSE) -> 0 | AX16: =+IF(VLOOKUP($B16,'Lista Puestos Valorados'!$B$11:$BK$510,MATCH('Auxiliar General'!AR$4,'Lista Puestos Valorados'!$B$10:$BK$10,0),0)="","No relevante",VLOOKUP($B16,'Lista Puestos Valorados'!$B$11:$BK$510,MATCH('Auxiliar General'!AR$4,'Lista Puestos Valorados'!$B$10:$BK$10,0),0)) -> No relevante | AY16: =+HLOOKUP(AX16,Sistema_Puntos!$Q$5:$Y$43,'Auxiliar General'!AT$5,FALSE) -> 0 | AZ16: =+IF(VLOOKUP($B16,'Lista Puestos Valorados'!$B$11:$BK$510,MATCH('Auxiliar General'!AT$4,'Lista Puestos Valorados'!$B$10:$BK$10,0),0)="","No relevante",VLOOKUP($B16,'Lista Puestos Valorados'!$B$11:$BK$510,MATCH('Auxiliar General'!AT$4,'Lista Puestos Valorados'!$B$10:$BK$10,0),0)) -> No relevante | BA16: =+HLOOKUP(AZ16,Sistema_Puntos!$Q$5:$Y$43,'Auxiliar General'!AV$5,FALSE) -> 0 | BB16: =+IF(VLOOKUP($B16,'Lista Puestos Valorados'!$B$11:$BK$510,MATCH('Auxiliar General'!AV$4,'Lista Puestos Valorados'!$B$10:$BK$10,0),0)="","No relevante",VLOOKUP($B16,'Lista Puestos Valorados'!$B$11:$BK$510,MATCH('Auxiliar General'!AV$4,'Lista Puestos Valorados'!$B$10:$BK$10,0),0)) -> No relevante | BC16: =+HLOOKUP(BB16,Sistema_Puntos!$Q$5:$Y$43,'Auxiliar General'!AX$5,FALSE) -> 0 | BD16: =+IF(VLOOKUP($B16,'Lista Puestos Valorados'!$B$11:$BK$510,MATCH('Auxiliar General'!AX$4,'Lista Puestos Valorados'!$B$10:$BK$10,0),0)="","No relevante",VLOOKUP($B16,'Lista Puestos Valorados'!$B$11:$BK$510,MATCH('Auxiliar General'!AX$4,'Lista Puestos Valorados'!$B$10:$BK$10,0),0)) -> No relevante | BE16: =+HLOOKUP(BD16,Sistema_Puntos!$Q$5:$Y$43,'Auxiliar General'!AZ$5,FALSE) -> 0 | BF16: =+IF(VLOOKUP($B16,'Lista Puestos Valorados'!$B$11:$BK$510,MATCH('Auxiliar General'!AZ$4,'Lista Puestos Valorados'!$B$10:$BK$10,0),0)="","No relevante",VLOOKUP($B16,'Lista Puestos Valorados'!$B$11:$BK$510,MATCH('Auxiliar General'!AZ$4,'Lista Puestos Valorados'!$B$10:$BK$10,0),0)) -> No relevante | BG16: =+HLOOKUP(BF16,Sistema_Puntos!$Q$5:$Y$43,'Auxiliar General'!BB$5,FALSE) -> 0 | BH16: =+IF(VLOOKUP($B16,'Lista Puestos Valorados'!$B$11:$BK$510,MATCH('Auxiliar General'!BB$4,'Lista Puestos Valorados'!$B$10:$BK$10,0),0)="","No relevante",VLOOKUP($B16,'Lista Puestos Valorados'!$B$11:$BK$510,MATCH('Auxiliar General'!BB$4,'Lista Puestos Valorados'!$B$10:$BK$10,0),0)) -> No relevante | BI16: =+HLOOKUP(BH16,Sistema_Puntos!$Q$5:$Y$43,'Auxiliar General'!BD$5,FALSE) -> 0 | BJ16: =+IF(VLOOKUP($B16,'Lista Puestos Valorados'!$B$11:$BK$510,MATCH('Auxiliar General'!BD$4,'Lista Puestos Valorados'!$B$10:$BK$10,0),0)="","No relevante",VLOOKUP($B16,'Lista Puestos Valorados'!$B$11:$BK$510,MATCH('Auxiliar General'!BD$4,'Lista Puestos Valorados'!$B$10:$BK$10,0),0)) -> No relevante | BK16: =+HLOOKUP(BJ16,Sistema_Puntos!$Q$5:$Y$43,'Auxiliar General'!BF$5,FALSE) -> 0 | BL16: =+IF(VLOOKUP($B16,'Lista Puestos Valorados'!$B$11:$BK$510,MATCH('Auxiliar General'!BF$4,'Lista Puestos Valorados'!$B$10:$BK$10,0),0)="","No relevante",VLOOKUP($B16,'Lista Puestos Valorados'!$B$11:$BK$510,MATCH('Auxiliar General'!BF$4,'Lista Puestos Valorados'!$B$10:$BK$10,0),0)) -> No relevante | BM16: =+HLOOKUP(BL16,Sistema_Puntos!$Q$5:$Y$43,'Auxiliar General'!BH$5,FALSE) -> 0 | BN16: =+IF(VLOOKUP($B16,'Lista Puestos Valorados'!$B$11:$BK$510,MATCH('Auxiliar General'!BH$4,'Lista Puestos Valorados'!$B$10:$BK$10,0),0)="","No relevante",VLOOKUP($B16,'Lista Puestos Valorados'!$B$11:$BK$510,MATCH('Auxiliar General'!BH$4,'Lista Puestos Valorados'!$B$10:$BK$10,0),0)) -> No relevante | BO16: =+HLOOKUP(BN16,Sistema_Puntos!$Q$5:$Y$43,'Auxiliar General'!BJ$5,FALSE) -> 0 | BP16: =+IF(VLOOKUP($B16,'Lista Puestos Valorados'!$B$11:$BK$510,MATCH('Auxiliar General'!BJ$4,'Lista Puestos Valorados'!$B$10:$BK$10,0),0)="","No relevante",VLOOKUP($B16,'Lista Puestos Valorados'!$B$11:$BK$510,MATCH('Auxiliar General'!BJ$4,'Lista Puestos Valorados'!$B$10:$BK$10,0),0)) -> No relevante | BQ16: =+HLOOKUP(BP16,Sistema_Puntos!$Q$5:$Y$43,'Auxiliar General'!BL$5,FALSE) -> 0 | BR16: =+IF(VLOOKUP($B16,'Lista Puestos Valorados'!$B$11:$BK$510,MATCH('Auxiliar General'!BL$4,'Lista Puestos Valorados'!$B$10:$BK$10,0),0)="","No relevante",VLOOKUP($B16,'Lista Puestos Valorados'!$B$11:$BK$510,MATCH('Auxiliar General'!BL$4,'Lista Puestos Valorados'!$B$10:$BK$10,0),0)) -> No relevante | BS16: =+HLOOKUP(BR16,Sistema_Puntos!$Q$5:$Y$43,'Auxiliar General'!BN$5,FALSE) -> 0 | BT16: =+IF(VLOOKUP($B16,'Lista Puestos Valorados'!$B$11:$BK$510,MATCH('Auxiliar General'!BN$4,'Lista Puestos Valorados'!$B$10:$BK$10,0),0)="","No relevante",VLOOKUP($B16,'Lista Puestos Valorados'!$B$11:$BK$510,MATCH('Auxiliar General'!BN$4,'Lista Puestos Valorados'!$B$10:$BK$10,0),0)) -> No relevante | BU16: =+HLOOKUP(BT16,Sistema_Puntos!$Q$5:$Y$43,'Auxiliar General'!BP$5,FALSE) -> 0 | BV16: =+IF(VLOOKUP($B16,'Lista Puestos Valorados'!$B$11:$BK$510,MATCH('Auxiliar General'!BP$4,'Lista Puestos Valorados'!$B$10:$BK$10,0),0)="","No relevante",VLOOKUP($B16,'Lista Puestos Valorados'!$B$11:$BK$510,MATCH('Auxiliar General'!BP$4,'Lista Puestos Valorados'!$B$10:$BK$10,0),0)) -> No relevante | BW16: =+HLOOKUP(BV16,Sistema_Puntos!$Q$5:$Y$43,'Auxiliar General'!BR$5,FALSE) -> 0 | BX16: =+IF(VLOOKUP($B16,'Lista Puestos Valorados'!$B$11:$BK$510,MATCH('Auxiliar General'!BR$4,'Lista Puestos Valorados'!$B$10:$BK$10,0),0)="","No relevante",VLOOKUP($B16,'Lista Puestos Valorados'!$B$11:$BK$510,MATCH('Auxiliar General'!BR$4,'Lista Puestos Valorados'!$B$10:$BK$10,0),0)) -> No relevante | BY16: =+HLOOKUP(BX16,Sistema_Puntos!$Q$5:$Y$43,'Auxiliar General'!BT$5,FALSE) -> 0 | BZ16: =+IF(VLOOKUP($B16,'Lista Puestos Valorados'!$B$11:$BK$510,MATCH('Auxiliar General'!BT$4,'Lista Puestos Valorados'!$B$10:$BK$10,0),0)="","No relevante",VLOOKUP($B16,'Lista Puestos Valorados'!$B$11:$BK$510,MATCH('Auxiliar General'!BT$4,'Lista Puestos Valorados'!$B$10:$BK$10,0),0)) -> No relevante | CA16: =+HLOOKUP(BZ16,Sistema_Puntos!$Q$5:$Y$43,'Auxiliar General'!BV$5,FALSE) -> 0 | CB16: =+IF(VLOOKUP($B16,'Lista Puestos Valorados'!$B$11:$BK$510,MATCH('Auxiliar General'!BV$4,'Lista Puestos Valorados'!$B$10:$BK$10,0),0)="","No relevante",VLOOKUP($B16,'Lista Puestos Valorados'!$B$11:$BK$510,MATCH('Auxiliar General'!BV$4,'Lista Puestos Valorados'!$B$10:$BK$10,0),0)) -> No relevante | CC16: =+HLOOKUP(CB16,Sistema_Puntos!$Q$5:$Y$43,'Auxiliar General'!BX$5,FALSE) -> 0 | CD16: =+IF(VLOOKUP($B16,'Lista Puestos Valorados'!$B$11:$BK$510,MATCH('Auxiliar General'!BX$4,'Lista Puestos Valorados'!$B$10:$BK$10,0),0)="","No relevante",VLOOKUP($B16,'Lista Puestos Valorados'!$B$11:$BK$510,MATCH('Auxiliar General'!BX$4,'Lista Puestos Valorados'!$B$10:$BK$10,0),0)) -> No relevante | CE16: =+HLOOKUP(CD16,Sistema_Puntos!$Q$5:$Y$43,'Auxiliar General'!BZ$5,FALSE) -> 0 | CF16: =+IF(VLOOKUP($B16,'Lista Puestos Valorados'!$B$11:$BK$510,MATCH('Auxiliar General'!BZ$4,'Lista Puestos Valorados'!$B$10:$BK$10,0),0)="","No relevante",VLOOKUP($B16,'Lista Puestos Valorados'!$B$11:$BK$510,MATCH('Auxiliar General'!BZ$4,'Lista Puestos Valorados'!$B$10:$BK$10,0),0)) -> No relevante | CG16: =+HLOOKUP(CF16,Sistema_Puntos!$Q$5:$Y$43,'Auxiliar General'!CB$5,FALSE) -> 0
B17: =+'Listado de Puestos'!B17 -> 7 | C17: =+IF('Lista Puestos Valorados'!C17="","",'Lista Puestos Valorados'!C17) ->  | D17: =+IF('Lista Puestos Valorados'!D17="","",'Lista Puestos Valorados'!D17) ->  | E17: =+IF('Lista Puestos Valorados'!E17="","",'Lista Puestos Valorados'!E17) ->  | F17: =+IF('Lista Puestos Valorados'!F17="","",'Lista Puestos Valorados'!F17) ->  | G17: =+IF('Lista Puestos Valorados'!G17="","",'Lista Puestos Valorados'!G17) ->  | H17: =+IF('Lista Puestos Valorados'!H17="","",'Lista Puestos Valorados'!H17) ->  | I17: =+IF('Lista Puestos Valorados'!I17="","",'Lista Puestos Valorados'!I17) ->  | J17: =+IF(L17="","",_xlfn.IFS(L17<='Cortes de Agrupacion'!$F$15,'Cortes de Agrupacion'!$E$15,'Resultados General'!L17<='Cortes de Agrupacion'!$F$14,'Cortes de Agrupacion'!$E$14,'Resultados General'!L17<='Cortes de Agrupacion'!$F$13,'Cortes de Agrupacion'!$E$13,L17<='Cortes de Agrupacion'!$F$12,'Cortes de Agrupacion'!$E$12,'Resultados General'!L17<='Cortes de Agrupacion'!$F$11,'Cortes de Agrupacion'!$E$11,'Resultados General'!L17<='Cortes de Agrupacion'!$F$10,'Cortes de Agrupacion'!$E$10,'Resultados General'!L17<='Cortes de Agrupacion'!$F$9,'Cortes de Agrupacion'!$E$9,'Resultados General'!L17<='Cortes de Agrupacion'!$F$8,'Cortes de Agrupacion'!$E$8,'Resultados General'!L17<='Cortes de Agrupacion'!$F$7,'Cortes de Agrupacion'!$E$7,'Resultados General'!L17<='Cortes de Agrupacion'!$F$6,'Cortes de Agrupacion'!$E$6)) ->  | M17: =+_xlfn.IFNA(VLOOKUP(C17,'Distribución de puestos'!$B$8:$I$507,8,0),"") ->  | N17: =+IF(VLOOKUP($B17,'Lista Puestos Valorados'!$B$11:$BK$510,MATCH('Auxiliar General'!H$4,'Lista Puestos Valorados'!$B$10:$BK$10,0),0)="","No relevante",VLOOKUP($B17,'Lista Puestos Valorados'!$B$11:$BK$510,MATCH('Auxiliar General'!H$4,'Lista Puestos Valorados'!$B$10:$BK$10,0),0)) -> No relevante | O17: =+HLOOKUP(N17,Sistema_Puntos!$Q$5:$Y$43,'Auxiliar General'!J$5,FALSE) -> 0 | P17: =+IF(VLOOKUP($B17,'Lista Puestos Valorados'!$B$11:$BK$510,MATCH('Auxiliar General'!J$4,'Lista Puestos Valorados'!$B$10:$BK$10,0),0)="","No relevante",VLOOKUP($B17,'Lista Puestos Valorados'!$B$11:$BK$510,MATCH('Auxiliar General'!J$4,'Lista Puestos Valorados'!$B$10:$BK$10,0),0)) -> No relevante | Q17: =+HLOOKUP(P17,Sistema_Puntos!$Q$5:$Y$43,'Auxiliar General'!L$5,FALSE) -> 0 | R17: =+IF(VLOOKUP($B17,'Lista Puestos Valorados'!$B$11:$BK$510,MATCH('Auxiliar General'!L$4,'Lista Puestos Valorados'!$B$10:$BK$10,0),0)="","No relevante",VLOOKUP($B17,'Lista Puestos Valorados'!$B$11:$BK$510,MATCH('Auxiliar General'!L$4,'Lista Puestos Valorados'!$B$10:$BK$10,0),0)) -> No relevante | S17: =+HLOOKUP(R17,Sistema_Puntos!$Q$5:$Y$43,'Auxiliar General'!N$5,FALSE) -> 0 | T17: =+IF(VLOOKUP($B17,'Lista Puestos Valorados'!$B$11:$BK$510,MATCH('Auxiliar General'!N$4,'Lista Puestos Valorados'!$B$10:$BK$10,0),0)="","No relevante",VLOOKUP($B17,'Lista Puestos Valorados'!$B$11:$BK$510,MATCH('Auxiliar General'!N$4,'Lista Puestos Valorados'!$B$10:$BK$10,0),0)) -> No relevante | U17: =+HLOOKUP(T17,Sistema_Puntos!$Q$5:$Y$43,'Auxiliar General'!P$5,FALSE) -> 0 | V17: =+IF(VLOOKUP($B17,'Lista Puestos Valorados'!$B$11:$BK$510,MATCH('Auxiliar General'!P$4,'Lista Puestos Valorados'!$B$10:$BK$10,0),0)="","No relevante",VLOOKUP($B17,'Lista Puestos Valorados'!$B$11:$BK$510,MATCH('Auxiliar General'!P$4,'Lista Puestos Valorados'!$B$10:$BK$10,0),0)) -> No relevante | W17: =+HLOOKUP(V17,Sistema_Puntos!$Q$5:$Y$43,'Auxiliar General'!R$5,FALSE) -> 0 | X17: =+IF(VLOOKUP($B17,'Lista Puestos Valorados'!$B$11:$BK$510,MATCH('Auxiliar General'!R$4,'Lista Puestos Valorados'!$B$10:$BK$10,0),0)="","No relevante",VLOOKUP($B17,'Lista Puestos Valorados'!$B$11:$BK$510,MATCH('Auxiliar General'!R$4,'Lista Puestos Valorados'!$B$10:$BK$10,0),0)) -> No relevante | Y17: =+HLOOKUP(X17,Sistema_Puntos!$Q$5:$Y$43,'Auxiliar General'!T$5,FALSE) -> 0 | Z17: =+IF(VLOOKUP($B17,'Lista Puestos Valorados'!$B$11:$BK$510,MATCH('Auxiliar General'!T$4,'Lista Puestos Valorados'!$B$10:$BK$10,0),0)="","No relevante",VLOOKUP($B17,'Lista Puestos Valorados'!$B$11:$BK$510,MATCH('Auxiliar General'!T$4,'Lista Puestos Valorados'!$B$10:$BK$10,0),0)) -> No relevante | AA17: =+HLOOKUP(Z17,Sistema_Puntos!$Q$5:$Y$43,'Auxiliar General'!V$5,FALSE) -> 0 | AB17: =+IF(VLOOKUP($B17,'Lista Puestos Valorados'!$B$11:$BK$510,MATCH('Auxiliar General'!V$4,'Lista Puestos Valorados'!$B$10:$BK$10,0),0)="","No relevante",VLOOKUP($B17,'Lista Puestos Valorados'!$B$11:$BK$510,MATCH('Auxiliar General'!V$4,'Lista Puestos Valorados'!$B$10:$BK$10,0),0)) -> No relevante | AC17: =+HLOOKUP(AB17,Sistema_Puntos!$Q$5:$Y$43,'Auxiliar General'!X$5,FALSE) -> 0 | AD17: =+IF(VLOOKUP($B17,'Lista Puestos Valorados'!$B$11:$BK$510,MATCH('Auxiliar General'!X$4,'Lista Puestos Valorados'!$B$10:$BK$10,0),0)="","No relevante",VLOOKUP($B17,'Lista Puestos Valorados'!$B$11:$BK$510,MATCH('Auxiliar General'!X$4,'Lista Puestos Valorados'!$B$10:$BK$10,0),0)) -> No relevante | AE17: =+HLOOKUP(AD17,Sistema_Puntos!$Q$5:$Y$43,'Auxiliar General'!Z$5,FALSE) -> 0 | AF17: =+IF(VLOOKUP($B17,'Lista Puestos Valorados'!$B$11:$BK$510,MATCH('Auxiliar General'!Z$4,'Lista Puestos Valorados'!$B$10:$BK$10,0),0)="","No relevante",VLOOKUP($B17,'Lista Puestos Valorados'!$B$11:$BK$510,MATCH('Auxiliar General'!Z$4,'Lista Puestos Valorados'!$B$10:$BK$10,0),0)) -> No relevante | AG17: =+HLOOKUP(AF17,Sistema_Puntos!$Q$5:$Y$43,'Auxiliar General'!AB$5,FALSE) -> 0 | AH17: =+IF(VLOOKUP($B17,'Lista Puestos Valorados'!$B$11:$BK$510,MATCH('Auxiliar General'!AB$4,'Lista Puestos Valorados'!$B$10:$BK$10,0),0)="","No relevante",VLOOKUP($B17,'Lista Puestos Valorados'!$B$11:$BK$510,MATCH('Auxiliar General'!AB$4,'Lista Puestos Valorados'!$B$10:$BK$10,0),0)) -> No relevante | AI17: =+HLOOKUP(AH17,Sistema_Puntos!$Q$5:$Y$43,'Auxiliar General'!AD$5,FALSE) -> 0 | AJ17: =+IF(VLOOKUP($B17,'Lista Puestos Valorados'!$B$11:$BK$510,MATCH('Auxiliar General'!AD$4,'Lista Puestos Valorados'!$B$10:$BK$10,0),0)="","No relevante",VLOOKUP($B17,'Lista Puestos Valorados'!$B$11:$BK$510,MATCH('Auxiliar General'!AD$4,'Lista Puestos Valorados'!$B$10:$BK$10,0),0)) -> No relevante | AK17: =+HLOOKUP(AJ17,Sistema_Puntos!$Q$5:$Y$43,'Auxiliar General'!AF$5,FALSE) -> 0 | AL17: =+IF(VLOOKUP($B17,'Lista Puestos Valorados'!$B$11:$BK$510,MATCH('Auxiliar General'!AF$4,'Lista Puestos Valorados'!$B$10:$BK$10,0),0)="","No relevante",VLOOKUP($B17,'Lista Puestos Valorados'!$B$11:$BK$510,MATCH('Auxiliar General'!AF$4,'Lista Puestos Valorados'!$B$10:$BK$10,0),0)) -> No relevante | AM17: =+HLOOKUP(AL17,Sistema_Puntos!$Q$5:$Y$43,'Auxiliar General'!AH$5,FALSE) -> 0 | AN17: =+IF(VLOOKUP($B17,'Lista Puestos Valorados'!$B$11:$BK$510,MATCH('Auxiliar General'!AH$4,'Lista Puestos Valorados'!$B$10:$BK$10,0),0)="","No relevante",VLOOKUP($B17,'Lista Puestos Valorados'!$B$11:$BK$510,MATCH('Auxiliar General'!AH$4,'Lista Puestos Valorados'!$B$10:$BK$10,0),0)) -> No relevante | AO17: =+HLOOKUP(AN17,Sistema_Puntos!$Q$5:$Y$43,'Auxiliar General'!AJ$5,FALSE) -> 0 | AP17: =+IF(VLOOKUP($B17,'Lista Puestos Valorados'!$B$11:$BK$510,MATCH('Auxiliar General'!AJ$4,'Lista Puestos Valorados'!$B$10:$BK$10,0),0)="","No relevante",VLOOKUP($B17,'Lista Puestos Valorados'!$B$11:$BK$510,MATCH('Auxiliar General'!AJ$4,'Lista Puestos Valorados'!$B$10:$BK$10,0),0)) -> No relevante | AQ17: =+HLOOKUP(AP17,Sistema_Puntos!$Q$5:$Y$43,'Auxiliar General'!AL$5,FALSE) -> 0 | AR17: =+IF(VLOOKUP($B17,'Lista Puestos Valorados'!$B$11:$BK$510,MATCH('Auxiliar General'!AL$4,'Lista Puestos Valorados'!$B$10:$BK$10,0),0)="","No relevante",VLOOKUP($B17,'Lista Puestos Valorados'!$B$11:$BK$510,MATCH('Auxiliar General'!AL$4,'Lista Puestos Valorados'!$B$10:$BK$10,0),0)) -> No relevante | AS17: =+HLOOKUP(AR17,Sistema_Puntos!$Q$5:$Y$43,'Auxiliar General'!AN$5,FALSE) -> 0 | AT17: =+IF(VLOOKUP($B17,'Lista Puestos Valorados'!$B$11:$BK$510,MATCH('Auxiliar General'!AN$4,'Lista Puestos Valorados'!$B$10:$BK$10,0),0)="","No relevante",VLOOKUP($B17,'Lista Puestos Valorados'!$B$11:$BK$510,MATCH('Auxiliar General'!AN$4,'Lista Puestos Valorados'!$B$10:$BK$10,0),0)) -> No relevante | AU17: =+HLOOKUP(AT17,Sistema_Puntos!$Q$5:$Y$43,'Auxiliar General'!AP$5,FALSE) -> 0 | AV17: =+IF(VLOOKUP($B17,'Lista Puestos Valorados'!$B$11:$BK$510,MATCH('Auxiliar General'!AP$4,'Lista Puestos Valorados'!$B$10:$BK$10,0),0)="","No relevante",VLOOKUP($B17,'Lista Puestos Valorados'!$B$11:$BK$510,MATCH('Auxiliar General'!AP$4,'Lista Puestos Valorados'!$B$10:$BK$10,0),0)) -> No relevante | AW17: =+HLOOKUP(AV17,Sistema_Puntos!$Q$5:$Y$43,'Auxiliar General'!AR$5,FALSE) -> 0 | AX17: =+IF(VLOOKUP($B17,'Lista Puestos Valorados'!$B$11:$BK$510,MATCH('Auxiliar General'!AR$4,'Lista Puestos Valorados'!$B$10:$BK$10,0),0)="","No relevante",VLOOKUP($B17,'Lista Puestos Valorados'!$B$11:$BK$510,MATCH('Auxiliar General'!AR$4,'Lista Puestos Valorados'!$B$10:$BK$10,0),0)) -> No relevante | AY17: =+HLOOKUP(AX17,Sistema_Puntos!$Q$5:$Y$43,'Auxiliar General'!AT$5,FALSE) -> 0 | AZ17: =+IF(VLOOKUP($B17,'Lista Puestos Valorados'!$B$11:$BK$510,MATCH('Auxiliar General'!AT$4,'Lista Puestos Valorados'!$B$10:$BK$10,0),0)="","No relevante",VLOOKUP($B17,'Lista Puestos Valorados'!$B$11:$BK$510,MATCH('Auxiliar General'!AT$4,'Lista Puestos Valorados'!$B$10:$BK$10,0),0)) -> No relevante | BA17: =+HLOOKUP(AZ17,Sistema_Puntos!$Q$5:$Y$43,'Auxiliar General'!AV$5,FALSE) -> 0 | BB17: =+IF(VLOOKUP($B17,'Lista Puestos Valorados'!$B$11:$BK$510,MATCH('Auxiliar General'!AV$4,'Lista Puestos Valorados'!$B$10:$BK$10,0),0)="","No relevante",VLOOKUP($B17,'Lista Puestos Valorados'!$B$11:$BK$510,MATCH('Auxiliar General'!AV$4,'Lista Puestos Valorados'!$B$10:$BK$10,0),0)) -> No relevante | BC17: =+HLOOKUP(BB17,Sistema_Puntos!$Q$5:$Y$43,'Auxiliar General'!AX$5,FALSE) -> 0 | BD17: =+IF(VLOOKUP($B17,'Lista Puestos Valorados'!$B$11:$BK$510,MATCH('Auxiliar General'!AX$4,'Lista Puestos Valorados'!$B$10:$BK$10,0),0)="","No relevante",VLOOKUP($B17,'Lista Puestos Valorados'!$B$11:$BK$510,MATCH('Auxiliar General'!AX$4,'Lista Puestos Valorados'!$B$10:$BK$10,0),0)) -> No relevante | BE17: =+HLOOKUP(BD17,Sistema_Puntos!$Q$5:$Y$43,'Auxiliar General'!AZ$5,FALSE) -> 0 | BF17: =+IF(VLOOKUP($B17,'Lista Puestos Valorados'!$B$11:$BK$510,MATCH('Auxiliar General'!AZ$4,'Lista Puestos Valorados'!$B$10:$BK$10,0),0)="","No relevante",VLOOKUP($B17,'Lista Puestos Valorados'!$B$11:$BK$510,MATCH('Auxiliar General'!AZ$4,'Lista Puestos Valorados'!$B$10:$BK$10,0),0)) -> No relevante | BG17: =+HLOOKUP(BF17,Sistema_Puntos!$Q$5:$Y$43,'Auxiliar General'!BB$5,FALSE) -> 0 | BH17: =+IF(VLOOKUP($B17,'Lista Puestos Valorados'!$B$11:$BK$510,MATCH('Auxiliar General'!BB$4,'Lista Puestos Valorados'!$B$10:$BK$10,0),0)="","No relevante",VLOOKUP($B17,'Lista Puestos Valorados'!$B$11:$BK$510,MATCH('Auxiliar General'!BB$4,'Lista Puestos Valorados'!$B$10:$BK$10,0),0)) -> No relevante | BI17: =+HLOOKUP(BH17,Sistema_Puntos!$Q$5:$Y$43,'Auxiliar General'!BD$5,FALSE) -> 0 | BJ17: =+IF(VLOOKUP($B17,'Lista Puestos Valorados'!$B$11:$BK$510,MATCH('Auxiliar General'!BD$4,'Lista Puestos Valorados'!$B$10:$BK$10,0),0)="","No relevante",VLOOKUP($B17,'Lista Puestos Valorados'!$B$11:$BK$510,MATCH('Auxiliar General'!BD$4,'Lista Puestos Valorados'!$B$10:$BK$10,0),0)) -> No relevante | BK17: =+HLOOKUP(BJ17,Sistema_Puntos!$Q$5:$Y$43,'Auxiliar General'!BF$5,FALSE) -> 0 | BL17: =+IF(VLOOKUP($B17,'Lista Puestos Valorados'!$B$11:$BK$510,MATCH('Auxiliar General'!BF$4,'Lista Puestos Valorados'!$B$10:$BK$10,0),0)="","No relevante",VLOOKUP($B17,'Lista Puestos Valorados'!$B$11:$BK$510,MATCH('Auxiliar General'!BF$4,'Lista Puestos Valorados'!$B$10:$BK$10,0),0)) -> No relevante | BM17: =+HLOOKUP(BL17,Sistema_Puntos!$Q$5:$Y$43,'Auxiliar General'!BH$5,FALSE) -> 0 | BN17: =+IF(VLOOKUP($B17,'Lista Puestos Valorados'!$B$11:$BK$510,MATCH('Auxiliar General'!BH$4,'Lista Puestos Valorados'!$B$10:$BK$10,0),0)="","No relevante",VLOOKUP($B17,'Lista Puestos Valorados'!$B$11:$BK$510,MATCH('Auxiliar General'!BH$4,'Lista Puestos Valorados'!$B$10:$BK$10,0),0)) -> No relevante | BO17: =+HLOOKUP(BN17,Sistema_Puntos!$Q$5:$Y$43,'Auxiliar General'!BJ$5,FALSE) -> 0 | BP17: =+IF(VLOOKUP($B17,'Lista Puestos Valorados'!$B$11:$BK$510,MATCH('Auxiliar General'!BJ$4,'Lista Puestos Valorados'!$B$10:$BK$10,0),0)="","No relevante",VLOOKUP($B17,'Lista Puestos Valorados'!$B$11:$BK$510,MATCH('Auxiliar General'!BJ$4,'Lista Puestos Valorados'!$B$10:$BK$10,0),0)) -> No relevante | BQ17: =+HLOOKUP(BP17,Sistema_Puntos!$Q$5:$Y$43,'Auxiliar General'!BL$5,FALSE) -> 0 | BR17: =+IF(VLOOKUP($B17,'Lista Puestos Valorados'!$B$11:$BK$510,MATCH('Auxiliar General'!BL$4,'Lista Puestos Valorados'!$B$10:$BK$10,0),0)="","No relevante",VLOOKUP($B17,'Lista Puestos Valorados'!$B$11:$BK$510,MATCH('Auxiliar General'!BL$4,'Lista Puestos Valorados'!$B$10:$BK$10,0),0)) -> No relevante | BS17: =+HLOOKUP(BR17,Sistema_Puntos!$Q$5:$Y$43,'Auxiliar General'!BN$5,FALSE) -> 0 | BT17: =+IF(VLOOKUP($B17,'Lista Puestos Valorados'!$B$11:$BK$510,MATCH('Auxiliar General'!BN$4,'Lista Puestos Valorados'!$B$10:$BK$10,0),0)="","No relevante",VLOOKUP($B17,'Lista Puestos Valorados'!$B$11:$BK$510,MATCH('Auxiliar General'!BN$4,'Lista Puestos Valorados'!$B$10:$BK$10,0),0)) -> No relevante | BU17: =+HLOOKUP(BT17,Sistema_Puntos!$Q$5:$Y$43,'Auxiliar General'!BP$5,FALSE) -> 0 | BV17: =+IF(VLOOKUP($B17,'Lista Puestos Valorados'!$B$11:$BK$510,MATCH('Auxiliar General'!BP$4,'Lista Puestos Valorados'!$B$10:$BK$10,0),0)="","No relevante",VLOOKUP($B17,'Lista Puestos Valorados'!$B$11:$BK$510,MATCH('Auxiliar General'!BP$4,'Lista Puestos Valorados'!$B$10:$BK$10,0),0)) -> No relevante | BW17: =+HLOOKUP(BV17,Sistema_Puntos!$Q$5:$Y$43,'Auxiliar General'!BR$5,FALSE) -> 0 | BX17: =+IF(VLOOKUP($B17,'Lista Puestos Valorados'!$B$11:$BK$510,MATCH('Auxiliar General'!BR$4,'Lista Puestos Valorados'!$B$10:$BK$10,0),0)="","No relevante",VLOOKUP($B17,'Lista Puestos Valorados'!$B$11:$BK$510,MATCH('Auxiliar General'!BR$4,'Lista Puestos Valorados'!$B$10:$BK$10,0),0)) -> No relevante | BY17: =+HLOOKUP(BX17,Sistema_Puntos!$Q$5:$Y$43,'Auxiliar General'!BT$5,FALSE) -> 0 | BZ17: =+IF(VLOOKUP($B17,'Lista Puestos Valorados'!$B$11:$BK$510,MATCH('Auxiliar General'!BT$4,'Lista Puestos Valorados'!$B$10:$BK$10,0),0)="","No relevante",VLOOKUP($B17,'Lista Puestos Valorados'!$B$11:$BK$510,MATCH('Auxiliar General'!BT$4,'Lista Puestos Valorados'!$B$10:$BK$10,0),0)) -> No relevante | CA17: =+HLOOKUP(BZ17,Sistema_Puntos!$Q$5:$Y$43,'Auxiliar General'!BV$5,FALSE) -> 0 | CB17: =+IF(VLOOKUP($B17,'Lista Puestos Valorados'!$B$11:$BK$510,MATCH('Auxiliar General'!BV$4,'Lista Puestos Valorados'!$B$10:$BK$10,0),0)="","No relevante",VLOOKUP($B17,'Lista Puestos Valorados'!$B$11:$BK$510,MATCH('Auxiliar General'!BV$4,'Lista Puestos Valorados'!$B$10:$BK$10,0),0)) -> No relevante | CC17: =+HLOOKUP(CB17,Sistema_Puntos!$Q$5:$Y$43,'Auxiliar General'!BX$5,FALSE) -> 0 | CD17: =+IF(VLOOKUP($B17,'Lista Puestos Valorados'!$B$11:$BK$510,MATCH('Auxiliar General'!BX$4,'Lista Puestos Valorados'!$B$10:$BK$10,0),0)="","No relevante",VLOOKUP($B17,'Lista Puestos Valorados'!$B$11:$BK$510,MATCH('Auxiliar General'!BX$4,'Lista Puestos Valorados'!$B$10:$BK$10,0),0)) -> No relevante | CE17: =+HLOOKUP(CD17,Sistema_Puntos!$Q$5:$Y$43,'Auxiliar General'!BZ$5,FALSE) -> 0 | CF17: =+IF(VLOOKUP($B17,'Lista Puestos Valorados'!$B$11:$BK$510,MATCH('Auxiliar General'!BZ$4,'Lista Puestos Valorados'!$B$10:$BK$10,0),0)="","No relevante",VLOOKUP($B17,'Lista Puestos Valorados'!$B$11:$BK$510,MATCH('Auxiliar General'!BZ$4,'Lista Puestos Valorados'!$B$10:$BK$10,0),0)) -> No relevante | CG17: =+HLOOKUP(CF17,Sistema_Puntos!$Q$5:$Y$43,'Auxiliar General'!CB$5,FALSE) -> 0
B18: =+'Listado de Puestos'!B18 -> 8 | C18: =+IF('Lista Puestos Valorados'!C18="","",'Lista Puestos Valorados'!C18) ->  | D18: =+IF('Lista Puestos Valorados'!D18="","",'Lista Puestos Valorados'!D18) ->  | E18: =+IF('Lista Puestos Valorados'!E18="","",'Lista Puestos Valorados'!E18) ->  | F18: =+IF('Lista Puestos Valorados'!F18="","",'Lista Puestos Valorados'!F18) ->  | G18: =+IF('Lista Puestos Valorados'!G18="","",'Lista Puestos Valorados'!G18) ->  | H18: =+IF('Lista Puestos Valorados'!H18="","",'Lista Puestos Valorados'!H18) ->  | I18: =+IF('Lista Puestos Valorados'!I18="","",'Lista Puestos Valorados'!I18) ->  | J18: =+IF(L18="","",_xlfn.IFS(L18<='Cortes de Agrupacion'!$F$15,'Cortes de Agrupacion'!$E$15,'Resultados General'!L18<='Cortes de Agrupacion'!$F$14,'Cortes de Agrupacion'!$E$14,'Resultados General'!L18<='Cortes de Agrupacion'!$F$13,'Cortes de Agrupacion'!$E$13,L18<='Cortes de Agrupacion'!$F$12,'Cortes de Agrupacion'!$E$12,'Resultados General'!L18<='Cortes de Agrupacion'!$F$11,'Cortes de Agrupacion'!$E$11,'Resultados General'!L18<='Cortes de Agrupacion'!$F$10,'Cortes de Agrupacion'!$E$10,'Resultados General'!L18<='Cortes de Agrupacion'!$F$9,'Cortes de Agrupacion'!$E$9,'Resultados General'!L18<='Cortes de Agrupacion'!$F$8,'Cortes de Agrupacion'!$E$8,'Resultados General'!L18<='Cortes de Agrupacion'!$F$7,'Cortes de Agrupacion'!$E$7,'Resultados General'!L18<='Cortes de Agrupacion'!$F$6,'Cortes de Agrupacion'!$E$6)) ->  | M18: =+_xlfn.IFNA(VLOOKUP(C18,'Distribución de puestos'!$B$8:$I$507,8,0),"") ->  | N18: =+IF(VLOOKUP($B18,'Lista Puestos Valorados'!$B$11:$BK$510,MATCH('Auxiliar General'!H$4,'Lista Puestos Valorados'!$B$10:$BK$10,0),0)="","No relevante",VLOOKUP($B18,'Lista Puestos Valorados'!$B$11:$BK$510,MATCH('Auxiliar General'!H$4,'Lista Puestos Valorados'!$B$10:$BK$10,0),0)) -> No relevante | O18: =+HLOOKUP(N18,Sistema_Puntos!$Q$5:$Y$43,'Auxiliar General'!J$5,FALSE) -> 0 | P18: =+IF(VLOOKUP($B18,'Lista Puestos Valorados'!$B$11:$BK$510,MATCH('Auxiliar General'!J$4,'Lista Puestos Valorados'!$B$10:$BK$10,0),0)="","No relevante",VLOOKUP($B18,'Lista Puestos Valorados'!$B$11:$BK$510,MATCH('Auxiliar General'!J$4,'Lista Puestos Valorados'!$B$10:$BK$10,0),0)) -> No relevante | Q18: =+HLOOKUP(P18,Sistema_Puntos!$Q$5:$Y$43,'Auxiliar General'!L$5,FALSE) -> 0 | R18: =+IF(VLOOKUP($B18,'Lista Puestos Valorados'!$B$11:$BK$510,MATCH('Auxiliar General'!L$4,'Lista Puestos Valorados'!$B$10:$BK$10,0),0)="","No relevante",VLOOKUP($B18,'Lista Puestos Valorados'!$B$11:$BK$510,MATCH('Auxiliar General'!L$4,'Lista Puestos Valorados'!$B$10:$BK$10,0),0)) -> No relevante | S18: =+HLOOKUP(R18,Sistema_Puntos!$Q$5:$Y$43,'Auxiliar General'!N$5,FALSE) -> 0 | T18: =+IF(VLOOKUP($B18,'Lista Puestos Valorados'!$B$11:$BK$510,MATCH('Auxiliar General'!N$4,'Lista Puestos Valorados'!$B$10:$BK$10,0),0)="","No relevante",VLOOKUP($B18,'Lista Puestos Valorados'!$B$11:$BK$510,MATCH('Auxiliar General'!N$4,'Lista Puestos Valorados'!$B$10:$BK$10,0),0)) -> No relevante | U18: =+HLOOKUP(T18,Sistema_Puntos!$Q$5:$Y$43,'Auxiliar General'!P$5,FALSE) -> 0 | V18: =+IF(VLOOKUP($B18,'Lista Puestos Valorados'!$B$11:$BK$510,MATCH('Auxiliar General'!P$4,'Lista Puestos Valorados'!$B$10:$BK$10,0),0)="","No relevante",VLOOKUP($B18,'Lista Puestos Valorados'!$B$11:$BK$510,MATCH('Auxiliar General'!P$4,'Lista Puestos Valorados'!$B$10:$BK$10,0),0)) -> No relevante | W18: =+HLOOKUP(V18,Sistema_Puntos!$Q$5:$Y$43,'Auxiliar General'!R$5,FALSE) -> 0 | X18: =+IF(VLOOKUP($B18,'Lista Puestos Valorados'!$B$11:$BK$510,MATCH('Auxiliar General'!R$4,'Lista Puestos Valorados'!$B$10:$BK$10,0),0)="","No relevante",VLOOKUP($B18,'Lista Puestos Valorados'!$B$11:$BK$510,MATCH('Auxiliar General'!R$4,'Lista Puestos Valorados'!$B$10:$BK$10,0),0)) -> No relevante | Y18: =+HLOOKUP(X18,Sistema_Puntos!$Q$5:$Y$43,'Auxiliar General'!T$5,FALSE) -> 0 | Z18: =+IF(VLOOKUP($B18,'Lista Puestos Valorados'!$B$11:$BK$510,MATCH('Auxiliar General'!T$4,'Lista Puestos Valorados'!$B$10:$BK$10,0),0)="","No relevante",VLOOKUP($B18,'Lista Puestos Valorados'!$B$11:$BK$510,MATCH('Auxiliar General'!T$4,'Lista Puestos Valorados'!$B$10:$BK$10,0),0)) -> No relevante | AA18: =+HLOOKUP(Z18,Sistema_Puntos!$Q$5:$Y$43,'Auxiliar General'!V$5,FALSE) -> 0 | AB18: =+IF(VLOOKUP($B18,'Lista Puestos Valorados'!$B$11:$BK$510,MATCH('Auxiliar General'!V$4,'Lista Puestos Valorados'!$B$10:$BK$10,0),0)="","No relevante",VLOOKUP($B18,'Lista Puestos Valorados'!$B$11:$BK$510,MATCH('Auxiliar General'!V$4,'Lista Puestos Valorados'!$B$10:$BK$10,0),0)) -> No relevante | AC18: =+HLOOKUP(AB18,Sistema_Puntos!$Q$5:$Y$43,'Auxiliar General'!X$5,FALSE) -> 0 | AD18: =+IF(VLOOKUP($B18,'Lista Puestos Valorados'!$B$11:$BK$510,MATCH('Auxiliar General'!X$4,'Lista Puestos Valorados'!$B$10:$BK$10,0),0)="","No relevante",VLOOKUP($B18,'Lista Puestos Valorados'!$B$11:$BK$510,MATCH('Auxiliar General'!X$4,'Lista Puestos Valorados'!$B$10:$BK$10,0),0)) -> No relevante | AE18: =+HLOOKUP(AD18,Sistema_Puntos!$Q$5:$Y$43,'Auxiliar General'!Z$5,FALSE) -> 0 | AF18: =+IF(VLOOKUP($B18,'Lista Puestos Valorados'!$B$11:$BK$510,MATCH('Auxiliar General'!Z$4,'Lista Puestos Valorados'!$B$10:$BK$10,0),0)="","No relevante",VLOOKUP($B18,'Lista Puestos Valorados'!$B$11:$BK$510,MATCH('Auxiliar General'!Z$4,'Lista Puestos Valorados'!$B$10:$BK$10,0),0)) -> No relevante | AG18: =+HLOOKUP(AF18,Sistema_Puntos!$Q$5:$Y$43,'Auxiliar General'!AB$5,FALSE) -> 0 | AH18: =+IF(VLOOKUP($B18,'Lista Puestos Valorados'!$B$11:$BK$510,MATCH('Auxiliar General'!AB$4,'Lista Puestos Valorados'!$B$10:$BK$10,0),0)="","No relevante",VLOOKUP($B18,'Lista Puestos Valorados'!$B$11:$BK$510,MATCH('Auxiliar General'!AB$4,'Lista Puestos Valorados'!$B$10:$BK$10,0),0)) -> No relevante | AI18: =+HLOOKUP(AH18,Sistema_Puntos!$Q$5:$Y$43,'Auxiliar General'!AD$5,FALSE) -> 0 | AJ18: =+IF(VLOOKUP($B18,'Lista Puestos Valorados'!$B$11:$BK$510,MATCH('Auxiliar General'!AD$4,'Lista Puestos Valorados'!$B$10:$BK$10,0),0)="","No relevante",VLOOKUP($B18,'Lista Puestos Valorados'!$B$11:$BK$510,MATCH('Auxiliar General'!AD$4,'Lista Puestos Valorados'!$B$10:$BK$10,0),0)) -> No relevante | AK18: =+HLOOKUP(AJ18,Sistema_Puntos!$Q$5:$Y$43,'Auxiliar General'!AF$5,FALSE) -> 0 | AL18: =+IF(VLOOKUP($B18,'Lista Puestos Valorados'!$B$11:$BK$510,MATCH('Auxiliar General'!AF$4,'Lista Puestos Valorados'!$B$10:$BK$10,0),0)="","No relevante",VLOOKUP($B18,'Lista Puestos Valorados'!$B$11:$BK$510,MATCH('Auxiliar General'!AF$4,'Lista Puestos Valorados'!$B$10:$BK$10,0),0)) -> No relevante | AM18: =+HLOOKUP(AL18,Sistema_Puntos!$Q$5:$Y$43,'Auxiliar General'!AH$5,FALSE) -> 0 | AN18: =+IF(VLOOKUP($B18,'Lista Puestos Valorados'!$B$11:$BK$510,MATCH('Auxiliar General'!AH$4,'Lista Puestos Valorados'!$B$10:$BK$10,0),0)="","No relevante",VLOOKUP($B18,'Lista Puestos Valorados'!$B$11:$BK$510,MATCH('Auxiliar General'!AH$4,'Lista Puestos Valorados'!$B$10:$BK$10,0),0)) -> No relevante | AO18: =+HLOOKUP(AN18,Sistema_Puntos!$Q$5:$Y$43,'Auxiliar General'!AJ$5,FALSE) -> 0 | AP18: =+IF(VLOOKUP($B18,'Lista Puestos Valorados'!$B$11:$BK$510,MATCH('Auxiliar General'!AJ$4,'Lista Puestos Valorados'!$B$10:$BK$10,0),0)="","No relevante",VLOOKUP($B18,'Lista Puestos Valorados'!$B$11:$BK$510,MATCH('Auxiliar General'!AJ$4,'Lista Puestos Valorados'!$B$10:$BK$10,0),0)) -> No relevante | AQ18: =+HLOOKUP(AP18,Sistema_Puntos!$Q$5:$Y$43,'Auxiliar General'!AL$5,FALSE) -> 0 | AR18: =+IF(VLOOKUP($B18,'Lista Puestos Valorados'!$B$11:$BK$510,MATCH('Auxiliar General'!AL$4,'Lista Puestos Valorados'!$B$10:$BK$10,0),0)="","No relevante",VLOOKUP($B18,'Lista Puestos Valorados'!$B$11:$BK$510,MATCH('Auxiliar General'!AL$4,'Lista Puestos Valorados'!$B$10:$BK$10,0),0)) -> No relevante | AS18: =+HLOOKUP(AR18,Sistema_Puntos!$Q$5:$Y$43,'Auxiliar General'!AN$5,FALSE) -> 0 | AT18: =+IF(VLOOKUP($B18,'Lista Puestos Valorados'!$B$11:$BK$510,MATCH('Auxiliar General'!AN$4,'Lista Puestos Valorados'!$B$10:$BK$10,0),0)="","No relevante",VLOOKUP($B18,'Lista Puestos Valorados'!$B$11:$BK$510,MATCH('Auxiliar General'!AN$4,'Lista Puestos Valorados'!$B$10:$BK$10,0),0)) -> No relevante | AU18: =+HLOOKUP(AT18,Sistema_Puntos!$Q$5:$Y$43,'Auxiliar General'!AP$5,FALSE) -> 0 | AV18: =+IF(VLOOKUP($B18,'Lista Puestos Valorados'!$B$11:$BK$510,MATCH('Auxiliar General'!AP$4,'Lista Puestos Valorados'!$B$10:$BK$10,0),0)="","No relevante",VLOOKUP($B18,'Lista Puestos Valorados'!$B$11:$BK$510,MATCH('Auxiliar General'!AP$4,'Lista Puestos Valorados'!$B$10:$BK$10,0),0)) -> No relevante | AW18: =+HLOOKUP(AV18,Sistema_Puntos!$Q$5:$Y$43,'Auxiliar General'!AR$5,FALSE) -> 0 | AX18: =+IF(VLOOKUP($B18,'Lista Puestos Valorados'!$B$11:$BK$510,MATCH('Auxiliar General'!AR$4,'Lista Puestos Valorados'!$B$10:$BK$10,0),0)="","No relevante",VLOOKUP($B18,'Lista Puestos Valorados'!$B$11:$BK$510,MATCH('Auxiliar General'!AR$4,'Lista Puestos Valorados'!$B$10:$BK$10,0),0)) -> No relevante | AY18: =+HLOOKUP(AX18,Sistema_Puntos!$Q$5:$Y$43,'Auxiliar General'!AT$5,FALSE) -> 0 | AZ18: =+IF(VLOOKUP($B18,'Lista Puestos Valorados'!$B$11:$BK$510,MATCH('Auxiliar General'!AT$4,'Lista Puestos Valorados'!$B$10:$BK$10,0),0)="","No relevante",VLOOKUP($B18,'Lista Puestos Valorados'!$B$11:$BK$510,MATCH('Auxiliar General'!AT$4,'Lista Puestos Valorados'!$B$10:$BK$10,0),0)) -> No relevante | BA18: =+HLOOKUP(AZ18,Sistema_Puntos!$Q$5:$Y$43,'Auxiliar General'!AV$5,FALSE) -> 0 | BB18: =+IF(VLOOKUP($B18,'Lista Puestos Valorados'!$B$11:$BK$510,MATCH('Auxiliar General'!AV$4,'Lista Puestos Valorados'!$B$10:$BK$10,0),0)="","No relevante",VLOOKUP($B18,'Lista Puestos Valorados'!$B$11:$BK$510,MATCH('Auxiliar General'!AV$4,'Lista Puestos Valorados'!$B$10:$BK$10,0),0)) -> No relevante | BC18: =+HLOOKUP(BB18,Sistema_Puntos!$Q$5:$Y$43,'Auxiliar General'!AX$5,FALSE) -> 0 | BD18: =+IF(VLOOKUP($B18,'Lista Puestos Valorados'!$B$11:$BK$510,MATCH('Auxiliar General'!AX$4,'Lista Puestos Valorados'!$B$10:$BK$10,0),0)="","No relevante",VLOOKUP($B18,'Lista Puestos Valorados'!$B$11:$BK$510,MATCH('Auxiliar General'!AX$4,'Lista Puestos Valorados'!$B$10:$BK$10,0),0)) -> No relevante | BE18: =+HLOOKUP(BD18,Sistema_Puntos!$Q$5:$Y$43,'Auxiliar General'!AZ$5,FALSE) -> 0 | BF18: =+IF(VLOOKUP($B18,'Lista Puestos Valorados'!$B$11:$BK$510,MATCH('Auxiliar General'!AZ$4,'Lista Puestos Valorados'!$B$10:$BK$10,0),0)="","No relevante",VLOOKUP($B18,'Lista Puestos Valorados'!$B$11:$BK$510,MATCH('Auxiliar General'!AZ$4,'Lista Puestos Valorados'!$B$10:$BK$10,0),0)) -> No relevante | BG18: =+HLOOKUP(BF18,Sistema_Puntos!$Q$5:$Y$43,'Auxiliar General'!BB$5,FALSE) -> 0 | BH18: =+IF(VLOOKUP($B18,'Lista Puestos Valorados'!$B$11:$BK$510,MATCH('Auxiliar General'!BB$4,'Lista Puestos Valorados'!$B$10:$BK$10,0),0)="","No relevante",VLOOKUP($B18,'Lista Puestos Valorados'!$B$11:$BK$510,MATCH('Auxiliar General'!BB$4,'Lista Puestos Valorados'!$B$10:$BK$10,0),0)) -> No relevante | BI18: =+HLOOKUP(BH18,Sistema_Puntos!$Q$5:$Y$43,'Auxiliar General'!BD$5,FALSE) -> 0 | BJ18: =+IF(VLOOKUP($B18,'Lista Puestos Valorados'!$B$11:$BK$510,MATCH('Auxiliar General'!BD$4,'Lista Puestos Valorados'!$B$10:$BK$10,0),0)="","No relevante",VLOOKUP($B18,'Lista Puestos Valorados'!$B$11:$BK$510,MATCH('Auxiliar General'!BD$4,'Lista Puestos Valorados'!$B$10:$BK$10,0),0)) -> No relevante | BK18: =+HLOOKUP(BJ18,Sistema_Puntos!$Q$5:$Y$43,'Auxiliar General'!BF$5,FALSE) -> 0 | BL18: =+IF(VLOOKUP($B18,'Lista Puestos Valorados'!$B$11:$BK$510,MATCH('Auxiliar General'!BF$4,'Lista Puestos Valorados'!$B$10:$BK$10,0),0)="","No relevante",VLOOKUP($B18,'Lista Puestos Valorados'!$B$11:$BK$510,MATCH('Auxiliar General'!BF$4,'Lista Puestos Valorados'!$B$10:$BK$10,0),0)) -> No relevante | BM18: =+HLOOKUP(BL18,Sistema_Puntos!$Q$5:$Y$43,'Auxiliar General'!BH$5,FALSE) -> 0 | BN18: =+IF(VLOOKUP($B18,'Lista Puestos Valorados'!$B$11:$BK$510,MATCH('Auxiliar General'!BH$4,'Lista Puestos Valorados'!$B$10:$BK$10,0),0)="","No relevante",VLOOKUP($B18,'Lista Puestos Valorados'!$B$11:$BK$510,MATCH('Auxiliar General'!BH$4,'Lista Puestos Valorados'!$B$10:$BK$10,0),0)) -> No relevante | BO18: =+HLOOKUP(BN18,Sistema_Puntos!$Q$5:$Y$43,'Auxiliar General'!BJ$5,FALSE) -> 0 | BP18: =+IF(VLOOKUP($B18,'Lista Puestos Valorados'!$B$11:$BK$510,MATCH('Auxiliar General'!BJ$4,'Lista Puestos Valorados'!$B$10:$BK$10,0),0)="","No relevante",VLOOKUP($B18,'Lista Puestos Valorados'!$B$11:$BK$510,MATCH('Auxiliar General'!BJ$4,'Lista Puestos Valorados'!$B$10:$BK$10,0),0)) -> No relevante | BQ18: =+HLOOKUP(BP18,Sistema_Puntos!$Q$5:$Y$43,'Auxiliar General'!BL$5,FALSE) -> 0 | BR18: =+IF(VLOOKUP($B18,'Lista Puestos Valorados'!$B$11:$BK$510,MATCH('Auxiliar General'!BL$4,'Lista Puestos Valorados'!$B$10:$BK$10,0),0)="","No relevante",VLOOKUP($B18,'Lista Puestos Valorados'!$B$11:$BK$510,MATCH('Auxiliar General'!BL$4,'Lista Puestos Valorados'!$B$10:$BK$10,0),0)) -> No relevante | BS18: =+HLOOKUP(BR18,Sistema_Puntos!$Q$5:$Y$43,'Auxiliar General'!BN$5,FALSE) -> 0 | BT18: =+IF(VLOOKUP($B18,'Lista Puestos Valorados'!$B$11:$BK$510,MATCH('Auxiliar General'!BN$4,'Lista Puestos Valorados'!$B$10:$BK$10,0),0)="","No relevante",VLOOKUP($B18,'Lista Puestos Valorados'!$B$11:$BK$510,MATCH('Auxiliar General'!BN$4,'Lista Puestos Valorados'!$B$10:$BK$10,0),0)) -> No relevante | BU18: =+HLOOKUP(BT18,Sistema_Puntos!$Q$5:$Y$43,'Auxiliar General'!BP$5,FALSE) -> 0 | BV18: =+IF(VLOOKUP($B18,'Lista Puestos Valorados'!$B$11:$BK$510,MATCH('Auxiliar General'!BP$4,'Lista Puestos Valorados'!$B$10:$BK$10,0),0)="","No relevante",VLOOKUP($B18,'Lista Puestos Valorados'!$B$11:$BK$510,MATCH('Auxiliar General'!BP$4,'Lista Puestos Valorados'!$B$10:$BK$10,0),0)) -> No relevante | BW18: =+HLOOKUP(BV18,Sistema_Puntos!$Q$5:$Y$43,'Auxiliar General'!BR$5,FALSE) -> 0 | BX18: =+IF(VLOOKUP($B18,'Lista Puestos Valorados'!$B$11:$BK$510,MATCH('Auxiliar General'!BR$4,'Lista Puestos Valorados'!$B$10:$BK$10,0),0)="","No relevante",VLOOKUP($B18,'Lista Puestos Valorados'!$B$11:$BK$510,MATCH('Auxiliar General'!BR$4,'Lista Puestos Valorados'!$B$10:$BK$10,0),0)) -> No relevante | BY18: =+HLOOKUP(BX18,Sistema_Puntos!$Q$5:$Y$43,'Auxiliar General'!BT$5,FALSE) -> 0 | BZ18: =+IF(VLOOKUP($B18,'Lista Puestos Valorados'!$B$11:$BK$510,MATCH('Auxiliar General'!BT$4,'Lista Puestos Valorados'!$B$10:$BK$10,0),0)="","No relevante",VLOOKUP($B18,'Lista Puestos Valorados'!$B$11:$BK$510,MATCH('Auxiliar General'!BT$4,'Lista Puestos Valorados'!$B$10:$BK$10,0),0)) -> No relevante | CA18: =+HLOOKUP(BZ18,Sistema_Puntos!$Q$5:$Y$43,'Auxiliar General'!BV$5,FALSE) -> 0 | CB18: =+IF(VLOOKUP($B18,'Lista Puestos Valorados'!$B$11:$BK$510,MATCH('Auxiliar General'!BV$4,'Lista Puestos Valorados'!$B$10:$BK$10,0),0)="","No relevante",VLOOKUP($B18,'Lista Puestos Valorados'!$B$11:$BK$510,MATCH('Auxiliar General'!BV$4,'Lista Puestos Valorados'!$B$10:$BK$10,0),0)) -> No relevante | CC18: =+HLOOKUP(CB18,Sistema_Puntos!$Q$5:$Y$43,'Auxiliar General'!BX$5,FALSE) -> 0 | CD18: =+IF(VLOOKUP($B18,'Lista Puestos Valorados'!$B$11:$BK$510,MATCH('Auxiliar General'!BX$4,'Lista Puestos Valorados'!$B$10:$BK$10,0),0)="","No relevante",VLOOKUP($B18,'Lista Puestos Valorados'!$B$11:$BK$510,MATCH('Auxiliar General'!BX$4,'Lista Puestos Valorados'!$B$10:$BK$10,0),0)) -> No relevante | CE18: =+HLOOKUP(CD18,Sistema_Puntos!$Q$5:$Y$43,'Auxiliar General'!BZ$5,FALSE) -> 0 | CF18: =+IF(VLOOKUP($B18,'Lista Puestos Valorados'!$B$11:$BK$510,MATCH('Auxiliar General'!BZ$4,'Lista Puestos Valorados'!$B$10:$BK$10,0),0)="","No relevante",VLOOKUP($B18,'Lista Puestos Valorados'!$B$11:$BK$510,MATCH('Auxiliar General'!BZ$4,'Lista Puestos Valorados'!$B$10:$BK$10,0),0)) -> No relevante | CG18: =+HLOOKUP(CF18,Sistema_Puntos!$Q$5:$Y$43,'Auxiliar General'!CB$5,FALSE) -> 0
B19: =+'Listado de Puestos'!B19 -> 9 | C19: =+IF('Lista Puestos Valorados'!C19="","",'Lista Puestos Valorados'!C19) ->  | D19: =+IF('Lista Puestos Valorados'!D19="","",'Lista Puestos Valorados'!D19) ->  | E19: =+IF('Lista Puestos Valorados'!E19="","",'Lista Puestos Valorados'!E19) ->  | F19: =+IF('Lista Puestos Valorados'!F19="","",'Lista Puestos Valorados'!F19) ->  | G19: =+IF('Lista Puestos Valorados'!G19="","",'Lista Puestos Valorados'!G19) ->  | H19: =+IF('Lista Puestos Valorados'!H19="","",'Lista Puestos Valorados'!H19) ->  | I19: =+IF('Lista Puestos Valorados'!I19="","",'Lista Puestos Valorados'!I19) ->  | J19: =+IF(L19="","",_xlfn.IFS(L19<='Cortes de Agrupacion'!$F$15,'Cortes de Agrupacion'!$E$15,'Resultados General'!L19<='Cortes de Agrupacion'!$F$14,'Cortes de Agrupacion'!$E$14,'Resultados General'!L19<='Cortes de Agrupacion'!$F$13,'Cortes de Agrupacion'!$E$13,L19<='Cortes de Agrupacion'!$F$12,'Cortes de Agrupacion'!$E$12,'Resultados General'!L19<='Cortes de Agrupacion'!$F$11,'Cortes de Agrupacion'!$E$11,'Resultados General'!L19<='Cortes de Agrupacion'!$F$10,'Cortes de Agrupacion'!$E$10,'Resultados General'!L19<='Cortes de Agrupacion'!$F$9,'Cortes de Agrupacion'!$E$9,'Resultados General'!L19<='Cortes de Agrupacion'!$F$8,'Cortes de Agrupacion'!$E$8,'Resultados General'!L19<='Cortes de Agrupacion'!$F$7,'Cortes de Agrupacion'!$E$7,'Resultados General'!L19<='Cortes de Agrupacion'!$F$6,'Cortes de Agrupacion'!$E$6)) ->  | M19: =+_xlfn.IFNA(VLOOKUP(C19,'Distribución de puestos'!$B$8:$I$507,8,0),"") ->  | N19: =+IF(VLOOKUP($B19,'Lista Puestos Valorados'!$B$11:$BK$510,MATCH('Auxiliar General'!H$4,'Lista Puestos Valorados'!$B$10:$BK$10,0),0)="","No relevante",VLOOKUP($B19,'Lista Puestos Valorados'!$B$11:$BK$510,MATCH('Auxiliar General'!H$4,'Lista Puestos Valorados'!$B$10:$BK$10,0),0)) -> No relevante | O19: =+HLOOKUP(N19,Sistema_Puntos!$Q$5:$Y$43,'Auxiliar General'!J$5,FALSE) -> 0 | P19: =+IF(VLOOKUP($B19,'Lista Puestos Valorados'!$B$11:$BK$510,MATCH('Auxiliar General'!J$4,'Lista Puestos Valorados'!$B$10:$BK$10,0),0)="","No relevante",VLOOKUP($B19,'Lista Puestos Valorados'!$B$11:$BK$510,MATCH('Auxiliar General'!J$4,'Lista Puestos Valorados'!$B$10:$BK$10,0),0)) -> No relevante | Q19: =+HLOOKUP(P19,Sistema_Puntos!$Q$5:$Y$43,'Auxiliar General'!L$5,FALSE) -> 0 | R19: =+IF(VLOOKUP($B19,'Lista Puestos Valorados'!$B$11:$BK$510,MATCH('Auxiliar General'!L$4,'Lista Puestos Valorados'!$B$10:$BK$10,0),0)="","No relevante",VLOOKUP($B19,'Lista Puestos Valorados'!$B$11:$BK$510,MATCH('Auxiliar General'!L$4,'Lista Puestos Valorados'!$B$10:$BK$10,0),0)) -> No relevante | S19: =+HLOOKUP(R19,Sistema_Puntos!$Q$5:$Y$43,'Auxiliar General'!N$5,FALSE) -> 0 | T19: =+IF(VLOOKUP($B19,'Lista Puestos Valorados'!$B$11:$BK$510,MATCH('Auxiliar General'!N$4,'Lista Puestos Valorados'!$B$10:$BK$10,0),0)="","No relevante",VLOOKUP($B19,'Lista Puestos Valorados'!$B$11:$BK$510,MATCH('Auxiliar General'!N$4,'Lista Puestos Valorados'!$B$10:$BK$10,0),0)) -> No relevante | U19: =+HLOOKUP(T19,Sistema_Puntos!$Q$5:$Y$43,'Auxiliar General'!P$5,FALSE) -> 0 | V19: =+IF(VLOOKUP($B19,'Lista Puestos Valorados'!$B$11:$BK$510,MATCH('Auxiliar General'!P$4,'Lista Puestos Valorados'!$B$10:$BK$10,0),0)="","No relevante",VLOOKUP($B19,'Lista Puestos Valorados'!$B$11:$BK$510,MATCH('Auxiliar General'!P$4,'Lista Puestos Valorados'!$B$10:$BK$10,0),0)) -> No relevante | W19: =+HLOOKUP(V19,Sistema_Puntos!$Q$5:$Y$43,'Auxiliar General'!R$5,FALSE) -> 0 | X19: =+IF(VLOOKUP($B19,'Lista Puestos Valorados'!$B$11:$BK$510,MATCH('Auxiliar General'!R$4,'Lista Puestos Valorados'!$B$10:$BK$10,0),0)="","No relevante",VLOOKUP($B19,'Lista Puestos Valorados'!$B$11:$BK$510,MATCH('Auxiliar General'!R$4,'Lista Puestos Valorados'!$B$10:$BK$10,0),0)) -> No relevante | Y19: =+HLOOKUP(X19,Sistema_Puntos!$Q$5:$Y$43,'Auxiliar General'!T$5,FALSE) -> 0 | Z19: =+IF(VLOOKUP($B19,'Lista Puestos Valorados'!$B$11:$BK$510,MATCH('Auxiliar General'!T$4,'Lista Puestos Valorados'!$B$10:$BK$10,0),0)="","No relevante",VLOOKUP($B19,'Lista Puestos Valorados'!$B$11:$BK$510,MATCH('Auxiliar General'!T$4,'Lista Puestos Valorados'!$B$10:$BK$10,0),0)) -> No relevante | AA19: =+HLOOKUP(Z19,Sistema_Puntos!$Q$5:$Y$43,'Auxiliar General'!V$5,FALSE) -> 0 | AB19: =+IF(VLOOKUP($B19,'Lista Puestos Valorados'!$B$11:$BK$510,MATCH('Auxiliar General'!V$4,'Lista Puestos Valorados'!$B$10:$BK$10,0),0)="","No relevante",VLOOKUP($B19,'Lista Puestos Valorados'!$B$11:$BK$510,MATCH('Auxiliar General'!V$4,'Lista Puestos Valorados'!$B$10:$BK$10,0),0)) -> No relevante | AC19: =+HLOOKUP(AB19,Sistema_Puntos!$Q$5:$Y$43,'Auxiliar General'!X$5,FALSE) -> 0 | AD19: =+IF(VLOOKUP($B19,'Lista Puestos Valorados'!$B$11:$BK$510,MATCH('Auxiliar General'!X$4,'Lista Puestos Valorados'!$B$10:$BK$10,0),0)="","No relevante",VLOOKUP($B19,'Lista Puestos Valorados'!$B$11:$BK$510,MATCH('Auxiliar General'!X$4,'Lista Puestos Valorados'!$B$10:$BK$10,0),0)) -> No relevante | AE19: =+HLOOKUP(AD19,Sistema_Puntos!$Q$5:$Y$43,'Auxiliar General'!Z$5,FALSE) -> 0 | AF19: =+IF(VLOOKUP($B19,'Lista Puestos Valorados'!$B$11:$BK$510,MATCH('Auxiliar General'!Z$4,'Lista Puestos Valorados'!$B$10:$BK$10,0),0)="","No relevante",VLOOKUP($B19,'Lista Puestos Valorados'!$B$11:$BK$510,MATCH('Auxiliar General'!Z$4,'Lista Puestos Valorados'!$B$10:$BK$10,0),0)) -> No relevante | AG19: =+HLOOKUP(AF19,Sistema_Puntos!$Q$5:$Y$43,'Auxiliar General'!AB$5,FALSE) -> 0 | AH19: =+IF(VLOOKUP($B19,'Lista Puestos Valorados'!$B$11:$BK$510,MATCH('Auxiliar General'!AB$4,'Lista Puestos Valorados'!$B$10:$BK$10,0),0)="","No relevante",VLOOKUP($B19,'Lista Puestos Valorados'!$B$11:$BK$510,MATCH('Auxiliar General'!AB$4,'Lista Puestos Valorados'!$B$10:$BK$10,0),0)) -> No relevante | AI19: =+HLOOKUP(AH19,Sistema_Puntos!$Q$5:$Y$43,'Auxiliar General'!AD$5,FALSE) -> 0 | AJ19: =+IF(VLOOKUP($B19,'Lista Puestos Valorados'!$B$11:$BK$510,MATCH('Auxiliar General'!AD$4,'Lista Puestos Valorados'!$B$10:$BK$10,0),0)="","No relevante",VLOOKUP($B19,'Lista Puestos Valorados'!$B$11:$BK$510,MATCH('Auxiliar General'!AD$4,'Lista Puestos Valorados'!$B$10:$BK$10,0),0)) -> No relevante | AK19: =+HLOOKUP(AJ19,Sistema_Puntos!$Q$5:$Y$43,'Auxiliar General'!AF$5,FALSE) -> 0 | AL19: =+IF(VLOOKUP($B19,'Lista Puestos Valorados'!$B$11:$BK$510,MATCH('Auxiliar General'!AF$4,'Lista Puestos Valorados'!$B$10:$BK$10,0),0)="","No relevante",VLOOKUP($B19,'Lista Puestos Valorados'!$B$11:$BK$510,MATCH('Auxiliar General'!AF$4,'Lista Puestos Valorados'!$B$10:$BK$10,0),0)) -> No relevante | AM19: =+HLOOKUP(AL19,Sistema_Puntos!$Q$5:$Y$43,'Auxiliar General'!AH$5,FALSE) -> 0 | AN19: =+IF(VLOOKUP($B19,'Lista Puestos Valorados'!$B$11:$BK$510,MATCH('Auxiliar General'!AH$4,'Lista Puestos Valorados'!$B$10:$BK$10,0),0)="","No relevante",VLOOKUP($B19,'Lista Puestos Valorados'!$B$11:$BK$510,MATCH('Auxiliar General'!AH$4,'Lista Puestos Valorados'!$B$10:$BK$10,0),0)) -> No relevante | AO19: =+HLOOKUP(AN19,Sistema_Puntos!$Q$5:$Y$43,'Auxiliar General'!AJ$5,FALSE) -> 0 | AP19: =+IF(VLOOKUP($B19,'Lista Puestos Valorados'!$B$11:$BK$510,MATCH('Auxiliar General'!AJ$4,'Lista Puestos Valorados'!$B$10:$BK$10,0),0)="","No relevante",VLOOKUP($B19,'Lista Puestos Valorados'!$B$11:$BK$510,MATCH('Auxiliar General'!AJ$4,'Lista Puestos Valorados'!$B$10:$BK$10,0),0)) -> No relevante | AQ19: =+HLOOKUP(AP19,Sistema_Puntos!$Q$5:$Y$43,'Auxiliar General'!AL$5,FALSE) -> 0 | AR19: =+IF(VLOOKUP($B19,'Lista Puestos Valorados'!$B$11:$BK$510,MATCH('Auxiliar General'!AL$4,'Lista Puestos Valorados'!$B$10:$BK$10,0),0)="","No relevante",VLOOKUP($B19,'Lista Puestos Valorados'!$B$11:$BK$510,MATCH('Auxiliar General'!AL$4,'Lista Puestos Valorados'!$B$10:$BK$10,0),0)) -> No relevante | AS19: =+HLOOKUP(AR19,Sistema_Puntos!$Q$5:$Y$43,'Auxiliar General'!AN$5,FALSE) -> 0 | AT19: =+IF(VLOOKUP($B19,'Lista Puestos Valorados'!$B$11:$BK$510,MATCH('Auxiliar General'!AN$4,'Lista Puestos Valorados'!$B$10:$BK$10,0),0)="","No relevante",VLOOKUP($B19,'Lista Puestos Valorados'!$B$11:$BK$510,MATCH('Auxiliar General'!AN$4,'Lista Puestos Valorados'!$B$10:$BK$10,0),0)) -> No relevante | AU19: =+HLOOKUP(AT19,Sistema_Puntos!$Q$5:$Y$43,'Auxiliar General'!AP$5,FALSE) -> 0 | AV19: =+IF(VLOOKUP($B19,'Lista Puestos Valorados'!$B$11:$BK$510,MATCH('Auxiliar General'!AP$4,'Lista Puestos Valorados'!$B$10:$BK$10,0),0)="","No relevante",VLOOKUP($B19,'Lista Puestos Valorados'!$B$11:$BK$510,MATCH('Auxiliar General'!AP$4,'Lista Puestos Valorados'!$B$10:$BK$10,0),0)) -> No relevante | AW19: =+HLOOKUP(AV19,Sistema_Puntos!$Q$5:$Y$43,'Auxiliar General'!AR$5,FALSE) -> 0 | AX19: =+IF(VLOOKUP($B19,'Lista Puestos Valorados'!$B$11:$BK$510,MATCH('Auxiliar General'!AR$4,'Lista Puestos Valorados'!$B$10:$BK$10,0),0)="","No relevante",VLOOKUP($B19,'Lista Puestos Valorados'!$B$11:$BK$510,MATCH('Auxiliar General'!AR$4,'Lista Puestos Valorados'!$B$10:$BK$10,0),0)) -> No relevante | AY19: =+HLOOKUP(AX19,Sistema_Puntos!$Q$5:$Y$43,'Auxiliar General'!AT$5,FALSE) -> 0 | AZ19: =+IF(VLOOKUP($B19,'Lista Puestos Valorados'!$B$11:$BK$510,MATCH('Auxiliar General'!AT$4,'Lista Puestos Valorados'!$B$10:$BK$10,0),0)="","No relevante",VLOOKUP($B19,'Lista Puestos Valorados'!$B$11:$BK$510,MATCH('Auxiliar General'!AT$4,'Lista Puestos Valorados'!$B$10:$BK$10,0),0)) -> No relevante | BA19: =+HLOOKUP(AZ19,Sistema_Puntos!$Q$5:$Y$43,'Auxiliar General'!AV$5,FALSE) -> 0 | BB19: =+IF(VLOOKUP($B19,'Lista Puestos Valorados'!$B$11:$BK$510,MATCH('Auxiliar General'!AV$4,'Lista Puestos Valorados'!$B$10:$BK$10,0),0)="","No relevante",VLOOKUP($B19,'Lista Puestos Valorados'!$B$11:$BK$510,MATCH('Auxiliar General'!AV$4,'Lista Puestos Valorados'!$B$10:$BK$10,0),0)) -> No relevante | BC19: =+HLOOKUP(BB19,Sistema_Puntos!$Q$5:$Y$43,'Auxiliar General'!AX$5,FALSE) -> 0 | BD19: =+IF(VLOOKUP($B19,'Lista Puestos Valorados'!$B$11:$BK$510,MATCH('Auxiliar General'!AX$4,'Lista Puestos Valorados'!$B$10:$BK$10,0),0)="","No relevante",VLOOKUP($B19,'Lista Puestos Valorados'!$B$11:$BK$510,MATCH('Auxiliar General'!AX$4,'Lista Puestos Valorados'!$B$10:$BK$10,0),0)) -> No relevante | BE19: =+HLOOKUP(BD19,Sistema_Puntos!$Q$5:$Y$43,'Auxiliar General'!AZ$5,FALSE) -> 0 | BF19: =+IF(VLOOKUP($B19,'Lista Puestos Valorados'!$B$11:$BK$510,MATCH('Auxiliar General'!AZ$4,'Lista Puestos Valorados'!$B$10:$BK$10,0),0)="","No relevante",VLOOKUP($B19,'Lista Puestos Valorados'!$B$11:$BK$510,MATCH('Auxiliar General'!AZ$4,'Lista Puestos Valorados'!$B$10:$BK$10,0),0)) -> No relevante | BG19: =+HLOOKUP(BF19,Sistema_Puntos!$Q$5:$Y$43,'Auxiliar General'!BB$5,FALSE) -> 0 | BH19: =+IF(VLOOKUP($B19,'Lista Puestos Valorados'!$B$11:$BK$510,MATCH('Auxiliar General'!BB$4,'Lista Puestos Valorados'!$B$10:$BK$10,0),0)="","No relevante",VLOOKUP($B19,'Lista Puestos Valorados'!$B$11:$BK$510,MATCH('Auxiliar General'!BB$4,'Lista Puestos Valorados'!$B$10:$BK$10,0),0)) -> No relevante | BI19: =+HLOOKUP(BH19,Sistema_Puntos!$Q$5:$Y$43,'Auxiliar General'!BD$5,FALSE) -> 0 | BJ19: =+IF(VLOOKUP($B19,'Lista Puestos Valorados'!$B$11:$BK$510,MATCH('Auxiliar General'!BD$4,'Lista Puestos Valorados'!$B$10:$BK$10,0),0)="","No relevante",VLOOKUP($B19,'Lista Puestos Valorados'!$B$11:$BK$510,MATCH('Auxiliar General'!BD$4,'Lista Puestos Valorados'!$B$10:$BK$10,0),0)) -> No relevante | BK19: =+HLOOKUP(BJ19,Sistema_Puntos!$Q$5:$Y$43,'Auxiliar General'!BF$5,FALSE) -> 0 | BL19: =+IF(VLOOKUP($B19,'Lista Puestos Valorados'!$B$11:$BK$510,MATCH('Auxiliar General'!BF$4,'Lista Puestos Valorados'!$B$10:$BK$10,0),0)="","No relevante",VLOOKUP($B19,'Lista Puestos Valorados'!$B$11:$BK$510,MATCH('Auxiliar General'!BF$4,'Lista Puestos Valorados'!$B$10:$BK$10,0),0)) -> No relevante | BM19: =+HLOOKUP(BL19,Sistema_Puntos!$Q$5:$Y$43,'Auxiliar General'!BH$5,FALSE) -> 0 | BN19: =+IF(VLOOKUP($B19,'Lista Puestos Valorados'!$B$11:$BK$510,MATCH('Auxiliar General'!BH$4,'Lista Puestos Valorados'!$B$10:$BK$10,0),0)="","No relevante",VLOOKUP($B19,'Lista Puestos Valorados'!$B$11:$BK$510,MATCH('Auxiliar General'!BH$4,'Lista Puestos Valorados'!$B$10:$BK$10,0),0)) -> No relevante | BO19: =+HLOOKUP(BN19,Sistema_Puntos!$Q$5:$Y$43,'Auxiliar General'!BJ$5,FALSE) -> 0 | BP19: =+IF(VLOOKUP($B19,'Lista Puestos Valorados'!$B$11:$BK$510,MATCH('Auxiliar General'!BJ$4,'Lista Puestos Valorados'!$B$10:$BK$10,0),0)="","No relevante",VLOOKUP($B19,'Lista Puestos Valorados'!$B$11:$BK$510,MATCH('Auxiliar General'!BJ$4,'Lista Puestos Valorados'!$B$10:$BK$10,0),0)) -> No relevante | BQ19: =+HLOOKUP(BP19,Sistema_Puntos!$Q$5:$Y$43,'Auxiliar General'!BL$5,FALSE) -> 0 | BR19: =+IF(VLOOKUP($B19,'Lista Puestos Valorados'!$B$11:$BK$510,MATCH('Auxiliar General'!BL$4,'Lista Puestos Valorados'!$B$10:$BK$10,0),0)="","No relevante",VLOOKUP($B19,'Lista Puestos Valorados'!$B$11:$BK$510,MATCH('Auxiliar General'!BL$4,'Lista Puestos Valorados'!$B$10:$BK$10,0),0)) -> No relevante | BS19: =+HLOOKUP(BR19,Sistema_Puntos!$Q$5:$Y$43,'Auxiliar General'!BN$5,FALSE) -> 0 | BT19: =+IF(VLOOKUP($B19,'Lista Puestos Valorados'!$B$11:$BK$510,MATCH('Auxiliar General'!BN$4,'Lista Puestos Valorados'!$B$10:$BK$10,0),0)="","No relevante",VLOOKUP($B19,'Lista Puestos Valorados'!$B$11:$BK$510,MATCH('Auxiliar General'!BN$4,'Lista Puestos Valorados'!$B$10:$BK$10,0),0)) -> No relevante | BU19: =+HLOOKUP(BT19,Sistema_Puntos!$Q$5:$Y$43,'Auxiliar General'!BP$5,FALSE) -> 0 | BV19: =+IF(VLOOKUP($B19,'Lista Puestos Valorados'!$B$11:$BK$510,MATCH('Auxiliar General'!BP$4,'Lista Puestos Valorados'!$B$10:$BK$10,0),0)="","No relevante",VLOOKUP($B19,'Lista Puestos Valorados'!$B$11:$BK$510,MATCH('Auxiliar General'!BP$4,'Lista Puestos Valorados'!$B$10:$BK$10,0),0)) -> No relevante | BW19: =+HLOOKUP(BV19,Sistema_Puntos!$Q$5:$Y$43,'Auxiliar General'!BR$5,FALSE) -> 0 | BX19: =+IF(VLOOKUP($B19,'Lista Puestos Valorados'!$B$11:$BK$510,MATCH('Auxiliar General'!BR$4,'Lista Puestos Valorados'!$B$10:$BK$10,0),0)="","No relevante",VLOOKUP($B19,'Lista Puestos Valorados'!$B$11:$BK$510,MATCH('Auxiliar General'!BR$4,'Lista Puestos Valorados'!$B$10:$BK$10,0),0)) -> No relevante | BY19: =+HLOOKUP(BX19,Sistema_Puntos!$Q$5:$Y$43,'Auxiliar General'!BT$5,FALSE) -> 0 | BZ19: =+IF(VLOOKUP($B19,'Lista Puestos Valorados'!$B$11:$BK$510,MATCH('Auxiliar General'!BT$4,'Lista Puestos Valorados'!$B$10:$BK$10,0),0)="","No relevante",VLOOKUP($B19,'Lista Puestos Valorados'!$B$11:$BK$510,MATCH('Auxiliar General'!BT$4,'Lista Puestos Valorados'!$B$10:$BK$10,0),0)) -> No relevante | CA19: =+HLOOKUP(BZ19,Sistema_Puntos!$Q$5:$Y$43,'Auxiliar General'!BV$5,FALSE) -> 0 | CB19: =+IF(VLOOKUP($B19,'Lista Puestos Valorados'!$B$11:$BK$510,MATCH('Auxiliar General'!BV$4,'Lista Puestos Valorados'!$B$10:$BK$10,0),0)="","No relevante",VLOOKUP($B19,'Lista Puestos Valorados'!$B$11:$BK$510,MATCH('Auxiliar General'!BV$4,'Lista Puestos Valorados'!$B$10:$BK$10,0),0)) -> No relevante | CC19: =+HLOOKUP(CB19,Sistema_Puntos!$Q$5:$Y$43,'Auxiliar General'!BX$5,FALSE) -> 0 | CD19: =+IF(VLOOKUP($B19,'Lista Puestos Valorados'!$B$11:$BK$510,MATCH('Auxiliar General'!BX$4,'Lista Puestos Valorados'!$B$10:$BK$10,0),0)="","No relevante",VLOOKUP($B19,'Lista Puestos Valorados'!$B$11:$BK$510,MATCH('Auxiliar General'!BX$4,'Lista Puestos Valorados'!$B$10:$BK$10,0),0)) -> No relevante | CE19: =+HLOOKUP(CD19,Sistema_Puntos!$Q$5:$Y$43,'Auxiliar General'!BZ$5,FALSE) -> 0 | CF19: =+IF(VLOOKUP($B19,'Lista Puestos Valorados'!$B$11:$BK$510,MATCH('Auxiliar General'!BZ$4,'Lista Puestos Valorados'!$B$10:$BK$10,0),0)="","No relevante",VLOOKUP($B19,'Lista Puestos Valorados'!$B$11:$BK$510,MATCH('Auxiliar General'!BZ$4,'Lista Puestos Valorados'!$B$10:$BK$10,0),0)) -> No relevante | CG19: =+HLOOKUP(CF19,Sistema_Puntos!$Q$5:$Y$43,'Auxiliar General'!CB$5,FALSE) -> 0
B20: =+'Listado de Puestos'!B20 -> 10 | C20: =+IF('Lista Puestos Valorados'!C20="","",'Lista Puestos Valorados'!C20) ->  | D20: =+IF('Lista Puestos Valorados'!D20="","",'Lista Puestos Valorados'!D20) ->  | E20: =+IF('Lista Puestos Valorados'!E20="","",'Lista Puestos Valorados'!E20) ->  | F20: =+IF('Lista Puestos Valorados'!F20="","",'Lista Puestos Valorados'!F20) ->  | G20: =+IF('Lista Puestos Valorados'!G20="","",'Lista Puestos Valorados'!G20) ->  | H20: =+IF('Lista Puestos Valorados'!H20="","",'Lista Puestos Valorados'!H20) ->  | I20: =+IF('Lista Puestos Valorados'!I20="","",'Lista Puestos Valorados'!I20) ->  | J20: =+IF(L20="","",_xlfn.IFS(L20<='Cortes de Agrupacion'!$F$15,'Cortes de Agrupacion'!$E$15,'Resultados General'!L20<='Cortes de Agrupacion'!$F$14,'Cortes de Agrupacion'!$E$14,'Resultados General'!L20<='Cortes de Agrupacion'!$F$13,'Cortes de Agrupacion'!$E$13,L20<='Cortes de Agrupacion'!$F$12,'Cortes de Agrupacion'!$E$12,'Resultados General'!L20<='Cortes de Agrupacion'!$F$11,'Cortes de Agrupacion'!$E$11,'Resultados General'!L20<='Cortes de Agrupacion'!$F$10,'Cortes de Agrupacion'!$E$10,'Resultados General'!L20<='Cortes de Agrupacion'!$F$9,'Cortes de Agrupacion'!$E$9,'Resultados General'!L20<='Cortes de Agrupacion'!$F$8,'Cortes de Agrupacion'!$E$8,'Resultados General'!L20<='Cortes de Agrupacion'!$F$7,'Cortes de Agrupacion'!$E$7,'Resultados General'!L20<='Cortes de Agrupacion'!$F$6,'Cortes de Agrupacion'!$E$6)) ->  | M20: =+_xlfn.IFNA(VLOOKUP(C20,'Distribución de puestos'!$B$8:$I$507,8,0),"") ->  | N20: =+IF(VLOOKUP($B20,'Lista Puestos Valorados'!$B$11:$BK$510,MATCH('Auxiliar General'!H$4,'Lista Puestos Valorados'!$B$10:$BK$10,0),0)="","No relevante",VLOOKUP($B20,'Lista Puestos Valorados'!$B$11:$BK$510,MATCH('Auxiliar General'!H$4,'Lista Puestos Valorados'!$B$10:$BK$10,0),0)) -> No relevante | O20: =+HLOOKUP(N20,Sistema_Puntos!$Q$5:$Y$43,'Auxiliar General'!J$5,FALSE) -> 0 | P20: =+IF(VLOOKUP($B20,'Lista Puestos Valorados'!$B$11:$BK$510,MATCH('Auxiliar General'!J$4,'Lista Puestos Valorados'!$B$10:$BK$10,0),0)="","No relevante",VLOOKUP($B20,'Lista Puestos Valorados'!$B$11:$BK$510,MATCH('Auxiliar General'!J$4,'Lista Puestos Valorados'!$B$10:$BK$10,0),0)) -> No relevante | Q20: =+HLOOKUP(P20,Sistema_Puntos!$Q$5:$Y$43,'Auxiliar General'!L$5,FALSE) -> 0 | R20: =+IF(VLOOKUP($B20,'Lista Puestos Valorados'!$B$11:$BK$510,MATCH('Auxiliar General'!L$4,'Lista Puestos Valorados'!$B$10:$BK$10,0),0)="","No relevante",VLOOKUP($B20,'Lista Puestos Valorados'!$B$11:$BK$510,MATCH('Auxiliar General'!L$4,'Lista Puestos Valorados'!$B$10:$BK$10,0),0)) -> No relevante | S20: =+HLOOKUP(R20,Sistema_Puntos!$Q$5:$Y$43,'Auxiliar General'!N$5,FALSE) -> 0 | T20: =+IF(VLOOKUP($B20,'Lista Puestos Valorados'!$B$11:$BK$510,MATCH('Auxiliar General'!N$4,'Lista Puestos Valorados'!$B$10:$BK$10,0),0)="","No relevante",VLOOKUP($B20,'Lista Puestos Valorados'!$B$11:$BK$510,MATCH('Auxiliar General'!N$4,'Lista Puestos Valorados'!$B$10:$BK$10,0),0)) -> No relevante | U20: =+HLOOKUP(T20,Sistema_Puntos!$Q$5:$Y$43,'Auxiliar General'!P$5,FALSE) -> 0 | V20: =+IF(VLOOKUP($B20,'Lista Puestos Valorados'!$B$11:$BK$510,MATCH('Auxiliar General'!P$4,'Lista Puestos Valorados'!$B$10:$BK$10,0),0)="","No relevante",VLOOKUP($B20,'Lista Puestos Valorados'!$B$11:$BK$510,MATCH('Auxiliar General'!P$4,'Lista Puestos Valorados'!$B$10:$BK$10,0),0)) -> No relevante | W20: =+HLOOKUP(V20,Sistema_Puntos!$Q$5:$Y$43,'Auxiliar General'!R$5,FALSE) -> 0 | X20: =+IF(VLOOKUP($B20,'Lista Puestos Valorados'!$B$11:$BK$510,MATCH('Auxiliar General'!R$4,'Lista Puestos Valorados'!$B$10:$BK$10,0),0)="","No relevante",VLOOKUP($B20,'Lista Puestos Valorados'!$B$11:$BK$510,MATCH('Auxiliar General'!R$4,'Lista Puestos Valorados'!$B$10:$BK$10,0),0)) -> No relevante | Y20: =+HLOOKUP(X20,Sistema_Puntos!$Q$5:$Y$43,'Auxiliar General'!T$5,FALSE) -> 0 | Z20: =+IF(VLOOKUP($B20,'Lista Puestos Valorados'!$B$11:$BK$510,MATCH('Auxiliar General'!T$4,'Lista Puestos Valorados'!$B$10:$BK$10,0),0)="","No relevante",VLOOKUP($B20,'Lista Puestos Valorados'!$B$11:$BK$510,MATCH('Auxiliar General'!T$4,'Lista Puestos Valorados'!$B$10:$BK$10,0),0)) -> No relevante | AA20: =+HLOOKUP(Z20,Sistema_Puntos!$Q$5:$Y$43,'Auxiliar General'!V$5,FALSE) -> 0 | AB20: =+IF(VLOOKUP($B20,'Lista Puestos Valorados'!$B$11:$BK$510,MATCH('Auxiliar General'!V$4,'Lista Puestos Valorados'!$B$10:$BK$10,0),0)="","No relevante",VLOOKUP($B20,'Lista Puestos Valorados'!$B$11:$BK$510,MATCH('Auxiliar General'!V$4,'Lista Puestos Valorados'!$B$10:$BK$10,0),0)) -> No relevante | AC20: =+HLOOKUP(AB20,Sistema_Puntos!$Q$5:$Y$43,'Auxiliar General'!X$5,FALSE) -> 0 | AD20: =+IF(VLOOKUP($B20,'Lista Puestos Valorados'!$B$11:$BK$510,MATCH('Auxiliar General'!X$4,'Lista Puestos Valorados'!$B$10:$BK$10,0),0)="","No relevante",VLOOKUP($B20,'Lista Puestos Valorados'!$B$11:$BK$510,MATCH('Auxiliar General'!X$4,'Lista Puestos Valorados'!$B$10:$BK$10,0),0)) -> No relevante | AE20: =+HLOOKUP(AD20,Sistema_Puntos!$Q$5:$Y$43,'Auxiliar General'!Z$5,FALSE) -> 0 | AF20: =+IF(VLOOKUP($B20,'Lista Puestos Valorados'!$B$11:$BK$510,MATCH('Auxiliar General'!Z$4,'Lista Puestos Valorados'!$B$10:$BK$10,0),0)="","No relevante",VLOOKUP($B20,'Lista Puestos Valorados'!$B$11:$BK$510,MATCH('Auxiliar General'!Z$4,'Lista Puestos Valorados'!$B$10:$BK$10,0),0)) -> No relevante | AG20: =+HLOOKUP(AF20,Sistema_Puntos!$Q$5:$Y$43,'Auxiliar General'!AB$5,FALSE) -> 0 | AH20: =+IF(VLOOKUP($B20,'Lista Puestos Valorados'!$B$11:$BK$510,MATCH('Auxiliar General'!AB$4,'Lista Puestos Valorados'!$B$10:$BK$10,0),0)="","No relevante",VLOOKUP($B20,'Lista Puestos Valorados'!$B$11:$BK$510,MATCH('Auxiliar General'!AB$4,'Lista Puestos Valorados'!$B$10:$BK$10,0),0)) -> No relevante | AI20: =+HLOOKUP(AH20,Sistema_Puntos!$Q$5:$Y$43,'Auxiliar General'!AD$5,FALSE) -> 0 | AJ20: =+IF(VLOOKUP($B20,'Lista Puestos Valorados'!$B$11:$BK$510,MATCH('Auxiliar General'!AD$4,'Lista Puestos Valorados'!$B$10:$BK$10,0),0)="","No relevante",VLOOKUP($B20,'Lista Puestos Valorados'!$B$11:$BK$510,MATCH('Auxiliar General'!AD$4,'Lista Puestos Valorados'!$B$10:$BK$10,0),0)) -> No relevante | AK20: =+HLOOKUP(AJ20,Sistema_Puntos!$Q$5:$Y$43,'Auxiliar General'!AF$5,FALSE) -> 0 | AL20: =+IF(VLOOKUP($B20,'Lista Puestos Valorados'!$B$11:$BK$510,MATCH('Auxiliar General'!AF$4,'Lista Puestos Valorados'!$B$10:$BK$10,0),0)="","No relevante",VLOOKUP($B20,'Lista Puestos Valorados'!$B$11:$BK$510,MATCH('Auxiliar General'!AF$4,'Lista Puestos Valorados'!$B$10:$BK$10,0),0)) -> No relevante | AM20: =+HLOOKUP(AL20,Sistema_Puntos!$Q$5:$Y$43,'Auxiliar General'!AH$5,FALSE) -> 0 | AN20: =+IF(VLOOKUP($B20,'Lista Puestos Valorados'!$B$11:$BK$510,MATCH('Auxiliar General'!AH$4,'Lista Puestos Valorados'!$B$10:$BK$10,0),0)="","No relevante",VLOOKUP($B20,'Lista Puestos Valorados'!$B$11:$BK$510,MATCH('Auxiliar General'!AH$4,'Lista Puestos Valorados'!$B$10:$BK$10,0),0)) -> No relevante | AO20: =+HLOOKUP(AN20,Sistema_Puntos!$Q$5:$Y$43,'Auxiliar General'!AJ$5,FALSE) -> 0 | AP20: =+IF(VLOOKUP($B20,'Lista Puestos Valorados'!$B$11:$BK$510,MATCH('Auxiliar General'!AJ$4,'Lista Puestos Valorados'!$B$10:$BK$10,0),0)="","No relevante",VLOOKUP($B20,'Lista Puestos Valorados'!$B$11:$BK$510,MATCH('Auxiliar General'!AJ$4,'Lista Puestos Valorados'!$B$10:$BK$10,0),0)) -> No relevante | AQ20: =+HLOOKUP(AP20,Sistema_Puntos!$Q$5:$Y$43,'Auxiliar General'!AL$5,FALSE) -> 0 | AR20: =+IF(VLOOKUP($B20,'Lista Puestos Valorados'!$B$11:$BK$510,MATCH('Auxiliar General'!AL$4,'Lista Puestos Valorados'!$B$10:$BK$10,0),0)="","No relevante",VLOOKUP($B20,'Lista Puestos Valorados'!$B$11:$BK$510,MATCH('Auxiliar General'!AL$4,'Lista Puestos Valorados'!$B$10:$BK$10,0),0)) -> No relevante | AS20: =+HLOOKUP(AR20,Sistema_Puntos!$Q$5:$Y$43,'Auxiliar General'!AN$5,FALSE) -> 0 | AT20: =+IF(VLOOKUP($B20,'Lista Puestos Valorados'!$B$11:$BK$510,MATCH('Auxiliar General'!AN$4,'Lista Puestos Valorados'!$B$10:$BK$10,0),0)="","No relevante",VLOOKUP($B20,'Lista Puestos Valorados'!$B$11:$BK$510,MATCH('Auxiliar General'!AN$4,'Lista Puestos Valorados'!$B$10:$BK$10,0),0)) -> No relevante | AU20: =+HLOOKUP(AT20,Sistema_Puntos!$Q$5:$Y$43,'Auxiliar General'!AP$5,FALSE) -> 0 | AV20: =+IF(VLOOKUP($B20,'Lista Puestos Valorados'!$B$11:$BK$510,MATCH('Auxiliar General'!AP$4,'Lista Puestos Valorados'!$B$10:$BK$10,0),0)="","No relevante",VLOOKUP($B20,'Lista Puestos Valorados'!$B$11:$BK$510,MATCH('Auxiliar General'!AP$4,'Lista Puestos Valorados'!$B$10:$BK$10,0),0)) -> No relevante | AW20: =+HLOOKUP(AV20,Sistema_Puntos!$Q$5:$Y$43,'Auxiliar General'!AR$5,FALSE) -> 0 | AX20: =+IF(VLOOKUP($B20,'Lista Puestos Valorados'!$B$11:$BK$510,MATCH('Auxiliar General'!AR$4,'Lista Puestos Valorados'!$B$10:$BK$10,0),0)="","No relevante",VLOOKUP($B20,'Lista Puestos Valorados'!$B$11:$BK$510,MATCH('Auxiliar General'!AR$4,'Lista Puestos Valorados'!$B$10:$BK$10,0),0)) -> No relevante | AY20: =+HLOOKUP(AX20,Sistema_Puntos!$Q$5:$Y$43,'Auxiliar General'!AT$5,FALSE) -> 0 | AZ20: =+IF(VLOOKUP($B20,'Lista Puestos Valorados'!$B$11:$BK$510,MATCH('Auxiliar General'!AT$4,'Lista Puestos Valorados'!$B$10:$BK$10,0),0)="","No relevante",VLOOKUP($B20,'Lista Puestos Valorados'!$B$11:$BK$510,MATCH('Auxiliar General'!AT$4,'Lista Puestos Valorados'!$B$10:$BK$10,0),0)) -> No relevante | BA20: =+HLOOKUP(AZ20,Sistema_Puntos!$Q$5:$Y$43,'Auxiliar General'!AV$5,FALSE) -> 0 | BB20: =+IF(VLOOKUP($B20,'Lista Puestos Valorados'!$B$11:$BK$510,MATCH('Auxiliar General'!AV$4,'Lista Puestos Valorados'!$B$10:$BK$10,0),0)="","No relevante",VLOOKUP($B20,'Lista Puestos Valorados'!$B$11:$BK$510,MATCH('Auxiliar General'!AV$4,'Lista Puestos Valorados'!$B$10:$BK$10,0),0)) -> No relevante | BC20: =+HLOOKUP(BB20,Sistema_Puntos!$Q$5:$Y$43,'Auxiliar General'!AX$5,FALSE) -> 0 | BD20: =+IF(VLOOKUP($B20,'Lista Puestos Valorados'!$B$11:$BK$510,MATCH('Auxiliar General'!AX$4,'Lista Puestos Valorados'!$B$10:$BK$10,0),0)="","No relevante",VLOOKUP($B20,'Lista Puestos Valorados'!$B$11:$BK$510,MATCH('Auxiliar General'!AX$4,'Lista Puestos Valorados'!$B$10:$BK$10,0),0)) -> No relevante | BE20: =+HLOOKUP(BD20,Sistema_Puntos!$Q$5:$Y$43,'Auxiliar General'!AZ$5,FALSE) -> 0 | BF20: =+IF(VLOOKUP($B20,'Lista Puestos Valorados'!$B$11:$BK$510,MATCH('Auxiliar General'!AZ$4,'Lista Puestos Valorados'!$B$10:$BK$10,0),0)="","No relevante",VLOOKUP($B20,'Lista Puestos Valorados'!$B$11:$BK$510,MATCH('Auxiliar General'!AZ$4,'Lista Puestos Valorados'!$B$10:$BK$10,0),0)) -> No relevante | BG20: =+HLOOKUP(BF20,Sistema_Puntos!$Q$5:$Y$43,'Auxiliar General'!BB$5,FALSE) -> 0 | BH20: =+IF(VLOOKUP($B20,'Lista Puestos Valorados'!$B$11:$BK$510,MATCH('Auxiliar General'!BB$4,'Lista Puestos Valorados'!$B$10:$BK$10,0),0)="","No relevante",VLOOKUP($B20,'Lista Puestos Valorados'!$B$11:$BK$510,MATCH('Auxiliar General'!BB$4,'Lista Puestos Valorados'!$B$10:$BK$10,0),0)) -> No relevante | BI20: =+HLOOKUP(BH20,Sistema_Puntos!$Q$5:$Y$43,'Auxiliar General'!BD$5,FALSE) -> 0 | BJ20: =+IF(VLOOKUP($B20,'Lista Puestos Valorados'!$B$11:$BK$510,MATCH('Auxiliar General'!BD$4,'Lista Puestos Valorados'!$B$10:$BK$10,0),0)="","No relevante",VLOOKUP($B20,'Lista Puestos Valorados'!$B$11:$BK$510,MATCH('Auxiliar General'!BD$4,'Lista Puestos Valorados'!$B$10:$BK$10,0),0)) -> No relevante | BK20: =+HLOOKUP(BJ20,Sistema_Puntos!$Q$5:$Y$43,'Auxiliar General'!BF$5,FALSE) -> 0 | BL20: =+IF(VLOOKUP($B20,'Lista Puestos Valorados'!$B$11:$BK$510,MATCH('Auxiliar General'!BF$4,'Lista Puestos Valorados'!$B$10:$BK$10,0),0)="","No relevante",VLOOKUP($B20,'Lista Puestos Valorados'!$B$11:$BK$510,MATCH('Auxiliar General'!BF$4,'Lista Puestos Valorados'!$B$10:$BK$10,0),0)) -> No relevante | BM20: =+HLOOKUP(BL20,Sistema_Puntos!$Q$5:$Y$43,'Auxiliar General'!BH$5,FALSE) -> 0 | BN20: =+IF(VLOOKUP($B20,'Lista Puestos Valorados'!$B$11:$BK$510,MATCH('Auxiliar General'!BH$4,'Lista Puestos Valorados'!$B$10:$BK$10,0),0)="","No relevante",VLOOKUP($B20,'Lista Puestos Valorados'!$B$11:$BK$510,MATCH('Auxiliar General'!BH$4,'Lista Puestos Valorados'!$B$10:$BK$10,0),0)) -> No relevante | BO20: =+HLOOKUP(BN20,Sistema_Puntos!$Q$5:$Y$43,'Auxiliar General'!BJ$5,FALSE) -> 0 | BP20: =+IF(VLOOKUP($B20,'Lista Puestos Valorados'!$B$11:$BK$510,MATCH('Auxiliar General'!BJ$4,'Lista Puestos Valorados'!$B$10:$BK$10,0),0)="","No relevante",VLOOKUP($B20,'Lista Puestos Valorados'!$B$11:$BK$510,MATCH('Auxiliar General'!BJ$4,'Lista Puestos Valorados'!$B$10:$BK$10,0),0)) -> No relevante | BQ20: =+HLOOKUP(BP20,Sistema_Puntos!$Q$5:$Y$43,'Auxiliar General'!BL$5,FALSE) -> 0 | BR20: =+IF(VLOOKUP($B20,'Lista Puestos Valorados'!$B$11:$BK$510,MATCH('Auxiliar General'!BL$4,'Lista Puestos Valorados'!$B$10:$BK$10,0),0)="","No relevante",VLOOKUP($B20,'Lista Puestos Valorados'!$B$11:$BK$510,MATCH('Auxiliar General'!BL$4,'Lista Puestos Valorados'!$B$10:$BK$10,0),0)) -> No relevante | BS20: =+HLOOKUP(BR20,Sistema_Puntos!$Q$5:$Y$43,'Auxiliar General'!BN$5,FALSE) -> 0 | BT20: =+IF(VLOOKUP($B20,'Lista Puestos Valorados'!$B$11:$BK$510,MATCH('Auxiliar General'!BN$4,'Lista Puestos Valorados'!$B$10:$BK$10,0),0)="","No relevante",VLOOKUP($B20,'Lista Puestos Valorados'!$B$11:$BK$510,MATCH('Auxiliar General'!BN$4,'Lista Puestos Valorados'!$B$10:$BK$10,0),0)) -> No relevante | BU20: =+HLOOKUP(BT20,Sistema_Puntos!$Q$5:$Y$43,'Auxiliar General'!BP$5,FALSE) -> 0 | BV20: =+IF(VLOOKUP($B20,'Lista Puestos Valorados'!$B$11:$BK$510,MATCH('Auxiliar General'!BP$4,'Lista Puestos Valorados'!$B$10:$BK$10,0),0)="","No relevante",VLOOKUP($B20,'Lista Puestos Valorados'!$B$11:$BK$510,MATCH('Auxiliar General'!BP$4,'Lista Puestos Valorados'!$B$10:$BK$10,0),0)) -> No relevante | BW20: =+HLOOKUP(BV20,Sistema_Puntos!$Q$5:$Y$43,'Auxiliar General'!BR$5,FALSE) -> 0 | BX20: =+IF(VLOOKUP($B20,'Lista Puestos Valorados'!$B$11:$BK$510,MATCH('Auxiliar General'!BR$4,'Lista Puestos Valorados'!$B$10:$BK$10,0),0)="","No relevante",VLOOKUP($B20,'Lista Puestos Valorados'!$B$11:$BK$510,MATCH('Auxiliar General'!BR$4,'Lista Puestos Valorados'!$B$10:$BK$10,0),0)) -> No relevante | BY20: =+HLOOKUP(BX20,Sistema_Puntos!$Q$5:$Y$43,'Auxiliar General'!BT$5,FALSE) -> 0 | BZ20: =+IF(VLOOKUP($B20,'Lista Puestos Valorados'!$B$11:$BK$510,MATCH('Auxiliar General'!BT$4,'Lista Puestos Valorados'!$B$10:$BK$10,0),0)="","No relevante",VLOOKUP($B20,'Lista Puestos Valorados'!$B$11:$BK$510,MATCH('Auxiliar General'!BT$4,'Lista Puestos Valorados'!$B$10:$BK$10,0),0)) -> No relevante | CA20: =+HLOOKUP(BZ20,Sistema_Puntos!$Q$5:$Y$43,'Auxiliar General'!BV$5,FALSE) -> 0 | CB20: =+IF(VLOOKUP($B20,'Lista Puestos Valorados'!$B$11:$BK$510,MATCH('Auxiliar General'!BV$4,'Lista Puestos Valorados'!$B$10:$BK$10,0),0)="","No relevante",VLOOKUP($B20,'Lista Puestos Valorados'!$B$11:$BK$510,MATCH('Auxiliar General'!BV$4,'Lista Puestos Valorados'!$B$10:$BK$10,0),0)) -> No relevante | CC20: =+HLOOKUP(CB20,Sistema_Puntos!$Q$5:$Y$43,'Auxiliar General'!BX$5,FALSE) -> 0 | CD20: =+IF(VLOOKUP($B20,'Lista Puestos Valorados'!$B$11:$BK$510,MATCH('Auxiliar General'!BX$4,'Lista Puestos Valorados'!$B$10:$BK$10,0),0)="","No relevante",VLOOKUP($B20,'Lista Puestos Valorados'!$B$11:$BK$510,MATCH('Auxiliar General'!BX$4,'Lista Puestos Valorados'!$B$10:$BK$10,0),0)) -> No relevante | CE20: =+HLOOKUP(CD20,Sistema_Puntos!$Q$5:$Y$43,'Auxiliar General'!BZ$5,FALSE) -> 0 | CF20: =+IF(VLOOKUP($B20,'Lista Puestos Valorados'!$B$11:$BK$510,MATCH('Auxiliar General'!BZ$4,'Lista Puestos Valorados'!$B$10:$BK$10,0),0)="","No relevante",VLOOKUP($B20,'Lista Puestos Valorados'!$B$11:$BK$510,MATCH('Auxiliar General'!BZ$4,'Lista Puestos Valorados'!$B$10:$BK$10,0),0)) -> No relevante | CG20: =+HLOOKUP(CF20,Sistema_Puntos!$Q$5:$Y$43,'Auxiliar General'!CB$5,FALSE) -> 0
B21: =+'Listado de Puestos'!B21 -> 11 | C21: =+IF('Lista Puestos Valorados'!C21="","",'Lista Puestos Valorados'!C21) ->  | D21: =+IF('Lista Puestos Valorados'!D21="","",'Lista Puestos Valorados'!D21) ->  | E21: =+IF('Lista Puestos Valorados'!E21="","",'Lista Puestos Valorados'!E21) ->  | F21: =+IF('Lista Puestos Valorados'!F21="","",'Lista Puestos Valorados'!F21) ->  | G21: =+IF('Lista Puestos Valorados'!G21="","",'Lista Puestos Valorados'!G21) ->  | H21: =+IF('Lista Puestos Valorados'!H21="","",'Lista Puestos Valorados'!H21) ->  | I21: =+IF('Lista Puestos Valorados'!I21="","",'Lista Puestos Valorados'!I21) ->  | J21: =+IF(L21="","",_xlfn.IFS(L21<='Cortes de Agrupacion'!$F$15,'Cortes de Agrupacion'!$E$15,'Resultados General'!L21<='Cortes de Agrupacion'!$F$14,'Cortes de Agrupacion'!$E$14,'Resultados General'!L21<='Cortes de Agrupacion'!$F$13,'Cortes de Agrupacion'!$E$13,L21<='Cortes de Agrupacion'!$F$12,'Cortes de Agrupacion'!$E$12,'Resultados General'!L21<='Cortes de Agrupacion'!$F$11,'Cortes de Agrupacion'!$E$11,'Resultados General'!L21<='Cortes de Agrupacion'!$F$10,'Cortes de Agrupacion'!$E$10,'Resultados General'!L21<='Cortes de Agrupacion'!$F$9,'Cortes de Agrupacion'!$E$9,'Resultados General'!L21<='Cortes de Agrupacion'!$F$8,'Cortes de Agrupacion'!$E$8,'Resultados General'!L21<='Cortes de Agrupacion'!$F$7,'Cortes de Agrupacion'!$E$7,'Resultados General'!L21<='Cortes de Agrupacion'!$F$6,'Cortes de Agrupacion'!$E$6)) ->  | M21: =+_xlfn.IFNA(VLOOKUP(C21,'Distribución de puestos'!$B$8:$I$507,8,0),"") ->  | N21: =+IF(VLOOKUP($B21,'Lista Puestos Valorados'!$B$11:$BK$510,MATCH('Auxiliar General'!H$4,'Lista Puestos Valorados'!$B$10:$BK$10,0),0)="","No relevante",VLOOKUP($B21,'Lista Puestos Valorados'!$B$11:$BK$510,MATCH('Auxiliar General'!H$4,'Lista Puestos Valorados'!$B$10:$BK$10,0),0)) -> No relevante | O21: =+HLOOKUP(N21,Sistema_Puntos!$Q$5:$Y$43,'Auxiliar General'!J$5,FALSE) -> 0 | P21: =+IF(VLOOKUP($B21,'Lista Puestos Valorados'!$B$11:$BK$510,MATCH('Auxiliar General'!J$4,'Lista Puestos Valorados'!$B$10:$BK$10,0),0)="","No relevante",VLOOKUP($B21,'Lista Puestos Valorados'!$B$11:$BK$510,MATCH('Auxiliar General'!J$4,'Lista Puestos Valorados'!$B$10:$BK$10,0),0)) -> No relevante | Q21: =+HLOOKUP(P21,Sistema_Puntos!$Q$5:$Y$43,'Auxiliar General'!L$5,FALSE) -> 0 | R21: =+IF(VLOOKUP($B21,'Lista Puestos Valorados'!$B$11:$BK$510,MATCH('Auxiliar General'!L$4,'Lista Puestos Valorados'!$B$10:$BK$10,0),0)="","No relevante",VLOOKUP($B21,'Lista Puestos Valorados'!$B$11:$BK$510,MATCH('Auxiliar General'!L$4,'Lista Puestos Valorados'!$B$10:$BK$10,0),0)) -> No relevante | S21: =+HLOOKUP(R21,Sistema_Puntos!$Q$5:$Y$43,'Auxiliar General'!N$5,FALSE) -> 0 | T21: =+IF(VLOOKUP($B21,'Lista Puestos Valorados'!$B$11:$BK$510,MATCH('Auxiliar General'!N$4,'Lista Puestos Valorados'!$B$10:$BK$10,0),0)="","No relevante",VLOOKUP($B21,'Lista Puestos Valorados'!$B$11:$BK$510,MATCH('Auxiliar General'!N$4,'Lista Puestos Valorados'!$B$10:$BK$10,0),0)) -> No relevante | U21: =+HLOOKUP(T21,Sistema_Puntos!$Q$5:$Y$43,'Auxiliar General'!P$5,FALSE) -> 0 | V21: =+IF(VLOOKUP($B21,'Lista Puestos Valorados'!$B$11:$BK$510,MATCH('Auxiliar General'!P$4,'Lista Puestos Valorados'!$B$10:$BK$10,0),0)="","No relevante",VLOOKUP($B21,'Lista Puestos Valorados'!$B$11:$BK$510,MATCH('Auxiliar General'!P$4,'Lista Puestos Valorados'!$B$10:$BK$10,0),0)) -> No relevante | W21: =+HLOOKUP(V21,Sistema_Puntos!$Q$5:$Y$43,'Auxiliar General'!R$5,FALSE) -> 0 | X21: =+IF(VLOOKUP($B21,'Lista Puestos Valorados'!$B$11:$BK$510,MATCH('Auxiliar General'!R$4,'Lista Puestos Valorados'!$B$10:$BK$10,0),0)="","No relevante",VLOOKUP($B21,'Lista Puestos Valorados'!$B$11:$BK$510,MATCH('Auxiliar General'!R$4,'Lista Puestos Valorados'!$B$10:$BK$10,0),0)) -> No relevante | Y21: =+HLOOKUP(X21,Sistema_Puntos!$Q$5:$Y$43,'Auxiliar General'!T$5,FALSE) -> 0 | Z21: =+IF(VLOOKUP($B21,'Lista Puestos Valorados'!$B$11:$BK$510,MATCH('Auxiliar General'!T$4,'Lista Puestos Valorados'!$B$10:$BK$10,0),0)="","No relevante",VLOOKUP($B21,'Lista Puestos Valorados'!$B$11:$BK$510,MATCH('Auxiliar General'!T$4,'Lista Puestos Valorados'!$B$10:$BK$10,0),0)) -> No relevante | AA21: =+HLOOKUP(Z21,Sistema_Puntos!$Q$5:$Y$43,'Auxiliar General'!V$5,FALSE) -> 0 | AB21: =+IF(VLOOKUP($B21,'Lista Puestos Valorados'!$B$11:$BK$510,MATCH('Auxiliar General'!V$4,'Lista Puestos Valorados'!$B$10:$BK$10,0),0)="","No relevante",VLOOKUP($B21,'Lista Puestos Valorados'!$B$11:$BK$510,MATCH('Auxiliar General'!V$4,'Lista Puestos Valorados'!$B$10:$BK$10,0),0)) -> No relevante | AC21: =+HLOOKUP(AB21,Sistema_Puntos!$Q$5:$Y$43,'Auxiliar General'!X$5,FALSE) -> 0 | AD21: =+IF(VLOOKUP($B21,'Lista Puestos Valorados'!$B$11:$BK$510,MATCH('Auxiliar General'!X$4,'Lista Puestos Valorados'!$B$10:$BK$10,0),0)="","No relevante",VLOOKUP($B21,'Lista Puestos Valorados'!$B$11:$BK$510,MATCH('Auxiliar General'!X$4,'Lista Puestos Valorados'!$B$10:$BK$10,0),0)) -> No relevante | AE21: =+HLOOKUP(AD21,Sistema_Puntos!$Q$5:$Y$43,'Auxiliar General'!Z$5,FALSE) -> 0 | AF21: =+IF(VLOOKUP($B21,'Lista Puestos Valorados'!$B$11:$BK$510,MATCH('Auxiliar General'!Z$4,'Lista Puestos Valorados'!$B$10:$BK$10,0),0)="","No relevante",VLOOKUP($B21,'Lista Puestos Valorados'!$B$11:$BK$510,MATCH('Auxiliar General'!Z$4,'Lista Puestos Valorados'!$B$10:$BK$10,0),0)) -> No relevante | AG21: =+HLOOKUP(AF21,Sistema_Puntos!$Q$5:$Y$43,'Auxiliar General'!AB$5,FALSE) -> 0 | AH21: =+IF(VLOOKUP($B21,'Lista Puestos Valorados'!$B$11:$BK$510,MATCH('Auxiliar General'!AB$4,'Lista Puestos Valorados'!$B$10:$BK$10,0),0)="","No relevante",VLOOKUP($B21,'Lista Puestos Valorados'!$B$11:$BK$510,MATCH('Auxiliar General'!AB$4,'Lista Puestos Valorados'!$B$10:$BK$10,0),0)) -> No relevante | AI21: =+HLOOKUP(AH21,Sistema_Puntos!$Q$5:$Y$43,'Auxiliar General'!AD$5,FALSE) -> 0 | AJ21: =+IF(VLOOKUP($B21,'Lista Puestos Valorados'!$B$11:$BK$510,MATCH('Auxiliar General'!AD$4,'Lista Puestos Valorados'!$B$10:$BK$10,0),0)="","No relevante",VLOOKUP($B21,'Lista Puestos Valorados'!$B$11:$BK$510,MATCH('Auxiliar General'!AD$4,'Lista Puestos Valorados'!$B$10:$BK$10,0),0)) -> No relevante | AK21: =+HLOOKUP(AJ21,Sistema_Puntos!$Q$5:$Y$43,'Auxiliar General'!AF$5,FALSE) -> 0 | AL21: =+IF(VLOOKUP($B21,'Lista Puestos Valorados'!$B$11:$BK$510,MATCH('Auxiliar General'!AF$4,'Lista Puestos Valorados'!$B$10:$BK$10,0),0)="","No relevante",VLOOKUP($B21,'Lista Puestos Valorados'!$B$11:$BK$510,MATCH('Auxiliar General'!AF$4,'Lista Puestos Valorados'!$B$10:$BK$10,0),0)) -> No relevante | AM21: =+HLOOKUP(AL21,Sistema_Puntos!$Q$5:$Y$43,'Auxiliar General'!AH$5,FALSE) -> 0 | AN21: =+IF(VLOOKUP($B21,'Lista Puestos Valorados'!$B$11:$BK$510,MATCH('Auxiliar General'!AH$4,'Lista Puestos Valorados'!$B$10:$BK$10,0),0)="","No relevante",VLOOKUP($B21,'Lista Puestos Valorados'!$B$11:$BK$510,MATCH('Auxiliar General'!AH$4,'Lista Puestos Valorados'!$B$10:$BK$10,0),0)) -> No relevante | AO21: =+HLOOKUP(AN21,Sistema_Puntos!$Q$5:$Y$43,'Auxiliar General'!AJ$5,FALSE) -> 0 | AP21: =+IF(VLOOKUP($B21,'Lista Puestos Valorados'!$B$11:$BK$510,MATCH('Auxiliar General'!AJ$4,'Lista Puestos Valorados'!$B$10:$BK$10,0),0)="","No relevante",VLOOKUP($B21,'Lista Puestos Valorados'!$B$11:$BK$510,MATCH('Auxiliar General'!AJ$4,'Lista Puestos Valorados'!$B$10:$BK$10,0),0)) -> No relevante | AQ21: =+HLOOKUP(AP21,Sistema_Puntos!$Q$5:$Y$43,'Auxiliar General'!AL$5,FALSE) -> 0 | AR21: =+IF(VLOOKUP($B21,'Lista Puestos Valorados'!$B$11:$BK$510,MATCH('Auxiliar General'!AL$4,'Lista Puestos Valorados'!$B$10:$BK$10,0),0)="","No relevante",VLOOKUP($B21,'Lista Puestos Valorados'!$B$11:$BK$510,MATCH('Auxiliar General'!AL$4,'Lista Puestos Valorados'!$B$10:$BK$10,0),0)) -> No relevante | AS21: =+HLOOKUP(AR21,Sistema_Puntos!$Q$5:$Y$43,'Auxiliar General'!AN$5,FALSE) -> 0 | AT21: =+IF(VLOOKUP($B21,'Lista Puestos Valorados'!$B$11:$BK$510,MATCH('Auxiliar General'!AN$4,'Lista Puestos Valorados'!$B$10:$BK$10,0),0)="","No relevante",VLOOKUP($B21,'Lista Puestos Valorados'!$B$11:$BK$510,MATCH('Auxiliar General'!AN$4,'Lista Puestos Valorados'!$B$10:$BK$10,0),0)) -> No relevante | AU21: =+HLOOKUP(AT21,Sistema_Puntos!$Q$5:$Y$43,'Auxiliar General'!AP$5,FALSE) -> 0 | AV21: =+IF(VLOOKUP($B21,'Lista Puestos Valorados'!$B$11:$BK$510,MATCH('Auxiliar General'!AP$4,'Lista Puestos Valorados'!$B$10:$BK$10,0),0)="","No relevante",VLOOKUP($B21,'Lista Puestos Valorados'!$B$11:$BK$510,MATCH('Auxiliar General'!AP$4,'Lista Puestos Valorados'!$B$10:$BK$10,0),0)) -> No relevante | AW21: =+HLOOKUP(AV21,Sistema_Puntos!$Q$5:$Y$43,'Auxiliar General'!AR$5,FALSE) -> 0 | AX21: =+IF(VLOOKUP($B21,'Lista Puestos Valorados'!$B$11:$BK$510,MATCH('Auxiliar General'!AR$4,'Lista Puestos Valorados'!$B$10:$BK$10,0),0)="","No relevante",VLOOKUP($B21,'Lista Puestos Valorados'!$B$11:$BK$510,MATCH('Auxiliar General'!AR$4,'Lista Puestos Valorados'!$B$10:$BK$10,0),0)) -> No relevante | AY21: =+HLOOKUP(AX21,Sistema_Puntos!$Q$5:$Y$43,'Auxiliar General'!AT$5,FALSE) -> 0 | AZ21: =+IF(VLOOKUP($B21,'Lista Puestos Valorados'!$B$11:$BK$510,MATCH('Auxiliar General'!AT$4,'Lista Puestos Valorados'!$B$10:$BK$10,0),0)="","No relevante",VLOOKUP($B21,'Lista Puestos Valorados'!$B$11:$BK$510,MATCH('Auxiliar General'!AT$4,'Lista Puestos Valorados'!$B$10:$BK$10,0),0)) -> No relevante | BA21: =+HLOOKUP(AZ21,Sistema_Puntos!$Q$5:$Y$43,'Auxiliar General'!AV$5,FALSE) -> 0 | BB21: =+IF(VLOOKUP($B21,'Lista Puestos Valorados'!$B$11:$BK$510,MATCH('Auxiliar General'!AV$4,'Lista Puestos Valorados'!$B$10:$BK$10,0),0)="","No relevante",VLOOKUP($B21,'Lista Puestos Valorados'!$B$11:$BK$510,MATCH('Auxiliar General'!AV$4,'Lista Puestos Valorados'!$B$10:$BK$10,0),0)) -> No relevante | BC21: =+HLOOKUP(BB21,Sistema_Puntos!$Q$5:$Y$43,'Auxiliar General'!AX$5,FALSE) -> 0 | BD21: =+IF(VLOOKUP($B21,'Lista Puestos Valorados'!$B$11:$BK$510,MATCH('Auxiliar General'!AX$4,'Lista Puestos Valorados'!$B$10:$BK$10,0),0)="","No relevante",VLOOKUP($B21,'Lista Puestos Valorados'!$B$11:$BK$510,MATCH('Auxiliar General'!AX$4,'Lista Puestos Valorados'!$B$10:$BK$10,0),0)) -> No relevante | BE21: =+HLOOKUP(BD21,Sistema_Puntos!$Q$5:$Y$43,'Auxiliar General'!AZ$5,FALSE) -> 0 | BF21: =+IF(VLOOKUP($B21,'Lista Puestos Valorados'!$B$11:$BK$510,MATCH('Auxiliar General'!AZ$4,'Lista Puestos Valorados'!$B$10:$BK$10,0),0)="","No relevante",VLOOKUP($B21,'Lista Puestos Valorados'!$B$11:$BK$510,MATCH('Auxiliar General'!AZ$4,'Lista Puestos Valorados'!$B$10:$BK$10,0),0)) -> No relevante | BG21: =+HLOOKUP(BF21,Sistema_Puntos!$Q$5:$Y$43,'Auxiliar General'!BB$5,FALSE) -> 0 | BH21: =+IF(VLOOKUP($B21,'Lista Puestos Valorados'!$B$11:$BK$510,MATCH('Auxiliar General'!BB$4,'Lista Puestos Valorados'!$B$10:$BK$10,0),0)="","No relevante",VLOOKUP($B21,'Lista Puestos Valorados'!$B$11:$BK$510,MATCH('Auxiliar General'!BB$4,'Lista Puestos Valorados'!$B$10:$BK$10,0),0)) -> No relevante | BI21: =+HLOOKUP(BH21,Sistema_Puntos!$Q$5:$Y$43,'Auxiliar General'!BD$5,FALSE) -> 0 | BJ21: =+IF(VLOOKUP($B21,'Lista Puestos Valorados'!$B$11:$BK$510,MATCH('Auxiliar General'!BD$4,'Lista Puestos Valorados'!$B$10:$BK$10,0),0)="","No relevante",VLOOKUP($B21,'Lista Puestos Valorados'!$B$11:$BK$510,MATCH('Auxiliar General'!BD$4,'Lista Puestos Valorados'!$B$10:$BK$10,0),0)) -> No relevante | BK21: =+HLOOKUP(BJ21,Sistema_Puntos!$Q$5:$Y$43,'Auxiliar General'!BF$5,FALSE) -> 0 | BL21: =+IF(VLOOKUP($B21,'Lista Puestos Valorados'!$B$11:$BK$510,MATCH('Auxiliar General'!BF$4,'Lista Puestos Valorados'!$B$10:$BK$10,0),0)="","No relevante",VLOOKUP($B21,'Lista Puestos Valorados'!$B$11:$BK$510,MATCH('Auxiliar General'!BF$4,'Lista Puestos Valorados'!$B$10:$BK$10,0),0)) -> No relevante | BM21: =+HLOOKUP(BL21,Sistema_Puntos!$Q$5:$Y$43,'Auxiliar General'!BH$5,FALSE) -> 0 | BN21: =+IF(VLOOKUP($B21,'Lista Puestos Valorados'!$B$11:$BK$510,MATCH('Auxiliar General'!BH$4,'Lista Puestos Valorados'!$B$10:$BK$10,0),0)="","No relevante",VLOOKUP($B21,'Lista Puestos Valorados'!$B$11:$BK$510,MATCH('Auxiliar General'!BH$4,'Lista Puestos Valorados'!$B$10:$BK$10,0),0)) -> No relevante | BO21: =+HLOOKUP(BN21,Sistema_Puntos!$Q$5:$Y$43,'Auxiliar General'!BJ$5,FALSE) -> 0 | BP21: =+IF(VLOOKUP($B21,'Lista Puestos Valorados'!$B$11:$BK$510,MATCH('Auxiliar General'!BJ$4,'Lista Puestos Valorados'!$B$10:$BK$10,0),0)="","No relevante",VLOOKUP($B21,'Lista Puestos Valorados'!$B$11:$BK$510,MATCH('Auxiliar General'!BJ$4,'Lista Puestos Valorados'!$B$10:$BK$10,0),0)) -> No relevante | BQ21: =+HLOOKUP(BP21,Sistema_Puntos!$Q$5:$Y$43,'Auxiliar General'!BL$5,FALSE) -> 0 | BR21: =+IF(VLOOKUP($B21,'Lista Puestos Valorados'!$B$11:$BK$510,MATCH('Auxiliar General'!BL$4,'Lista Puestos Valorados'!$B$10:$BK$10,0),0)="","No relevante",VLOOKUP($B21,'Lista Puestos Valorados'!$B$11:$BK$510,MATCH('Auxiliar General'!BL$4,'Lista Puestos Valorados'!$B$10:$BK$10,0),0)) -> No relevante | BS21: =+HLOOKUP(BR21,Sistema_Puntos!$Q$5:$Y$43,'Auxiliar General'!BN$5,FALSE) -> 0 | BT21: =+IF(VLOOKUP($B21,'Lista Puestos Valorados'!$B$11:$BK$510,MATCH('Auxiliar General'!BN$4,'Lista Puestos Valorados'!$B$10:$BK$10,0),0)="","No relevante",VLOOKUP($B21,'Lista Puestos Valorados'!$B$11:$BK$510,MATCH('Auxiliar General'!BN$4,'Lista Puestos Valorados'!$B$10:$BK$10,0),0)) -> No relevante | BU21: =+HLOOKUP(BT21,Sistema_Puntos!$Q$5:$Y$43,'Auxiliar General'!BP$5,FALSE) -> 0 | BV21: =+IF(VLOOKUP($B21,'Lista Puestos Valorados'!$B$11:$BK$510,MATCH('Auxiliar General'!BP$4,'Lista Puestos Valorados'!$B$10:$BK$10,0),0)="","No relevante",VLOOKUP($B21,'Lista Puestos Valorados'!$B$11:$BK$510,MATCH('Auxiliar General'!BP$4,'Lista Puestos Valorados'!$B$10:$BK$10,0),0)) -> No relevante | BW21: =+HLOOKUP(BV21,Sistema_Puntos!$Q$5:$Y$43,'Auxiliar General'!BR$5,FALSE) -> 0 | BX21: =+IF(VLOOKUP($B21,'Lista Puestos Valorados'!$B$11:$BK$510,MATCH('Auxiliar General'!BR$4,'Lista Puestos Valorados'!$B$10:$BK$10,0),0)="","No relevante",VLOOKUP($B21,'Lista Puestos Valorados'!$B$11:$BK$510,MATCH('Auxiliar General'!BR$4,'Lista Puestos Valorados'!$B$10:$BK$10,0),0)) -> No relevante | BY21: =+HLOOKUP(BX21,Sistema_Puntos!$Q$5:$Y$43,'Auxiliar General'!BT$5,FALSE) -> 0 | BZ21: =+IF(VLOOKUP($B21,'Lista Puestos Valorados'!$B$11:$BK$510,MATCH('Auxiliar General'!BT$4,'Lista Puestos Valorados'!$B$10:$BK$10,0),0)="","No relevante",VLOOKUP($B21,'Lista Puestos Valorados'!$B$11:$BK$510,MATCH('Auxiliar General'!BT$4,'Lista Puestos Valorados'!$B$10:$BK$10,0),0)) -> No relevante | CA21: =+HLOOKUP(BZ21,Sistema_Puntos!$Q$5:$Y$43,'Auxiliar General'!BV$5,FALSE) -> 0 | CB21: =+IF(VLOOKUP($B21,'Lista Puestos Valorados'!$B$11:$BK$510,MATCH('Auxiliar General'!BV$4,'Lista Puestos Valorados'!$B$10:$BK$10,0),0)="","No relevante",VLOOKUP($B21,'Lista Puestos Valorados'!$B$11:$BK$510,MATCH('Auxiliar General'!BV$4,'Lista Puestos Valorados'!$B$10:$BK$10,0),0)) -> No relevante | CC21: =+HLOOKUP(CB21,Sistema_Puntos!$Q$5:$Y$43,'Auxiliar General'!BX$5,FALSE) -> 0 | CD21: =+IF(VLOOKUP($B21,'Lista Puestos Valorados'!$B$11:$BK$510,MATCH('Auxiliar General'!BX$4,'Lista Puestos Valorados'!$B$10:$BK$10,0),0)="","No relevante",VLOOKUP($B21,'Lista Puestos Valorados'!$B$11:$BK$510,MATCH('Auxiliar General'!BX$4,'Lista Puestos Valorados'!$B$10:$BK$10,0),0)) -> No relevante | CE21: =+HLOOKUP(CD21,Sistema_Puntos!$Q$5:$Y$43,'Auxiliar General'!BZ$5,FALSE) -> 0 | CF21: =+IF(VLOOKUP($B21,'Lista Puestos Valorados'!$B$11:$BK$510,MATCH('Auxiliar General'!BZ$4,'Lista Puestos Valorados'!$B$10:$BK$10,0),0)="","No relevante",VLOOKUP($B21,'Lista Puestos Valorados'!$B$11:$BK$510,MATCH('Auxiliar General'!BZ$4,'Lista Puestos Valorados'!$B$10:$BK$10,0),0)) -> No relevante | CG21: =+HLOOKUP(CF21,Sistema_Puntos!$Q$5:$Y$43,'Auxiliar General'!CB$5,FALSE) -> 0
B22: =+'Listado de Puestos'!B22 -> 12 | C22: =+IF('Lista Puestos Valorados'!C22="","",'Lista Puestos Valorados'!C22) ->  | D22: =+IF('Lista Puestos Valorados'!D22="","",'Lista Puestos Valorados'!D22) ->  | E22: =+IF('Lista Puestos Valorados'!E22="","",'Lista Puestos Valorados'!E22) ->  | F22: =+IF('Lista Puestos Valorados'!F22="","",'Lista Puestos Valorados'!F22) ->  | G22: =+IF('Lista Puestos Valorados'!G22="","",'Lista Puestos Valorados'!G22) ->  | H22: =+IF('Lista Puestos Valorados'!H22="","",'Lista Puestos Valorados'!H22) ->  | I22: =+IF('Lista Puestos Valorados'!I22="","",'Lista Puestos Valorados'!I22) ->  | J22: =+IF(L22="","",_xlfn.IFS(L22<='Cortes de Agrupacion'!$F$15,'Cortes de Agrupacion'!$E$15,'Resultados General'!L22<='Cortes de Agrupacion'!$F$14,'Cortes de Agrupacion'!$E$14,'Resultados General'!L22<='Cortes de Agrupacion'!$F$13,'Cortes de Agrupacion'!$E$13,L22<='Cortes de Agrupacion'!$F$12,'Cortes de Agrupacion'!$E$12,'Resultados General'!L22<='Cortes de Agrupacion'!$F$11,'Cortes de Agrupacion'!$E$11,'Resultados General'!L22<='Cortes de Agrupacion'!$F$10,'Cortes de Agrupacion'!$E$10,'Resultados General'!L22<='Cortes de Agrupacion'!$F$9,'Cortes de Agrupacion'!$E$9,'Resultados General'!L22<='Cortes de Agrupacion'!$F$8,'Cortes de Agrupacion'!$E$8,'Resultados General'!L22<='Cortes de Agrupacion'!$F$7,'Cortes de Agrupacion'!$E$7,'Resultados General'!L22<='Cortes de Agrupacion'!$F$6,'Cortes de Agrupacion'!$E$6)) ->  | M22: =+_xlfn.IFNA(VLOOKUP(C22,'Distribución de puestos'!$B$8:$I$507,8,0),"") ->  | N22: =+IF(VLOOKUP($B22,'Lista Puestos Valorados'!$B$11:$BK$510,MATCH('Auxiliar General'!H$4,'Lista Puestos Valorados'!$B$10:$BK$10,0),0)="","No relevante",VLOOKUP($B22,'Lista Puestos Valorados'!$B$11:$BK$510,MATCH('Auxiliar General'!H$4,'Lista Puestos Valorados'!$B$10:$BK$10,0),0)) -> No relevante | O22: =+HLOOKUP(N22,Sistema_Puntos!$Q$5:$Y$43,'Auxiliar General'!J$5,FALSE) -> 0 | P22: =+IF(VLOOKUP($B22,'Lista Puestos Valorados'!$B$11:$BK$510,MATCH('Auxiliar General'!J$4,'Lista Puestos Valorados'!$B$10:$BK$10,0),0)="","No relevante",VLOOKUP($B22,'Lista Puestos Valorados'!$B$11:$BK$510,MATCH('Auxiliar General'!J$4,'Lista Puestos Valorados'!$B$10:$BK$10,0),0)) -> No relevante | Q22: =+HLOOKUP(P22,Sistema_Puntos!$Q$5:$Y$43,'Auxiliar General'!L$5,FALSE) -> 0 | R22: =+IF(VLOOKUP($B22,'Lista Puestos Valorados'!$B$11:$BK$510,MATCH('Auxiliar General'!L$4,'Lista Puestos Valorados'!$B$10:$BK$10,0),0)="","No relevante",VLOOKUP($B22,'Lista Puestos Valorados'!$B$11:$BK$510,MATCH('Auxiliar General'!L$4,'Lista Puestos Valorados'!$B$10:$BK$10,0),0)) -> No relevante | S22: =+HLOOKUP(R22,Sistema_Puntos!$Q$5:$Y$43,'Auxiliar General'!N$5,FALSE) -> 0 | T22: =+IF(VLOOKUP($B22,'Lista Puestos Valorados'!$B$11:$BK$510,MATCH('Auxiliar General'!N$4,'Lista Puestos Valorados'!$B$10:$BK$10,0),0)="","No relevante",VLOOKUP($B22,'Lista Puestos Valorados'!$B$11:$BK$510,MATCH('Auxiliar General'!N$4,'Lista Puestos Valorados'!$B$10:$BK$10,0),0)) -> No relevante | U22: =+HLOOKUP(T22,Sistema_Puntos!$Q$5:$Y$43,'Auxiliar General'!P$5,FALSE) -> 0 | V22: =+IF(VLOOKUP($B22,'Lista Puestos Valorados'!$B$11:$BK$510,MATCH('Auxiliar General'!P$4,'Lista Puestos Valorados'!$B$10:$BK$10,0),0)="","No relevante",VLOOKUP($B22,'Lista Puestos Valorados'!$B$11:$BK$510,MATCH('Auxiliar General'!P$4,'Lista Puestos Valorados'!$B$10:$BK$10,0),0)) -> No relevante | W22: =+HLOOKUP(V22,Sistema_Puntos!$Q$5:$Y$43,'Auxiliar General'!R$5,FALSE) -> 0 | X22: =+IF(VLOOKUP($B22,'Lista Puestos Valorados'!$B$11:$BK$510,MATCH('Auxiliar General'!R$4,'Lista Puestos Valorados'!$B$10:$BK$10,0),0)="","No relevante",VLOOKUP($B22,'Lista Puestos Valorados'!$B$11:$BK$510,MATCH('Auxiliar General'!R$4,'Lista Puestos Valorados'!$B$10:$BK$10,0),0)) -> No relevante | Y22: =+HLOOKUP(X22,Sistema_Puntos!$Q$5:$Y$43,'Auxiliar General'!T$5,FALSE) -> 0 | Z22: =+IF(VLOOKUP($B22,'Lista Puestos Valorados'!$B$11:$BK$510,MATCH('Auxiliar General'!T$4,'Lista Puestos Valorados'!$B$10:$BK$10,0),0)="","No relevante",VLOOKUP($B22,'Lista Puestos Valorados'!$B$11:$BK$510,MATCH('Auxiliar General'!T$4,'Lista Puestos Valorados'!$B$10:$BK$10,0),0)) -> No relevante | AA22: =+HLOOKUP(Z22,Sistema_Puntos!$Q$5:$Y$43,'Auxiliar General'!V$5,FALSE) -> 0 | AB22: =+IF(VLOOKUP($B22,'Lista Puestos Valorados'!$B$11:$BK$510,MATCH('Auxiliar General'!V$4,'Lista Puestos Valorados'!$B$10:$BK$10,0),0)="","No relevante",VLOOKUP($B22,'Lista Puestos Valorados'!$B$11:$BK$510,MATCH('Auxiliar General'!V$4,'Lista Puestos Valorados'!$B$10:$BK$10,0),0)) -> No relevante | AC22: =+HLOOKUP(AB22,Sistema_Puntos!$Q$5:$Y$43,'Auxiliar General'!X$5,FALSE) -> 0 | AD22: =+IF(VLOOKUP($B22,'Lista Puestos Valorados'!$B$11:$BK$510,MATCH('Auxiliar General'!X$4,'Lista Puestos Valorados'!$B$10:$BK$10,0),0)="","No relevante",VLOOKUP($B22,'Lista Puestos Valorados'!$B$11:$BK$510,MATCH('Auxiliar General'!X$4,'Lista Puestos Valorados'!$B$10:$BK$10,0),0)) -> No relevante | AE22: =+HLOOKUP(AD22,Sistema_Puntos!$Q$5:$Y$43,'Auxiliar General'!Z$5,FALSE) -> 0 | AF22: =+IF(VLOOKUP($B22,'Lista Puestos Valorados'!$B$11:$BK$510,MATCH('Auxiliar General'!Z$4,'Lista Puestos Valorados'!$B$10:$BK$10,0),0)="","No relevante",VLOOKUP($B22,'Lista Puestos Valorados'!$B$11:$BK$510,MATCH('Auxiliar General'!Z$4,'Lista Puestos Valorados'!$B$10:$BK$10,0),0)) -> No relevante | AG22: =+HLOOKUP(AF22,Sistema_Puntos!$Q$5:$Y$43,'Auxiliar General'!AB$5,FALSE) -> 0 | AH22: =+IF(VLOOKUP($B22,'Lista Puestos Valorados'!$B$11:$BK$510,MATCH('Auxiliar General'!AB$4,'Lista Puestos Valorados'!$B$10:$BK$10,0),0)="","No relevante",VLOOKUP($B22,'Lista Puestos Valorados'!$B$11:$BK$510,MATCH('Auxiliar General'!AB$4,'Lista Puestos Valorados'!$B$10:$BK$10,0),0)) -> No relevante | AI22: =+HLOOKUP(AH22,Sistema_Puntos!$Q$5:$Y$43,'Auxiliar General'!AD$5,FALSE) -> 0 | AJ22: =+IF(VLOOKUP($B22,'Lista Puestos Valorados'!$B$11:$BK$510,MATCH('Auxiliar General'!AD$4,'Lista Puestos Valorados'!$B$10:$BK$10,0),0)="","No relevante",VLOOKUP($B22,'Lista Puestos Valorados'!$B$11:$BK$510,MATCH('Auxiliar General'!AD$4,'Lista Puestos Valorados'!$B$10:$BK$10,0),0)) -> No relevante | AK22: =+HLOOKUP(AJ22,Sistema_Puntos!$Q$5:$Y$43,'Auxiliar General'!AF$5,FALSE) -> 0 | AL22: =+IF(VLOOKUP($B22,'Lista Puestos Valorados'!$B$11:$BK$510,MATCH('Auxiliar General'!AF$4,'Lista Puestos Valorados'!$B$10:$BK$10,0),0)="","No relevante",VLOOKUP($B22,'Lista Puestos Valorados'!$B$11:$BK$510,MATCH('Auxiliar General'!AF$4,'Lista Puestos Valorados'!$B$10:$BK$10,0),0)) -> No relevante | AM22: =+HLOOKUP(AL22,Sistema_Puntos!$Q$5:$Y$43,'Auxiliar General'!AH$5,FALSE) -> 0 | AN22: =+IF(VLOOKUP($B22,'Lista Puestos Valorados'!$B$11:$BK$510,MATCH('Auxiliar General'!AH$4,'Lista Puestos Valorados'!$B$10:$BK$10,0),0)="","No relevante",VLOOKUP($B22,'Lista Puestos Valorados'!$B$11:$BK$510,MATCH('Auxiliar General'!AH$4,'Lista Puestos Valorados'!$B$10:$BK$10,0),0)) -> No relevante | AO22: =+HLOOKUP(AN22,Sistema_Puntos!$Q$5:$Y$43,'Auxiliar General'!AJ$5,FALSE) -> 0 | AP22: =+IF(VLOOKUP($B22,'Lista Puestos Valorados'!$B$11:$BK$510,MATCH('Auxiliar General'!AJ$4,'Lista Puestos Valorados'!$B$10:$BK$10,0),0)="","No relevante",VLOOKUP($B22,'Lista Puestos Valorados'!$B$11:$BK$510,MATCH('Auxiliar General'!AJ$4,'Lista Puestos Valorados'!$B$10:$BK$10,0),0)) -> No relevante | AQ22: =+HLOOKUP(AP22,Sistema_Puntos!$Q$5:$Y$43,'Auxiliar General'!AL$5,FALSE) -> 0 | AR22: =+IF(VLOOKUP($B22,'Lista Puestos Valorados'!$B$11:$BK$510,MATCH('Auxiliar General'!AL$4,'Lista Puestos Valorados'!$B$10:$BK$10,0),0)="","No relevante",VLOOKUP($B22,'Lista Puestos Valorados'!$B$11:$BK$510,MATCH('Auxiliar General'!AL$4,'Lista Puestos Valorados'!$B$10:$BK$10,0),0)) -> No relevante | AS22: =+HLOOKUP(AR22,Sistema_Puntos!$Q$5:$Y$43,'Auxiliar General'!AN$5,FALSE) -> 0 | AT22: =+IF(VLOOKUP($B22,'Lista Puestos Valorados'!$B$11:$BK$510,MATCH('Auxiliar General'!AN$4,'Lista Puestos Valorados'!$B$10:$BK$10,0),0)="","No relevante",VLOOKUP($B22,'Lista Puestos Valorados'!$B$11:$BK$510,MATCH('Auxiliar General'!AN$4,'Lista Puestos Valorados'!$B$10:$BK$10,0),0)) -> No relevante | AU22: =+HLOOKUP(AT22,Sistema_Puntos!$Q$5:$Y$43,'Auxiliar General'!AP$5,FALSE) -> 0 | AV22: =+IF(VLOOKUP($B22,'Lista Puestos Valorados'!$B$11:$BK$510,MATCH('Auxiliar General'!AP$4,'Lista Puestos Valorados'!$B$10:$BK$10,0),0)="","No relevante",VLOOKUP($B22,'Lista Puestos Valorados'!$B$11:$BK$510,MATCH('Auxiliar General'!AP$4,'Lista Puestos Valorados'!$B$10:$BK$10,0),0)) -> No relevante | AW22: =+HLOOKUP(AV22,Sistema_Puntos!$Q$5:$Y$43,'Auxiliar General'!AR$5,FALSE) -> 0 | AX22: =+IF(VLOOKUP($B22,'Lista Puestos Valorados'!$B$11:$BK$510,MATCH('Auxiliar General'!AR$4,'Lista Puestos Valorados'!$B$10:$BK$10,0),0)="","No relevante",VLOOKUP($B22,'Lista Puestos Valorados'!$B$11:$BK$510,MATCH('Auxiliar General'!AR$4,'Lista Puestos Valorados'!$B$10:$BK$10,0),0)) -> No relevante | AY22: =+HLOOKUP(AX22,Sistema_Puntos!$Q$5:$Y$43,'Auxiliar General'!AT$5,FALSE) -> 0 | AZ22: =+IF(VLOOKUP($B22,'Lista Puestos Valorados'!$B$11:$BK$510,MATCH('Auxiliar General'!AT$4,'Lista Puestos Valorados'!$B$10:$BK$10,0),0)="","No relevante",VLOOKUP($B22,'Lista Puestos Valorados'!$B$11:$BK$510,MATCH('Auxiliar General'!AT$4,'Lista Puestos Valorados'!$B$10:$BK$10,0),0)) -> No relevante | BA22: =+HLOOKUP(AZ22,Sistema_Puntos!$Q$5:$Y$43,'Auxiliar General'!AV$5,FALSE) -> 0 | BB22: =+IF(VLOOKUP($B22,'Lista Puestos Valorados'!$B$11:$BK$510,MATCH('Auxiliar General'!AV$4,'Lista Puestos Valorados'!$B$10:$BK$10,0),0)="","No relevante",VLOOKUP($B22,'Lista Puestos Valorados'!$B$11:$BK$510,MATCH('Auxiliar General'!AV$4,'Lista Puestos Valorados'!$B$10:$BK$10,0),0)) -> No relevante | BC22: =+HLOOKUP(BB22,Sistema_Puntos!$Q$5:$Y$43,'Auxiliar General'!AX$5,FALSE) -> 0 | BD22: =+IF(VLOOKUP($B22,'Lista Puestos Valorados'!$B$11:$BK$510,MATCH('Auxiliar General'!AX$4,'Lista Puestos Valorados'!$B$10:$BK$10,0),0)="","No relevante",VLOOKUP($B22,'Lista Puestos Valorados'!$B$11:$BK$510,MATCH('Auxiliar General'!AX$4,'Lista Puestos Valorados'!$B$10:$BK$10,0),0)) -> No relevante | BE22: =+HLOOKUP(BD22,Sistema_Puntos!$Q$5:$Y$43,'Auxiliar General'!AZ$5,FALSE) -> 0 | BF22: =+IF(VLOOKUP($B22,'Lista Puestos Valorados'!$B$11:$BK$510,MATCH('Auxiliar General'!AZ$4,'Lista Puestos Valorados'!$B$10:$BK$10,0),0)="","No relevante",VLOOKUP($B22,'Lista Puestos Valorados'!$B$11:$BK$510,MATCH('Auxiliar General'!AZ$4,'Lista Puestos Valorados'!$B$10:$BK$10,0),0)) -> No relevante | BG22: =+HLOOKUP(BF22,Sistema_Puntos!$Q$5:$Y$43,'Auxiliar General'!BB$5,FALSE) -> 0 | BH22: =+IF(VLOOKUP($B22,'Lista Puestos Valorados'!$B$11:$BK$510,MATCH('Auxiliar General'!BB$4,'Lista Puestos Valorados'!$B$10:$BK$10,0),0)="","No relevante",VLOOKUP($B22,'Lista Puestos Valorados'!$B$11:$BK$510,MATCH('Auxiliar General'!BB$4,'Lista Puestos Valorados'!$B$10:$BK$10,0),0)) -> No relevante | BI22: =+HLOOKUP(BH22,Sistema_Puntos!$Q$5:$Y$43,'Auxiliar General'!BD$5,FALSE) -> 0 | BJ22: =+IF(VLOOKUP($B22,'Lista Puestos Valorados'!$B$11:$BK$510,MATCH('Auxiliar General'!BD$4,'Lista Puestos Valorados'!$B$10:$BK$10,0),0)="","No relevante",VLOOKUP($B22,'Lista Puestos Valorados'!$B$11:$BK$510,MATCH('Auxiliar General'!BD$4,'Lista Puestos Valorados'!$B$10:$BK$10,0),0)) -> No relevante | BK22: =+HLOOKUP(BJ22,Sistema_Puntos!$Q$5:$Y$43,'Auxiliar General'!BF$5,FALSE) -> 0 | BL22: =+IF(VLOOKUP($B22,'Lista Puestos Valorados'!$B$11:$BK$510,MATCH('Auxiliar General'!BF$4,'Lista Puestos Valorados'!$B$10:$BK$10,0),0)="","No relevante",VLOOKUP($B22,'Lista Puestos Valorados'!$B$11:$BK$510,MATCH('Auxiliar General'!BF$4,'Lista Puestos Valorados'!$B$10:$BK$10,0),0)) -> No relevante | BM22: =+HLOOKUP(BL22,Sistema_Puntos!$Q$5:$Y$43,'Auxiliar General'!BH$5,FALSE) -> 0 | BN22: =+IF(VLOOKUP($B22,'Lista Puestos Valorados'!$B$11:$BK$510,MATCH('Auxiliar General'!BH$4,'Lista Puestos Valorados'!$B$10:$BK$10,0),0)="","No relevante",VLOOKUP($B22,'Lista Puestos Valorados'!$B$11:$BK$510,MATCH('Auxiliar General'!BH$4,'Lista Puestos Valorados'!$B$10:$BK$10,0),0)) -> No relevante | BO22: =+HLOOKUP(BN22,Sistema_Puntos!$Q$5:$Y$43,'Auxiliar General'!BJ$5,FALSE) -> 0 | BP22: =+IF(VLOOKUP($B22,'Lista Puestos Valorados'!$B$11:$BK$510,MATCH('Auxiliar General'!BJ$4,'Lista Puestos Valorados'!$B$10:$BK$10,0),0)="","No relevante",VLOOKUP($B22,'Lista Puestos Valorados'!$B$11:$BK$510,MATCH('Auxiliar General'!BJ$4,'Lista Puestos Valorados'!$B$10:$BK$10,0),0)) -> No relevante | BQ22: =+HLOOKUP(BP22,Sistema_Puntos!$Q$5:$Y$43,'Auxiliar General'!BL$5,FALSE) -> 0 | BR22: =+IF(VLOOKUP($B22,'Lista Puestos Valorados'!$B$11:$BK$510,MATCH('Auxiliar General'!BL$4,'Lista Puestos Valorados'!$B$10:$BK$10,0),0)="","No relevante",VLOOKUP($B22,'Lista Puestos Valorados'!$B$11:$BK$510,MATCH('Auxiliar General'!BL$4,'Lista Puestos Valorados'!$B$10:$BK$10,0),0)) -> No relevante | BS22: =+HLOOKUP(BR22,Sistema_Puntos!$Q$5:$Y$43,'Auxiliar General'!BN$5,FALSE) -> 0 | BT22: =+IF(VLOOKUP($B22,'Lista Puestos Valorados'!$B$11:$BK$510,MATCH('Auxiliar General'!BN$4,'Lista Puestos Valorados'!$B$10:$BK$10,0),0)="","No relevante",VLOOKUP($B22,'Lista Puestos Valorados'!$B$11:$BK$510,MATCH('Auxiliar General'!BN$4,'Lista Puestos Valorados'!$B$10:$BK$10,0),0)) -> No relevante | BU22: =+HLOOKUP(BT22,Sistema_Puntos!$Q$5:$Y$43,'Auxiliar General'!BP$5,FALSE) -> 0 | BV22: =+IF(VLOOKUP($B22,'Lista Puestos Valorados'!$B$11:$BK$510,MATCH('Auxiliar General'!BP$4,'Lista Puestos Valorados'!$B$10:$BK$10,0),0)="","No relevante",VLOOKUP($B22,'Lista Puestos Valorados'!$B$11:$BK$510,MATCH('Auxiliar General'!BP$4,'Lista Puestos Valorados'!$B$10:$BK$10,0),0)) -> No relevante | BW22: =+HLOOKUP(BV22,Sistema_Puntos!$Q$5:$Y$43,'Auxiliar General'!BR$5,FALSE) -> 0 | BX22: =+IF(VLOOKUP($B22,'Lista Puestos Valorados'!$B$11:$BK$510,MATCH('Auxiliar General'!BR$4,'Lista Puestos Valorados'!$B$10:$BK$10,0),0)="","No relevante",VLOOKUP($B22,'Lista Puestos Valorados'!$B$11:$BK$510,MATCH('Auxiliar General'!BR$4,'Lista Puestos Valorados'!$B$10:$BK$10,0),0)) -> No relevante | BY22: =+HLOOKUP(BX22,Sistema_Puntos!$Q$5:$Y$43,'Auxiliar General'!BT$5,FALSE) -> 0 | BZ22: =+IF(VLOOKUP($B22,'Lista Puestos Valorados'!$B$11:$BK$510,MATCH('Auxiliar General'!BT$4,'Lista Puestos Valorados'!$B$10:$BK$10,0),0)="","No relevante",VLOOKUP($B22,'Lista Puestos Valorados'!$B$11:$BK$510,MATCH('Auxiliar General'!BT$4,'Lista Puestos Valorados'!$B$10:$BK$10,0),0)) -> No relevante | CA22: =+HLOOKUP(BZ22,Sistema_Puntos!$Q$5:$Y$43,'Auxiliar General'!BV$5,FALSE) -> 0 | CB22: =+IF(VLOOKUP($B22,'Lista Puestos Valorados'!$B$11:$BK$510,MATCH('Auxiliar General'!BV$4,'Lista Puestos Valorados'!$B$10:$BK$10,0),0)="","No relevante",VLOOKUP($B22,'Lista Puestos Valorados'!$B$11:$BK$510,MATCH('Auxiliar General'!BV$4,'Lista Puestos Valorados'!$B$10:$BK$10,0),0)) -> No relevante | CC22: =+HLOOKUP(CB22,Sistema_Puntos!$Q$5:$Y$43,'Auxiliar General'!BX$5,FALSE) -> 0 | CD22: =+IF(VLOOKUP($B22,'Lista Puestos Valorados'!$B$11:$BK$510,MATCH('Auxiliar General'!BX$4,'Lista Puestos Valorados'!$B$10:$BK$10,0),0)="","No relevante",VLOOKUP($B22,'Lista Puestos Valorados'!$B$11:$BK$510,MATCH('Auxiliar General'!BX$4,'Lista Puestos Valorados'!$B$10:$BK$10,0),0)) -> No relevante | CE22: =+HLOOKUP(CD22,Sistema_Puntos!$Q$5:$Y$43,'Auxiliar General'!BZ$5,FALSE) -> 0 | CF22: =+IF(VLOOKUP($B22,'Lista Puestos Valorados'!$B$11:$BK$510,MATCH('Auxiliar General'!BZ$4,'Lista Puestos Valorados'!$B$10:$BK$10,0),0)="","No relevante",VLOOKUP($B22,'Lista Puestos Valorados'!$B$11:$BK$510,MATCH('Auxiliar General'!BZ$4,'Lista Puestos Valorados'!$B$10:$BK$10,0),0)) -> No relevante | CG22: =+HLOOKUP(CF22,Sistema_Puntos!$Q$5:$Y$43,'Auxiliar General'!CB$5,FALSE) -> 0
B23: =+'Listado de Puestos'!B23 -> 13 | C23: =+IF('Lista Puestos Valorados'!C23="","",'Lista Puestos Valorados'!C23) ->  | D23: =+IF('Lista Puestos Valorados'!D23="","",'Lista Puestos Valorados'!D23) ->  | E23: =+IF('Lista Puestos Valorados'!E23="","",'Lista Puestos Valorados'!E23) ->  | F23: =+IF('Lista Puestos Valorados'!F23="","",'Lista Puestos Valorados'!F23) ->  | G23: =+IF('Lista Puestos Valorados'!G23="","",'Lista Puestos Valorados'!G23) ->  | H23: =+IF('Lista Puestos Valorados'!H23="","",'Lista Puestos Valorados'!H23) ->  | I23: =+IF('Lista Puestos Valorados'!I23="","",'Lista Puestos Valorados'!I23) ->  | J23: =+IF(L23="","",_xlfn.IFS(L23<='Cortes de Agrupacion'!$F$15,'Cortes de Agrupacion'!$E$15,'Resultados General'!L23<='Cortes de Agrupacion'!$F$14,'Cortes de Agrupacion'!$E$14,'Resultados General'!L23<='Cortes de Agrupacion'!$F$13,'Cortes de Agrupacion'!$E$13,L23<='Cortes de Agrupacion'!$F$12,'Cortes de Agrupacion'!$E$12,'Resultados General'!L23<='Cortes de Agrupacion'!$F$11,'Cortes de Agrupacion'!$E$11,'Resultados General'!L23<='Cortes de Agrupacion'!$F$10,'Cortes de Agrupacion'!$E$10,'Resultados General'!L23<='Cortes de Agrupacion'!$F$9,'Cortes de Agrupacion'!$E$9,'Resultados General'!L23<='Cortes de Agrupacion'!$F$8,'Cortes de Agrupacion'!$E$8,'Resultados General'!L23<='Cortes de Agrupacion'!$F$7,'Cortes de Agrupacion'!$E$7,'Resultados General'!L23<='Cortes de Agrupacion'!$F$6,'Cortes de Agrupacion'!$E$6)) ->  | M23: =+_xlfn.IFNA(VLOOKUP(C23,'Distribución de puestos'!$B$8:$I$507,8,0),"") ->  | N23: =+IF(VLOOKUP($B23,'Lista Puestos Valorados'!$B$11:$BK$510,MATCH('Auxiliar General'!H$4,'Lista Puestos Valorados'!$B$10:$BK$10,0),0)="","No relevante",VLOOKUP($B23,'Lista Puestos Valorados'!$B$11:$BK$510,MATCH('Auxiliar General'!H$4,'Lista Puestos Valorados'!$B$10:$BK$10,0),0)) -> No relevante | O23: =+HLOOKUP(N23,Sistema_Puntos!$Q$5:$Y$43,'Auxiliar General'!J$5,FALSE) -> 0 | P23: =+IF(VLOOKUP($B23,'Lista Puestos Valorados'!$B$11:$BK$510,MATCH('Auxiliar General'!J$4,'Lista Puestos Valorados'!$B$10:$BK$10,0),0)="","No relevante",VLOOKUP($B23,'Lista Puestos Valorados'!$B$11:$BK$510,MATCH('Auxiliar General'!J$4,'Lista Puestos Valorados'!$B$10:$BK$10,0),0)) -> No relevante | Q23: =+HLOOKUP(P23,Sistema_Puntos!$Q$5:$Y$43,'Auxiliar General'!L$5,FALSE) -> 0 | R23: =+IF(VLOOKUP($B23,'Lista Puestos Valorados'!$B$11:$BK$510,MATCH('Auxiliar General'!L$4,'Lista Puestos Valorados'!$B$10:$BK$10,0),0)="","No relevante",VLOOKUP($B23,'Lista Puestos Valorados'!$B$11:$BK$510,MATCH('Auxiliar General'!L$4,'Lista Puestos Valorados'!$B$10:$BK$10,0),0)) -> No relevante | S23: =+HLOOKUP(R23,Sistema_Puntos!$Q$5:$Y$43,'Auxiliar General'!N$5,FALSE) -> 0 | T23: =+IF(VLOOKUP($B23,'Lista Puestos Valorados'!$B$11:$BK$510,MATCH('Auxiliar General'!N$4,'Lista Puestos Valorados'!$B$10:$BK$10,0),0)="","No relevante",VLOOKUP($B23,'Lista Puestos Valorados'!$B$11:$BK$510,MATCH('Auxiliar General'!N$4,'Lista Puestos Valorados'!$B$10:$BK$10,0),0)) -> No relevante | U23: =+HLOOKUP(T23,Sistema_Puntos!$Q$5:$Y$43,'Auxiliar General'!P$5,FALSE) -> 0 | V23: =+IF(VLOOKUP($B23,'Lista Puestos Valorados'!$B$11:$BK$510,MATCH('Auxiliar General'!P$4,'Lista Puestos Valorados'!$B$10:$BK$10,0),0)="","No relevante",VLOOKUP($B23,'Lista Puestos Valorados'!$B$11:$BK$510,MATCH('Auxiliar General'!P$4,'Lista Puestos Valorados'!$B$10:$BK$10,0),0)) -> No relevante | W23: =+HLOOKUP(V23,Sistema_Puntos!$Q$5:$Y$43,'Auxiliar General'!R$5,FALSE) -> 0 | X23: =+IF(VLOOKUP($B23,'Lista Puestos Valorados'!$B$11:$BK$510,MATCH('Auxiliar General'!R$4,'Lista Puestos Valorados'!$B$10:$BK$10,0),0)="","No relevante",VLOOKUP($B23,'Lista Puestos Valorados'!$B$11:$BK$510,MATCH('Auxiliar General'!R$4,'Lista Puestos Valorados'!$B$10:$BK$10,0),0)) -> No relevante | Y23: =+HLOOKUP(X23,Sistema_Puntos!$Q$5:$Y$43,'Auxiliar General'!T$5,FALSE) -> 0 | Z23: =+IF(VLOOKUP($B23,'Lista Puestos Valorados'!$B$11:$BK$510,MATCH('Auxiliar General'!T$4,'Lista Puestos Valorados'!$B$10:$BK$10,0),0)="","No relevante",VLOOKUP($B23,'Lista Puestos Valorados'!$B$11:$BK$510,MATCH('Auxiliar General'!T$4,'Lista Puestos Valorados'!$B$10:$BK$10,0),0)) -> No relevante | AA23: =+HLOOKUP(Z23,Sistema_Puntos!$Q$5:$Y$43,'Auxiliar General'!V$5,FALSE) -> 0 | AB23: =+IF(VLOOKUP($B23,'Lista Puestos Valorados'!$B$11:$BK$510,MATCH('Auxiliar General'!V$4,'Lista Puestos Valorados'!$B$10:$BK$10,0),0)="","No relevante",VLOOKUP($B23,'Lista Puestos Valorados'!$B$11:$BK$510,MATCH('Auxiliar General'!V$4,'Lista Puestos Valorados'!$B$10:$BK$10,0),0)) -> No relevante | AC23: =+HLOOKUP(AB23,Sistema_Puntos!$Q$5:$Y$43,'Auxiliar General'!X$5,FALSE) -> 0 | AD23: =+IF(VLOOKUP($B23,'Lista Puestos Valorados'!$B$11:$BK$510,MATCH('Auxiliar General'!X$4,'Lista Puestos Valorados'!$B$10:$BK$10,0),0)="","No relevante",VLOOKUP($B23,'Lista Puestos Valorados'!$B$11:$BK$510,MATCH('Auxiliar General'!X$4,'Lista Puestos Valorados'!$B$10:$BK$10,0),0)) -> No relevante | AE23: =+HLOOKUP(AD23,Sistema_Puntos!$Q$5:$Y$43,'Auxiliar General'!Z$5,FALSE) -> 0 | AF23: =+IF(VLOOKUP($B23,'Lista Puestos Valorados'!$B$11:$BK$510,MATCH('Auxiliar General'!Z$4,'Lista Puestos Valorados'!$B$10:$BK$10,0),0)="","No relevante",VLOOKUP($B23,'Lista Puestos Valorados'!$B$11:$BK$510,MATCH('Auxiliar General'!Z$4,'Lista Puestos Valorados'!$B$10:$BK$10,0),0)) -> No relevante | AG23: =+HLOOKUP(AF23,Sistema_Puntos!$Q$5:$Y$43,'Auxiliar General'!AB$5,FALSE) -> 0 | AH23: =+IF(VLOOKUP($B23,'Lista Puestos Valorados'!$B$11:$BK$510,MATCH('Auxiliar General'!AB$4,'Lista Puestos Valorados'!$B$10:$BK$10,0),0)="","No relevante",VLOOKUP($B23,'Lista Puestos Valorados'!$B$11:$BK$510,MATCH('Auxiliar General'!AB$4,'Lista Puestos Valorados'!$B$10:$BK$10,0),0)) -> No relevante | AI23: =+HLOOKUP(AH23,Sistema_Puntos!$Q$5:$Y$43,'Auxiliar General'!AD$5,FALSE) -> 0 | AJ23: =+IF(VLOOKUP($B23,'Lista Puestos Valorados'!$B$11:$BK$510,MATCH('Auxiliar General'!AD$4,'Lista Puestos Valorados'!$B$10:$BK$10,0),0)="","No relevante",VLOOKUP($B23,'Lista Puestos Valorados'!$B$11:$BK$510,MATCH('Auxiliar General'!AD$4,'Lista Puestos Valorados'!$B$10:$BK$10,0),0)) -> No relevante | AK23: =+HLOOKUP(AJ23,Sistema_Puntos!$Q$5:$Y$43,'Auxiliar General'!AF$5,FALSE) -> 0 | AL23: =+IF(VLOOKUP($B23,'Lista Puestos Valorados'!$B$11:$BK$510,MATCH('Auxiliar General'!AF$4,'Lista Puestos Valorados'!$B$10:$BK$10,0),0)="","No relevante",VLOOKUP($B23,'Lista Puestos Valorados'!$B$11:$BK$510,MATCH('Auxiliar General'!AF$4,'Lista Puestos Valorados'!$B$10:$BK$10,0),0)) -> No relevante | AM23: =+HLOOKUP(AL23,Sistema_Puntos!$Q$5:$Y$43,'Auxiliar General'!AH$5,FALSE) -> 0 | AN23: =+IF(VLOOKUP($B23,'Lista Puestos Valorados'!$B$11:$BK$510,MATCH('Auxiliar General'!AH$4,'Lista Puestos Valorados'!$B$10:$BK$10,0),0)="","No relevante",VLOOKUP($B23,'Lista Puestos Valorados'!$B$11:$BK$510,MATCH('Auxiliar General'!AH$4,'Lista Puestos Valorados'!$B$10:$BK$10,0),0)) -> No relevante | AO23: =+HLOOKUP(AN23,Sistema_Puntos!$Q$5:$Y$43,'Auxiliar General'!AJ$5,FALSE) -> 0 | AP23: =+IF(VLOOKUP($B23,'Lista Puestos Valorados'!$B$11:$BK$510,MATCH('Auxiliar General'!AJ$4,'Lista Puestos Valorados'!$B$10:$BK$10,0),0)="","No relevante",VLOOKUP($B23,'Lista Puestos Valorados'!$B$11:$BK$510,MATCH('Auxiliar General'!AJ$4,'Lista Puestos Valorados'!$B$10:$BK$10,0),0)) -> No relevante | AQ23: =+HLOOKUP(AP23,Sistema_Puntos!$Q$5:$Y$43,'Auxiliar General'!AL$5,FALSE) -> 0 | AR23: =+IF(VLOOKUP($B23,'Lista Puestos Valorados'!$B$11:$BK$510,MATCH('Auxiliar General'!AL$4,'Lista Puestos Valorados'!$B$10:$BK$10,0),0)="","No relevante",VLOOKUP($B23,'Lista Puestos Valorados'!$B$11:$BK$510,MATCH('Auxiliar General'!AL$4,'Lista Puestos Valorados'!$B$10:$BK$10,0),0)) -> No relevante | AS23: =+HLOOKUP(AR23,Sistema_Puntos!$Q$5:$Y$43,'Auxiliar General'!AN$5,FALSE) -> 0 | AT23: =+IF(VLOOKUP($B23,'Lista Puestos Valorados'!$B$11:$BK$510,MATCH('Auxiliar General'!AN$4,'Lista Puestos Valorados'!$B$10:$BK$10,0),0)="","No relevante",VLOOKUP($B23,'Lista Puestos Valorados'!$B$11:$BK$510,MATCH('Auxiliar General'!AN$4,'Lista Puestos Valorados'!$B$10:$BK$10,0),0)) -> No relevante | AU23: =+HLOOKUP(AT23,Sistema_Puntos!$Q$5:$Y$43,'Auxiliar General'!AP$5,FALSE) -> 0 | AV23: =+IF(VLOOKUP($B23,'Lista Puestos Valorados'!$B$11:$BK$510,MATCH('Auxiliar General'!AP$4,'Lista Puestos Valorados'!$B$10:$BK$10,0),0)="","No relevante",VLOOKUP($B23,'Lista Puestos Valorados'!$B$11:$BK$510,MATCH('Auxiliar General'!AP$4,'Lista Puestos Valorados'!$B$10:$BK$10,0),0)) -> No relevante | AW23: =+HLOOKUP(AV23,Sistema_Puntos!$Q$5:$Y$43,'Auxiliar General'!AR$5,FALSE) -> 0 | AX23: =+IF(VLOOKUP($B23,'Lista Puestos Valorados'!$B$11:$BK$510,MATCH('Auxiliar General'!AR$4,'Lista Puestos Valorados'!$B$10:$BK$10,0),0)="","No relevante",VLOOKUP($B23,'Lista Puestos Valorados'!$B$11:$BK$510,MATCH('Auxiliar General'!AR$4,'Lista Puestos Valorados'!$B$10:$BK$10,0),0)) -> No relevante | AY23: =+HLOOKUP(AX23,Sistema_Puntos!$Q$5:$Y$43,'Auxiliar General'!AT$5,FALSE) -> 0 | AZ23: =+IF(VLOOKUP($B23,'Lista Puestos Valorados'!$B$11:$BK$510,MATCH('Auxiliar General'!AT$4,'Lista Puestos Valorados'!$B$10:$BK$10,0),0)="","No relevante",VLOOKUP($B23,'Lista Puestos Valorados'!$B$11:$BK$510,MATCH('Auxiliar General'!AT$4,'Lista Puestos Valorados'!$B$10:$BK$10,0),0)) -> No relevante | BA23: =+HLOOKUP(AZ23,Sistema_Puntos!$Q$5:$Y$43,'Auxiliar General'!AV$5,FALSE) -> 0 | BB23: =+IF(VLOOKUP($B23,'Lista Puestos Valorados'!$B$11:$BK$510,MATCH('Auxiliar General'!AV$4,'Lista Puestos Valorados'!$B$10:$BK$10,0),0)="","No relevante",VLOOKUP($B23,'Lista Puestos Valorados'!$B$11:$BK$510,MATCH('Auxiliar General'!AV$4,'Lista Puestos Valorados'!$B$10:$BK$10,0),0)) -> No relevante | BC23: =+HLOOKUP(BB23,Sistema_Puntos!$Q$5:$Y$43,'Auxiliar General'!AX$5,FALSE) -> 0 | BD23: =+IF(VLOOKUP($B23,'Lista Puestos Valorados'!$B$11:$BK$510,MATCH('Auxiliar General'!AX$4,'Lista Puestos Valorados'!$B$10:$BK$10,0),0)="","No relevante",VLOOKUP($B23,'Lista Puestos Valorados'!$B$11:$BK$510,MATCH('Auxiliar General'!AX$4,'Lista Puestos Valorados'!$B$10:$BK$10,0),0)) -> No relevante | BE23: =+HLOOKUP(BD23,Sistema_Puntos!$Q$5:$Y$43,'Auxiliar General'!AZ$5,FALSE) -> 0 | BF23: =+IF(VLOOKUP($B23,'Lista Puestos Valorados'!$B$11:$BK$510,MATCH('Auxiliar General'!AZ$4,'Lista Puestos Valorados'!$B$10:$BK$10,0),0)="","No relevante",VLOOKUP($B23,'Lista Puestos Valorados'!$B$11:$BK$510,MATCH('Auxiliar General'!AZ$4,'Lista Puestos Valorados'!$B$10:$BK$10,0),0)) -> No relevante | BG23: =+HLOOKUP(BF23,Sistema_Puntos!$Q$5:$Y$43,'Auxiliar General'!BB$5,FALSE) -> 0 | BH23: =+IF(VLOOKUP($B23,'Lista Puestos Valorados'!$B$11:$BK$510,MATCH('Auxiliar General'!BB$4,'Lista Puestos Valorados'!$B$10:$BK$10,0),0)="","No relevante",VLOOKUP($B23,'Lista Puestos Valorados'!$B$11:$BK$510,MATCH('Auxiliar General'!BB$4,'Lista Puestos Valorados'!$B$10:$BK$10,0),0)) -> No relevante | BI23: =+HLOOKUP(BH23,Sistema_Puntos!$Q$5:$Y$43,'Auxiliar General'!BD$5,FALSE) -> 0 | BJ23: =+IF(VLOOKUP($B23,'Lista Puestos Valorados'!$B$11:$BK$510,MATCH('Auxiliar General'!BD$4,'Lista Puestos Valorados'!$B$10:$BK$10,0),0)="","No relevante",VLOOKUP($B23,'Lista Puestos Valorados'!$B$11:$BK$510,MATCH('Auxiliar General'!BD$4,'Lista Puestos Valorados'!$B$10:$BK$10,0),0)) -> No relevante | BK23: =+HLOOKUP(BJ23,Sistema_Puntos!$Q$5:$Y$43,'Auxiliar General'!BF$5,FALSE) -> 0 | BL23: =+IF(VLOOKUP($B23,'Lista Puestos Valorados'!$B$11:$BK$510,MATCH('Auxiliar General'!BF$4,'Lista Puestos Valorados'!$B$10:$BK$10,0),0)="","No relevante",VLOOKUP($B23,'Lista Puestos Valorados'!$B$11:$BK$510,MATCH('Auxiliar General'!BF$4,'Lista Puestos Valorados'!$B$10:$BK$10,0),0)) -> No relevante | BM23: =+HLOOKUP(BL23,Sistema_Puntos!$Q$5:$Y$43,'Auxiliar General'!BH$5,FALSE) -> 0 | BN23: =+IF(VLOOKUP($B23,'Lista Puestos Valorados'!$B$11:$BK$510,MATCH('Auxiliar General'!BH$4,'Lista Puestos Valorados'!$B$10:$BK$10,0),0)="","No relevante",VLOOKUP($B23,'Lista Puestos Valorados'!$B$11:$BK$510,MATCH('Auxiliar General'!BH$4,'Lista Puestos Valorados'!$B$10:$BK$10,0),0)) -> No relevante | BO23: =+HLOOKUP(BN23,Sistema_Puntos!$Q$5:$Y$43,'Auxiliar General'!BJ$5,FALSE) -> 0 | BP23: =+IF(VLOOKUP($B23,'Lista Puestos Valorados'!$B$11:$BK$510,MATCH('Auxiliar General'!BJ$4,'Lista Puestos Valorados'!$B$10:$BK$10,0),0)="","No relevante",VLOOKUP($B23,'Lista Puestos Valorados'!$B$11:$BK$510,MATCH('Auxiliar General'!BJ$4,'Lista Puestos Valorados'!$B$10:$BK$10,0),0)) -> No relevante | BQ23: =+HLOOKUP(BP23,Sistema_Puntos!$Q$5:$Y$43,'Auxiliar General'!BL$5,FALSE) -> 0 | BR23: =+IF(VLOOKUP($B23,'Lista Puestos Valorados'!$B$11:$BK$510,MATCH('Auxiliar General'!BL$4,'Lista Puestos Valorados'!$B$10:$BK$10,0),0)="","No relevante",VLOOKUP($B23,'Lista Puestos Valorados'!$B$11:$BK$510,MATCH('Auxiliar General'!BL$4,'Lista Puestos Valorados'!$B$10:$BK$10,0),0)) -> No relevante | BS23: =+HLOOKUP(BR23,Sistema_Puntos!$Q$5:$Y$43,'Auxiliar General'!BN$5,FALSE) -> 0 | BT23: =+IF(VLOOKUP($B23,'Lista Puestos Valorados'!$B$11:$BK$510,MATCH('Auxiliar General'!BN$4,'Lista Puestos Valorados'!$B$10:$BK$10,0),0)="","No relevante",VLOOKUP($B23,'Lista Puestos Valorados'!$B$11:$BK$510,MATCH('Auxiliar General'!BN$4,'Lista Puestos Valorados'!$B$10:$BK$10,0),0)) -> No relevante | BU23: =+HLOOKUP(BT23,Sistema_Puntos!$Q$5:$Y$43,'Auxiliar General'!BP$5,FALSE) -> 0 | BV23: =+IF(VLOOKUP($B23,'Lista Puestos Valorados'!$B$11:$BK$510,MATCH('Auxiliar General'!BP$4,'Lista Puestos Valorados'!$B$10:$BK$10,0),0)="","No relevante",VLOOKUP($B23,'Lista Puestos Valorados'!$B$11:$BK$510,MATCH('Auxiliar General'!BP$4,'Lista Puestos Valorados'!$B$10:$BK$10,0),0)) -> No relevante | BW23: =+HLOOKUP(BV23,Sistema_Puntos!$Q$5:$Y$43,'Auxiliar General'!BR$5,FALSE) -> 0 | BX23: =+IF(VLOOKUP($B23,'Lista Puestos Valorados'!$B$11:$BK$510,MATCH('Auxiliar General'!BR$4,'Lista Puestos Valorados'!$B$10:$BK$10,0),0)="","No relevante",VLOOKUP($B23,'Lista Puestos Valorados'!$B$11:$BK$510,MATCH('Auxiliar General'!BR$4,'Lista Puestos Valorados'!$B$10:$BK$10,0),0)) -> No relevante | BY23: =+HLOOKUP(BX23,Sistema_Puntos!$Q$5:$Y$43,'Auxiliar General'!BT$5,FALSE) -> 0 | BZ23: =+IF(VLOOKUP($B23,'Lista Puestos Valorados'!$B$11:$BK$510,MATCH('Auxiliar General'!BT$4,'Lista Puestos Valorados'!$B$10:$BK$10,0),0)="","No relevante",VLOOKUP($B23,'Lista Puestos Valorados'!$B$11:$BK$510,MATCH('Auxiliar General'!BT$4,'Lista Puestos Valorados'!$B$10:$BK$10,0),0)) -> No relevante | CA23: =+HLOOKUP(BZ23,Sistema_Puntos!$Q$5:$Y$43,'Auxiliar General'!BV$5,FALSE) -> 0 | CB23: =+IF(VLOOKUP($B23,'Lista Puestos Valorados'!$B$11:$BK$510,MATCH('Auxiliar General'!BV$4,'Lista Puestos Valorados'!$B$10:$BK$10,0),0)="","No relevante",VLOOKUP($B23,'Lista Puestos Valorados'!$B$11:$BK$510,MATCH('Auxiliar General'!BV$4,'Lista Puestos Valorados'!$B$10:$BK$10,0),0)) -> No relevante | CC23: =+HLOOKUP(CB23,Sistema_Puntos!$Q$5:$Y$43,'Auxiliar General'!BX$5,FALSE) -> 0 | CD23: =+IF(VLOOKUP($B23,'Lista Puestos Valorados'!$B$11:$BK$510,MATCH('Auxiliar General'!BX$4,'Lista Puestos Valorados'!$B$10:$BK$10,0),0)="","No relevante",VLOOKUP($B23,'Lista Puestos Valorados'!$B$11:$BK$510,MATCH('Auxiliar General'!BX$4,'Lista Puestos Valorados'!$B$10:$BK$10,0),0)) -> No relevante | CE23: =+HLOOKUP(CD23,Sistema_Puntos!$Q$5:$Y$43,'Auxiliar General'!BZ$5,FALSE) -> 0 | CF23: =+IF(VLOOKUP($B23,'Lista Puestos Valorados'!$B$11:$BK$510,MATCH('Auxiliar General'!BZ$4,'Lista Puestos Valorados'!$B$10:$BK$10,0),0)="","No relevante",VLOOKUP($B23,'Lista Puestos Valorados'!$B$11:$BK$510,MATCH('Auxiliar General'!BZ$4,'Lista Puestos Valorados'!$B$10:$BK$10,0),0)) -> No relevante | CG23: =+HLOOKUP(CF23,Sistema_Puntos!$Q$5:$Y$43,'Auxiliar General'!CB$5,FALSE) -> 0
B24: =+'Listado de Puestos'!B24 -> 14 | C24: =+IF('Lista Puestos Valorados'!C24="","",'Lista Puestos Valorados'!C24) ->  | D24: =+IF('Lista Puestos Valorados'!D24="","",'Lista Puestos Valorados'!D24) ->  | E24: =+IF('Lista Puestos Valorados'!E24="","",'Lista Puestos Valorados'!E24) ->  | F24: =+IF('Lista Puestos Valorados'!F24="","",'Lista Puestos Valorados'!F24) ->  | G24: =+IF('Lista Puestos Valorados'!G24="","",'Lista Puestos Valorados'!G24) ->  | H24: =+IF('Lista Puestos Valorados'!H24="","",'Lista Puestos Valorados'!H24) ->  | I24: =+IF('Lista Puestos Valorados'!I24="","",'Lista Puestos Valorados'!I24) ->  | J24: =+IF(L24="","",_xlfn.IFS(L24<='Cortes de Agrupacion'!$F$15,'Cortes de Agrupacion'!$E$15,'Resultados General'!L24<='Cortes de Agrupacion'!$F$14,'Cortes de Agrupacion'!$E$14,'Resultados General'!L24<='Cortes de Agrupacion'!$F$13,'Cortes de Agrupacion'!$E$13,L24<='Cortes de Agrupacion'!$F$12,'Cortes de Agrupacion'!$E$12,'Resultados General'!L24<='Cortes de Agrupacion'!$F$11,'Cortes de Agrupacion'!$E$11,'Resultados General'!L24<='Cortes de Agrupacion'!$F$10,'Cortes de Agrupacion'!$E$10,'Resultados General'!L24<='Cortes de Agrupacion'!$F$9,'Cortes de Agrupacion'!$E$9,'Resultados General'!L24<='Cortes de Agrupacion'!$F$8,'Cortes de Agrupacion'!$E$8,'Resultados General'!L24<='Cortes de Agrupacion'!$F$7,'Cortes de Agrupacion'!$E$7,'Resultados General'!L24<='Cortes de Agrupacion'!$F$6,'Cortes de Agrupacion'!$E$6)) ->  | M24: =+_xlfn.IFNA(VLOOKUP(C24,'Distribución de puestos'!$B$8:$I$507,8,0),"") ->  | N24: =+IF(VLOOKUP($B24,'Lista Puestos Valorados'!$B$11:$BK$510,MATCH('Auxiliar General'!H$4,'Lista Puestos Valorados'!$B$10:$BK$10,0),0)="","No relevante",VLOOKUP($B24,'Lista Puestos Valorados'!$B$11:$BK$510,MATCH('Auxiliar General'!H$4,'Lista Puestos Valorados'!$B$10:$BK$10,0),0)) -> No relevante | O24: =+HLOOKUP(N24,Sistema_Puntos!$Q$5:$Y$43,'Auxiliar General'!J$5,FALSE) -> 0 | P24: =+IF(VLOOKUP($B24,'Lista Puestos Valorados'!$B$11:$BK$510,MATCH('Auxiliar General'!J$4,'Lista Puestos Valorados'!$B$10:$BK$10,0),0)="","No relevante",VLOOKUP($B24,'Lista Puestos Valorados'!$B$11:$BK$510,MATCH('Auxiliar General'!J$4,'Lista Puestos Valorados'!$B$10:$BK$10,0),0)) -> No relevante | Q24: =+HLOOKUP(P24,Sistema_Puntos!$Q$5:$Y$43,'Auxiliar General'!L$5,FALSE) -> 0 | R24: =+IF(VLOOKUP($B24,'Lista Puestos Valorados'!$B$11:$BK$510,MATCH('Auxiliar General'!L$4,'Lista Puestos Valorados'!$B$10:$BK$10,0),0)="","No relevante",VLOOKUP($B24,'Lista Puestos Valorados'!$B$11:$BK$510,MATCH('Auxiliar General'!L$4,'Lista Puestos Valorados'!$B$10:$BK$10,0),0)) -> No relevante | S24: =+HLOOKUP(R24,Sistema_Puntos!$Q$5:$Y$43,'Auxiliar General'!N$5,FALSE) -> 0 | T24: =+IF(VLOOKUP($B24,'Lista Puestos Valorados'!$B$11:$BK$510,MATCH('Auxiliar General'!N$4,'Lista Puestos Valorados'!$B$10:$BK$10,0),0)="","No relevante",VLOOKUP($B24,'Lista Puestos Valorados'!$B$11:$BK$510,MATCH('Auxiliar General'!N$4,'Lista Puestos Valorados'!$B$10:$BK$10,0),0)) -> No relevante | U24: =+HLOOKUP(T24,Sistema_Puntos!$Q$5:$Y$43,'Auxiliar General'!P$5,FALSE) -> 0 | V24: =+IF(VLOOKUP($B24,'Lista Puestos Valorados'!$B$11:$BK$510,MATCH('Auxiliar General'!P$4,'Lista Puestos Valorados'!$B$10:$BK$10,0),0)="","No relevante",VLOOKUP($B24,'Lista Puestos Valorados'!$B$11:$BK$510,MATCH('Auxiliar General'!P$4,'Lista Puestos Valorados'!$B$10:$BK$10,0),0)) -> No relevante | W24: =+HLOOKUP(V24,Sistema_Puntos!$Q$5:$Y$43,'Auxiliar General'!R$5,FALSE) -> 0 | X24: =+IF(VLOOKUP($B24,'Lista Puestos Valorados'!$B$11:$BK$510,MATCH('Auxiliar General'!R$4,'Lista Puestos Valorados'!$B$10:$BK$10,0),0)="","No relevante",VLOOKUP($B24,'Lista Puestos Valorados'!$B$11:$BK$510,MATCH('Auxiliar General'!R$4,'Lista Puestos Valorados'!$B$10:$BK$10,0),0)) -> No relevante | Y24: =+HLOOKUP(X24,Sistema_Puntos!$Q$5:$Y$43,'Auxiliar General'!T$5,FALSE) -> 0 | Z24: =+IF(VLOOKUP($B24,'Lista Puestos Valorados'!$B$11:$BK$510,MATCH('Auxiliar General'!T$4,'Lista Puestos Valorados'!$B$10:$BK$10,0),0)="","No relevante",VLOOKUP($B24,'Lista Puestos Valorados'!$B$11:$BK$510,MATCH('Auxiliar General'!T$4,'Lista Puestos Valorados'!$B$10:$BK$10,0),0)) -> No relevante | AA24: =+HLOOKUP(Z24,Sistema_Puntos!$Q$5:$Y$43,'Auxiliar General'!V$5,FALSE) -> 0 | AB24: =+IF(VLOOKUP($B24,'Lista Puestos Valorados'!$B$11:$BK$510,MATCH('Auxiliar General'!V$4,'Lista Puestos Valorados'!$B$10:$BK$10,0),0)="","No relevante",VLOOKUP($B24,'Lista Puestos Valorados'!$B$11:$BK$510,MATCH('Auxiliar General'!V$4,'Lista Puestos Valorados'!$B$10:$BK$10,0),0)) -> No relevante | AC24: =+HLOOKUP(AB24,Sistema_Puntos!$Q$5:$Y$43,'Auxiliar General'!X$5,FALSE) -> 0 | AD24: =+IF(VLOOKUP($B24,'Lista Puestos Valorados'!$B$11:$BK$510,MATCH('Auxiliar General'!X$4,'Lista Puestos Valorados'!$B$10:$BK$10,0),0)="","No relevante",VLOOKUP($B24,'Lista Puestos Valorados'!$B$11:$BK$510,MATCH('Auxiliar General'!X$4,'Lista Puestos Valorados'!$B$10:$BK$10,0),0)) -> No relevante | AE24: =+HLOOKUP(AD24,Sistema_Puntos!$Q$5:$Y$43,'Auxiliar General'!Z$5,FALSE) -> 0 | AF24: =+IF(VLOOKUP($B24,'Lista Puestos Valorados'!$B$11:$BK$510,MATCH('Auxiliar General'!Z$4,'Lista Puestos Valorados'!$B$10:$BK$10,0),0)="","No relevante",VLOOKUP($B24,'Lista Puestos Valorados'!$B$11:$BK$510,MATCH('Auxiliar General'!Z$4,'Lista Puestos Valorados'!$B$10:$BK$10,0),0)) -> No relevante | AG24: =+HLOOKUP(AF24,Sistema_Puntos!$Q$5:$Y$43,'Auxiliar General'!AB$5,FALSE) -> 0 | AH24: =+IF(VLOOKUP($B24,'Lista Puestos Valorados'!$B$11:$BK$510,MATCH('Auxiliar General'!AB$4,'Lista Puestos Valorados'!$B$10:$BK$10,0),0)="","No relevante",VLOOKUP($B24,'Lista Puestos Valorados'!$B$11:$BK$510,MATCH('Auxiliar General'!AB$4,'Lista Puestos Valorados'!$B$10:$BK$10,0),0)) -> No relevante | AI24: =+HLOOKUP(AH24,Sistema_Puntos!$Q$5:$Y$43,'Auxiliar General'!AD$5,FALSE) -> 0 | AJ24: =+IF(VLOOKUP($B24,'Lista Puestos Valorados'!$B$11:$BK$510,MATCH('Auxiliar General'!AD$4,'Lista Puestos Valorados'!$B$10:$BK$10,0),0)="","No relevante",VLOOKUP($B24,'Lista Puestos Valorados'!$B$11:$BK$510,MATCH('Auxiliar General'!AD$4,'Lista Puestos Valorados'!$B$10:$BK$10,0),0)) -> No relevante | AK24: =+HLOOKUP(AJ24,Sistema_Puntos!$Q$5:$Y$43,'Auxiliar General'!AF$5,FALSE) -> 0 | AL24: =+IF(VLOOKUP($B24,'Lista Puestos Valorados'!$B$11:$BK$510,MATCH('Auxiliar General'!AF$4,'Lista Puestos Valorados'!$B$10:$BK$10,0),0)="","No relevante",VLOOKUP($B24,'Lista Puestos Valorados'!$B$11:$BK$510,MATCH('Auxiliar General'!AF$4,'Lista Puestos Valorados'!$B$10:$BK$10,0),0)) -> No relevante | AM24: =+HLOOKUP(AL24,Sistema_Puntos!$Q$5:$Y$43,'Auxiliar General'!AH$5,FALSE) -> 0 | AN24: =+IF(VLOOKUP($B24,'Lista Puestos Valorados'!$B$11:$BK$510,MATCH('Auxiliar General'!AH$4,'Lista Puestos Valorados'!$B$10:$BK$10,0),0)="","No relevante",VLOOKUP($B24,'Lista Puestos Valorados'!$B$11:$BK$510,MATCH('Auxiliar General'!AH$4,'Lista Puestos Valorados'!$B$10:$BK$10,0),0)) -> No relevante | AO24: =+HLOOKUP(AN24,Sistema_Puntos!$Q$5:$Y$43,'Auxiliar General'!AJ$5,FALSE) -> 0 | AP24: =+IF(VLOOKUP($B24,'Lista Puestos Valorados'!$B$11:$BK$510,MATCH('Auxiliar General'!AJ$4,'Lista Puestos Valorados'!$B$10:$BK$10,0),0)="","No relevante",VLOOKUP($B24,'Lista Puestos Valorados'!$B$11:$BK$510,MATCH('Auxiliar General'!AJ$4,'Lista Puestos Valorados'!$B$10:$BK$10,0),0)) -> No relevante | AQ24: =+HLOOKUP(AP24,Sistema_Puntos!$Q$5:$Y$43,'Auxiliar General'!AL$5,FALSE) -> 0 | AR24: =+IF(VLOOKUP($B24,'Lista Puestos Valorados'!$B$11:$BK$510,MATCH('Auxiliar General'!AL$4,'Lista Puestos Valorados'!$B$10:$BK$10,0),0)="","No relevante",VLOOKUP($B24,'Lista Puestos Valorados'!$B$11:$BK$510,MATCH('Auxiliar General'!AL$4,'Lista Puestos Valorados'!$B$10:$BK$10,0),0)) -> No relevante | AS24: =+HLOOKUP(AR24,Sistema_Puntos!$Q$5:$Y$43,'Auxiliar General'!AN$5,FALSE) -> 0 | AT24: =+IF(VLOOKUP($B24,'Lista Puestos Valorados'!$B$11:$BK$510,MATCH('Auxiliar General'!AN$4,'Lista Puestos Valorados'!$B$10:$BK$10,0),0)="","No relevante",VLOOKUP($B24,'Lista Puestos Valorados'!$B$11:$BK$510,MATCH('Auxiliar General'!AN$4,'Lista Puestos Valorados'!$B$10:$BK$10,0),0)) -> No relevante | AU24: =+HLOOKUP(AT24,Sistema_Puntos!$Q$5:$Y$43,'Auxiliar General'!AP$5,FALSE) -> 0 | AV24: =+IF(VLOOKUP($B24,'Lista Puestos Valorados'!$B$11:$BK$510,MATCH('Auxiliar General'!AP$4,'Lista Puestos Valorados'!$B$10:$BK$10,0),0)="","No relevante",VLOOKUP($B24,'Lista Puestos Valorados'!$B$11:$BK$510,MATCH('Auxiliar General'!AP$4,'Lista Puestos Valorados'!$B$10:$BK$10,0),0)) -> No relevante | AW24: =+HLOOKUP(AV24,Sistema_Puntos!$Q$5:$Y$43,'Auxiliar General'!AR$5,FALSE) -> 0 | AX24: =+IF(VLOOKUP($B24,'Lista Puestos Valorados'!$B$11:$BK$510,MATCH('Auxiliar General'!AR$4,'Lista Puestos Valorados'!$B$10:$BK$10,0),0)="","No relevante",VLOOKUP($B24,'Lista Puestos Valorados'!$B$11:$BK$510,MATCH('Auxiliar General'!AR$4,'Lista Puestos Valorados'!$B$10:$BK$10,0),0)) -> No relevante | AY24: =+HLOOKUP(AX24,Sistema_Puntos!$Q$5:$Y$43,'Auxiliar General'!AT$5,FALSE) -> 0 | AZ24: =+IF(VLOOKUP($B24,'Lista Puestos Valorados'!$B$11:$BK$510,MATCH('Auxiliar General'!AT$4,'Lista Puestos Valorados'!$B$10:$BK$10,0),0)="","No relevante",VLOOKUP($B24,'Lista Puestos Valorados'!$B$11:$BK$510,MATCH('Auxiliar General'!AT$4,'Lista Puestos Valorados'!$B$10:$BK$10,0),0)) -> No relevante | BA24: =+HLOOKUP(AZ24,Sistema_Puntos!$Q$5:$Y$43,'Auxiliar General'!AV$5,FALSE) -> 0 | BB24: =+IF(VLOOKUP($B24,'Lista Puestos Valorados'!$B$11:$BK$510,MATCH('Auxiliar General'!AV$4,'Lista Puestos Valorados'!$B$10:$BK$10,0),0)="","No relevante",VLOOKUP($B24,'Lista Puestos Valorados'!$B$11:$BK$510,MATCH('Auxiliar General'!AV$4,'Lista Puestos Valorados'!$B$10:$BK$10,0),0)) -> No relevante | BC24: =+HLOOKUP(BB24,Sistema_Puntos!$Q$5:$Y$43,'Auxiliar General'!AX$5,FALSE) -> 0 | BD24: =+IF(VLOOKUP($B24,'Lista Puestos Valorados'!$B$11:$BK$510,MATCH('Auxiliar General'!AX$4,'Lista Puestos Valorados'!$B$10:$BK$10,0),0)="","No relevante",VLOOKUP($B24,'Lista Puestos Valorados'!$B$11:$BK$510,MATCH('Auxiliar General'!AX$4,'Lista Puestos Valorados'!$B$10:$BK$10,0),0)) -> No relevante | BE24: =+HLOOKUP(BD24,Sistema_Puntos!$Q$5:$Y$43,'Auxiliar General'!AZ$5,FALSE) -> 0 | BF24: =+IF(VLOOKUP($B24,'Lista Puestos Valorados'!$B$11:$BK$510,MATCH('Auxiliar General'!AZ$4,'Lista Puestos Valorados'!$B$10:$BK$10,0),0)="","No relevante",VLOOKUP($B24,'Lista Puestos Valorados'!$B$11:$BK$510,MATCH('Auxiliar General'!AZ$4,'Lista Puestos Valorados'!$B$10:$BK$10,0),0)) -> No relevante | BG24: =+HLOOKUP(BF24,Sistema_Puntos!$Q$5:$Y$43,'Auxiliar General'!BB$5,FALSE) -> 0 | BH24: =+IF(VLOOKUP($B24,'Lista Puestos Valorados'!$B$11:$BK$510,MATCH('Auxiliar General'!BB$4,'Lista Puestos Valorados'!$B$10:$BK$10,0),0)="","No relevante",VLOOKUP($B24,'Lista Puestos Valorados'!$B$11:$BK$510,MATCH('Auxiliar General'!BB$4,'Lista Puestos Valorados'!$B$10:$BK$10,0),0)) -> No relevante | BI24: =+HLOOKUP(BH24,Sistema_Puntos!$Q$5:$Y$43,'Auxiliar General'!BD$5,FALSE) -> 0 | BJ24: =+IF(VLOOKUP($B24,'Lista Puestos Valorados'!$B$11:$BK$510,MATCH('Auxiliar General'!BD$4,'Lista Puestos Valorados'!$B$10:$BK$10,0),0)="","No relevante",VLOOKUP($B24,'Lista Puestos Valorados'!$B$11:$BK$510,MATCH('Auxiliar General'!BD$4,'Lista Puestos Valorados'!$B$10:$BK$10,0),0)) -> No relevante | BK24: =+HLOOKUP(BJ24,Sistema_Puntos!$Q$5:$Y$43,'Auxiliar General'!BF$5,FALSE) -> 0 | BL24: =+IF(VLOOKUP($B24,'Lista Puestos Valorados'!$B$11:$BK$510,MATCH('Auxiliar General'!BF$4,'Lista Puestos Valorados'!$B$10:$BK$10,0),0)="","No relevante",VLOOKUP($B24,'Lista Puestos Valorados'!$B$11:$BK$510,MATCH('Auxiliar General'!BF$4,'Lista Puestos Valorados'!$B$10:$BK$10,0),0)) -> No relevante | BM24: =+HLOOKUP(BL24,Sistema_Puntos!$Q$5:$Y$43,'Auxiliar General'!BH$5,FALSE) -> 0 | BN24: =+IF(VLOOKUP($B24,'Lista Puestos Valorados'!$B$11:$BK$510,MATCH('Auxiliar General'!BH$4,'Lista Puestos Valorados'!$B$10:$BK$10,0),0)="","No relevante",VLOOKUP($B24,'Lista Puestos Valorados'!$B$11:$BK$510,MATCH('Auxiliar General'!BH$4,'Lista Puestos Valorados'!$B$10:$BK$10,0),0)) -> No relevante | BO24: =+HLOOKUP(BN24,Sistema_Puntos!$Q$5:$Y$43,'Auxiliar General'!BJ$5,FALSE) -> 0 | BP24: =+IF(VLOOKUP($B24,'Lista Puestos Valorados'!$B$11:$BK$510,MATCH('Auxiliar General'!BJ$4,'Lista Puestos Valorados'!$B$10:$BK$10,0),0)="","No relevante",VLOOKUP($B24,'Lista Puestos Valorados'!$B$11:$BK$510,MATCH('Auxiliar General'!BJ$4,'Lista Puestos Valorados'!$B$10:$BK$10,0),0)) -> No relevante | BQ24: =+HLOOKUP(BP24,Sistema_Puntos!$Q$5:$Y$43,'Auxiliar General'!BL$5,FALSE) -> 0 | BR24: =+IF(VLOOKUP($B24,'Lista Puestos Valorados'!$B$11:$BK$510,MATCH('Auxiliar General'!BL$4,'Lista Puestos Valorados'!$B$10:$BK$10,0),0)="","No relevante",VLOOKUP($B24,'Lista Puestos Valorados'!$B$11:$BK$510,MATCH('Auxiliar General'!BL$4,'Lista Puestos Valorados'!$B$10:$BK$10,0),0)) -> No relevante | BS24: =+HLOOKUP(BR24,Sistema_Puntos!$Q$5:$Y$43,'Auxiliar General'!BN$5,FALSE) -> 0 | BT24: =+IF(VLOOKUP($B24,'Lista Puestos Valorados'!$B$11:$BK$510,MATCH('Auxiliar General'!BN$4,'Lista Puestos Valorados'!$B$10:$BK$10,0),0)="","No relevante",VLOOKUP($B24,'Lista Puestos Valorados'!$B$11:$BK$510,MATCH('Auxiliar General'!BN$4,'Lista Puestos Valorados'!$B$10:$BK$10,0),0)) -> No relevante | BU24: =+HLOOKUP(BT24,Sistema_Puntos!$Q$5:$Y$43,'Auxiliar General'!BP$5,FALSE) -> 0 | BV24: =+IF(VLOOKUP($B24,'Lista Puestos Valorados'!$B$11:$BK$510,MATCH('Auxiliar General'!BP$4,'Lista Puestos Valorados'!$B$10:$BK$10,0),0)="","No relevante",VLOOKUP($B24,'Lista Puestos Valorados'!$B$11:$BK$510,MATCH('Auxiliar General'!BP$4,'Lista Puestos Valorados'!$B$10:$BK$10,0),0)) -> No relevante | BW24: =+HLOOKUP(BV24,Sistema_Puntos!$Q$5:$Y$43,'Auxiliar General'!BR$5,FALSE) -> 0 | BX24: =+IF(VLOOKUP($B24,'Lista Puestos Valorados'!$B$11:$BK$510,MATCH('Auxiliar General'!BR$4,'Lista Puestos Valorados'!$B$10:$BK$10,0),0)="","No relevante",VLOOKUP($B24,'Lista Puestos Valorados'!$B$11:$BK$510,MATCH('Auxiliar General'!BR$4,'Lista Puestos Valorados'!$B$10:$BK$10,0),0)) -> No relevante | BY24: =+HLOOKUP(BX24,Sistema_Puntos!$Q$5:$Y$43,'Auxiliar General'!BT$5,FALSE) -> 0 | BZ24: =+IF(VLOOKUP($B24,'Lista Puestos Valorados'!$B$11:$BK$510,MATCH('Auxiliar General'!BT$4,'Lista Puestos Valorados'!$B$10:$BK$10,0),0)="","No relevante",VLOOKUP($B24,'Lista Puestos Valorados'!$B$11:$BK$510,MATCH('Auxiliar General'!BT$4,'Lista Puestos Valorados'!$B$10:$BK$10,0),0)) -> No relevante | CA24: =+HLOOKUP(BZ24,Sistema_Puntos!$Q$5:$Y$43,'Auxiliar General'!BV$5,FALSE) -> 0 | CB24: =+IF(VLOOKUP($B24,'Lista Puestos Valorados'!$B$11:$BK$510,MATCH('Auxiliar General'!BV$4,'Lista Puestos Valorados'!$B$10:$BK$10,0),0)="","No relevante",VLOOKUP($B24,'Lista Puestos Valorados'!$B$11:$BK$510,MATCH('Auxiliar General'!BV$4,'Lista Puestos Valorados'!$B$10:$BK$10,0),0)) -> No relevante | CC24: =+HLOOKUP(CB24,Sistema_Puntos!$Q$5:$Y$43,'Auxiliar General'!BX$5,FALSE) -> 0 | CD24: =+IF(VLOOKUP($B24,'Lista Puestos Valorados'!$B$11:$BK$510,MATCH('Auxiliar General'!BX$4,'Lista Puestos Valorados'!$B$10:$BK$10,0),0)="","No relevante",VLOOKUP($B24,'Lista Puestos Valorados'!$B$11:$BK$510,MATCH('Auxiliar General'!BX$4,'Lista Puestos Valorados'!$B$10:$BK$10,0),0)) -> No relevante | CE24: =+HLOOKUP(CD24,Sistema_Puntos!$Q$5:$Y$43,'Auxiliar General'!BZ$5,FALSE) -> 0 | CF24: =+IF(VLOOKUP($B24,'Lista Puestos Valorados'!$B$11:$BK$510,MATCH('Auxiliar General'!BZ$4,'Lista Puestos Valorados'!$B$10:$BK$10,0),0)="","No relevante",VLOOKUP($B24,'Lista Puestos Valorados'!$B$11:$BK$510,MATCH('Auxiliar General'!BZ$4,'Lista Puestos Valorados'!$B$10:$BK$10,0),0)) -> No relevante | CG24: =+HLOOKUP(CF24,Sistema_Puntos!$Q$5:$Y$43,'Auxiliar General'!CB$5,FALSE) -> 0
B25: =+'Listado de Puestos'!B25 -> 15 | C25: =+IF('Lista Puestos Valorados'!C25="","",'Lista Puestos Valorados'!C25) ->  | D25: =+IF('Lista Puestos Valorados'!D25="","",'Lista Puestos Valorados'!D25) ->  | E25: =+IF('Lista Puestos Valorados'!E25="","",'Lista Puestos Valorados'!E25) ->  | F25: =+IF('Lista Puestos Valorados'!F25="","",'Lista Puestos Valorados'!F25) ->  | G25: =+IF('Lista Puestos Valorados'!G25="","",'Lista Puestos Valorados'!G25) ->  | H25: =+IF('Lista Puestos Valorados'!H25="","",'Lista Puestos Valorados'!H25) ->  | I25: =+IF('Lista Puestos Valorados'!I25="","",'Lista Puestos Valorados'!I25) ->  | J25: =+IF(L25="","",_xlfn.IFS(L25<='Cortes de Agrupacion'!$F$15,'Cortes de Agrupacion'!$E$15,'Resultados General'!L25<='Cortes de Agrupacion'!$F$14,'Cortes de Agrupacion'!$E$14,'Resultados General'!L25<='Cortes de Agrupacion'!$F$13,'Cortes de Agrupacion'!$E$13,L25<='Cortes de Agrupacion'!$F$12,'Cortes de Agrupacion'!$E$12,'Resultados General'!L25<='Cortes de Agrupacion'!$F$11,'Cortes de Agrupacion'!$E$11,'Resultados General'!L25<='Cortes de Agrupacion'!$F$10,'Cortes de Agrupacion'!$E$10,'Resultados General'!L25<='Cortes de Agrupacion'!$F$9,'Cortes de Agrupacion'!$E$9,'Resultados General'!L25<='Cortes de Agrupacion'!$F$8,'Cortes de Agrupacion'!$E$8,'Resultados General'!L25<='Cortes de Agrupacion'!$F$7,'Cortes de Agrupacion'!$E$7,'Resultados General'!L25<='Cortes de Agrupacion'!$F$6,'Cortes de Agrupacion'!$E$6)) ->  | M25: =+_xlfn.IFNA(VLOOKUP(C25,'Distribución de puestos'!$B$8:$I$507,8,0),"") ->  | N25: =+IF(VLOOKUP($B25,'Lista Puestos Valorados'!$B$11:$BK$510,MATCH('Auxiliar General'!H$4,'Lista Puestos Valorados'!$B$10:$BK$10,0),0)="","No relevante",VLOOKUP($B25,'Lista Puestos Valorados'!$B$11:$BK$510,MATCH('Auxiliar General'!H$4,'Lista Puestos Valorados'!$B$10:$BK$10,0),0)) -> No relevante | O25: =+HLOOKUP(N25,Sistema_Puntos!$Q$5:$Y$43,'Auxiliar General'!J$5,FALSE) -> 0 | P25: =+IF(VLOOKUP($B25,'Lista Puestos Valorados'!$B$11:$BK$510,MATCH('Auxiliar General'!J$4,'Lista Puestos Valorados'!$B$10:$BK$10,0),0)="","No relevante",VLOOKUP($B25,'Lista Puestos Valorados'!$B$11:$BK$510,MATCH('Auxiliar General'!J$4,'Lista Puestos Valorados'!$B$10:$BK$10,0),0)) -> No relevante | Q25: =+HLOOKUP(P25,Sistema_Puntos!$Q$5:$Y$43,'Auxiliar General'!L$5,FALSE) -> 0 | R25: =+IF(VLOOKUP($B25,'Lista Puestos Valorados'!$B$11:$BK$510,MATCH('Auxiliar General'!L$4,'Lista Puestos Valorados'!$B$10:$BK$10,0),0)="","No relevante",VLOOKUP($B25,'Lista Puestos Valorados'!$B$11:$BK$510,MATCH('Auxiliar General'!L$4,'Lista Puestos Valorados'!$B$10:$BK$10,0),0)) -> No relevante | S25: =+HLOOKUP(R25,Sistema_Puntos!$Q$5:$Y$43,'Auxiliar General'!N$5,FALSE) -> 0 | T25: =+IF(VLOOKUP($B25,'Lista Puestos Valorados'!$B$11:$BK$510,MATCH('Auxiliar General'!N$4,'Lista Puestos Valorados'!$B$10:$BK$10,0),0)="","No relevante",VLOOKUP($B25,'Lista Puestos Valorados'!$B$11:$BK$510,MATCH('Auxiliar General'!N$4,'Lista Puestos Valorados'!$B$10:$BK$10,0),0)) -> No relevante | U25: =+HLOOKUP(T25,Sistema_Puntos!$Q$5:$Y$43,'Auxiliar General'!P$5,FALSE) -> 0 | V25: =+IF(VLOOKUP($B25,'Lista Puestos Valorados'!$B$11:$BK$510,MATCH('Auxiliar General'!P$4,'Lista Puestos Valorados'!$B$10:$BK$10,0),0)="","No relevante",VLOOKUP($B25,'Lista Puestos Valorados'!$B$11:$BK$510,MATCH('Auxiliar General'!P$4,'Lista Puestos Valorados'!$B$10:$BK$10,0),0)) -> No relevante | W25: =+HLOOKUP(V25,Sistema_Puntos!$Q$5:$Y$43,'Auxiliar General'!R$5,FALSE) -> 0 | X25: =+IF(VLOOKUP($B25,'Lista Puestos Valorados'!$B$11:$BK$510,MATCH('Auxiliar General'!R$4,'Lista Puestos Valorados'!$B$10:$BK$10,0),0)="","No relevante",VLOOKUP($B25,'Lista Puestos Valorados'!$B$11:$BK$510,MATCH('Auxiliar General'!R$4,'Lista Puestos Valorados'!$B$10:$BK$10,0),0)) -> No relevante | Y25: =+HLOOKUP(X25,Sistema_Puntos!$Q$5:$Y$43,'Auxiliar General'!T$5,FALSE) -> 0 | Z25: =+IF(VLOOKUP($B25,'Lista Puestos Valorados'!$B$11:$BK$510,MATCH('Auxiliar General'!T$4,'Lista Puestos Valorados'!$B$10:$BK$10,0),0)="","No relevante",VLOOKUP($B25,'Lista Puestos Valorados'!$B$11:$BK$510,MATCH('Auxiliar General'!T$4,'Lista Puestos Valorados'!$B$10:$BK$10,0),0)) -> No relevante | AA25: =+HLOOKUP(Z25,Sistema_Puntos!$Q$5:$Y$43,'Auxiliar General'!V$5,FALSE) -> 0 | AB25: =+IF(VLOOKUP($B25,'Lista Puestos Valorados'!$B$11:$BK$510,MATCH('Auxiliar General'!V$4,'Lista Puestos Valorados'!$B$10:$BK$10,0),0)="","No relevante",VLOOKUP($B25,'Lista Puestos Valorados'!$B$11:$BK$510,MATCH('Auxiliar General'!V$4,'Lista Puestos Valorados'!$B$10:$BK$10,0),0)) -> No relevante | AC25: =+HLOOKUP(AB25,Sistema_Puntos!$Q$5:$Y$43,'Auxiliar General'!X$5,FALSE) -> 0 | AD25: =+IF(VLOOKUP($B25,'Lista Puestos Valorados'!$B$11:$BK$510,MATCH('Auxiliar General'!X$4,'Lista Puestos Valorados'!$B$10:$BK$10,0),0)="","No relevante",VLOOKUP($B25,'Lista Puestos Valorados'!$B$11:$BK$510,MATCH('Auxiliar General'!X$4,'Lista Puestos Valorados'!$B$10:$BK$10,0),0)) -> No relevante | AE25: =+HLOOKUP(AD25,Sistema_Puntos!$Q$5:$Y$43,'Auxiliar General'!Z$5,FALSE) -> 0 | AF25: =+IF(VLOOKUP($B25,'Lista Puestos Valorados'!$B$11:$BK$510,MATCH('Auxiliar General'!Z$4,'Lista Puestos Valorados'!$B$10:$BK$10,0),0)="","No relevante",VLOOKUP($B25,'Lista Puestos Valorados'!$B$11:$BK$510,MATCH('Auxiliar General'!Z$4,'Lista Puestos Valorados'!$B$10:$BK$10,0),0)) -> No relevante | AG25: =+HLOOKUP(AF25,Sistema_Puntos!$Q$5:$Y$43,'Auxiliar General'!AB$5,FALSE) -> 0 | AH25: =+IF(VLOOKUP($B25,'Lista Puestos Valorados'!$B$11:$BK$510,MATCH('Auxiliar General'!AB$4,'Lista Puestos Valorados'!$B$10:$BK$10,0),0)="","No relevante",VLOOKUP($B25,'Lista Puestos Valorados'!$B$11:$BK$510,MATCH('Auxiliar General'!AB$4,'Lista Puestos Valorados'!$B$10:$BK$10,0),0)) -> No relevante | AI25: =+HLOOKUP(AH25,Sistema_Puntos!$Q$5:$Y$43,'Auxiliar General'!AD$5,FALSE) -> 0 | AJ25: =+IF(VLOOKUP($B25,'Lista Puestos Valorados'!$B$11:$BK$510,MATCH('Auxiliar General'!AD$4,'Lista Puestos Valorados'!$B$10:$BK$10,0),0)="","No relevante",VLOOKUP($B25,'Lista Puestos Valorados'!$B$11:$BK$510,MATCH('Auxiliar General'!AD$4,'Lista Puestos Valorados'!$B$10:$BK$10,0),0)) -> No relevante | AK25: =+HLOOKUP(AJ25,Sistema_Puntos!$Q$5:$Y$43,'Auxiliar General'!AF$5,FALSE) -> 0 | AL25: =+IF(VLOOKUP($B25,'Lista Puestos Valorados'!$B$11:$BK$510,MATCH('Auxiliar General'!AF$4,'Lista Puestos Valorados'!$B$10:$BK$10,0),0)="","No relevante",VLOOKUP($B25,'Lista Puestos Valorados'!$B$11:$BK$510,MATCH('Auxiliar General'!AF$4,'Lista Puestos Valorados'!$B$10:$BK$10,0),0)) -> No relevante | AM25: =+HLOOKUP(AL25,Sistema_Puntos!$Q$5:$Y$43,'Auxiliar General'!AH$5,FALSE) -> 0 | AN25: =+IF(VLOOKUP($B25,'Lista Puestos Valorados'!$B$11:$BK$510,MATCH('Auxiliar General'!AH$4,'Lista Puestos Valorados'!$B$10:$BK$10,0),0)="","No relevante",VLOOKUP($B25,'Lista Puestos Valorados'!$B$11:$BK$510,MATCH('Auxiliar General'!AH$4,'Lista Puestos Valorados'!$B$10:$BK$10,0),0)) -> No relevante | AO25: =+HLOOKUP(AN25,Sistema_Puntos!$Q$5:$Y$43,'Auxiliar General'!AJ$5,FALSE) -> 0 | AP25: =+IF(VLOOKUP($B25,'Lista Puestos Valorados'!$B$11:$BK$510,MATCH('Auxiliar General'!AJ$4,'Lista Puestos Valorados'!$B$10:$BK$10,0),0)="","No relevante",VLOOKUP($B25,'Lista Puestos Valorados'!$B$11:$BK$510,MATCH('Auxiliar General'!AJ$4,'Lista Puestos Valorados'!$B$10:$BK$10,0),0)) -> No relevante | AQ25: =+HLOOKUP(AP25,Sistema_Puntos!$Q$5:$Y$43,'Auxiliar General'!AL$5,FALSE) -> 0 | AR25: =+IF(VLOOKUP($B25,'Lista Puestos Valorados'!$B$11:$BK$510,MATCH('Auxiliar General'!AL$4,'Lista Puestos Valorados'!$B$10:$BK$10,0),0)="","No relevante",VLOOKUP($B25,'Lista Puestos Valorados'!$B$11:$BK$510,MATCH('Auxiliar General'!AL$4,'Lista Puestos Valorados'!$B$10:$BK$10,0),0)) -> No relevante | AS25: =+HLOOKUP(AR25,Sistema_Puntos!$Q$5:$Y$43,'Auxiliar General'!AN$5,FALSE) -> 0 | AT25: =+IF(VLOOKUP($B25,'Lista Puestos Valorados'!$B$11:$BK$510,MATCH('Auxiliar General'!AN$4,'Lista Puestos Valorados'!$B$10:$BK$10,0),0)="","No relevante",VLOOKUP($B25,'Lista Puestos Valorados'!$B$11:$BK$510,MATCH('Auxiliar General'!AN$4,'Lista Puestos Valorados'!$B$10:$BK$10,0),0)) -> No relevante | AU25: =+HLOOKUP(AT25,Sistema_Puntos!$Q$5:$Y$43,'Auxiliar General'!AP$5,FALSE) -> 0 | AV25: =+IF(VLOOKUP($B25,'Lista Puestos Valorados'!$B$11:$BK$510,MATCH('Auxiliar General'!AP$4,'Lista Puestos Valorados'!$B$10:$BK$10,0),0)="","No relevante",VLOOKUP($B25,'Lista Puestos Valorados'!$B$11:$BK$510,MATCH('Auxiliar General'!AP$4,'Lista Puestos Valorados'!$B$10:$BK$10,0),0)) -> No relevante | AW25: =+HLOOKUP(AV25,Sistema_Puntos!$Q$5:$Y$43,'Auxiliar General'!AR$5,FALSE) -> 0 | AX25: =+IF(VLOOKUP($B25,'Lista Puestos Valorados'!$B$11:$BK$510,MATCH('Auxiliar General'!AR$4,'Lista Puestos Valorados'!$B$10:$BK$10,0),0)="","No relevante",VLOOKUP($B25,'Lista Puestos Valorados'!$B$11:$BK$510,MATCH('Auxiliar General'!AR$4,'Lista Puestos Valorados'!$B$10:$BK$10,0),0)) -> No relevante | AY25: =+HLOOKUP(AX25,Sistema_Puntos!$Q$5:$Y$43,'Auxiliar General'!AT$5,FALSE) -> 0 | AZ25: =+IF(VLOOKUP($B25,'Lista Puestos Valorados'!$B$11:$BK$510,MATCH('Auxiliar General'!AT$4,'Lista Puestos Valorados'!$B$10:$BK$10,0),0)="","No relevante",VLOOKUP($B25,'Lista Puestos Valorados'!$B$11:$BK$510,MATCH('Auxiliar General'!AT$4,'Lista Puestos Valorados'!$B$10:$BK$10,0),0)) -> No relevante | BA25: =+HLOOKUP(AZ25,Sistema_Puntos!$Q$5:$Y$43,'Auxiliar General'!AV$5,FALSE) -> 0 | BB25: =+IF(VLOOKUP($B25,'Lista Puestos Valorados'!$B$11:$BK$510,MATCH('Auxiliar General'!AV$4,'Lista Puestos Valorados'!$B$10:$BK$10,0),0)="","No relevante",VLOOKUP($B25,'Lista Puestos Valorados'!$B$11:$BK$510,MATCH('Auxiliar General'!AV$4,'Lista Puestos Valorados'!$B$10:$BK$10,0),0)) -> No relevante | BC25: =+HLOOKUP(BB25,Sistema_Puntos!$Q$5:$Y$43,'Auxiliar General'!AX$5,FALSE) -> 0 | BD25: =+IF(VLOOKUP($B25,'Lista Puestos Valorados'!$B$11:$BK$510,MATCH('Auxiliar General'!AX$4,'Lista Puestos Valorados'!$B$10:$BK$10,0),0)="","No relevante",VLOOKUP($B25,'Lista Puestos Valorados'!$B$11:$BK$510,MATCH('Auxiliar General'!AX$4,'Lista Puestos Valorados'!$B$10:$BK$10,0),0)) -> No relevante | BE25: =+HLOOKUP(BD25,Sistema_Puntos!$Q$5:$Y$43,'Auxiliar General'!AZ$5,FALSE) -> 0 | BF25: =+IF(VLOOKUP($B25,'Lista Puestos Valorados'!$B$11:$BK$510,MATCH('Auxiliar General'!AZ$4,'Lista Puestos Valorados'!$B$10:$BK$10,0),0)="","No relevante",VLOOKUP($B25,'Lista Puestos Valorados'!$B$11:$BK$510,MATCH('Auxiliar General'!AZ$4,'Lista Puestos Valorados'!$B$10:$BK$10,0),0)) -> No relevante | BG25: =+HLOOKUP(BF25,Sistema_Puntos!$Q$5:$Y$43,'Auxiliar General'!BB$5,FALSE) -> 0 | BH25: =+IF(VLOOKUP($B25,'Lista Puestos Valorados'!$B$11:$BK$510,MATCH('Auxiliar General'!BB$4,'Lista Puestos Valorados'!$B$10:$BK$10,0),0)="","No relevante",VLOOKUP($B25,'Lista Puestos Valorados'!$B$11:$BK$510,MATCH('Auxiliar General'!BB$4,'Lista Puestos Valorados'!$B$10:$BK$10,0),0)) -> No relevante | BI25: =+HLOOKUP(BH25,Sistema_Puntos!$Q$5:$Y$43,'Auxiliar General'!BD$5,FALSE) -> 0 | BJ25: =+IF(VLOOKUP($B25,'Lista Puestos Valorados'!$B$11:$BK$510,MATCH('Auxiliar General'!BD$4,'Lista Puestos Valorados'!$B$10:$BK$10,0),0)="","No relevante",VLOOKUP($B25,'Lista Puestos Valorados'!$B$11:$BK$510,MATCH('Auxiliar General'!BD$4,'Lista Puestos Valorados'!$B$10:$BK$10,0),0)) -> No relevante | BK25: =+HLOOKUP(BJ25,Sistema_Puntos!$Q$5:$Y$43,'Auxiliar General'!BF$5,FALSE) -> 0 | BL25: =+IF(VLOOKUP($B25,'Lista Puestos Valorados'!$B$11:$BK$510,MATCH('Auxiliar General'!BF$4,'Lista Puestos Valorados'!$B$10:$BK$10,0),0)="","No relevante",VLOOKUP($B25,'Lista Puestos Valorados'!$B$11:$BK$510,MATCH('Auxiliar General'!BF$4,'Lista Puestos Valorados'!$B$10:$BK$10,0),0)) -> No relevante | BM25: =+HLOOKUP(BL25,Sistema_Puntos!$Q$5:$Y$43,'Auxiliar General'!BH$5,FALSE) -> 0 | BN25: =+IF(VLOOKUP($B25,'Lista Puestos Valorados'!$B$11:$BK$510,MATCH('Auxiliar General'!BH$4,'Lista Puestos Valorados'!$B$10:$BK$10,0),0)="","No relevante",VLOOKUP($B25,'Lista Puestos Valorados'!$B$11:$BK$510,MATCH('Auxiliar General'!BH$4,'Lista Puestos Valorados'!$B$10:$BK$10,0),0)) -> No relevante | BO25: =+HLOOKUP(BN25,Sistema_Puntos!$Q$5:$Y$43,'Auxiliar General'!BJ$5,FALSE) -> 0 | BP25: =+IF(VLOOKUP($B25,'Lista Puestos Valorados'!$B$11:$BK$510,MATCH('Auxiliar General'!BJ$4,'Lista Puestos Valorados'!$B$10:$BK$10,0),0)="","No relevante",VLOOKUP($B25,'Lista Puestos Valorados'!$B$11:$BK$510,MATCH('Auxiliar General'!BJ$4,'Lista Puestos Valorados'!$B$10:$BK$10,0),0)) -> No relevante | BQ25: =+HLOOKUP(BP25,Sistema_Puntos!$Q$5:$Y$43,'Auxiliar General'!BL$5,FALSE) -> 0 | BR25: =+IF(VLOOKUP($B25,'Lista Puestos Valorados'!$B$11:$BK$510,MATCH('Auxiliar General'!BL$4,'Lista Puestos Valorados'!$B$10:$BK$10,0),0)="","No relevante",VLOOKUP($B25,'Lista Puestos Valorados'!$B$11:$BK$510,MATCH('Auxiliar General'!BL$4,'Lista Puestos Valorados'!$B$10:$BK$10,0),0)) -> No relevante | BS25: =+HLOOKUP(BR25,Sistema_Puntos!$Q$5:$Y$43,'Auxiliar General'!BN$5,FALSE) -> 0 | BT25: =+IF(VLOOKUP($B25,'Lista Puestos Valorados'!$B$11:$BK$510,MATCH('Auxiliar General'!BN$4,'Lista Puestos Valorados'!$B$10:$BK$10,0),0)="","No relevante",VLOOKUP($B25,'Lista Puestos Valorados'!$B$11:$BK$510,MATCH('Auxiliar General'!BN$4,'Lista Puestos Valorados'!$B$10:$BK$10,0),0)) -> No relevante | BU25: =+HLOOKUP(BT25,Sistema_Puntos!$Q$5:$Y$43,'Auxiliar General'!BP$5,FALSE) -> 0 | BV25: =+IF(VLOOKUP($B25,'Lista Puestos Valorados'!$B$11:$BK$510,MATCH('Auxiliar General'!BP$4,'Lista Puestos Valorados'!$B$10:$BK$10,0),0)="","No relevante",VLOOKUP($B25,'Lista Puestos Valorados'!$B$11:$BK$510,MATCH('Auxiliar General'!BP$4,'Lista Puestos Valorados'!$B$10:$BK$10,0),0)) -> No relevante | BW25: =+HLOOKUP(BV25,Sistema_Puntos!$Q$5:$Y$43,'Auxiliar General'!BR$5,FALSE) -> 0 | BX25: =+IF(VLOOKUP($B25,'Lista Puestos Valorados'!$B$11:$BK$510,MATCH('Auxiliar General'!BR$4,'Lista Puestos Valorados'!$B$10:$BK$10,0),0)="","No relevante",VLOOKUP($B25,'Lista Puestos Valorados'!$B$11:$BK$510,MATCH('Auxiliar General'!BR$4,'Lista Puestos Valorados'!$B$10:$BK$10,0),0)) -> No relevante | BY25: =+HLOOKUP(BX25,Sistema_Puntos!$Q$5:$Y$43,'Auxiliar General'!BT$5,FALSE) -> 0 | BZ25: =+IF(VLOOKUP($B25,'Lista Puestos Valorados'!$B$11:$BK$510,MATCH('Auxiliar General'!BT$4,'Lista Puestos Valorados'!$B$10:$BK$10,0),0)="","No relevante",VLOOKUP($B25,'Lista Puestos Valorados'!$B$11:$BK$510,MATCH('Auxiliar General'!BT$4,'Lista Puestos Valorados'!$B$10:$BK$10,0),0)) -> No relevante | CA25: =+HLOOKUP(BZ25,Sistema_Puntos!$Q$5:$Y$43,'Auxiliar General'!BV$5,FALSE) -> 0 | CB25: =+IF(VLOOKUP($B25,'Lista Puestos Valorados'!$B$11:$BK$510,MATCH('Auxiliar General'!BV$4,'Lista Puestos Valorados'!$B$10:$BK$10,0),0)="","No relevante",VLOOKUP($B25,'Lista Puestos Valorados'!$B$11:$BK$510,MATCH('Auxiliar General'!BV$4,'Lista Puestos Valorados'!$B$10:$BK$10,0),0)) -> No relevante | CC25: =+HLOOKUP(CB25,Sistema_Puntos!$Q$5:$Y$43,'Auxiliar General'!BX$5,FALSE) -> 0 | CD25: =+IF(VLOOKUP($B25,'Lista Puestos Valorados'!$B$11:$BK$510,MATCH('Auxiliar General'!BX$4,'Lista Puestos Valorados'!$B$10:$BK$10,0),0)="","No relevante",VLOOKUP($B25,'Lista Puestos Valorados'!$B$11:$BK$510,MATCH('Auxiliar General'!BX$4,'Lista Puestos Valorados'!$B$10:$BK$10,0),0)) -> No relevante | CE25: =+HLOOKUP(CD25,Sistema_Puntos!$Q$5:$Y$43,'Auxiliar General'!BZ$5,FALSE) -> 0 | CF25: =+IF(VLOOKUP($B25,'Lista Puestos Valorados'!$B$11:$BK$510,MATCH('Auxiliar General'!BZ$4,'Lista Puestos Valorados'!$B$10:$BK$10,0),0)="","No relevante",VLOOKUP($B25,'Lista Puestos Valorados'!$B$11:$BK$510,MATCH('Auxiliar General'!BZ$4,'Lista Puestos Valorados'!$B$10:$BK$10,0),0)) -> No relevante | CG25: =+HLOOKUP(CF25,Sistema_Puntos!$Q$5:$Y$43,'Auxiliar General'!CB$5,FALSE) -> 0
B26: =+'Listado de Puestos'!B26 -> 16 | C26: =+IF('Lista Puestos Valorados'!C26="","",'Lista Puestos Valorados'!C26) ->  | D26: =+IF('Lista Puestos Valorados'!D26="","",'Lista Puestos Valorados'!D26) ->  | E26: =+IF('Lista Puestos Valorados'!E26="","",'Lista Puestos Valorados'!E26) ->  | F26: =+IF('Lista Puestos Valorados'!F26="","",'Lista Puestos Valorados'!F26) ->  | G26: =+IF('Lista Puestos Valorados'!G26="","",'Lista Puestos Valorados'!G26) ->  | H26: =+IF('Lista Puestos Valorados'!H26="","",'Lista Puestos Valorados'!H26) ->  | I26: =+IF('Lista Puestos Valorados'!I26="","",'Lista Puestos Valorados'!I26) ->  | J26: =+IF(L26="","",_xlfn.IFS(L26<='Cortes de Agrupacion'!$F$15,'Cortes de Agrupacion'!$E$15,'Resultados General'!L26<='Cortes de Agrupacion'!$F$14,'Cortes de Agrupacion'!$E$14,'Resultados General'!L26<='Cortes de Agrupacion'!$F$13,'Cortes de Agrupacion'!$E$13,L26<='Cortes de Agrupacion'!$F$12,'Cortes de Agrupacion'!$E$12,'Resultados General'!L26<='Cortes de Agrupacion'!$F$11,'Cortes de Agrupacion'!$E$11,'Resultados General'!L26<='Cortes de Agrupacion'!$F$10,'Cortes de Agrupacion'!$E$10,'Resultados General'!L26<='Cortes de Agrupacion'!$F$9,'Cortes de Agrupacion'!$E$9,'Resultados General'!L26<='Cortes de Agrupacion'!$F$8,'Cortes de Agrupacion'!$E$8,'Resultados General'!L26<='Cortes de Agrupacion'!$F$7,'Cortes de Agrupacion'!$E$7,'Resultados General'!L26<='Cortes de Agrupacion'!$F$6,'Cortes de Agrupacion'!$E$6)) ->  | M26: =+_xlfn.IFNA(VLOOKUP(C26,'Distribución de puestos'!$B$8:$I$507,8,0),"") ->  | N26: =+IF(VLOOKUP($B26,'Lista Puestos Valorados'!$B$11:$BK$510,MATCH('Auxiliar General'!H$4,'Lista Puestos Valorados'!$B$10:$BK$10,0),0)="","No relevante",VLOOKUP($B26,'Lista Puestos Valorados'!$B$11:$BK$510,MATCH('Auxiliar General'!H$4,'Lista Puestos Valorados'!$B$10:$BK$10,0),0)) -> No relevante | O26: =+HLOOKUP(N26,Sistema_Puntos!$Q$5:$Y$43,'Auxiliar General'!J$5,FALSE) -> 0 | P26: =+IF(VLOOKUP($B26,'Lista Puestos Valorados'!$B$11:$BK$510,MATCH('Auxiliar General'!J$4,'Lista Puestos Valorados'!$B$10:$BK$10,0),0)="","No relevante",VLOOKUP($B26,'Lista Puestos Valorados'!$B$11:$BK$510,MATCH('Auxiliar General'!J$4,'Lista Puestos Valorados'!$B$10:$BK$10,0),0)) -> No relevante | Q26: =+HLOOKUP(P26,Sistema_Puntos!$Q$5:$Y$43,'Auxiliar General'!L$5,FALSE) -> 0 | R26: =+IF(VLOOKUP($B26,'Lista Puestos Valorados'!$B$11:$BK$510,MATCH('Auxiliar General'!L$4,'Lista Puestos Valorados'!$B$10:$BK$10,0),0)="","No relevante",VLOOKUP($B26,'Lista Puestos Valorados'!$B$11:$BK$510,MATCH('Auxiliar General'!L$4,'Lista Puestos Valorados'!$B$10:$BK$10,0),0)) -> No relevante | S26: =+HLOOKUP(R26,Sistema_Puntos!$Q$5:$Y$43,'Auxiliar General'!N$5,FALSE) -> 0 | T26: =+IF(VLOOKUP($B26,'Lista Puestos Valorados'!$B$11:$BK$510,MATCH('Auxiliar General'!N$4,'Lista Puestos Valorados'!$B$10:$BK$10,0),0)="","No relevante",VLOOKUP($B26,'Lista Puestos Valorados'!$B$11:$BK$510,MATCH('Auxiliar General'!N$4,'Lista Puestos Valorados'!$B$10:$BK$10,0),0)) -> No relevante | U26: =+HLOOKUP(T26,Sistema_Puntos!$Q$5:$Y$43,'Auxiliar General'!P$5,FALSE) -> 0 | V26: =+IF(VLOOKUP($B26,'Lista Puestos Valorados'!$B$11:$BK$510,MATCH('Auxiliar General'!P$4,'Lista Puestos Valorados'!$B$10:$BK$10,0),0)="","No relevante",VLOOKUP($B26,'Lista Puestos Valorados'!$B$11:$BK$510,MATCH('Auxiliar General'!P$4,'Lista Puestos Valorados'!$B$10:$BK$10,0),0)) -> No relevante | W26: =+HLOOKUP(V26,Sistema_Puntos!$Q$5:$Y$43,'Auxiliar General'!R$5,FALSE) -> 0 | X26: =+IF(VLOOKUP($B26,'Lista Puestos Valorados'!$B$11:$BK$510,MATCH('Auxiliar General'!R$4,'Lista Puestos Valorados'!$B$10:$BK$10,0),0)="","No relevante",VLOOKUP($B26,'Lista Puestos Valorados'!$B$11:$BK$510,MATCH('Auxiliar General'!R$4,'Lista Puestos Valorados'!$B$10:$BK$10,0),0)) -> No relevante | Y26: =+HLOOKUP(X26,Sistema_Puntos!$Q$5:$Y$43,'Auxiliar General'!T$5,FALSE) -> 0 | Z26: =+IF(VLOOKUP($B26,'Lista Puestos Valorados'!$B$11:$BK$510,MATCH('Auxiliar General'!T$4,'Lista Puestos Valorados'!$B$10:$BK$10,0),0)="","No relevante",VLOOKUP($B26,'Lista Puestos Valorados'!$B$11:$BK$510,MATCH('Auxiliar General'!T$4,'Lista Puestos Valorados'!$B$10:$BK$10,0),0)) -> No relevante | AA26: =+HLOOKUP(Z26,Sistema_Puntos!$Q$5:$Y$43,'Auxiliar General'!V$5,FALSE) -> 0 | AB26: =+IF(VLOOKUP($B26,'Lista Puestos Valorados'!$B$11:$BK$510,MATCH('Auxiliar General'!V$4,'Lista Puestos Valorados'!$B$10:$BK$10,0),0)="","No relevante",VLOOKUP($B26,'Lista Puestos Valorados'!$B$11:$BK$510,MATCH('Auxiliar General'!V$4,'Lista Puestos Valorados'!$B$10:$BK$10,0),0)) -> No relevante | AC26: =+HLOOKUP(AB26,Sistema_Puntos!$Q$5:$Y$43,'Auxiliar General'!X$5,FALSE) -> 0 | AD26: =+IF(VLOOKUP($B26,'Lista Puestos Valorados'!$B$11:$BK$510,MATCH('Auxiliar General'!X$4,'Lista Puestos Valorados'!$B$10:$BK$10,0),0)="","No relevante",VLOOKUP($B26,'Lista Puestos Valorados'!$B$11:$BK$510,MATCH('Auxiliar General'!X$4,'Lista Puestos Valorados'!$B$10:$BK$10,0),0)) -> No relevante | AE26: =+HLOOKUP(AD26,Sistema_Puntos!$Q$5:$Y$43,'Auxiliar General'!Z$5,FALSE) -> 0 | AF26: =+IF(VLOOKUP($B26,'Lista Puestos Valorados'!$B$11:$BK$510,MATCH('Auxiliar General'!Z$4,'Lista Puestos Valorados'!$B$10:$BK$10,0),0)="","No relevante",VLOOKUP($B26,'Lista Puestos Valorados'!$B$11:$BK$510,MATCH('Auxiliar General'!Z$4,'Lista Puestos Valorados'!$B$10:$BK$10,0),0)) -> No relevante | AG26: =+HLOOKUP(AF26,Sistema_Puntos!$Q$5:$Y$43,'Auxiliar General'!AB$5,FALSE) -> 0 | AH26: =+IF(VLOOKUP($B26,'Lista Puestos Valorados'!$B$11:$BK$510,MATCH('Auxiliar General'!AB$4,'Lista Puestos Valorados'!$B$10:$BK$10,0),0)="","No relevante",VLOOKUP($B26,'Lista Puestos Valorados'!$B$11:$BK$510,MATCH('Auxiliar General'!AB$4,'Lista Puestos Valorados'!$B$10:$BK$10,0),0)) -> No relevante | AI26: =+HLOOKUP(AH26,Sistema_Puntos!$Q$5:$Y$43,'Auxiliar General'!AD$5,FALSE) -> 0 | AJ26: =+IF(VLOOKUP($B26,'Lista Puestos Valorados'!$B$11:$BK$510,MATCH('Auxiliar General'!AD$4,'Lista Puestos Valorados'!$B$10:$BK$10,0),0)="","No relevante",VLOOKUP($B26,'Lista Puestos Valorados'!$B$11:$BK$510,MATCH('Auxiliar General'!AD$4,'Lista Puestos Valorados'!$B$10:$BK$10,0),0)) -> No relevante | AK26: =+HLOOKUP(AJ26,Sistema_Puntos!$Q$5:$Y$43,'Auxiliar General'!AF$5,FALSE) -> 0 | AL26: =+IF(VLOOKUP($B26,'Lista Puestos Valorados'!$B$11:$BK$510,MATCH('Auxiliar General'!AF$4,'Lista Puestos Valorados'!$B$10:$BK$10,0),0)="","No relevante",VLOOKUP($B26,'Lista Puestos Valorados'!$B$11:$BK$510,MATCH('Auxiliar General'!AF$4,'Lista Puestos Valorados'!$B$10:$BK$10,0),0)) -> No relevante | AM26: =+HLOOKUP(AL26,Sistema_Puntos!$Q$5:$Y$43,'Auxiliar General'!AH$5,FALSE) -> 0 | AN26: =+IF(VLOOKUP($B26,'Lista Puestos Valorados'!$B$11:$BK$510,MATCH('Auxiliar General'!AH$4,'Lista Puestos Valorados'!$B$10:$BK$10,0),0)="","No relevante",VLOOKUP($B26,'Lista Puestos Valorados'!$B$11:$BK$510,MATCH('Auxiliar General'!AH$4,'Lista Puestos Valorados'!$B$10:$BK$10,0),0)) -> No relevante | AO26: =+HLOOKUP(AN26,Sistema_Puntos!$Q$5:$Y$43,'Auxiliar General'!AJ$5,FALSE) -> 0 | AP26: =+IF(VLOOKUP($B26,'Lista Puestos Valorados'!$B$11:$BK$510,MATCH('Auxiliar General'!AJ$4,'Lista Puestos Valorados'!$B$10:$BK$10,0),0)="","No relevante",VLOOKUP($B26,'Lista Puestos Valorados'!$B$11:$BK$510,MATCH('Auxiliar General'!AJ$4,'Lista Puestos Valorados'!$B$10:$BK$10,0),0)) -> No relevante | AQ26: =+HLOOKUP(AP26,Sistema_Puntos!$Q$5:$Y$43,'Auxiliar General'!AL$5,FALSE) -> 0 | AR26: =+IF(VLOOKUP($B26,'Lista Puestos Valorados'!$B$11:$BK$510,MATCH('Auxiliar General'!AL$4,'Lista Puestos Valorados'!$B$10:$BK$10,0),0)="","No relevante",VLOOKUP($B26,'Lista Puestos Valorados'!$B$11:$BK$510,MATCH('Auxiliar General'!AL$4,'Lista Puestos Valorados'!$B$10:$BK$10,0),0)) -> No relevante | AS26: =+HLOOKUP(AR26,Sistema_Puntos!$Q$5:$Y$43,'Auxiliar General'!AN$5,FALSE) -> 0 | AT26: =+IF(VLOOKUP($B26,'Lista Puestos Valorados'!$B$11:$BK$510,MATCH('Auxiliar General'!AN$4,'Lista Puestos Valorados'!$B$10:$BK$10,0),0)="","No relevante",VLOOKUP($B26,'Lista Puestos Valorados'!$B$11:$BK$510,MATCH('Auxiliar General'!AN$4,'Lista Puestos Valorados'!$B$10:$BK$10,0),0)) -> No relevante | AU26: =+HLOOKUP(AT26,Sistema_Puntos!$Q$5:$Y$43,'Auxiliar General'!AP$5,FALSE) -> 0 | AV26: =+IF(VLOOKUP($B26,'Lista Puestos Valorados'!$B$11:$BK$510,MATCH('Auxiliar General'!AP$4,'Lista Puestos Valorados'!$B$10:$BK$10,0),0)="","No relevante",VLOOKUP($B26,'Lista Puestos Valorados'!$B$11:$BK$510,MATCH('Auxiliar General'!AP$4,'Lista Puestos Valorados'!$B$10:$BK$10,0),0)) -> No relevante | AW26: =+HLOOKUP(AV26,Sistema_Puntos!$Q$5:$Y$43,'Auxiliar General'!AR$5,FALSE) -> 0 | AX26: =+IF(VLOOKUP($B26,'Lista Puestos Valorados'!$B$11:$BK$510,MATCH('Auxiliar General'!AR$4,'Lista Puestos Valorados'!$B$10:$BK$10,0),0)="","No relevante",VLOOKUP($B26,'Lista Puestos Valorados'!$B$11:$BK$510,MATCH('Auxiliar General'!AR$4,'Lista Puestos Valorados'!$B$10:$BK$10,0),0)) -> No relevante | AY26: =+HLOOKUP(AX26,Sistema_Puntos!$Q$5:$Y$43,'Auxiliar General'!AT$5,FALSE) -> 0 | AZ26: =+IF(VLOOKUP($B26,'Lista Puestos Valorados'!$B$11:$BK$510,MATCH('Auxiliar General'!AT$4,'Lista Puestos Valorados'!$B$10:$BK$10,0),0)="","No relevante",VLOOKUP($B26,'Lista Puestos Valorados'!$B$11:$BK$510,MATCH('Auxiliar General'!AT$4,'Lista Puestos Valorados'!$B$10:$BK$10,0),0)) -> No relevante | BA26: =+HLOOKUP(AZ26,Sistema_Puntos!$Q$5:$Y$43,'Auxiliar General'!AV$5,FALSE) -> 0 | BB26: =+IF(VLOOKUP($B26,'Lista Puestos Valorados'!$B$11:$BK$510,MATCH('Auxiliar General'!AV$4,'Lista Puestos Valorados'!$B$10:$BK$10,0),0)="","No relevante",VLOOKUP($B26,'Lista Puestos Valorados'!$B$11:$BK$510,MATCH('Auxiliar General'!AV$4,'Lista Puestos Valorados'!$B$10:$BK$10,0),0)) -> No relevante | BC26: =+HLOOKUP(BB26,Sistema_Puntos!$Q$5:$Y$43,'Auxiliar General'!AX$5,FALSE) -> 0 | BD26: =+IF(VLOOKUP($B26,'Lista Puestos Valorados'!$B$11:$BK$510,MATCH('Auxiliar General'!AX$4,'Lista Puestos Valorados'!$B$10:$BK$10,0),0)="","No relevante",VLOOKUP($B26,'Lista Puestos Valorados'!$B$11:$BK$510,MATCH('Auxiliar General'!AX$4,'Lista Puestos Valorados'!$B$10:$BK$10,0),0)) -> No relevante | BE26: =+HLOOKUP(BD26,Sistema_Puntos!$Q$5:$Y$43,'Auxiliar General'!AZ$5,FALSE) -> 0 | BF26: =+IF(VLOOKUP($B26,'Lista Puestos Valorados'!$B$11:$BK$510,MATCH('Auxiliar General'!AZ$4,'Lista Puestos Valorados'!$B$10:$BK$10,0),0)="","No relevante",VLOOKUP($B26,'Lista Puestos Valorados'!$B$11:$BK$510,MATCH('Auxiliar General'!AZ$4,'Lista Puestos Valorados'!$B$10:$BK$10,0),0)) -> No relevante | BG26: =+HLOOKUP(BF26,Sistema_Puntos!$Q$5:$Y$43,'Auxiliar General'!BB$5,FALSE) -> 0 | BH26: =+IF(VLOOKUP($B26,'Lista Puestos Valorados'!$B$11:$BK$510,MATCH('Auxiliar General'!BB$4,'Lista Puestos Valorados'!$B$10:$BK$10,0),0)="","No relevante",VLOOKUP($B26,'Lista Puestos Valorados'!$B$11:$BK$510,MATCH('Auxiliar General'!BB$4,'Lista Puestos Valorados'!$B$10:$BK$10,0),0)) -> No relevante | BI26: =+HLOOKUP(BH26,Sistema_Puntos!$Q$5:$Y$43,'Auxiliar General'!BD$5,FALSE) -> 0 | BJ26: =+IF(VLOOKUP($B26,'Lista Puestos Valorados'!$B$11:$BK$510,MATCH('Auxiliar General'!BD$4,'Lista Puestos Valorados'!$B$10:$BK$10,0),0)="","No relevante",VLOOKUP($B26,'Lista Puestos Valorados'!$B$11:$BK$510,MATCH('Auxiliar General'!BD$4,'Lista Puestos Valorados'!$B$10:$BK$10,0),0)) -> No relevante | BK26: =+HLOOKUP(BJ26,Sistema_Puntos!$Q$5:$Y$43,'Auxiliar General'!BF$5,FALSE) -> 0 | BL26: =+IF(VLOOKUP($B26,'Lista Puestos Valorados'!$B$11:$BK$510,MATCH('Auxiliar General'!BF$4,'Lista Puestos Valorados'!$B$10:$BK$10,0),0)="","No relevante",VLOOKUP($B26,'Lista Puestos Valorados'!$B$11:$BK$510,MATCH('Auxiliar General'!BF$4,'Lista Puestos Valorados'!$B$10:$BK$10,0),0)) -> No relevante | BM26: =+HLOOKUP(BL26,Sistema_Puntos!$Q$5:$Y$43,'Auxiliar General'!BH$5,FALSE) -> 0 | BN26: =+IF(VLOOKUP($B26,'Lista Puestos Valorados'!$B$11:$BK$510,MATCH('Auxiliar General'!BH$4,'Lista Puestos Valorados'!$B$10:$BK$10,0),0)="","No relevante",VLOOKUP($B26,'Lista Puestos Valorados'!$B$11:$BK$510,MATCH('Auxiliar General'!BH$4,'Lista Puestos Valorados'!$B$10:$BK$10,0),0)) -> No relevante | BO26: =+HLOOKUP(BN26,Sistema_Puntos!$Q$5:$Y$43,'Auxiliar General'!BJ$5,FALSE) -> 0 | BP26: =+IF(VLOOKUP($B26,'Lista Puestos Valorados'!$B$11:$BK$510,MATCH('Auxiliar General'!BJ$4,'Lista Puestos Valorados'!$B$10:$BK$10,0),0)="","No relevante",VLOOKUP($B26,'Lista Puestos Valorados'!$B$11:$BK$510,MATCH('Auxiliar General'!BJ$4,'Lista Puestos Valorados'!$B$10:$BK$10,0),0)) -> No relevante | BQ26: =+HLOOKUP(BP26,Sistema_Puntos!$Q$5:$Y$43,'Auxiliar General'!BL$5,FALSE) -> 0 | BR26: =+IF(VLOOKUP($B26,'Lista Puestos Valorados'!$B$11:$BK$510,MATCH('Auxiliar General'!BL$4,'Lista Puestos Valorados'!$B$10:$BK$10,0),0)="","No relevante",VLOOKUP($B26,'Lista Puestos Valorados'!$B$11:$BK$510,MATCH('Auxiliar General'!BL$4,'Lista Puestos Valorados'!$B$10:$BK$10,0),0)) -> No relevante | BS26: =+HLOOKUP(BR26,Sistema_Puntos!$Q$5:$Y$43,'Auxiliar General'!BN$5,FALSE) -> 0 | BT26: =+IF(VLOOKUP($B26,'Lista Puestos Valorados'!$B$11:$BK$510,MATCH('Auxiliar General'!BN$4,'Lista Puestos Valorados'!$B$10:$BK$10,0),0)="","No relevante",VLOOKUP($B26,'Lista Puestos Valorados'!$B$11:$BK$510,MATCH('Auxiliar General'!BN$4,'Lista Puestos Valorados'!$B$10:$BK$10,0),0)) -> No relevante | BU26: =+HLOOKUP(BT26,Sistema_Puntos!$Q$5:$Y$43,'Auxiliar General'!BP$5,FALSE) -> 0 | BV26: =+IF(VLOOKUP($B26,'Lista Puestos Valorados'!$B$11:$BK$510,MATCH('Auxiliar General'!BP$4,'Lista Puestos Valorados'!$B$10:$BK$10,0),0)="","No relevante",VLOOKUP($B26,'Lista Puestos Valorados'!$B$11:$BK$510,MATCH('Auxiliar General'!BP$4,'Lista Puestos Valorados'!$B$10:$BK$10,0),0)) -> No relevante | BW26: =+HLOOKUP(BV26,Sistema_Puntos!$Q$5:$Y$43,'Auxiliar General'!BR$5,FALSE) -> 0 | BX26: =+IF(VLOOKUP($B26,'Lista Puestos Valorados'!$B$11:$BK$510,MATCH('Auxiliar General'!BR$4,'Lista Puestos Valorados'!$B$10:$BK$10,0),0)="","No relevante",VLOOKUP($B26,'Lista Puestos Valorados'!$B$11:$BK$510,MATCH('Auxiliar General'!BR$4,'Lista Puestos Valorados'!$B$10:$BK$10,0),0)) -> No relevante | BY26: =+HLOOKUP(BX26,Sistema_Puntos!$Q$5:$Y$43,'Auxiliar General'!BT$5,FALSE) -> 0 | BZ26: =+IF(VLOOKUP($B26,'Lista Puestos Valorados'!$B$11:$BK$510,MATCH('Auxiliar General'!BT$4,'Lista Puestos Valorados'!$B$10:$BK$10,0),0)="","No relevante",VLOOKUP($B26,'Lista Puestos Valorados'!$B$11:$BK$510,MATCH('Auxiliar General'!BT$4,'Lista Puestos Valorados'!$B$10:$BK$10,0),0)) -> No relevante | CA26: =+HLOOKUP(BZ26,Sistema_Puntos!$Q$5:$Y$43,'Auxiliar General'!BV$5,FALSE) -> 0 | CB26: =+IF(VLOOKUP($B26,'Lista Puestos Valorados'!$B$11:$BK$510,MATCH('Auxiliar General'!BV$4,'Lista Puestos Valorados'!$B$10:$BK$10,0),0)="","No relevante",VLOOKUP($B26,'Lista Puestos Valorados'!$B$11:$BK$510,MATCH('Auxiliar General'!BV$4,'Lista Puestos Valorados'!$B$10:$BK$10,0),0)) -> No relevante | CC26: =+HLOOKUP(CB26,Sistema_Puntos!$Q$5:$Y$43,'Auxiliar General'!BX$5,FALSE) -> 0 | CD26: =+IF(VLOOKUP($B26,'Lista Puestos Valorados'!$B$11:$BK$510,MATCH('Auxiliar General'!BX$4,'Lista Puestos Valorados'!$B$10:$BK$10,0),0)="","No relevante",VLOOKUP($B26,'Lista Puestos Valorados'!$B$11:$BK$510,MATCH('Auxiliar General'!BX$4,'Lista Puestos Valorados'!$B$10:$BK$10,0),0)) -> No relevante | CE26: =+HLOOKUP(CD26,Sistema_Puntos!$Q$5:$Y$43,'Auxiliar General'!BZ$5,FALSE) -> 0 | CF26: =+IF(VLOOKUP($B26,'Lista Puestos Valorados'!$B$11:$BK$510,MATCH('Auxiliar General'!BZ$4,'Lista Puestos Valorados'!$B$10:$BK$10,0),0)="","No relevante",VLOOKUP($B26,'Lista Puestos Valorados'!$B$11:$BK$510,MATCH('Auxiliar General'!BZ$4,'Lista Puestos Valorados'!$B$10:$BK$10,0),0)) -> No relevante | CG26: =+HLOOKUP(CF26,Sistema_Puntos!$Q$5:$Y$43,'Auxiliar General'!CB$5,FALSE) -> 0
